Workbook

Sheet INDICE
F1: ESPANHA
F2: Trocas comerciais com Portugal (PT) 2019-2023 Setores agrícola e agroalimentar, do mar e das florestas
C3: Fonte
D4: Estatísticas do Comércio Internacional | F4: Espanha - Síntese
D5: dados: 2022 definitivos | F5: 1. Evolução da balança comercial
F6: 2. Ranking dos parceiros comerciais de Portugal por país
C7: Data | D7: 2024-05-08T11:46:17.880 | F7: 2A Parceiros comerciais de Portugal - UE vs. Países Terceiros
F8: 3. Principais produtos transacionados (NC a 2 e 4 dígitos)
F9: 3A Principais produtos transacionados (sem mar nem florestas)
F10: 4A Evolução da balança comercial por produto
F11: 5.2. Trocas comerciais por produto (NC 2 dígitos)

Sheet Sintese
A1: Espanha - Síntese (2019-2023)
A3: • As trocas comerciais de bens transacionáveis (excluindo serviços) entre Portugal e Espanha representam um total de 17,2 mil milhões de € (M€) em exportações e 28,8 mil M€ em importações, na média do período 2019-2023, correspondendo a um saldo negativo da balança comercial de cerca de -11,6 M€. No que se refere ao total da economia (incluindo serviços), as exportações totalizam 20 mil M€ e as importações 30 mil milhões, correspondendo a um saldo negativo de cerca de -10,1 mil M€, para o período 2019-2022.
A4: • No que respeita aos produtos dos setores agrícola e agroalimentar, mar e florestas, Portugal exportou para Espanha 4,6 mil M€ em média anual, no mesmo período (este país ocupa assim a 1ª posição em relação ao total dos países), enquanto as importações totalizaram 7,5 mil M€ (1ª posição), com um saldo negativo de -2,9 mil M€. Estes setores representam perto de 26,7% do total de exportações de bens transacionáveis e 26,1% das correspondentes importações.
A5: • Se nos referirmos apenas ao setor agrícola e agroalimentar, as exportações representam, em média, 2,8 mil M€ (1ª posição) e as importações 5,2 mil milhões (1ª posição), ou seja, Portugal tem um saldo negativo de -2,5 mil M€. Estes valores representam, respetivamente, cerca de 60,1% das exportações do setor agroflorestal e mar e 69,3% das importações.
A6: • As principais exportações agrícolas e agroalimentares (NC 4 dígitos) neste período são Azeite (processos mecânicos ou físicos) (11%), Charutos, cigarrilhas e cigarros (10%) e Citrinos, frescos ou secos (4%). As importações agrícolas e agroalimentares mais relevantes referem-se a Azeite (processos mecânicos ou físicos) (7%), Carnes de bovino, frescas ou refrigeradas (6%) e Produtos de padaria, pastelaria, etc. (6%). Se considerarmos também os produtos do mar e da floresta, merecem particular destaque, em termos de exportações, Azeite (processos mecânicos ou físicos) (7%), Charutos, cigarrilhas e cigarros (6%) e Papel para toucador, etc., pasta de celulose, etc. (3%). Nas importações destes setores, destacam-se Azeite (processos mecânicos ou físicos) (5%), Carnes de bovino, frescas ou refrigeradas (4%) e Produtos de padaria, pastelaria, etc. (4%).
A9: Saldo da Balança Comercial | B9: 2019 | C9: 2020 | D9: 2021 | E9: 2022 | F9: 2023 | G9: média 2019-2023 | J9: Posição entre os parceiros comerciais de Portugal (milhares de euros)
A10: Total Economia (bens e serviços) | B10: -9132.2 | C10: -7999.5 | D10: -9588.8 | E10: -13494.2 | F10: n.d. | G10: -10053.675 | J10: AA + M + F | K10: Posição | L10: média 2019-2023 | M10: % do total | N10: TVMA* 2019-2023 | O10: TVT* 2019-2023
A11: Total de Bens Transacionáveis* | B11: -9594.808294 | C11: -8453.124125 | D11: -10283.68161 | E11: -14400.91867 | F11: -15461.23425 | G11: -11638.75339 | J11: Exportações | K11: 1ª | L11: 4589477.65 | M11: 0.330749654 | N11: 0.1263675023 | O11: 0.6096092057
A12: Agrícola e Agroalimentar (AA) | B12: -2330.407905 | C12: -2050.454525 | D12: -2177.553241 | E12: -2698.019047 | F12: -3053.312103 | G12: -2461.949364 | J12: Importações | K12: 1ª | L12: 7534700.686 | M12: 0.4657919629 | N12: 0.102911772 | O12: 0.4796639359
A13: Mar (M) | B13: -293.063771 | C13: -354.300105 | D13: -346.044541 | E13: -415.91787 | F13: -402.357169 | G13: -362.3366912 | J13: AA
A14: Florestas (F) | B14: -125.424364 | C14: -128.998778 | D14: -105.660836 | E14: -103.162277 | F14: -141.438646 | G14: -120.9369802 | J14: Exportações | K14: 1ª | L14: 2756093.353 | M14: 0.355769475 | N14: 0.1672282198 | O14: 0.856192935
A15: AA + M + F | B15: -2748.89604 | C15: -2533.753408 | D15: -2629.258618 | E15: -3217.099194 | F15: -3597.107918 | G15: -2945.223036 | J15: Importações | K15: 1ª | L15: 5218042.717 | M15: 0.4651610503 | N15: 0.09339911094 | O15: 0.5627646618
K16: *TVMA - Taxa de variação média anual; TVT - Taxa de variação total
A17: milhões de euros *exclui serviços
A19: Evolução das trocas comerciais Portugal-Espanha em milhares de euros (2019-2023)
E28: Exportações | G28: Importações | I28: Saldo
A29: Principais produtos agrícolas e agroalimentares, do mar e da floresta transacionados (NC 4 dígitos)
A48: Principais produtos agrícolas e agroalimentares transacionados (NC 4 dígitos)
A82: Fonte: GPP a partir de dados INE/Comércio Internacional (2022 definitivos) | N82: 2024-05-08T11:46:17.880

Sheet 1
A1: Evolução da balança comercial Portugal-Espanha 2019-2023 em milhões de euros
A3: Total da Economia (TE)(1) | B3: 2019 | C3: 2020 | D3: 2021 | E3: 2022 | F3: 2023 | G3: média 2019-2022 | H3: var. 19/20 | I3: var. 20/21 | J3: var. 21/22 | K3: var. 22/23 | L3: TVMA* 2019-2023 | M3: TVT* 2019-2023
A4: Exportações | B4: 18326.1 | C4: 16272.7 | D4: 20308.6 | E4: 24893.7 | F4: n.d. | G4: 19950.275 | H4: -0.1120478443 | I4: 0.2480166168 | J4: 0.2257713481
A5: Importações | B5: 27458.3 | C5: 24272.2 | D5: 29897.4 | E5: 38387.9 | F5: n.d. | G5: 30003.95 | H5: -0.1160341318 | I5: 0.2317548471 | J5: 0.2839879053
A6: Saldo (exp-imp) | B6: -9132.2 | C6: -7999.5 | D6: -9588.8 | E6: -13494.2 | F6: n.d. | G6: -10053.675
A7: Cobertura (exp/imp) | B7: 0.6674156812 | C7: 0.670425425 | D7: 0.6792764588 | E7: 0.6484777755 | F7: n.d. | G7: 0.6649216187 | L7: Exportações
A8: Exp TE Espanha / Exp TE Mundo | B8: 0.196482264 | C8: 0.2190554156 | D8: 0.2270392442 | E8: 0.2071048416 | F8: n.d. | G8: 0.1982159168 | L8: Importações
A9: Imp TE Espanha / Imp TE Mundo | B9: 0.2974840027 | C9: 0.3088664518 | D9: 0.312905203 | E9: 0.3045880339 | F9: n.d. | G9: 0.290614564
A10: (1) Todas as transações entre PT e Espanha (inclui bens e serviços) | E10: Fonte: GEE/ME e GPP a partir de INE/Contas Nacionais (2016 e 2020 provisórios; 2021 preliminares) | H10: *TVMA - Taxa de variação média anual; TVT - Taxa de variação total
A22: Total de Bens Transacionáveis (BT)(1) | B22: 2019 | C22: 2020 | D22: 2021 | E22: 2022 | F22: 2023 | G22: média quinquénio | H22: var. 19/20 | I22: var. 20/21 | J22: var. 21/22 | K22: var. 22/23 | L22: TVMA* 2019-2023 | M22: TVT* 2019-2023
A23: Exportações | B23: 14811.17312 | C23: 13636.22215 | D23: 17016.14144 | E23: 20561.96743 | F23: 19996.27673 | G23: 17204.35617 | H23: -0.07932869107 | I23: 0.2478633203 | J23: 0.2083801432 | K23: -0.02751150681 | L23: 0.07792841398 | M23: 0.350080548
A24: Importações | B24: 24405.98142 | C24: 22089.34627 | D24: 27299.82306 | E24: 34962.88611 | F24: 35457.51097 | G24: 28843.10957 | H24: -0.09492079447 | I24: 0.2358818918 | J24: 0.2807000994 | K24: 0.0141471407 | L24: 0.09787524438 | M24: 0.4528205348
A25: Saldo (exp-imp) | B25: -9594.808294 | C25: -8453.124125 | D25: -10283.68161 | E25: -14400.91867 | F25: -15461.23425 | G25: -11638.75339
A26: Cobertura (exp/imp) | B26: 0.6068665246 | C26: 0.6173212181 | D26: 0.6233059242 | E26: 0.5881084122 | F26: 0.5639503783 | G26: 0.5964806303
A27: Exp BT Espanha / Exp TE Espanha | B27: 0.8082010424 | C27: 0.8379815363 | D27: 0.8378786053 | E27: 0.8259908102 | F27: n.d. | G27: 0.8623618559 | L27: Exportações
A28: Imp BT Espanha / Imp TE Espanha | B28: 0.888838035 | C28: 0.910067743 | D28: 0.9131169619 | E28: 0.9107788159 | F28: n.d. | G28: 0.961310413 | L28: Importações
A29: Exp BT Espanha / Exp BT Mundo | B29: 0.2472533949 | C29: 0.2536622685 | D29: 0.2674714852 | E29: 0.2624770789 | F29: 0.2580274612 | G29: 0.2582355928
A30: Imp BT Espanha / Imp BT Mundo | B30: 0.3051620122 | C30: 0.3241494191 | D30: 0.3283371022 | E30: 0.3193371711 | F30: 0.3377948951 | G30: 0.3235550782
A31: Exp BT Espanha / Exp TE Mundo | B31: 0.1587971706 | C31: 0.1835643937 | D31: 0.1902313253 | E31: 0.1710666959 | F31: 0.1586490102 | G31: 0.1709338459
A32: Imp BT Espanha / Imp TE Mundo | B32: 0.2644150964 | C32: 0.2810893946 | D32: 0.2857190483 | E32: 0.2774123288 | F32: 0.2865276682 | G32: 0.2793708065
A33: (1) Todos os produtos transacionados entre PT e Espanha (exclui serviços) | D33: TE - Total da Economia (bens e serviços) Fonte: INE/Contas Nacionais | H33: *TVMA - Taxa de variação média anual; TVT - Taxa de variação total
A46: Agro(1) + Mar + Florestas (AMF) | B46: 2019 | C46: 2020 | D46: 2021 | E46: 2022 | F46: 2023 | G46: média quinquénio | H46: var. 19/20 | I46: var. 20/21 | J46: var. 21/22 | K46: var. 22/23 | L46: TVMA* 2019-2023 | M46: TVT* 2019-2023
A47: Exportações | B47: 3619.480855 | C47: 3571.177168 | D47: 4349.596588 | E47: 5581.183937 | F47: 5825.949704 | G47: 4589.47765 | H47: -0.01334547382 | I47: 0.2179727813 | J47: 0.2831497874 | K47: 0.04385552775 | L47: 0.1263675023 | M47: 0.6096092057
A48: Importações | B48: 6368.376895 | C48: 6104.930576 | D48: 6978.855206 | E48: 8798.283131 | F48: 9423.057622 | G48: 7534.700686 | H48: -0.04136789065 | I48: 0.1431506254 | J48: 0.260705785 | K48: 0.0710109554 | L48: 0.102911772 | M48: 0.4796639359
A49: Saldo (exp-imp) | B49: -2748.89604 | C49: -2533.753408 | D49: -2629.258618 | E49: -3217.099194 | F49: -3597.107918 | G49: -2945.223036
A50: Cobertura (exp/imp) | B50: 0.5683521743 | C50: 0.5849660571 | D50: 0.6232535938 | E50: 0.6343492081 | F50: 0.6182653166 | G50: 0.6091121388
A51: Exp AMF Espanha / Exp BT Espanha | B51: 0.2443750286 | C51: 0.261889043 | D51: 0.2556159164 | E51: 0.2714323887 | F51: 0.2913517243 | G51: 0.2667625341 | L51: Exportações
A52: Imp AMF Espanha / Imp BT Espanha | B52: 0.2609350874 | C52: 0.2763744341 | D52: 0.2556373787 | E52: 0.2516463631 | F52: 0.2657563197 | G52: 0.2612305261 | L52: Importações
A53: Exp AMF Espanha / Exp TE Espanha | B53: 0.1975041528 | C53: 0.2194581826 | D53: 0.2141751075 | E53: 0.2242006587 | F53: n.d. | G53: 0.230045834
A54: Imp AMF Espanha / Imp TE Espanha | B54: 0.2319290304 | C54: 0.2515194575 | D54: 0.2334268266 | E54: 0.2291941766 | F54: n.d. | G54: 0.2511236249
A55: Exp AMF Espanha / Exp AMF Mundo | B55: 0.3060140587 | C55: 0.3095831163 | D55: 0.3246798795 | E55: 0.3405577056 | F55: 0.3589234697 | G55: 0.330749654
A56: Imp AMF Espanha / Imp AMF Mundo | B56: 0.4603635225 | C56: 0.467976166 | D56: 0.466981386 | E56: 0.4555549883 | F56: 0.4772656369 | G56: 0.4657919629
A57: Exp AMF Espanha / Exp BT Mundo | B57: 0.06042255544 | C57: 0.06643136874 | D57: 0.06836996878 | E57: 0.0712447805 | F57: 0.07517674574 | G57: 0.06888758112
A58: Imp AMF Espanha / Imp BT Mundo | B58: 0.07962747634 | C58: 0.08958661227 | D58: 0.08393523613 | E58: 0.0803600377 | F58: 0.08977112814 | G58: 0.0845224633
A59: (1) Produtos agrícolas e agroalimentares | B59: BT - Total de Bens Transacionáveis (exclui serviços); TE - Total da Economia (bens e serviços) | H59: *TVMA - Taxa de variação média anual; TVT - Taxa de variação total
A71: Agroalimentar (AA)(1) | B71: 2019 | C71: 2020 | D71: 2021 | E71: 2022 | F71: 2023 | G71: média quinquénio | H71: var. 19/20 | I71: var. 20/21 | J71: var. 21/22 | K71: var. 22/23 | L71: TVMA* 2019-2023 | M71: TVT* 2019-2023
A72: Exportações | B72: 2005.829268 | C72: 2174.802431 | D72: 2557.436888 | E72: 3319.192061 | F72: 3723.206116 | G72: 2756.093353 | H72: 0.08424104967 | I72: 0.17593987 | J72: 0.2978588354 | K72: 0.1217206018 | L72: 0.1672282198 | M72: 0.856192935
A73: Importações | B73: 4336.237173 | C73: 4225.256956 | D73: 4734.990129 | E73: 6017.211108 | F73: 6776.518219 | G73: 5218.042717 | H73: -0.02559366856 | I73: 0.1206395678 | J73: 0.2707969698 | K73: 0.1261892091 | L73: 0.1180813299 | M73: 0.5627646618
A74: Saldo (exp-imp) | B74: -2330.407905 | C74: -2050.454525 | D74: -2177.553241 | E74: -2698.019047 | F74: -3053.312103 | G74: -2461.949364
A75: Cobertura (exp/imp) | B75: 0.4625736988 | C75: 0.5147148336 | D75: 0.5401145131 | E75: 0.5516163554 | F75: 0.5494275962 | G75: 0.5281852799
A76: Exp AA Espanha / Exp AMF Espanha | B76: 0.5541759574 | C76: 0.6089875491 | D76: 0.5879710535 | E76: 0.594711104 | F76: 0.6390728216 | G76: 0.6005244088 | L76: Exportações
A77: Imp AA Espanha / Imp AMF Espanha | B77: 0.6809014674 | C77: 0.6921056519 | D77: 0.6784766254 | E77: 0.683907419 | F77: 0.719142182 | G77: 0.6925348377 | L77: Importações
A78: Exp AA Espanha / Exp BT Espanha | B78: 0.1354267654 | C78: 0.1594871664 | D78: 0.1502947596 | E78: 0.1614238556 | F78: 0.1861949685 | G78: 0.1601974131
A79: Imp AA Espanha / Imp BT Espanha | B79: 0.1776710839 | C79: 0.1912803079 | D79: 0.173443986 | E79: 0.1721028147 | F79: 0.1911165796 | G79: 0.18091124
A80: Exp AA Espanha / Exp TE Espanha | B80: 0.109452053 | C80: 0.1336473008 | D80: 0.1259287636 | E80: 0.1333346212 | F80: n.d. | G80: 0.1381481384
A81: Imp AA Espanha / Imp TE Espanha | B81: 0.1579208171 | C81: 0.1740780381 | D81: 0.1583746456 | E81: 0.1567475978 | F81: n.d. | G81: 0.1739118588
A82: Exp AA Espanha / Exp AA Mundo | B82: 0.3188076673 | C82: 0.3286648936 | D82: 0.3431970698 | E82: 0.3738925387 | F82: 0.392068363 | G82: 0.355769475
A83: Imp AA Espanha / Imp AA Mundo | B83: 0.4654076559 | C83: 0.4651086644 | D83: 0.4610127814 | E83: 0.4545682419 | F83: 0.4779266695 | G83: 0.4651610503
A84: Exp AA Espanha / Exp AMF Mundo | B84: 0.1695856339 | C84: 0.1885322632 | D84: 0.1909023708 | E84: 0.2025334491 | F84: 0.2293782345 | G84: 0.1986232404
A85: Imp AA Espanha / Imp AMF Mundo | B85: 0.313462198 | C85: 0.3238889494 | D85: 0.3168359549 | E85: 0.3115574363 | F85: 0.3432218515 | G85: 0.3225771615
A86: (1) Produtos agrícolas e agroalimentares | H86: *TVMA - Taxa de variação média anual; TVT - Taxa de variação total
A87: AMF - Agroalimentar, Mar e Florestas; BT - Total de Bens Transacionáveis (exclui serviços); TE - Total da Economia (bens e serviços)
A98: Mar (M) | B98: 2019 | C98: 2020 | D98: 2021 | E98: 2022 | F98: 2023 | G98: média quinquénio | H98: var. 19/20 | I98: var. 20/21 | J98: var. 21/22 | K98: var. 22/23 | L98: TVMA* 2019-2023 | M98: TVT* 2019-2023
A99: Exportações | B99: 554.362334 | C99: 424.935341 | D99: 553.092364 | E99: 655.502403 | F99: 672.663125 | G99: 572.1111134 | H99: -0.2334700341 | I99: 0.3015918203 | J99: 0.185159018 | K99: 0.02617949518 | L99: 0.04954478851 | M99: 0.2133997636
A100: Importações | B100: 847.426105 | C100: 779.235446 | D100: 899.136905 | E100: 1071.420273 | F100: 1075.020294 | G100: 934.4478046 | H100: -0.08046797071 | I100: 0.1538706428 | J100: 0.1916097171 | K100: 0.003360045624 | L100: 0.06127688717 | M100: 0.2685711328
A101: Saldo (exp-imp) | B101: -293.063771 | C101: -354.300105 | D101: -346.044541 | E101: -415.91787 | F101: -402.357169 | G101: -362.3366912
A102: Cobertura (exp/imp) | B102: 0.6541718868 | C102: 0.5453234233 | D102: 0.6151369841 | E102: 0.6118069814 | F102: 0.6257213271 | G102: 0.6122451255
A103: Exp M Espanha / Exp AMF Espanha | B103: 0.1531607311 | C103: 0.1189902716 | D103: 0.1271594624 | E103: 0.1174486293 | F103: 0.1154598236 | G103: 0.1246571303 | L103: Exportações
A104: Imp M Espanha / Imp AMF Espanha | B104: 0.1330678317 | C104: 0.1276403452 | D104: 0.1288373062 | E104: 0.1217760621 | F104: 0.11408402 | G104: 0.1240192336 | L104: Importações
A105: Exp M Espanha / Exp BT Espanha | B105: 0.03742865804 | C105: 0.03116224834 | D105: 0.03250398252 | E105: 0.03187936199 | F105: 0.03363941869 | G105: 0.03325385197
A106: Imp M Espanha / Imp BT Espanha | B106: 0.03472206631 | C106: 0.03527652817 | D106: 0.03293563123 | E106: 0.03064450314 | F106: 0.03031854929 | G106: 0.03239760964
A107: Exp M Espanha / Exp TE Espanha | B107: 0.03024988044 | C107: 0.02611338874 | D107: 0.02723439154 | E107: 0.02633206004 | F107: n.d. | G107: 0.0286768535
A108: Imp M Espanha / Imp TE Espanha | B108: 0.03086229319 | C108: 0.03210403037 | D108: 0.03007408353 | E108: 0.02791036428 | F108: n.d. | G108: 0.03114415951
A109: Exp M Espanha / Exp M Mundo | B109: 0.5188778665 | C109: 0.4723237264 | D109: 0.5049107198 | E109: 0.5124628759 | F109: 0.5045333426 | G109: 0.5039878225
A110: Imp M Espanha / Imp M Mundo | B110: 0.3888448949 | C110: 0.4048256242 | D110: 0.4297865396 | E110: 0.412016245 | F110: 0.4237630057 | G110: 0.4122489019
A111: Exp M Espanha / Exp AMF Mundo | B111: 0.04686933696 | C111: 0.03683737908 | D111: 0.04128611894 | E111: 0.03999803571 | F111: 0.04144124049 | G111: 0.04123030271
A112: Imp M Espanha / Imp AMF Mundo | B112: 0.06125957574 | C112: 0.05973263936 | D112: 0.06016462381 | E112: 0.05547569255 | F112: 0.05444838246 | G112: 0.05776716227
A113: AMF - Agroalimentar, Mar e Florestas; BT - Total de Bens Transacionáveis (exclui serviços); TE - Total da Economia (bens e serviços) | H113: *TVMA - Taxa de variação média anual; TVT - Taxa de variação total
A125: Florestas (F) | B125: 2019 | C125: 2020 | D125: 2021 | E125: 2022 | F125: 2023 | G125: média quinquénio | H125: var. 19/20 | I125: var. 20/21 | J125: var. 21/22 | K125: var. 22/23 | L125: TVMA* 2019-2023 | M125: TVT* 2019-2023
A126: Exportações | B126: 1059.289253 | C126: 971.439396 | D126: 1239.067336 | E126: 1606.489473 | F126: 1430.080463 | G126: 1261.273184 | H126: -0.08293283138 | I126: 0.2754962802 | J126: 0.2965312105 | K126: -0.1098102496 | L126: 0.07791986807 | M126: 0.3500377342
A127: Importações | B127: 1184.713617 | C127: 1100.438174 | D127: 1344.728172 | E127: 1709.65175 | F127: 1571.519109 | G127: 1382.210164 | H127: -0.07113570891 | I127: 0.2219933875 | J127: 0.2713734906 | K127: -0.08079577668 | L127: 0.07318988693 | M127: 0.3264970424
A128: Saldo (exp-imp) | B128: -125.424364 | C128: -128.998778 | D128: -105.660836 | E128: -103.162277 | F128: -141.438646 | G128: -120.9369802
A129: Cobertura (exp/imp) | B129: 0.8941310691 | C129: 0.882775079 | D129: 0.9214258776 | E129: 0.9396588943 | F129: 0.9099987743 | G129: 0.9125046369
A130: Exp F Espanha / Exp AMF Espanha | B130: 0.2926633115 | C130: 0.2720221793 | D130: 0.2848694841 | E130: 0.2878402667 | F130: 0.2454673548 | G130: 0.2748184609 | L130: Exportações
A131: Imp F Espanha / Imp AMF Espanha | B131: 0.1860307008 | C131: 0.1802540029 | D131: 0.1926860685 | E131: 0.1943165189 | F131: 0.1667737981 | G131: 0.1834459286 | L131: Importações
A132: Exp F Espanha / Exp BT Espanha | B132: 0.07151960511 | C132: 0.07123962822 | D132: 0.07281717422 | E132: 0.07812917116 | F132: 0.07151733708 | G132: 0.07331126904
A133: Imp F Espanha / Imp BT Espanha | B133: 0.04854193719 | C133: 0.04981759806 | D133: 0.04925776146 | E133: 0.04889904526 | F133: 0.0443211908 | G133: 0.04792167645
A134: Exp F Espanha / Exp TE Espanha | B134: 0.0578022194 | C134: 0.0596974931 | D134: 0.06101195237 | E134: 0.06453397739 | F134: n.d. | G134: 0.06322084203
A135: Imp F Espanha / Imp TE Espanha | B135: 0.04314592007 | C135: 0.04533738903 | D135: 0.04497809749 | E135: 0.04453621454 | F135: n.d. | G135: 0.04606760658
A136: Exp F Espanha / Exp F Mundo | B136: 0.2370952652 | C136: 0.2417305009 | D136: 0.2555125361 | E136: 0.2577870404 | F136: 0.264723066 | G136: 0.2525594231
A137: Imp F Espanha / Imp F Mundo | B137: 0.5069486007 | C137: 0.5404717509 | D137: 0.5208666369 | E137: 0.4918876604 | F137: 0.5189943957 | G137: 0.5135106829
A138: Exp F Espanha / Exp AMF Mundo | B138: 0.08955908778 | C138: 0.08421347398 | D138: 0.09249138976 | E138: 0.09802622082 | F138: 0.08810399468 | G138: 0.09089611086
A139: Imp F Espanha / Imp AMF Mundo | B139: 0.08564174873 | C139: 0.0843545772 | D139: 0.08998080732 | E139: 0.08852185948 | F139: 0.07959540295 | G139: 0.08544763919
A140: AMF - Agroalimentar, Mar e Florestas; BT - Total de Bens Transacionáveis (exclui serviços); TE - Total da Economia (bens e serviços) | H140: *TVMA - Taxa de variação média anual; TVT - Taxa de variação total
A150: Fonte: GPP a partir de dados INE/Comércio Internacional (2020 provisórios; 2021 preliminares) | K150: 2024-05-08T11:46:17.880

Sheet 2
A1: Ranking dos parceiros comerciais de Portugal por país (média 2019-2023 em milhares de euros) produtos agrícolas e agroalimentares, do mar e da floresta
A2: Exportações | F2: Importações | K2: Trocas comerciais (total e saldo)
A3: P | B3: País | C3: média quinquénio | D3: % do Total | F3: P | G3: País | H3: média quinquénio | I3: % do Total | K3: P | L3: País | M3: Total (exp+imp) | N3: % do Total | O3: Saldo (exp-imp)
A4: 1 | B4: Espanha | C4: 4589477.65 | D4: 0.330749654 | F4: 1 | G4: Espanha | H4: 7534700.686 | I4: 0.4657919629 | K4: 1 | L4: Espanha | M4: 12124178.34 | N4: 0.4034387285 | O4: -2945223.036
A5: 2 | B5: França | C5: 1475809.99 | D5: 0.106357124 | F5: 2 | G5: França | H5: 1064197.953 | I5: 0.06578826077 | K5: 2 | L5: França | M5: 2540007.943 | N5: 0.08452016677 | O5: 411612.0364
A6: 3 | B6: Itália | C6: 915116.4714 | D6: 0.06594965252 | F6: 3 | G6: Países Baixos | H6: 947328.0688 | I6: 0.05856341467 | K6: 3 | L6: Países Baixos | M6: 1580850.188 | N6: 0.05260366289 | O6: -313805.9492
A7: 4 | B7: Alemanha | C7: 650630.7046 | D7: 0.04688897012 | F7: 4 | G7: Alemanha | H7: 912999.7532 | I7: 0.05644125293 | K7: 4 | L7: Alemanha | M7: 1563630.458 | N7: 0.05203066685 | O7: -262369.0486
A8: 5 | B8: Países Baixos | C8: 633522.1196 | D8: 0.04565600659 | F8: 5 | G8: Brasil | H8: 813481.1404 | I8: 0.050289055 | K8: 5 | L8: Itália | M8: 1408658.586 | N8: 0.04687389224 | O8: 421574.357
A9: 6 | B9: Estados Unidos | C9: 565282.6516 | D9: 0.0407381963 | F9: 6 | G9: Itália | H9: 493542.1144 | I9: 0.03051056171 | K9: 6 | L9: Brasil | M9: 1307207.503 | N9: 0.04349805145 | O9: -319754.7774 | P9: Nota: Nesta listagem, o Reino Unido passa a ser constituído por três componentes: Reino Unido [até 2020] ; Reino Unido (sem Irlanda do Norte) pós-2020 e Reino Unido (Irlanda do Norte) pós-2020. Estas componentes são calculadas igualmente como média do quinquénio, embora a primeira corresponda apenas a 2019-2020 e as duas últimas a 2021-2023.
A10: 7 | B10: Brasil | C10: 493726.363 | D10: 0.03558135286 | F10: 7 | G10: Suécia | H10: 338954.0252 | I10: 0.02095399238 | K10: 7 | L10: Estados Unidos | M10: 831258.1132 | N10: 0.0276605727 | O10: 299307.19
A11: 8 | B11: Reino Unido (sem Irlanda do Norte) pós 2020 | C11: 454913.9818 | D11: 0.03278426295 | F11: 8 | G11: Bélgica | H11: 311896.3766 | I11: 0.01928130015 | K11: 8 | L11: Bélgica | M11: 566475.8276 | N11: 0.01884979594 | O11: -57316.9256
A12: 9 | B12: Angola | C12: 292707.7282 | D12: 0.02109455306 | F12: 9 | G12: Estados Unidos | H12: 265975.4616 | I12: 0.01644248889 | K12: 9 | L12: Reino Unido (sem Irlanda do Norte) pós 2020 | M12: 544532.3606 | N12: 0.01811961496 | O12: 365295.603
A13: 10 | B13: Reino Unido | C13: 261878.4294 | D13: 0.01887277954 | F13: 10 | G13: Polónia | H13: 241286.9558 | I13: 0.01491625606 | K13: 10 | L13: Polónia | M13: 500653.6594 | N13: 0.01665952695 | O13: 18079.7478
A14: 11 | B14: Polónia | C14: 259366.7036 | D14: 0.01869176713 | F14: 11 | G14: Ucrânia | H14: 222824.0602 | I14: 0.01377488778 | K14: 11 | L14: Suécia | M14: 438293.7972 | N14: 0.01458446811 | O14: -239614.2532
A15: 12 | B15: Bélgica | C15: 254579.451 | D15: 0.01834676444 | F15: 12 | G15: China, República Popular da | H15: 185792.3874 | I15: 0.01148560566 | K15: 12 | L15: China, República Popular da | M15: 398800.9512 | N15: 0.01327032185 | O15: 27216.1764
A16: 13 | B16: Israel | C16: 229312.128 | D16: 0.01652582555 | F16: 13 | G16: Dinamarca | H16: 157445.0856 | I16: 0.009733187625 | K16: 13 | L16: Reino Unido | M16: 360801.6302 | N16: 0.01200587346 | O16: 162955.2286
A17: 14 | B17: China, República Popular da | C17: 213008.5638 | D17: 0.01535087741 | F17: 14 | G17: África do Sul | H17: 152632.7646 | I17: 0.009435692006 | K17: 14 | L17: Angola | M17: 311606.1852 | N17: 0.01036886787 | O17: 273809.2712
A18: 15 | B18: Turquia | C18: 183340.2302 | D18: 0.01321277111 | F18: 15 | G18: Roménia | H18: 151340.3218 | I18: 0.009355793747 | K18: 15 | L18: Turquia | M18: 242682.4712 | N18: 0.008075393227 | O18: 123997.9892
A19: 16 | B19: Suíça | C19: 154487.3474 | D19: 0.01113343186 | F19: 16 | G19: Irlanda | H19: 122298.3798 | I19: 0.007560433355 | K19: 16 | L19: Dinamarca | M19: 241944.339 | N19: 0.00805083147 | O19: -72945.8322
A20: 17 | B20: Marrocos | C20: 118641.6206 | D20: 0.008550139679 | F20: 17 | G20: Canadá | H20: 119672.9708 | I20: 0.007398131698 | K20: 17 | L20: Ucrânia | M20: 239492.5 | N20: 0.007969245174 | O20: -206155.6204
A21: 18 | B21: Cabo Verde | C21: 109797.6224 | D21: 0.007912779707 | F21: 18 | G21: Argentina | H21: 105868.1334 | I21: 0.006544722574 | K21: 18 | L21: Israel | M21: 237364.4856 | N21: 0.00789843432 | O21: 221259.7704
A22: 19 | B22: Suécia | C22: 99339.772 | D22: 0.007159114331 | F22: 19 | G22: Uruguai | H22: 104314.013 | I22: 0.006448647518 | K22: 19 | L22: Canadá | M22: 218508.6438 | N22: 0.007270995772 | O22: -20837.2978
A23: 20 | B23: Canadá | C23: 98835.673 | D23: 0.007122785454 | F23: 20 | G23: Rússia, Federação da | H23: 103735.9496 | I23: 0.006412911886 | K23: 20 | L23: Irlanda | M23: 195589.7628 | N23: 0.006508357353 | O23: -49006.9968
A24: 21 | B24: Argélia | C24: 96652.6324 | D24: 0.006965460377 | F24: 21 | G24: Reino Unido | H24: 98923.2008 | I24: 0.006115389821 | K24: 21 | L24: África do Sul | M24: 189444.1922 | N24: 0.006303860098 | O24: -115821.337
A25: 22 | B25: Dinamarca | C25: 84499.2534 | D25: 0.006089603427 | F25: 22 | G25: Reino Unido (sem Irlanda do Norte) pós 2020 | H25: 89618.3788 | I25: 0.005540169718 | K25: 22 | L25: Roménia | M25: 177441.9662 | N25: 0.0059044794 | O25: -125238.6774
A26: 23 | B26: Egito | C26: 82715.0134 | D26: 0.005961018693 | F26: 23 | G26: Finlândia | H26: 81334.7174 | I26: 0.005028077325 | K26: 23 | L26: Rússia, Federação da | M26: 176432.6266 | N26: 0.005870893068 | O26: -31039.2726
A27: 24 | B27: México | C27: 78972.8492 | D27: 0.005691332334 | F27: 24 | G27: Índia | H27: 79609.9066 | I27: 0.004921450262 | K27: 24 | L27: Marrocos | M27: 161461.9424 | N27: 0.005372735285 | O27: 75821.2988
A28: 25 | B28: Japão | C28: 73363.5888 | D28: 0.005287090048 | F28: 25 | G28: Costa Rica | H28: 70759.3454 | I28: 0.004374312367 | K28: 25 | L28: Suíça | M28: 158551.5506 | N28: 0.005275890391 | O28: 150423.1442
A29: 26 | B29: Irlanda | C29: 73291.383 | D29: 0.005281886397 | F29: 26 | G29: Áustria | H29: 70408.8626 | I29: 0.00435264567 | K29: 26 | L29: Argentina | M29: 121955.0376 | N29: 0.004058121214 | O29: -89781.2292
A30: 27 | B30: Rússia, Federação da | C30: 72696.677 | D30: 0.005239027749 | F30: 27 | G30: Vietname | H30: 69724.8096 | I30: 0.004310357807 | K30: 27 | L30: Grécia | M30: 120604.866 | N30: 0.004013193508 | O30: -5813.7356
A31: 28 | B31: Luxemburgo | C31: 58628.216 | D31: 0.004225156681 | F31: 28 | G31: Grécia | H31: 63209.3008 | I31: 0.003907571849 | K31: 28 | L31: Áustria | M31: 112631.9138 | N31: 0.003747889122 | O31: -28185.8114
A32: 29 | B32: Grécia | C32: 57395.5652 | D32: 0.004136323298 | F32: 29 | G32: Turquia | H32: 59342.241 | I32: 0.003668511872 | K32: 29 | L32: Finlândia | M32: 112130.7098 | N32: 0.003731211282 | O32: -50538.725
A33: 30 | B33: Áustria | C33: 42223.0512 | D33: 0.003042886498 | F33: 30 | G33: Equador | H33: 58414.7256 | I33: 0.003611173268 | K33: 30 | L33: Índia | M33: 110947.4156 | N33: 0.003691836514 | O33: -48272.3976
A34: 31 | B34: Moçambique | C34: 41346.8404 | D34: 0.002979740659 | F34: 31 | G34: Chile | H34: 53583.805 | I34: 0.00331252783 | K34: 31 | L34: Cabo Verde | M34: 110216.5244 | N34: 0.003667515706 | O34: 109378.7204
A35: 32 | B35: África do Sul | C35: 36811.4276 | D35: 0.002652887293 | F35: 32 | G35: Bulgária | H35: 44086.0538 | I35: 0.002725380927 | K35: 32 | L35: Uruguai | M35: 107585.2684 | N35: 0.003579959209 | O35: -101042.7576
A36: 33 | B36: Arábia Saudita | C36: 35880.8896 | D36: 0.002585826258 | F36: 33 | G36: Marrocos | H36: 42820.3218 | I36: 0.002647133918 | K36: 33 | L36: Argélia | M36: 103327.6826 | N36: 0.003438285691 | O36: 89977.5822
A37: 34 | B37: Austrália | C37: 35113.0132 | D37: 0.002530487749 | F37: 34 | G37: Checa, República | H37: 40116.599 | I37: 0.002479990934 | K37: 34 | L37: Egito | M37: 96954.5744 | N37: 0.003226216997 | O37: 68475.4524
A38: 35 | B38: Guiné-Bissau | C38: 34934.7244 | D38: 0.002517639019 | F38: 35 | G38: Moçambique | H38: 38763.0688 | I38: 0.002396316278 | K38: 35 | L38: México | M38: 96736.9562 | N38: 0.003218975631 | O38: 61208.7422
A39: 36 | B39: Índia | C39: 31337.509 | D39: 0.002258398678 | F39: 36 | G39: Cuba | H39: 37252.762 | I39: 0.00230294976 | K39: 36 | L39: Japão | M39: 88210.8558 | N39: 0.002935264933 | O39: 58516.3218
A40: 37 | B40: Emirados Árabes Unidos | C40: 31194.84 | D40: 0.002248116959 | F40: 37 | G40: Colômbia | H40: 31648.7828 | I40: 0.001956514171 | K40: 37 | L40: Chile | M40: 83999.5896 | N40: 0.002795132725 | O40: -23168.0204
A41: 38 | B41: Checa, República | C41: 30815.952 | D41: 0.002220811656 | F41: 38 | G41: Guiana | H41: 31014.2578 | I41: 0.001917288108 | K41: 38 | L41: Moçambique | M41: 80109.9092 | N41: 0.002665701462 | O41: 2583.7716
A42: 39 | B42: Finlândia | C42: 30795.9924 | D42: 0.002219373229 | F42: 39 | G42: Indonésia | H42: 29000.573 | I42: 0.001792802977 | K42: 39 | L42: Vietname | M42: 76018.5502 | N42: 0.002529559232 | O42: -63431.069
A43: 40 | B43: Chile | C43: 30415.7846 | D43: 0.002191972812 | F43: 40 | G43: Hungria | H43: 27853.1164 | I43: 0.001721867703 | K43: 40 | L43: Costa Rica | M43: 75105.2118 | N43: 0.002499167392 | O43: -66413.479
A44: 41 | B44: Jordânia | C44: 29568.7308 | D44: 0.002130928229 | F44: 41 | G44: Costa do Marfim | H44: 23657.68 | I44: 0.001462507625 | K44: 41 | L44: Checa, República | M44: 70932.551 | N44: 0.0023603198 | O44: -9300.647
A45: 42 | B45: São Tomé e Príncipe | C45: 26643.6118 | D45: 0.001920123826 | F45: 42 | G45: Uganda | H45: 22974.374 | I45: 0.001420265941 | K45: 42 | L45: Luxemburgo | M45: 67457.2882 | N45: 0.002244678512 | O45: 49799.1438
A46: 43 | B46: Roménia | C46: 26101.6444 | D46: 0.001881065889 | F46: 43 | G46: Namíbia | H46: 22899.6914 | I46: 0.001415649095 | K46: 43 | L46: Equador | M46: 61226.8336 | N46: 0.002037356695 | O46: -55602.6176
A47: 44 | B47: Tunísia | C47: 25934.5578 | D47: 0.001869024467 | F47: 44 | G47: Peru | H47: 21918.8742 | I47: 0.001355015397 | K47: 44 | L47: Bulgária | M47: 58372.2568 | N47: 0.001942369075 | O47: -29799.8508
A48: 45 | B48: Noruega | C48: 23600.8176 | D48: 0.00170083893 | F48: 45 | G48: Letónia | H48: 19634.0354 | I48: 0.001213767643 | K48: 45 | L48: Austrália | M48: 52768.539 | N48: 0.001755902271 | O48: 17457.4874
A49: 46 | B49: Coreia, República da | C49: 22131.0668 | D49: 0.001594918473 | F49: 46 | G49: Lituânia | H49: 19279.9074 | I49: 0.001191875602 | K49: 46 | L49: Hungria | M49: 47560.2566 | N49: 0.001582593799 | O49: -8145.9762
A50: 47 | B50: Hungria | C50: 19707.1402 | D50: 0.001420233477 | F50: 47 | G50: Angola | H50: 18898.457 | I50: 0.001168294502 | K50: 47 | L50: Cuba | M50: 44341.484 | N50: 0.001475487363 | O50: -30164.04
A51: 48 | B51: Nigéria | C51: 18837.3684 | D51: 0.001357551677 | F51: 48 | G51: Suazilândia | H51: 17908.5294 | I51: 0.001107097602 | K51: 48 | L51: Colômbia | M51: 40554.3906 | N51: 0.001349469739 | O51: -22743.175
A52: 49 | B52: Ucrânia | C52: 16668.4398 | D52: 0.001201243609 | F52: 49 | G52: México | H52: 17764.107 | I52: 0.001098169471 | K52: 49 | L52: Noruega | M52: 38853.5172 | N52: 0.001292872238 | O52: 8348.118
A53: 50 | B53: Argentina | C53: 16086.9042 | D53: 0.001159334112 | F53: 50 | G53: Austrália | H53: 17655.5258 | I53: 0.001091457028 | K53: 50 | L53: Tunísia | M53: 37484.3298 | N53: 0.001247311771 | O53: 14384.7858
A54: 51 | B54: Lituânia | C54: 15764.2352 | D54: 0.001136080342 | F54: 51 | G54: Senegal | H54: 16694.6988 | I54: 0.001032059115 | K54: 51 | L54: Arábia Saudita | M54: 35932.1724 | N54: 0.001195662877 | O54: 35829.6068
A55: 52 | B55: Macau | C55: 14584.6512 | D55: 0.001051071321 | F55: 52 | G55: Nova Zelânda | H55: 16509.396 | I55: 0.001020603776 | K55: 52 | L55: Costa do Marfim | M55: 35761.2586 | N55: 0.001189975626 | O55: -11554.1014
A56: 53 | B56: Bulgária | C56: 14286.203 | D56: 0.00102956307 | F56: 53 | G56: Estónia | H56: 16320.5418 | I56: 0.00100892889 | K56: 53 | L56: Guiné-Bissau | M56: 35226.5238 | N56: 0.00117218203 | O56: 34642.925
A57: 54 | B57: Líbia, Jamahira Árabe da | C57: 13798.5402 | D57: 0.0009944186996 | F57: 54 | G57: Eslovénia | H57: 16026.5852 | I57: 0.0009907566193 | K57: 54 | L57: Coreia, República da | M57: 35092.7906 | N57: 0.001167731984 | O57: 9169.343
A58: 55 | B58: Iraque | C58: 13659.5246 | D58: 0.0009844002694 | F58: 55 | G58: Noruega | H58: 15252.6996 | I58: 0.0009429153436 | K58: 55 | L58: Lituânia | M58: 35044.1426 | N58: 0.001166113195 | O58: -3515.6722
A59: 56 | B59: Senegal | C59: 13224.0438 | D59: 0.0009530164966 | F59: 56 | G59: Japão | H59: 14847.267 | I59: 0.0009178516743 | K59: 56 | L59: Indonésia | M59: 33328.2666 | N59: 0.001109016473 | O59: -24672.8794
A60: 57 | B60: Letónia | C60: 13144.4668 | D60: 0.0009472816249 | F60: 57 | G60: Egito | H60: 14239.561 | I60: 0.0008802835502 | K60: 57 | L60: Letónia | M60: 32778.5022 | N60: 0.001090722759 | O60: -6489.5686
A61: 58 | B61: Eslováquia | C61: 12793.9168 | D61: 0.0009220185558 | F61: 58 | G61: Mauritânia | H61: 13443.2356 | I61: 0.0008310550557 | K61: 58 | L61: Emirados Árabes Unidos | M61: 31953.4188 | N61: 0.001063267654 | O61: 30436.2612
A62: 59 | B62: Croácia | C62: 12333.56 | D62: 0.0008888420455 | F62: 59 | G62: Tanzânia, República Unida da | H62: 13079.5878 | I62: 0.0008085745048 | K62: 59 | L62: Guiana | M62: 31130.901 | N62: 0.00103589792 | O62: -30897.6146
A63: 60 | B63: Costa do Marfim | C63: 12103.5786 | D63: 0.0008722679876 | F63: 60 | G63: Camarões | H63: 13022.8276 | I63: 0.0008050656135 | K63: 60 | L63: Senegal | M63: 29918.7426 | N63: 0.0009955626797 | O63: -3470.655
A64: 61 | B64: Síria, República Árabe da | C64: 11995.3212 | D64: 0.000864466207 | F64: 61 | G64: Coreia, República da | H64: 12961.7238 | I64: 0.0008012882029 | K64: 61 | L64: Jordânia | M64: 29716.5252 | N64: 0.0009888337841 | O64: 29420.9364
A65: 62 | B65: Dominicana, República | C65: 11848.0206 | D65: 0.0008538507021 | F65: 62 | G65: Paquistão | H65: 12615.7756 | I65: 0.0007799018336 | K65: 62 | L65: São Tomé e Príncipe | M65: 27732.7016 | N65: 0.0009228209584 | O65: 25554.522
A66: 63 | B66: Território Palestiniano Ocupado | C66: 11806.0928 | D66: 0.0008508290935 | F66: 63 | G66: Tailândia | H66: 12316.114 | I66: 0.0007613768821 | K66: 63 | L66: Peru | M66: 27430.0544 | N66: 0.0009127502057 | O66: -16407.694
A67: 64 | B67: HongKong | C67: 11528.0934 | D67: 0.0008307945247 | F67: 64 | G67: Moldava, República de | H67: 12178.8658 | I67: 0.0007528922573 | K67: 64 | L67: Nigéria | M67: 25016.4128 | N67: 0.0008324349488 | O67: 12658.324
A68: 65 | B68: Kuwait | C68: 10775.802 | D68: 0.0007765791784 | F68: 65 | G68: Sérvia | H68: 11730.1152 | I68: 0.0007251506877 | K68: 65 | L68: Estónia | M68: 24786.1618 | N68: 0.0008247732196 | O68: -7854.9218
A69: 66 | B69: Chipre | C69: 10753.9998 | D69: 0.0007750079604 | F69: 66 | G69: Tunísia | H69: 11549.772 | I69: 0.0007140019485 | K69: 66 | L69: Uganda | M69: 24133.8048 | N69: 0.0008030656803 | O69: -21814.9432
A70: 67 | B70: Malta | C70: 10377.2016 | D70: 0.0007478532635 | F70: 67 | G70: Belize | H70: 10934.5394 | I70: 0.0006759685332 | K70: 67 | L70: Eslovénia | M70: 23946.301 | N70: 0.0007968263878 | O70: -8106.8694
A71: 68 | B71: Tailândia | C71: 9256.6804 | D71: 0.0006671007188 | F71: 68 | G71: Paraguai | H71: 10263.5706 | I71: 0.0006344895299 | K71: 68 | L71: Namíbia | M71: 23765.809 | N71: 0.0007908204168 | O71: -22033.5738
A72: 69 | B72: Colômbia | C72: 8905.6078 | D72: 0.0006417999875 | F72: 69 | G72: Maurícias | H72: 9873.1322 | I72: 0.0006103527956 | K72: 69 | L72: Camarões | M72: 21652.1438 | N72: 0.0007204870402 | O72: -4393.5114
A73: 70 | B73: Geórgia | C73: 8776.724 | D73: 0.0006325117252 | F73: 70 | G73: Reino Unido (Irlanda do Norte) pós-2020 | H73: 9138.2728 | I73: 0.0005649241029 | K73: 70 | L73: Tailândia | M73: 21572.7944 | N73: 0.0007178466451 | O73: -3059.4336
A74: 71 | B74: Líbano | C74: 8677.7716 | D74: 0.0006253805276 | F74: 71 | G74: Islândia | H74: 9112.164 | I74: 0.000563310068 | K74: 71 | L74: Nova Zelânda | M74: 20810.7044 | N74: 0.0006924876796 | O74: -12208.0876
A75: 72 | B75: Camarões | C75: 8629.3162 | D75: 0.0006218884947 | F75: 72 | G75: Luxemburgo | H75: 8829.0722 | I75: 0.0005458094545 | K75: 72 | L75: Croácia | M75: 20488.528 | N75: 0.000681767082 | O75: 4178.592
A76: 73 | B76: Estónia | C76: 8465.62 | D76: 0.0006100914089 | F76: 73 | G76: Croácia | H76: 8154.968 | I76: 0.0005041366221 | K76: 73 | L76: Eslováquia | M76: 20124.608 | N76: 0.000669657443 | O76: 5463.2256
A77: 74 | B77: Gana | C77: 8178.0838 | D77: 0.0005893695521 | F77: 74 | G77: Israel | H77: 8052.3576 | I77: 0.0004977932912 | K77: 74 | L77: Suazilândia | M77: 19975.6478 | N77: 0.0006647007101 | O77: -15841.411
A78: 75 | B78: Eslovénia | C78: 7919.7158 | D78: 0.0005707497585 | F78: 75 | G78: Bangladesh | H78: 7823.177 | I78: 0.0004836254449 | K78: 75 | L78: Sérvia | M78: 19112.5644 | N78: 0.0006359811335 | O78: -4347.666
A79: 76 | B79: Belarus | C79: 7872.655 | D79: 0.0005673582302 | F79: 76 | G79: Malásia | H79: 7805.5168 | I79: 0.0004825336989 | K79: 76 | L79: Paquistão | M79: 17209.3712 | N79: 0.0005726513289 | O79: -8022.18
A80: 77 | B80: Sérvia | C80: 7382.4492 | D80: 0.0005320305936 | F80: 77 | G80: Quénia | H80: 7356.7132 | I80: 0.0004547888529 | K80: 77 | L80: Mauritânia | M80: 16816.7526 | N80: 0.0005595867282 | O80: -10069.7186
A81: 78 | B81: Gibraltar | C81: 7309.7404 | D81: 0.0005267906922 | F81: 78 | G81: Eslováquia | H81: 7330.6912 | I81: 0.0004531801841 | K81: 78 | L81: Maurícias | M81: 16663.174 | N81: 0.0005544763155 | O81: -3083.0904
A82: 79 | B82: Cuba | C82: 7088.722 | D82: 0.0005108625703 | F82: 79 | G82: Filipinas | H82: 7323.2812 | I82: 0.000452722101 | K82: 79 | L82: Moldava, República de | M82: 15413.0416 | N82: 0.0005128774696 | O82: -8944.69
A83: 80 | B83: Maurícias | C83: 6790.0418 | D83: 0.0004893375994 | F83: 80 | G83: Gana | H83: 6780.4694 | I83: 0.0004191657085 | K83: 80 | L83: Chipre | M83: 14994.9744 | N83: 0.0004989660527 | O83: 6513.0252
A84: 81 | B84: Taiwan | C84: 6498.8018 | D84: 0.0004683488211 | F84: 81 | G84: Argélia | H84: 6675.0502 | I84: 0.0004126487388 | K84: 81 | L84: Gana | M84: 14958.5532 | N84: 0.0004977541171 | O84: 1397.6144
A85: 82 | B85: Vietname | C85: 6293.7406 | D85: 0.0004535706859 | F85: 82 | G85: Nigéria | H85: 6179.0444 | I85: 0.0003819858731 | K85: 82 | L85: Macau | M85: 14605.4142 | N85: 0.0004860032219 | O85: 14563.8882
A86: 83 | B86: Andorra | C86: 6022.5714 | D86: 0.0004340283489 | F86: 83 | G86: Panamá | H86: 5653.6226 | I86: 0.0003495045229 | K86: 83 | L86: HongKong | M86: 14502.5934 | N86: 0.000482581803 | O86: 8553.5934
A87: 84 | B87: Guatemala | C87: 5731.0826 | D87: 0.0004130216402 | F87: 84 | G87: Congo | H87: 5587.8752 | I87: 0.0003454400469 | K87: 84 | L87: Dominicana, República | M87: 14480.0812 | N87: 0.0004818326971 | O87: 9215.96
A88: 85 | B88: Peru | C88: 5511.1802 | D88: 0.0003971739451 | F88: 85 | G88: Honduras | H88: 5352.3066 | I88: 0.0003308772971 | K88: 85 | L88: Líbia, Jamahira Árabe da | M88: 13839.6806 | N88: 0.0004605230136 | O88: 13757.3998
A89: 86 | B89: Singapura | C89: 5118.6402 | D89: 0.0003688847847 | F89: 86 | G89: Camboja | H89: 5251.3418 | I89: 0.0003246356965 | K89: 86 | L89: Iraque | M89: 13672.6982 | N89: 0.000454966582 | O89: 13646.351
A90: 87 | B90: Omã | C90: 4766.6966 | D90: 0.0003435212831 | F90: 87 | G90: Zimbabwe | H90: 5173.412 | I90: 0.0003198181097 | K90: 87 | L90: Tanzânia, República Unida da | M90: 13489.132 | N90: 0.0004488583154 | O90: -12670.0436
A91: 88 | B91: Panamá | C91: 4742.5904 | D91: 0.0003417840228 | F91: 88 | G91: Etiópia | H91: 4865.2444 | I91: 0.0003007673209 | K91: 88 | L91: Malta | M91: 12868.9092 | N91: 0.0004282200592 | O91: 7885.494
A92: 89 | B92: Paquistão | C92: 4593.5956 | D92: 0.0003310464221 | F92: 89 | G92: Sri Lanca | H92: 4526.3628 | I92: 0.0002798178058 | K92: 89 | L92: Reino Unido (Irlanda do Norte) pós-2020 | M92: 12739.7782 | N92: 0.0004239231539 | O92: -5536.7674
A93: 90 | B93: Mali | C93: 4507.5844 | D93: 0.0003248478573 | F93: 90 | G93: Suriname | H93: 4461.0484 | I93: 0.0002757800977 | K93: 90 | L93: Kuwait | M93: 12319.6144 | N93: 0.0004099419715 | O93: 9231.9896
A94: 91 | B94: Costa Rica | C94: 4345.8664 | D94: 0.0003131933343 | F94: 91 | G94: Macedónia, Antiga República jugoslava da | H94: 4419.1744 | I94: 0.0002731914649 | K94: 91 | L94: Síria, República Árabe da | M94: 12141.732 | N94: 0.0004040228364 | O94: 11848.9104
A95: 92 | B95: Indonésia | C95: 4327.6936 | D95: 0.0003118836761 | F95: 92 | G95: Myanmar | H95: 4417.7084 | I95: 0.0002731008374 | K95: 92 | L95: Território Palestiniano Ocupado | M95: 11817.7626 | N95: 0.0003932425757 | O95: 11794.423
A96: 93 | B96: Nova Zelânda | C96: 4301.3084 | D96: 0.0003099821752 | F96: 93 | G96: Papuásia-Nova Guiné | H96: 4268.11 | I96: 0.0002638527286 | K96: 93 | L96: Paraguai | M96: 11233.3798 | N96: 0.0003737969154 | O96: -9293.7614
A97: 94 | B97: Burquina Faso | C97: 4086.0794 | D97: 0.0002944712777 | F97: 94 | G97: Chipre | H97: 4240.9746 | I97: 0.0002621752298 | K97: 94 | L97: Islândia | M97: 10997.3204 | N97: 0.0003659419085 | O97: -7227.0076
A98: 95 | B98: Venezuela | C98: 3914.122 | D98: 0.0002820788325 | F98: 95 | G98: Suíça | H98: 4064.2032 | I98: 0.0002512472977 | K98: 95 | L98: Belize | M98: 10954.0486 | N98: 0.0003645020155 | O98: -10915.0302
A99: 96 | B99: Reino Unido (Irlanda do Norte) pós-2020 | C99: 3601.5054 | D99: 0.0002595495077 | F99: 96 | G99: Guatemala | H99: 3891.5604 | I99: 0.0002405745939 | K99: 96 | L99: Filipinas | M99: 10864.8014 | N99: 0.0003615322656 | O99: -3781.761
A100: 97 | B100: Filipinas | C100: 3541.5202 | D100: 0.0002552265574 | F100: 97 | G100: Malavi | H100: 3761.9744 | I100: 0.000232563643 | K100: 97 | L100: Malásia | M100: 10802.9 | N100: 0.0003594724623 | O100: -4808.1336
A101: 98 | B101: Catar | C101: 3509.4766 | D101: 0.0002529172729 | F101: 98 | G101: Congo, República Democrática do | H101: 3658.6746 | I101: 0.0002261776937 | K101: 98 | L101: Panamá | M101: 10396.213 | N101: 0.0003459397279 | O101: -911.0322
A102: 99 | B102: Mauritânia | C102: 3373.517 | D102: 0.0002431190792 | F102: 99 | G102: Madagáscar | H102: 3530.0814 | I102: 0.0002182281172 | K102: 99 | L102: Bangladesh | M102: 9992.5026 | N102: 0.0003325060414 | O102: -5653.8514
A103: 100 | B103: Uruguai | C103: 3271.2554 | D103: 0.0002357493977 | F103: 100 | G103: Taiwan | H103: 3371.904 | I103: 0.0002084496582 | K103: 100 | L103: Taiwan | M103: 9870.7058 | N103: 0.0003284531856 | O103: 3126.8978
A104: 101 | B104: Moldava, República de | C104: 3234.1758 | D104: 0.000233077184 | F104: 101 | G104: Nicarágua | H104: 3348.1498 | I104: 0.0002069811838 | K104: 101 | L104: Geórgia | M104: 9763.0358 | N104: 0.0003248704069 | O104: 7790.4122
A105: 102 | B105: Guiné | C105: 3199.9078 | D105: 0.0002306075938 | F105: 102 | G105: Gâmbia | H105: 3121.0524 | I105: 0.00019294212 | K105: 102 | L105: Quénia | M105: 9728.6568 | N105: 0.0003237264267 | O105: -4984.7696
A106: 103 | B106: Malásia | C106: 2997.3832 | D106: 0.0002160122637 | F106: 103 | G106: HongKong | H106: 2974.5 | I106: 0.0001838823135 | K106: 103 | L106: Guatemala | M106: 9622.643 | N106: 0.000320198759 | O106: 1839.5222
A107: 104 | B107: Gabão | C107: 2969.7446 | D107: 0.0002140204341 | F107: 104 | G107: Gabão | H107: 2833.2392 | I107: 0.0001751496315 | K107: 104 | L107: Líbano | M107: 9030.5168 | N107: 0.0003004954327 | O107: 8325.0264
A108: 105 | B108: Equador | C108: 2812.108 | D108: 0.0002026600452 | F108: 105 | G108: Dominicana, República | H108: 2632.0606 | I108: 0.0001627128568 | K108: 105 | L108: Belarus | M108: 8568.8254 | N108: 0.0002851323965 | O108: 7176.4846
A109: 106 | B109: Arménia | C109: 2727.7232 | D109: 0.0001965786901 | F109: 106 | G109: Malta | H109: 2491.7076 | I109: 0.0001540362945 | K109: 106 | L109: Congo | M109: 8278.2768 | N109: 0.0002754642314 | O109: -2897.4736
A110: 107 | B110: Guiné Equatorial | C110: 2712.0278 | D110: 0.0001954475705 | F110: 107 | G110: Mali | H110: 2475.2544 | I110: 0.0001530191648 | K110: 107 | L110: Gibraltar | M110: 7352.4128 | N110: 0.0002446555956 | O110: 7267.068
A111: 108 | B111: Congo | C111: 2690.4016 | D111: 0.0001938890362 | F111: 108 | G111: Centro-Africana, República | H111: 2466.2132 | I111: 0.0001524602417 | K111: 108 | L111: Mali | M111: 6982.8388 | N111: 0.0002323578167 | O111: 2032.33
A112: 109 | B112: Timor-Leste | C112: 2668.7438 | D112: 0.0001923282246 | F112: 109 | G112: Benim | H112: 1927.4492 | I112: 0.0001191540824 | K112: 109 | L112: Singapura | M112: 6659.3268 | N112: 0.0002215927762 | O112: 3577.9536
A113: 110 | B113: Benim | C113: 2476.0626 | D113: 0.0001784422783 | F113: 110 | G113: Serra Leoa | H113: 1903.7664 | I113: 0.0001176900219 | K113: 110 | L113: Honduras | M113: 6528.2066 | N113: 0.0002172296792 | O113: -4176.4066
A114: 111 | B114: Quénia | C114: 2371.9436 | D114: 0.0001709387396 | F114: 111 | G114: Laos, República Democrática Popular do | H114: 1764.877 | I114: 0.0001091039388 | K114: 111 | L114: Etiópia | M114: 6273.7972 | N114: 0.0002087640659 | O114: -3456.6916
A115: 112 | B115: Seychelles | C115: 2348.937 | D115: 0.0001692807241 | F115: 112 | G115: Burquina Faso | H115: 1596.8146 | I115: 9.871439331e-05 | K115: 112 | L115: Camboja | M115: 6129.6458 | N115: 0.0002039673485 | O115: -4373.0378
A116: 113 | B116: Congo, República Democrática do | C116: 2232.4506 | D116: 0.0001608859046 | F116: 113 | G116: Kuwait | H116: 1543.8124 | I116: 9.543782005e-05 | K116: 113 | L116: Andorra | M116: 6085.3588 | N116: 0.0002024936741 | O116: 5959.784
A117: 114 | B117: Bangladesh | C117: 2169.3256 | D117: 0.0001563366784 | F117: 114 | G117: Singapura | H117: 1540.6866 | I117: 9.524458443e-05 | K117: 114 | L117: Sri Lanca | M117: 6081.5556 | N117: 0.0002023671205 | O117: -2971.17
A118: 115 | B118: Suazilândia | C118: 2067.1184 | D118: 0.0001489709173 | F118: 115 | G118: Seychelles | H118: 1430.66 | I118: 8.844278724e-05 | K118: 115 | L118: Congo, República Democrática do | M118: 5891.1252 | N118: 0.0001960304438 | O118: -1426.224
A119: 116 | B119: Irão, República Islâmica do | C119: 2015.5486 | D119: 0.0001452544391 | F119: 116 | G119: Bolívia | H119: 1415.5294 | I119: 8.750742004e-05 | K119: 116 | L119: Gabão | M119: 5802.9838 | N119: 0.0001930974901 | O119: 136.5054
A120: 117 | B120: Islândia | C120: 1885.1564 | D120: 0.0001358574711 | F120: 117 | G120: São Tomé e Príncipe | H120: 1089.0898 | I120: 6.732706406e-05 | K120: 117 | L120: Burquina Faso | M120: 5682.894 | N120: 0.0001891014357 | O120: 2489.2648
A121: 118 | B121: Togo | C121: 1879.1826 | D121: 0.0001354269575 | F121: 118 | G121: Venezuela | H121: 1080.4086 | I121: 6.6790396e-05 | K121: 118 | L121: Omã | M121: 5590.2944 | N121: 0.0001860201329 | O121: 3943.0988
A122: 119 | B122: Sudão | C122: 1868.0632 | D122: 0.0001346256163 | F122: 119 | G122: Bósnia-Herzegovina | H122: 1034.9794 | I122: 6.398198235e-05 | K122: 119 | L122: Macedónia, Antiga República jugoslava da | M122: 5497.1524 | N122: 0.0001829207814 | O122: -3341.1964
A123: 120 | B123: Nicarágua | C123: 1709.2518 | D123: 0.0001231805631 | F123: 120 | G123: Geórgia | H123: 986.3118 | I123: 6.097337221e-05 | K123: 120 | L123: Zimbabwe | M123: 5240.2714 | N123: 0.0001743729243 | O123: -5106.5526
A124: 121 | B124: Jamaica | C124: 1645.8018 | D124: 0.0001186079152 | F124: 121 | G124: Cazaquistão | H124: 977.1902 | I124: 6.040947881e-05 | K124: 121 | L124: Suriname | M124: 5124.6412 | N124: 0.0001705252655 | O124: -3797.4556
A125: 122 | B125: El Salvador | C125: 1616.0178 | D125: 0.0001164614732 | F125: 122 | G125: El Salvador | H125: 921.9616 | I125: 5.699527046e-05 | K125: 122 | L125: Nicarágua | M125: 5057.4016 | N125: 0.0001682878307 | O125: -1638.898
A126: 123 | B126: Cazaquistão | C126: 1586.0954 | D126: 0.0001143050571 | F126: 123 | G126: Omã | H126: 823.5978 | I126: 5.091446255e-05 | K126: 123 | L126: Venezuela | M126: 4994.5306 | N126: 0.0001661957635 | O126: 2833.7134
A127: 124 | B127: Sri Lanca | C127: 1555.1928 | D127: 0.000112078001 | F127: 124 | G127: Timor-Leste | H127: 773.0574 | I127: 4.779007671e-05 | K127: 124 | L127: Myanmar | M127: 4788.3204 | N127: 0.0001593340052 | O127: -4047.0964
A128: 125 | B128: Ruanda | C128: 1542.3664 | D128: 0.0001111536414 | F128: 125 | G128: Emirados Árabes Unidos | H128: 758.5788 | I128: 4.689501588e-05 | K128: 125 | L128: Benim | M128: 4403.5118 | N128: 0.0001465292866 | O128: 548.6134
A129: 126 | B129: Azerbaijão | C129: 1447.7444 | D129: 0.0001043345225 | F129: 126 | G129: Belarus | H129: 696.1704 | I129: 4.303695537e-05 | K129: 126 | L129: Papuásia-Nova Guiné | M129: 4270.9956 | N129: 0.0001421197368 | O129: -4265.2244
A130: 127 | B130: Etiópia | C130: 1408.5528 | D130: 0.0001015101035 | F130: 127 | G130: Turquemenistão | H130: 693.7048 | I130: 4.288453304e-05 | K130: 127 | L130: Madagáscar | M130: 3916.3472 | N130: 0.0001303186155 | O130: -3143.8156
A131: 128 | B131: Albânia | C131: 1395.6804 | D131: 0.0001005824289 | F131: 128 | G131: Iémen | H131: 684.2014 | I131: 4.229703693e-05 | K131: 128 | L131: Seychelles | M131: 3779.597 | N131: 0.0001257681771 | O131: 918.277
A132: 129 | B132: Bolívia | C132: 1235.6182 | D132: 8.904723441e-05 | F132: 129 | G132: Gronelândia | H132: 628.3832 | I132: 3.884637976e-05 | K132: 129 | L132: Malavi | M132: 3770.4898 | N132: 0.00012546513 | O132: -3753.459
A133: 130 | B133: Montenegro | C133: 1193.9358 | D133: 8.604331099e-05 | F133: 130 | G133: Faroé, Ilhas | H133: 595.1746 | I133: 3.679343836e-05 | K133: 130 | L133: Gâmbia | M133: 3599.2092 | N133: 0.0001197656734 | O133: -2642.8956
A134: 131 | B134: São Bartolomeu | C134: 1183.3114 | D134: 8.527764289e-05 | F134: 131 | G134: Cabo Verde | H134: 418.902 | I134: 2.589634187e-05 | K134: 131 | L134: Catar | M134: 3530.8284 | N134: 0.0001174902646 | O134: 3488.1248
A135: 132 | B135: Honduras | C135: 1175.9 | D135: 8.47435259e-05 | F135: 132 | G135: Usbequistão | H135: 380.4082 | I135: 2.351667167e-05 | K135: 132 | L135: Guiné | M135: 3487.284 | N135: 0.0001160413006 | O135: 2912.5316
A136: 133 | B136: Uganda | C136: 1159.4308 | D136: 8.35566409e-05 | F136: 133 | G136: Líbano | H136: 352.7452 | I136: 2.180655689e-05 | K136: 133 | L136: Timor-Leste | M136: 3441.8012 | N136: 0.0001145278353 | O136: 1895.6864
A137: 134 | B137: Macedónia, Antiga República jugoslava da | C137: 1077.978 | D137: 7.768658608e-05 | F137: 134 | G137: Chade | H137: 303.1764 | I137: 1.874223494e-05 | K137: 134 | L137: Arménia | M137: 2777.2048 | N137: 9.241302316e-05 | O137: 2678.2416
A138: 135 | B138: Paraguai | C138: 969.8092 | D138: 6.989119063e-05 | F138: 135 | G138: Guiné-Bissau | H138: 291.7994 | I138: 1.803891368e-05 | K138: 135 | L138: Guiné Equatorial | M138: 2721.8116 | N138: 9.056978384e-05 | O138: 2702.244
A139: 136 | B139: Bermudas | C139: 957.27 | D139: 6.898752874e-05 | F139: 136 | G139: Guiné | H139: 287.3762 | I139: 1.776547336e-05 | K139: 136 | L139: Bolívia | M139: 2651.1476 | N139: 8.821840023e-05 | O139: -179.9112
A140: 137 | B140: Aruba | C140: 940.2512 | D140: 6.776103574e-05 | F140: 137 | G140: Togo | H140: 238.6312 | I140: 1.475207838e-05 | K140: 137 | L140: Centro-Africana, República | M140: 2569.5112 | N140: 8.550190394e-05 | O140: -2362.9152
A141: 138 | B141: Barbados | C141: 924.8742 | D141: 6.665286225e-05 | F141: 138 | G141: Irão, República Islâmica do | H141: 211.8398 | I141: 1.309584553e-05 | K141: 138 | L141: Cazaquistão | M141: 2563.2856 | N141: 8.529474366e-05 | O141: 608.9052
A142: 139 | B142: Camboja | C142: 878.304 | D142: 6.329669e-05 | F142: 139 | G142: Zâmbia | H142: 183.9494 | I142: 1.137167297e-05 | K142: 139 | L142: El Salvador | M142: 2537.9794 | N142: 8.445266589e-05 | O142: 694.0562
A143: 140 | B143: Trindade e Tobago | C143: 878.2468 | D143: 6.329256777e-05 | F143: 140 | G143: Jordânia | H143: 147.7944 | I143: 9.136586383e-06 | K143: 140 | L143: Serra Leoa | M143: 2340.2336 | N143: 7.787256521e-05 | O143: -1467.2992
A144: 141 | B144: Kosovo | C144: 870.5922 | D144: 6.27409241e-05 | F144: 141 | G144: Síria, República Árabe da | H144: 146.4108 | I144: 9.051052825e-06 | K144: 141 | L144: Irão, República Islâmica do | M144: 2227.3884 | N144: 7.411757887e-05 | O144: 1803.7088
A145: 142 | B145: Namíbia | C145: 866.1176 | D145: 6.241845333e-05 | F145: 142 | G145: Maldivas | H145: 127.2588 | I145: 7.867084403e-06 | K145: 142 | L145: Togo | M145: 2117.8138 | N145: 7.047142355e-05 | O145: 1640.5514
A146: 143 | B146: Turquemenistão | C146: 749.1004 | D146: 5.398538069e-05 | F146: 143 | G146: Albânia | H146: 125.4572 | I146: 7.755710265e-06 | K146: 143 | L146: Laos, República Democrática Popular do | M146: 1935.8146 | N146: 6.441529968e-05 | O146: -1593.9394
A147: 144 | B147: Barém | C147: 728.9324 | D147: 5.253193445e-05 | F147: 144 | G147: Azerbaijão | H147: 124.9342 | I147: 7.723378629e-06 | K147: 144 | L147: Sudão | M147: 1883.1514 | N147: 6.266290262e-05 | O147: 1852.975
A148: 145 | B148: Iémen | C148: 704.0114 | D148: 5.0735954e-05 | F148: 145 | G148: Kosovo | H148: 80.0466 | I148: 4.94844646e-06 | K148: 145 | L148: Jamaica | M148: 1660.4886 | N148: 5.525367501e-05 | O148: 1631.115
A149: 146 | B149: Suriname | C149: 663.5928 | D149: 4.78231088e-05 | F149: 146 | G149: Tajiquistão | H149: 74.7168 | I149: 4.618960512e-06 | K149: 146 | L149: Azerbaijão | M149: 1572.6786 | N149: 5.233174877e-05 | O149: 1322.8102
A150: 147 | B150: Niger | C150: 619.0434 | D150: 4.461256944e-05 | F150: 147 | G150: Andorra | H150: 62.7874 | I150: 3.881490123e-06 | K150: 147 | L150: Bósnia-Herzegovina | M150: 1571.857 | N150: 5.230440958e-05 | O150: -498.1018
A151: 148 | B151: São Martinho (parte holandesa) | C151: 606.1984 | D151: 4.368686947e-05 | F151: 148 | G151: Libéria | H151: 54.4472 | I151: 3.365902538e-06 | K151: 148 | L151: Ruanda | M151: 1569.669 | N151: 5.223160267e-05 | O151: 1515.0638
A152: 149 | B152: Bósnia-Herzegovina | C152: 536.8776 | D152: 3.869113088e-05 | F152: 149 | G152: Arábia Saudita | H152: 51.2828 | I152: 3.170280688e-06 | K152: 149 | L152: Albânia | M152: 1521.1376 | N152: 5.061669354e-05 | O152: 1270.2232
A153: 150 | B153: Curaçau | C153: 534.0534 | D153: 3.84875994e-05 | F153: 150 | G153: Fiji, Ilhas | H153: 50.1218 | I153: 3.098508166e-06 | K153: 150 | L153: Turquemenistão | M153: 1442.8052 | N153: 4.801013968e-05 | O153: 55.3956
A154: 151 | B154: Burundi | C154: 485.0592 | D154: 3.495673687e-05 | F154: 151 | G154: Arménia | H154: 49.4816 | I154: 3.058931277e-06 | K154: 151 | L154: Iémen | M154: 1388.2128 | N154: 4.619354742e-05 | O154: 19.81
A155: 152 | B155: Gâmbia | C155: 478.1568 | D155: 3.445930195e-05 | F155: 152 | G155: Falkland Ilhas (Malvinas) | H155: 46.09 | I155: 2.849264021e-06 | K155: 152 | L155: Montenegro | M155: 1194.2042 | N155: 3.973780414e-05 | O155: 1193.6674
A156: 153 | B156: Antígua e Barbuda | C156: 468.1724 | D156: 3.37397567e-05 | F156: 153 | G156: Aruba | H156: 45.6344 | I156: 2.821099024e-06 | K156: 153 | L156: São Bartolomeu | M156: 1185.2626 | N156: 3.944026746e-05 | O156: 1181.3602
A157: 154 | B157: Serra Leoa | C157: 436.4672 | D157: 3.145485966e-05 | F157: 154 | G157: Gibraltar | H157: 42.6724 | I157: 2.637989455e-06 | K157: 154 | L157: Aruba | M157: 985.8856 | N157: 3.28058877e-05 | O157: 894.6168
A158: 155 | B158: Tanzânia, República Unida da | C158: 409.5442 | D158: 2.951460117e-05 | F158: 155 | G158: Líbia, Jamahira Árabe da | H158: 41.1404 | I158: 2.543281873e-06 | K158: 155 | L158: Bermudas | M158: 958.1048 | N158: 3.188146624e-05 | O158: 956.4352
A159: 156 | B159: Nova Caledónia | C159: 388.6078 | D159: 2.800577869e-05 | F159: 156 | G159: Curaçau | H159: 39.2148 | I159: 2.424242107e-06 | K159: 156 | L159: Kosovo | M159: 950.6388 | N159: 3.163303097e-05 | O159: 790.5456
A160: 157 | B160: Madagáscar | C160: 386.2658 | D160: 2.78369979e-05 | F160: 157 | G160: Botswana | H160: 30.037 | I160: 1.85687445e-06 | K160: 157 | L160: Barbados | M160: 935.22 | N160: 3.111996188e-05 | O160: 914.5284
A161: 158 | B161: Myanmar | C161: 370.612 | D161: 2.670887628e-05 | F161: 158 | G161: São Pedro e Miquelon | H161: 28.9156 | I161: 1.787549983e-06 | K161: 158 | L161: Trindade e Tobago | M161: 878.6292 | N161: 2.923687177e-05 | O161: 877.8644
A162: 159 | B162: Comores | C162: 333.8038 | D162: 2.405622159e-05 | F162: 159 | G162: Ruanda | H162: 27.3026 | I162: 1.687835015e-06 | K162: 159 | L162: Barém | M162: 733.5568 | N162: 2.440950756e-05 | O162: 724.308
A163: 160 | B163: Haiti | C163: 328.0528 | D163: 2.364176457e-05 | F163: 160 | G163: São Marino | H163: 25.3104 | I163: 1.564678066e-06 | K163: 160 | L163: Usbequistão | M163: 665.2294 | N163: 2.213587559e-05 | O163: -95.587
A164: 161 | B164: Polinésia Francesa | C164: 317.6242 | D164: 2.289020718e-05 | F164: 161 | G164: Catar | H164: 21.3518 | I164: 1.319959113e-06 | K164: 161 | L164: Gronelândia | M164: 629.1046 | N164: 2.093380293e-05 | O164: -627.6618
A165: 162 | B165: Bahamas | C165: 305.389 | D165: 2.200845364e-05 | F165: 162 | G165: Macau | H165: 20.763 | I165: 1.28355975e-06 | K165: 162 | L165: Niger | M165: 622.3102 | N165: 2.070771552e-05 | O165: 615.7766
A166: 163 | B166: Libéria | C166: 303.6128 | D166: 2.188044832e-05 | F166: 163 | G166: Marshall, Ilhas | H166: 18.3784 | I166: 1.136144801e-06 | K166: 163 | L166: São Martinho (parte holandesa) | M166: 606.2012 | N166: 2.017167965e-05 | O166: 606.1956
A167: 164 | B167: Somália | C167: 293.0252 | D167: 2.111743229e-05 | F167: 164 | G167: Quirguizistão | H167: 17.5046 | I167: 1.08212686e-06 | K167: 164 | L167: Faroé, Ilhas | M167: 600.7416 | N167: 1.999000844e-05 | O167: -589.6076
A168: 165 | B168: Usbequistão | C168: 284.8212 | D168: 2.052619503e-05 | F168: 165 | G168: Salomão, Ilhas | H168: 16.0532 | I168: 9.924019348e-07 | K168: 165 | L168: Curaçau | M168: 573.2682 | N168: 1.907581589e-05 | O168: 494.8386
A169: 166 | B169: São Marino | C169: 251.4926 | D169: 1.81243045e-05 | F169: 166 | G169: Sudão | H169: 15.0882 | I169: 9.32746049e-07 | K169: 166 | L169: Burundi | M169: 485.2096 | N169: 1.614561735e-05 | O169: 484.9088
A170: 167 | B170: Bonaire, Santo Eustáquio e Saba | C170: 241.8602 | D170: 1.743012682e-05 | F170: 167 | G170: Jamaica | H170: 14.6868 | I170: 9.079316732e-07 | K170: 167 | L170: Antígua e Barbuda | M170: 477.853 | N170: 1.590082242e-05 | O170: 458.4918
A171: 168 | B171: Laos, República Democrática Popular do | C171: 170.9376 | D171: 1.231895138e-05 | F171: 168 | G171: Iraque | H171: 13.1736 | I171: 8.143862986e-07 | K171: 168 | L171: Nova Caledónia | M171: 390.0338 | N171: 1.297859005e-05 | O171: 387.1818
A172: 169 | B172: Zâmbia | C172: 164.8696 | D172: 1.188164914e-05 | F172: 169 | G172: São Cristovão e Nevis | H172: 12.4064 | I172: 7.669583239e-07 | K172: 169 | L172: Libéria | M172: 358.06 | N172: 1.19146442e-05 | O172: 249.1656
A173: 170 | B173: Santa Lúcia | C173: 158.8492 | D173: 1.144777727e-05 | F173: 170 | G173: Nepal | H173: 12.0278 | I173: 7.435534343e-07 | K173: 170 | L173: Zâmbia | M173: 348.819 | N173: 1.160714483e-05 | O173: -19.0798
A174: 171 | B174: Liechtenstein | C174: 144.4366 | D174: 1.040910516e-05 | F174: 171 | G174: Território Palestiniano Ocupado | H174: 11.6698 | I174: 7.21422028e-07 | K174: 171 | L174: Comores | M174: 333.8038 | N174: 1.110750576e-05 | O174: 333.8038
A175: 172 | B175: Maldivas | C175: 139.5096 | D175: 1.00540313e-05 | F175: 172 | G175: Barbados | H175: 10.3458 | I175: 6.395729161e-07 | K175: 172 | L175: Haiti | M175: 328.3394 | N175: 1.092567483e-05 | O175: 327.7662
A176: 173 | B176: Ceuta e Melilha | C176: 132.796 | D176: 9.570202624e-06 | F176: 173 | G176: Jibuti | H176: 9.885 | I176: 6.110864579e-07 | K176: 173 | L176: Polinésia Francesa | M176: 318.4566 | N176: 1.05968192e-05 | O176: 316.7918
A177: 174 | B177: Quirguizistão | C177: 130.9018 | D177: 9.433693408e-06 | F177: 174 | G177: Guiné Equatorial | H177: 9.7838 | I177: 6.048303173e-07 | K177: 174 | L177: Bahamas | M177: 305.389 | N177: 1.01619876e-05 | O177: 305.389
A178: 175 | B178: Botswana | C178: 118.8382 | D178: 8.564306557e-06 | F178: 175 | G178: Antígua e Barbuda | H178: 9.6806 | I178: 5.984505376e-07 | K178: 175 | L178: Chade | M178: 303.2232 | N178: 1.008991941e-05 | O178: -303.1296
A179: 176 | B179: Guiana | C179: 116.6432 | D179: 8.406119603e-06 | F179: 176 | G179: Santa Helena | H179: 5.0476 | I179: 3.120404658e-07 | K179: 176 | L179: Somália | M179: 293.0252 | N179: 9.750575325e-06 | O179: 293.0252
A180: 177 | B180: Nepal | C180: 114.3036 | D180: 8.237511767e-06 | F180: 177 | G180: Barém | H180: 4.6244 | I180: 2.858784235e-07 | K180: 177 | L180: São Marino | M180: 276.803 | N180: 9.210772662e-06 | O180: 226.1822
A181: 178 | B181: Afeganistão | C181: 109.4574 | D181: 7.888260917e-06 | F181: 178 | G181: Niger | H181: 3.2668 | I181: 2.019521741e-07 | K181: 178 | L181: Maldivas | M181: 266.7684 | N181: 8.876865807e-06 | O181: 12.2508
A182: 179 | B182: Virgens Britânicas, Ilhas | C182: 106.6708 | D182: 7.687439155e-06 | F182: 179 | G182: São Bartolomeu | H182: 1.9512 | I182: 1.206223467e-07 | K182: 179 | L182: Bonaire, Santo Eustáquio e Saba | M182: 241.8602 | N182: 8.048031699e-06 | O182: 241.8602
A183: 180 | B183: Centro-Africana, República | C183: 103.298 | D183: 7.444371748e-06 | F183: 180 | G183: Liechtenstein | H183: 1.8568 | I183: 1.147865792e-07 | K183: 180 | L183: Santa Lúcia | M183: 158.8768 | N183: 5.286713244e-06 | O183: 158.8216
A184: 181 | B184: Jibuti | C184: 90.5704 | D184: 6.527132442e-06 | F184: 181 | G184: Lesoto | H184: 1.7136 | I184: 1.059340166e-07 | K184: 181 | L184: Botswana | M184: 148.8752 | N184: 4.953904482e-06 | O184: 88.8012
A185: 182 | B185: Caimão, Ilhas | C185: 73.8006 | D185: 5.318584112e-06 | F185: 182 | G185: Nova Caledónia | H185: 1.426 | I185: 8.815470804e-08 | K185: 182 | L185: Quirguizistão | M185: 148.4064 | N185: 4.938304903e-06 | O185: 113.3972
A186: 183 | B186: Zimbabwe | C186: 66.8594 | D186: 4.818353003e-06 | F186: 183 | G186: Bermudas | H186: 0.8348 | I186: 5.160697775e-08 | K186: 183 | L186: Liechtenstein | M186: 146.2934 | N186: 4.867993661e-06 | O186: 142.5798
A187: 184 | B187: Turcas e Caicos, Ilhas | C187: 48.519 | D187: 3.496616322e-06 | F187: 184 | G187: Polinésia Francesa | H187: 0.8324 | I187: 5.145861078e-08 | K187: 184 | L187: Ceuta e Melilha | M187: 132.796 | N187: 4.418860224e-06 | O187: 132.796
A188: 185 | B188: Virgens dos Estados Unidos, Ilhas | C188: 27.4406 | D188: 1.977560334e-06 | F188: 185 | G188: Micronésia, Estados Federados da | H188: 0.6592 | I188: 4.075146111e-08 | K188: 185 | L188: Nepal | M188: 126.3314 | N188: 4.203747089e-06 | O188: 102.2758
A189: 186 | B189: Mongólia | C189: 26.1112 | D189: 1.881754531e-06 | F189: 186 | G189: Afeganistão | H189: 0.6156 | I189: 3.805612782e-08 | K189: 186 | L189: Afeganistão | M189: 110.073 | N189: 3.662739852e-06 | O189: 108.8418
A190: 187 | B190: Belize | C190: 19.5092 | D190: 1.405968531e-06 | F190: 187 | G190: Trindade e Tobago | H190: 0.3824 | I190: 2.363980389e-08 | K190: 187 | L190: Virgens Britânicas, Ilhas | M190: 106.6778 | N190: 3.549762697e-06 | O190: 106.6638
A191: 188 | B191: Anguila | C191: 15.482 | D191: 1.115740512e-06 | F191: 188 | G191: Haiti | H191: 0.2866 | I191: 1.771748901e-08 | K191: 188 | L191: Jibuti | M191: 100.4554 | N191: 3.342708902e-06 | O191: 80.6854
A192: 189 | B192: Brunei Darussalam | C192: 13.5634 | D192: 9.774728627e-07 | F192: 189 | G192: Montenegro | H192: 0.2684 | I192: 1.659237282e-08 | K192: 189 | L192: Tajiquistão | M192: 74.7168 | N192: 2.486242775e-06 | O192: -74.7168
A193: 190 | B193: Fiji, Ilhas | C193: 11.4598 | D193: 8.258728277e-07 | F193: 190 | G193: Burundi | H193: 0.1504 | I193: 9.297663457e-09 | K193: 190 | L193: Caimão, Ilhas | M193: 73.8014 | N193: 2.455782335e-06 | O193: 73.7998
A194: 191 | B194: Malavi | C194: 8.5154 | D194: 6.136789017e-07 | F194: 191 | G194: Oceano Indico, Território Britânico do | H194: 0.1384 | I194: 8.555828606e-09 | K194: 191 | L194: Fiji, Ilhas | M194: 61.5816 | N194: 2.049161742e-06 | O194: -38.662
A195: 192 | B195: São Vicente e Granadinas | C195: 7.5006 | D195: 5.405453613e-07 | F195: 192 | G195: Vanuatu | H195: 0.0874 | I195: 5.403030493e-09 | K195: 192 | L195: Turcas e Caicos, Ilhas | M195: 48.519 | N195: 1.614496515e-06 | O195: 48.519
A196: 193 | B196: Guam | C196: 6.4026 | D196: 4.614158508e-07 | F196: 193 | G196: Nauru | H196: 0.0694 | I196: 4.290278217e-09 | K196: 193 | L196: Falkland Ilhas (Malvinas) | M196: 46.09 | N196: 1.533670199e-06 | O196: -46.09
A197: 194 | B197: Territórios Franceses do Sul | C197: 6.3292 | D197: 4.561261367e-07 | F197: 194 | G197: Palau | H197: 0.0478 | I197: 2.954975487e-09 | K197: 194 | L197: São Pedro e Miquelon | M197: 28.9156 | N197: 9.621825558e-07 | O197: -28.9156
A198: 195 | B198: Faroé, Ilhas | C198: 5.567 | D198: 4.011967078e-07 | F198: 195 | G198: Santa Lúcia | H198: 0.0276 | I198: 1.706220156e-09 | K198: 195 | L198: Virgens dos Estados Unidos, Ilhas | M198: 27.4406 | N198: 9.131011164e-07 | O198: 27.4406
A199: 196 | B199: Sudão do Sul | C199: 3.771 | D199: 2.717644665e-07 | F199: 196 | G199: Coreia, República Popular Democrática da | H199: 0.0196 | I199: 1.211663589e-09 | K199: 196 | L199: Mongólia | M199: 26.1254 | N199: 8.693371102e-07 | O199: 26.097
A200: 197 | B200: Marianas do Norte, Ilhas | C200: 2.9244 | D200: 2.107525871e-07 | F200: 197 | G200: São Vicente e Granadinas | H200: 0.0144 | I200: 8.902018203e-10 | K200: 197 | L200: Marshall, Ilhas | M200: 18.3784 | N200: 6.115514077e-07 | O200: -18.3784
... 58 more rows

Sheet 2AA
A1: Ranking dos parceiros comerciais de Portugal por país (média 2019-2023 em milhares de euros) produtos agrícolas e agroalimentares
A2: Exportações | F2: Importações | K2: Trocas comerciais (total e saldo)
A3: P | B3: País | C3: média quinquénio | D3: % do Total | F3: P | G3: País | H3: média quinquénio | I3: % do Total | K3: P | L3: País | M3: Total (exp+imp) | N3: % do Total | O3: Saldo (exp-imp)
A4: 1 | B4: Espanha | C4: 2756093.353 | D4: 0.355769475 | F4: 1 | G4: Espanha | H4: 5218042.717 | I4: 0.4651610503 | K4: 1 | L4: Espanha | M4: 7974136.07 | N4: 0.4204755872 | O4: -2461949.364
A5: 2 | B5: França | C5: 750650.2316 | D5: 0.0968974576 | F5: 2 | G5: França | H5: 878313.0456 | I5: 0.07829698623 | K5: 2 | L5: França | M5: 1628963.277 | N5: 0.08589510946 | O5: -127662.814
A6: 3 | B6: Itália | C6: 480436.9156 | D6: 0.06201705361 | F6: 3 | G6: Alemanha | H6: 721146.7026 | I6: 0.06428643378 | K6: 3 | L6: Países Baixos | M6: 1048192.809 | N6: 0.05527112696 | O6: -310787.729
A7: 4 | B7: Brasil | C7: 405387.3582 | D7: 0.05232930424 | F7: 4 | G7: Países Baixos | H7: 679490.2692 | I7: 0.06057298194 | K7: 4 | L7: Brasil | M7: 1040823.749 | N7: 0.05488255698 | O7: -230049.033
A8: 5 | B8: Países Baixos | C8: 368702.5402 | D8: 0.04759385563 | F8: 5 | G8: Brasil | H8: 635436.3912 | I8: 0.05664581054 | K8: 5 | L8: Alemanha | M8: 1002872.88 | N8: 0.05288141054 | O8: -439420.525
A9: 6 | B9: Alemanha | C9: 281726.1776 | D9: 0.03636653823 | F9: 6 | G9: Itália | H9: 370236.6922 | I9: 0.03300465288 | K9: 6 | L9: Itália | M9: 850673.6078 | N9: 0.04485595451 | O9: 110200.2234 | P9: Nota: Nesta listagem, o Reino Unido passa a ser constituído por três componentes: Reino Unido [até 2020] ; Reino Unido (sem Irlanda do Norte) pós-2020 e Reino Unido (Irlanda do Norte) pós-2020. Estas componentes são calculadas igualmente como média do quinquénio, embora a primeira corresponda apenas a 2019-2020 e as duas últimas a 2021-2023.
A10: 7 | B10: Angola | C10: 239258.0836 | D10: 0.03088455719 | F10: 7 | G10: Bélgica | H10: 281579.9028 | I10: 0.02510136663 | K10: 7 | L10: Bélgica | M10: 455978.039 | N10: 0.02404368725 | O10: -107181.7666
A11: 8 | B11: Reino Unido (sem Irlanda do Norte) pós 2020 | C11: 237670.7152 | D11: 0.03067965222 | F11: 8 | G11: Ucrânia | H11: 218361.6698 | I11: 0.01946579382 | K11: 8 | L11: Estados Unidos | M11: 399330.4768 | N11: 0.02105666561 | O11: -4827.0664
A12: 9 | B12: Estados Unidos | C12: 197251.7052 | D12: 0.02546217657 | F12: 9 | G12: Polónia | H12: 216442.184 | I12: 0.01929468176 | K12: 9 | L12: Polónia | M12: 361797.3752 | N12: 0.01907754802 | O12: -71086.9928
A13: 10 | B13: Israel | C13: 180621.8384 | D13: 0.02331551526 | F13: 10 | G13: Estados Unidos | H13: 202078.7716 | I13: 0.01801425913 | K13: 10 | L13: Reino Unido (sem Irlanda do Norte) pós 2020 | M13: 312265.2586 | N13: 0.01646572329 | O13: 163076.1718
A14: 11 | B14: Bélgica | C14: 174398.1362 | D14: 0.02251213054 | F14: 11 | G14: Roménia | H14: 147921.5572 | I14: 0.01318642844 | K14: 11 | L14: Angola | M14: 248844.089 | N14: 0.01312152985 | O14: 229672.0782
A15: 12 | B15: Polónia | C15: 145355.1912 | D15: 0.01876313079 | F15: 12 | G15: África do Sul | H15: 122030.5704 | I15: 0.01087838321 | K15: 12 | L15: Ucrânia | M15: 226323.7844 | N15: 0.0119340359 | O15: -210399.5552
A16: 13 | B16: Reino Unido | C16: 140181.6612 | D16: 0.01809530724 | F16: 13 | G16: Canadá | H16: 114587.6202 | I16: 0.01021488337 | K16: 13 | L16: Reino Unido | M16: 218445.519 | N16: 0.01151861557 | O16: 61917.8034
A17: 14 | B17: Suíça | C17: 101113.5758 | D17: 0.01305221528 | F17: 14 | G17: Irlanda | H17: 113855.5454 | I17: 0.01014962275 | K17: 14 | L17: Canadá | M17: 187938.0432 | N17: 0.009909958695 | O17: -41237.1972
A18: 15 | B18: Cabo Verde | C18: 93276.7052 | D18: 0.01204059522 | F18: 15 | G18: Argentina | H18: 81740.7412 | I18: 0.007286756949 | K18: 15 | L18: Israel | M18: 185954.1124 | N18: 0.009805346175 | O18: 175289.5644
A19: 16 | B19: Canadá | C19: 73350.423 | D19: 0.009468417118 | F19: 16 | G19: Reino Unido | H19: 78263.8578 | I19: 0.00697681109 | K19: 16 | L19: Roménia | M19: 164671.813 | N19: 0.00868313215 | O19: -131171.3014
A20: 17 | B20: China, República Popular da | C20: 65002.3268 | D20: 0.00839080565 | F20: 17 | G20: Dinamarca | H20: 77963.4376 | I20: 0.00695003021 | K20: 17 | L20: Irlanda | M20: 144404.9996 | N20: 0.007614464624 | O20: -83306.0912
A21: 18 | B21: Japão | C21: 61056.1688 | D21: 0.007881417041 | F21: 18 | G21: Reino Unido (sem Irlanda do Norte) pós 2020 | H21: 74594.5434 | I21: 0.006649711019 | K21: 18 | L21: África do Sul | M21: 144191.7208 | N21: 0.007603218449 | O21: -99869.42
A22: 19 | B22: Suécia | C22: 55383.66 | D22: 0.007149182962 | F22: 19 | G22: Costa Rica | H22: 70756.5738 | I22: 0.006307576225 | K22: 19 | L22: Dinamarca | M22: 126433.7134 | N22: 0.006666840072 | O22: -29493.1618
A23: 20 | B23: Marrocos | C23: 49767.4468 | D23: 0.006424215784 | F23: 20 | G23: China, República Popular da | H23: 48105.6586 | I23: 0.004288366327 | K23: 20 | L23: China, República Popular da | M23: 113107.9854 | N23: 0.00596417545 | O23: 16896.6682
A24: 21 | B24: Dinamarca | C24: 48470.2758 | D24: 0.006256770858 | F24: 21 | G24: Bulgária | H24: 41846.0794 | I24: 0.00373035778 | K24: 21 | L24: Suíça | M24: 103785.6028 | N24: 0.005472606926 | O24: 98441.5488
A25: 22 | B25: Luxemburgo | C25: 48434.8998 | D25: 0.006252204358 | F25: 22 | G25: Grécia | H25: 35033.7506 | I25: 0.003123074514 | K25: 22 | L25: Cabo Verde | M25: 93421.8838 | N25: 0.004926128813 | O25: 93131.5266
A26: 23 | B26: Rússia, Federação da | C26: 47519.044 | D26: 0.00613398139 | F26: 23 | G26: Colômbia | H26: 31210.9096 | I26: 0.002782288355 | K26: 23 | L26: Argentina | M26: 82057.1494 | N26: 0.004326867234 | O26: -81424.333
A27: 24 | B27: Guiné-Bissau | C27: 33196.0112 | D27: 0.004285097043 | F27: 24 | G27: Guiana | H27: 31014.2578 | I27: 0.002764757882 | K27: 24 | L27: Japão | M27: 72872.0242 | N27: 0.003842536282 | O27: 49240.3134
A28: 25 | B28: Irlanda | C28: 30549.4542 | D28: 0.003943467035 | F28: 25 | G28: Vietname | H28: 30892.5166 | I28: 0.002753905295 | K28: 25 | L28: Costa Rica | M28: 72068.7862 | N28: 0.003800181604 | O28: -69444.3614
A29: 26 | B29: Arábia Saudita | C29: 29146.6976 | D29: 0.003762392624 | F29: 26 | G29: Cuba | H29: 28789.5394 | I29: 0.002566435944 | K29: 26 | L29: Suécia | M29: 68731.8356 | N29: 0.003624224453 | O29: 42035.4844
A30: 27 | B30: Moçambique | C30: 28593.955 | D30: 0.003691042013 | F30: 27 | G30: Áustria | H30: 27643.7092 | I30: 0.002464291211 | K30: 27 | L30: Marrocos | M30: 61090.9854 | N30: 0.003221323004 | O30: 38443.9082
A31: 28 | B31: São Tomé e Príncipe | C31: 25054.826 | D31: 0.003234194619 | F31: 28 | G31: Chile | H31: 26079.5266 | I31: 0.002324852563 | K31: 28 | L31: Grécia | M31: 59934.495 | N31: 0.003160341354 | O31: -10133.0062
A32: 29 | B32: Grécia | C32: 24900.7444 | D32: 0.003214305043 | F32: 29 | G32: Checa, República | H32: 24321.05 | I32: 0.002168093627 | K32: 29 | L32: Rússia, Federação da | M32: 59387.4766 | N32: 0.003131497115 | O32: 35650.6114
A33: 30 | B33: Finlândia | C33: 22507.9646 | D33: 0.002905433787 | F33: 30 | G33: Índia | H33: 24071.1366 | I33: 0.002145815163 | K33: 30 | L33: Luxemburgo | M33: 56679.3754 | N33: 0.002988699145 | O33: 40190.4242
A34: 31 | B34: África do Sul | C34: 22161.1504 | D34: 0.002860665382 | F34: 31 | G34: Uruguai | H34: 22728.6906 | I34: 0.002026143166 | K34: 31 | L34: Bulgária | M34: 50875.6622 | N34: 0.002682669791 | O34: -32816.4966
A35: 32 | B35: Jordânia | C35: 21893.2362 | D35: 0.002826081758 | F35: 32 | G35: Costa do Marfim | H35: 22619.1534 | I35: 0.002016378501 | K35: 32 | L35: Checa, República | M35: 43840.9252 | N35: 0.002311728645 | O35: -4801.1748
A36: 33 | B36: Argélia | C36: 20568.7852 | D36: 0.002655115402 | F36: 33 | G36: Turquia | H36: 19669.1464 | I36: 0.0017534009 | K36: 33 | L36: Áustria | M36: 42201.1454 | N36: 0.002225263181 | O36: -13086.273
A37: 34 | B37: Checa, República | C37: 19519.8752 | D37: 0.002519717173 | F37: 34 | G37: Hungria | H37: 19322.5132 | I37: 0.001722500375 | K37: 34 | L37: Moçambique | M37: 38413.517 | N37: 0.002025541824 | O37: 18774.393
A38: 35 | B38: Noruega | C38: 18383.7692 | D38: 0.002373063274 | F38: 35 | G38: Suazilândia | H38: 17908.3876 | I38: 0.001596438519 | K38: 35 | L38: Colômbia | M38: 37783.0652 | N38: 0.001992298149 | O38: -24638.754
A39: 36 | B39: Coreia, República da | C39: 16791.4172 | D39: 0.002167514999 | F39: 36 | G39: Letónia | H39: 17568.283 | I39: 0.001566119983 | K39: 36 | L39: Guiné-Bissau | M39: 33466.8492 | N39: 0.001764704408 | O39: 32925.1732
A40: 37 | B40: Roménia | C40: 16750.2558 | D40: 0.002162201692 | F40: 37 | G40: Uganda | H40: 17520.2176 | I40: 0.001561835206 | K40: 37 | L40: Austrália | M40: 33457.6176 | N40: 0.001764217626 | O40: -224.8624
A41: 38 | B41: Austrália | C41: 16616.3776 | D41: 0.002144920065 | F41: 38 | G41: Austrália | H41: 16841.24 | I41: 0.001501307925 | K41: 38 | L41: Cuba | M41: 33227.7552 | N41: 0.001752096999 | O41: -24351.3236
A42: 39 | B42: Áustria | C42: 14557.4362 | D42: 0.001879142239 | F42: 39 | G42: Lituânia | H42: 14594.912 | I42: 0.001301059605 | K42: 39 | L42: Vietname | M42: 32990.675 | N42: 0.001739595779 | O42: -28794.3582
A43: 40 | B43: Emirados Árabes Unidos | C43: 13772.665 | D43: 0.001777840287 | F43: 40 | G43: México | H43: 13942.9954 | I43: 0.00124294467 | K43: 40 | L43: Hungria | M43: 31339.561 | N43: 0.001652532663 | O43: -7305.4654
A44: 41 | B44: Iraque | C44: 13213.736 | D44: 0.001705691106 | F44: 41 | G44: Peru | H44: 13551.1124 | I44: 0.001208010363 | K44: 41 | L44: Chile | M44: 31046.9382 | N44: 0.001637102685 | O44: -21112.115
A45: 42 | B45: Nigéria | C45: 12563.3872 | D45: 0.001621741028 | F45: 42 | G45: Egito | H45: 13444.2972 | I45: 0.00119848835 | K45: 42 | L45: Guiana | M45: 31034.393 | N45: 0.001636441178 | O45: -30994.1226
A46: 43 | B46: Hungria | C46: 12017.0478 | D46: 0.001551216972 | F46: 43 | G46: Indonésia | H46: 13373.0146 | I46: 0.001192133881 | K46: 43 | L46: Finlândia | M46: 30593.483 | N46: 0.001613192027 | O46: 14422.4462
A47: 44 | B47: Macau | C47: 11451.795 | D47: 0.001478251486 | F47: 44 | G47: Suécia | H47: 13348.1756 | I47: 0.001189919615 | K47: 44 | L47: Costa do Marfim | M47: 30195.695 | N47: 0.001592216696 | O47: -15042.6118
A48: 45 | B48: Território Palestiniano Ocupado | C48: 11126.9966 | D48: 0.001436324983 | F48: 45 | G48: Paquistão | H48: 12392.2934 | I48: 0.001104707747 | K48: 45 | L48: Turquia | M48: 29730.2176 | N48: 0.001567672108 | O48: -9608.0752
A49: 46 | B49: Líbia, Jamahira Árabe da | C49: 10747.1924 | D49: 0.001387298073 | F49: 46 | G49: Moldava, República de | H49: 12169.9448 | I49: 0.001084886539 | K49: 46 | L49: Arábia Saudita | M49: 29183.7518 | N49: 0.001538857008 | O49: 29109.6434
A50: 47 | B50: Senegal | C50: 10277.8906 | D50: 0.001326718392 | F50: 47 | G50: Rússia, Federação da | H50: 11868.4326 | I50: 0.001058008313 | K50: 47 | L50: Índia | M50: 27213.734 | N50: 0.00143497812 | O50: -20928.5392
A51: 48 | B51: Turquia | C51: 10061.0712 | D51: 0.001298730326 | F51: 48 | G51: Japão | H51: 11815.8554 | I51: 0.001053321333 | K51: 48 | L51: São Tomé e Príncipe | M51: 26143.659 | N51: 0.001378553147 | O51: 23965.993
A52: 49 | B52: Kuwait | C52: 9238.6512 | D52: 0.00119256849 | F52: 49 | G52: Marrocos | H52: 11323.5386 | I52: 0.00100943388 | K52: 49 | L52: Uruguai | M52: 24804.8014 | N52: 0.001307955287 | O52: -20652.5798
A53: 50 | B53: Bulgária | C53: 9029.5828 | D53: 0.001165580959 | F53: 50 | G53: Tailândia | H53: 10221.1584 | I53: 0.0009111624865 | K53: 50 | L53: Letónia | M53: 24571.9238 | N53: 0.001295675669 | O53: -10564.6422
A54: 51 | B54: Eslováquia | C54: 8981.6584 | D54: 0.001159394652 | F54: 51 | G54: Paraguai | H54: 9863.0808 | I54: 0.0008792417527 | K54: 51 | L54: Argélia | M54: 22398.8544 | N54: 0.001181089885 | O54: 18738.716
A55: 52 | B55: Ucrânia | C55: 7962.1146 | D55: 0.00102778715 | F55: 52 | G55: Moçambique | H55: 9819.562 | I55: 0.0008753622806 | K55: 52 | L55: Jordânia | M55: 22013.8634 | N55: 0.001160789339 | O55: 21772.609
A56: 53 | B56: Costa do Marfim | C56: 7576.5416 | D56: 0.0009780155757 | F56: 53 | G56: Angola | H56: 9586.0054 | I56: 0.0008545419388 | K56: 53 | L56: México | M56: 20411.1484 | N56: 0.0010762783 | O56: -7474.8424
A57: 54 | B57: Letónia | C57: 7003.6408 | D57: 0.0009040628496 | F57: 54 | G57: Equador | H57: 9434.7056 | I57: 0.0008410543577 | K57: 54 | L57: Lituânia | M57: 20237.3848 | N57: 0.001067115758 | O57: -8952.4392
A58: 55 | B58: Gibraltar | C58: 6867.0166 | D58: 0.0008864267562 | F58: 55 | G58: Sérvia | H58: 8961.3684 | I58: 0.0007988588371 | K58: 55 | L58: Suazilândia | M58: 19974.7344 | N58: 0.001053266223 | O58: -15842.0408
A59: 56 | B59: Maurícias | C59: 6601.9064 | D59: 0.0008522050864 | F59: 56 | G59: Belize | H59: 8481.6488 | I59: 0.0007560943591 | K59: 56 | L59: Noruega | M59: 19562.9914 | N59: 0.001031555046 | O59: 17204.547
A60: 57 | B60: Colômbia | C60: 6572.1556 | D60: 0.0008483647134 | F60: 57 | G60: Luxemburgo | H60: 8244.4756 | I60: 0.0007349516164 | K60: 57 | L60: Uganda | M60: 18130.6166 | N60: 0.0009560260316 | O60: -16909.8186
A61: 58 | B61: México | C61: 6468.153 | D61: 0.0008349395693 | F61: 58 | G61: Estónia | H61: 8133.3802 | I61: 0.0007250480461 | K61: 58 | L61: Coreia, República da | M61: 18110.515 | N61: 0.0009549660757 | O61: 15472.3194
A62: 59 | B62: Andorra | C62: 5880.33 | D62: 0.0007590606155 | F62: 59 | G62: Finlândia | H62: 8085.5184 | I62: 0.0007207814184 | K62: 59 | L62: Peru | M62: 15536.0606 | N62: 0.0008192152914 | O62: -11566.1642
A63: 60 | B63: Lituânia | C63: 5642.4728 | D63: 0.0007283568909 | F63: 60 | G63: Nova Zelânda | H63: 7373.8184 | I63: 0.0006573371085 | K63: 60 | L63: Egito | M63: 15081.7762 | N63: 0.0007952609096 | O63: -11806.8182
A64: 61 | B64: Malta | C64: 5438.0306 | D64: 0.0007019665315 | F64: 61 | G64: Malásia | H64: 6878.308 | I64: 0.0006131649638 | K64: 61 | L64: Indonésia | M64: 14601.4892 | N64: 0.0007699354127 | O64: -12144.54
A65: 62 | B65: Estónia | C65: 5388.6736 | D65: 0.0006955952981 | F65: 62 | G65: Camarões | H65: 6873.6916 | I65: 0.000612753436 | K65: 62 | L65: Emirados Árabes Unidos | M65: 14301.0792 | N65: 0.0007540948163 | O65: 13244.2508
A66: 63 | B66: HongKong | C66: 4973.9084 | D66: 0.000642055458 | F66: 63 | G66: Eslovénia | H66: 5854.3628 | I66: 0.0005218856373 | K66: 63 | L66: Eslováquia | M66: 14115.3302 | N66: 0.0007443002857 | O66: 3847.9866
A67: 64 | B67: Chile | C67: 4967.4116 | D67: 0.0006412168206 | F67: 64 | G67: Israel | H67: 5332.274 | I67: 0.0004753441681 | K67: 64 | L67: Tailândia | M67: 13545.4648 | N67: 0.0007142513266 | O67: -6896.852
A68: 65 | B68: Chipre | C68: 4599.9132 | D68: 0.000593778401 | F68: 65 | G68: Honduras | H68: 5320.7232 | I68: 0.000474314475 | K68: 65 | L68: Estónia | M68: 13522.0538 | N68: 0.0007130168663 | O68: -2744.7066
A69: 66 | B69: Cuba | C69: 4438.2158 | D69: 0.0005729057412 | F69: 66 | G69: Camboja | H69: 5251.2876 | I69: 0.0004681246567 | K69: 66 | L69: Iraque | M69: 13226 | N69: 0.000697405972 | O69: 13201.472
A70: 67 | B70: Mali | C70: 4408.7876 | D70: 0.0005691070109 | F70: 67 | G70: Zimbabwe | H70: 5172.692 | I70: 0.0004611182725 | K70: 67 | L70: Paquistão | M70: 12653.1142 | N70: 0.0006671977475 | O70: -12131.4726
A71: 68 | B71: Omã | C71: 4251.3822 | D71: 0.0005487883825 | F71: 68 | G71: Eslováquia | H71: 5133.6718 | I71: 0.000457639827 | K71: 68 | L71: Nigéria | M71: 12613.3818 | N71: 0.000665102661 | O71: 12513.3926
A72: 69 | B72: Sérvia | C72: 3643.2286 | D72: 0.0004702850594 | F72: 69 | G72: Etiópia | H72: 4865.161 | I72: 0.0004337035021 | K72: 69 | L72: Sérvia | M72: 12604.597 | N72: 0.0006646394392 | O72: -5318.1398
A73: 70 | B73: Gana | C73: 3561.703 | D73: 0.0004597613521 | F73: 70 | G73: Reino Unido (Irlanda do Norte) pós-2020 | H73: 4852.6168 | I73: 0.0004325852527 | K73: 70 | L73: Moldava, República de | M73: 12435.7646 | N73: 0.0006557369196 | O73: -11904.125
A74: 71 | B74: Síria, República Árabe da | C74: 3557.076 | D74: 0.0004591640772 | F74: 71 | G74: Tanzânia, República Unida da | H74: 4645.6104 | I74: 0.0004141317214 | K74: 71 | L74: Macau | M74: 11470.0196 | N74: 0.0006048132594 | O74: 11433.5704
A75: 72 | B75: Tailândia | C75: 3324.3064 | D75: 0.0004291170839 | F75: 72 | G75: Filipinas | H75: 4316.8954 | I75: 0.0003848285089 | K75: 72 | L75: Território Palestiniano Ocupado | M75: 11138.6664 | N75: 0.0005873410304 | O75: 11115.3268
A76: 73 | B76: Singapura | C76: 3292.5498 | D76: 0.0004250177928 | F76: 73 | G76: Macedónia, Antiga República jugoslava da | H76: 4269.76 | I76: 0.000380626636 | K76: 73 | L76: Kuwait | M76: 10781.5982 | N76: 0.0005685128514 | O76: 7695.7042
A77: 74 | B77: Eslovénia | C77: 3210.1356 | D77: 0.0004143793808 | F77: 74 | G77: Myanmar | H77: 4258.6984 | I77: 0.0003796405526 | K77: 74 | L77: Senegal | M77: 10777.8706 | N77: 0.0005683162953 | O77: 9777.9106
A78: 75 | B78: Índia | C78: 3142.5974 | D78: 0.0004056612327 | F78: 75 | G78: Tunísia | H78: 4096.3914 | I78: 0.0003651717376 | K78: 75 | L78: Líbia, Jamahira Árabe da | M78: 10763.4438 | N78: 0.0005675555713 | O78: 10730.941
A79: 76 | B79: Taiwan | C79: 3027.0112 | D79: 0.0003907408232 | F79: 76 | G79: Quénia | H79: 3999.6272 | I79: 0.0003565457184 | K79: 76 | L79: Paraguai | M79: 10570.8508 | N79: 0.0005574001571 | O79: -9155.3108
A80: 77 | B80: Guiné | C80: 2745.3572 | D80: 0.0003543836019 | F80: 77 | G80: Chipre | H80: 3965.5184 | I80: 0.0003535050983 | K80: 77 | L80: Equador | M80: 10263.4314 | N80: 0.0005411899555 | O80: -8605.9798
A81: 78 | B81: Burquina Faso | C81: 2525.8832 | D81: 0.0003260528672 | F81: 78 | G81: Suriname | H81: 3877.4378 | I81: 0.0003456531763 | K81: 78 | L81: Nova Zelânda | M81: 9856.0686 | N81: 0.0005197097461 | O81: -4891.5682
A82: 79 | B82: Venezuela | C82: 2486.9168 | D82: 0.0003210229012 | F82: 79 | G82: Malavi | H82: 3756.8802 | I82: 0.0003349061007 | K82: 79 | L82: Maurícias | M82: 9426.6558 | N82: 0.0004970668419 | O82: 3777.157
A83: 80 | B83: Nova Zelânda | C83: 2482.2502 | D83: 0.0003204205146 | F83: 80 | G83: Guatemala | H83: 3336.065 | I83: 0.00029739264 | K83: 80 | L83: Eslovénia | M83: 9064.4984 | N83: 0.0004779703098 | O83: -2644.2272
A84: 81 | B84: Timor-Leste | C84: 2425.5014 | D84: 0.000313095113 | F84: 81 | G84: Sri Lanca | H84: 3081.7942 | I84: 0.0002747257362 | K84: 81 | L84: Camarões | M84: 8912.7596 | N84: 0.0004699691345 | O84: -4834.6236
A85: 82 | B85: Filipinas | C85: 2423.494 | D85: 0.0003128359883 | F85: 82 | G85: Nicarágua | H85: 3050.9764 | I85: 0.0002719784915 | K85: 82 | L85: Chipre | M85: 8565.4316 | N85: 0.0004516545555 | O85: 634.3948
A86: 83 | B86: Congo | C86: 2401.0914 | D86: 0.0003099441555 | F86: 83 | G86: Maurícias | H86: 2824.7494 | I86: 0.0002518115449 | K86: 83 | L86: Belize | M86: 8501.158 | N86: 0.0004482654135 | O86: -8462.1396
A87: 84 | B87: Dominicana, República | C87: 2366.1238 | D87: 0.0003054303735 | F87: 84 | G87: Suíça | H87: 2672.027 | I87: 0.0002381971465 | K87: 84 | L87: Malásia | M87: 8478.9536 | N87: 0.0004470945771 | O87: -5277.6624
A88: 85 | B88: Seychelles | C88: 2266.2448 | D88: 0.000292537523 | F88: 85 | G88: Taiwan | H88: 2620.8988 | I88: 0.0002336393366 | K88: 85 | L88: Mali | M88: 6882.4546 | N88: 0.0003629113065 | O88: 1935.1206
A89: 86 | B89: Belarus | C89: 2265.0334 | D89: 0.0002923811498 | F89: 86 | G89: Dominicana, República | H89: 2590.705 | I89: 0.0002309477182 | K89: 86 | L89: Gibraltar | M89: 6867.0382 | N89: 0.0003620984009 | O89: 6866.995
A90: 87 | B90: Benim | C90: 2254.9256 | D90: 0.0002910763875 | F90: 87 | G90: Mali | H90: 2473.667 | I90: 0.0002205143963 | K90: 87 | L90: Filipinas | M90: 6740.3894 | N90: 0.0003554202194 | O90: -1893.4014
A91: 88 | B91: Guiné Equatorial | C91: 2237.2378 | D91: 0.0002887931632 | F91: 88 | G91: Gana | H91: 2244.213 | I91: 0.0002000597796 | K91: 88 | L91: Reino Unido (Irlanda do Norte) pós-2020 | M91: 6619.5794 | N91: 0.0003490499173 | O91: -3085.6542
A92: 89 | B92: Líbano | C92: 2221.1552 | D92: 0.0002867171457 | F92: 89 | G92: Croácia | H92: 2137.0316 | I92: 0.0001905051218 | K92: 89 | L92: HongKong | M92: 6486.8174 | N92: 0.0003420493871 | O92: 3460.9994
A93: 90 | B93: Gabão | C93: 2209.6904 | D93: 0.0002852372154 | F93: 90 | G93: Congo, República Democrática do | H93: 1937.5966 | I93: 0.000172726541 | K93: 90 | L93: Honduras | M93: 6000.5624 | N93: 0.000316409198 | O93: -4640.884
A94: 91 | B94: Croácia | C94: 2104.1144 | D94: 0.0002716089695 | F94: 91 | G94: Benim | H94: 1901.2374 | I94: 0.0001694853097 | K94: 91 | L94: Malta | M94: 5960.075 | N94: 0.0003142743005 | O94: 4915.9862
A95: 92 | B95: Vietname | C95: 2098.1584 | D95: 0.000270840141 | F95: 92 | G95: Serra Leoa | H95: 1900.5094 | I95: 0.0001694204123 | K95: 92 | L95: Andorra | M95: 5897.0704 | N95: 0.0003109520728 | O95: 5863.5896
A96: 93 | B96: Uruguai | C96: 2076.1108 | D96: 0.0002679941333 | F96: 93 | G96: Argélia | H96: 1830.0692 | I96: 0.0001631410391 | K96: 93 | L96: Gana | M96: 5805.916 | N96: 0.0003061455082 | O96: 1317.49
A97: 94 | B97: Suazilândia | C97: 2066.3468 | D97: 0.0002667337503 | F97: 94 | G97: Laos, República Democrática Popular do | H97: 1764.7672 | I97: 0.0001573197095 | K97: 94 | L97: Camboja | M97: 5661.8046 | N97: 0.0002985465251 | O97: -4840.7706
A98: 95 | B98: Camarões | C98: 2039.068 | D98: 0.0002632124747 | F98: 95 | G98: Burquina Faso | H98: 1596.6714 | I98: 0.0001423348534 | K98: 95 | L98: Taiwan | M98: 5647.91 | N98: 0.0002978138639 | O98: 406.1124
A99: 96 | B99: Peru | C99: 1984.9482 | D99: 0.0002562264367 | F99: 96 | G99: Kuwait | H99: 1542.947 | I99: 0.0001375456059 | K99: 96 | L99: Etiópia | M99: 5274.7014 | N99: 0.0002781346028 | O99: -4455.6206
A100: 97 | B100: Catar | C100: 1923.0908 | D100: 0.000248241593 | F100: 97 | G100: HongKong | H100: 1512.909 | I100: 0.0001348678762 | K100: 97 | L100: Zimbabwe | M100: 5238.022 | N100: 0.0002762005009 | O100: -5107.362
A101: 98 | B101: Irão, República Islâmica do | C101: 1920.529 | D101: 0.0002479109038 | F101: 98 | G101: Panamá | H101: 1505.4946 | I101: 0.0001342069215 | K101: 98 | L101: Tunísia | M101: 5011.6662 | N101: 0.0002642647768 | O101: -3181.1166
A102: 99 | B102: Geórgia | C102: 1916.3824 | D102: 0.0002473756412 | F102: 99 | G102: Madagáscar | H102: 1471.794 | I102: 0.0001312026904 | K102: 99 | L102: Tanzânia, República Unida da | M102: 4986.1414 | N102: 0.000262918856 | O102: -4305.0794
A103: 100 | B103: Reino Unido (Irlanda do Norte) pós-2020 | C103: 1766.9626 | D103: 0.0002280878316 | F103: 100 | G103: Coreia, República da | H103: 1319.0978 | I103: 0.0001175906276 | K103: 100 | L103: Dominicana, República | M103: 4956.8288 | N103: 0.0002613732049 | O103: -224.5812
A104: 101 | B104: Egito | C104: 1637.479 | D104: 0.0002113734803 | F104: 101 | G104: Singapura | H104: 1313.0876 | I104: 0.0001170548499 | K104: 101 | L104: Omã | M104: 4826.1814 | N104: 0.0002544841774 | O104: 3676.583
A105: 102 | B105: Malásia | C105: 1600.6456 | D105: 0.0002066188521 | F105: 102 | G105: Noruega | H105: 1179.2222 | I105: 0.0001051214539 | K105: 102 | L105: Singapura | M105: 4605.6374 | N105: 0.0002428549091 | O105: 1979.4622
A106: 103 | B106: Bangladesh | C106: 1592.1082 | D106: 0.0002055168044 | F106: 103 | G106: São Tomé e Príncipe | H106: 1088.833 | I106: 9.706373239e-05 | K106: 103 | L106: Myanmar | M106: 4593.3818 | N106: 0.0002422086722 | O106: -3924.015
A107: 104 | B107: Congo, República Democrática do | C107: 1487.5888 | D107: 0.0001920249493 | F107: 104 | G107: Timor-Leste | H107: 773.0574 | I107: 6.891399929e-05 | K107: 104 | L107: Macedónia, Antiga República jugoslava da | M107: 4569.63 | N107: 0.0002409562416 | O107: -3969.89
A108: 105 | B108: Costa Rica | C108: 1312.2124 | D108: 0.0001693865399 | F108: 105 | G108: El Salvador | H108: 699.8376 | I108: 6.238683941e-05 | K108: 105 | L108: Quénia | M108: 4449.3114 | N108: 0.000234611851 | O108: -3549.943
A109: 106 | B109: Sudão | C109: 1307.024 | D109: 0.0001687167968 | F109: 106 | G109: Turquemenistão | H109: 693.7048 | I109: 6.184013257e-05 | K109: 106 | L109: Croácia | M109: 4241.146 | N109: 0.0002236353054 | O109: -32.9172
A110: 107 | B110: Togo | C110: 1248.9136 | D110: 0.0001612156335 | F110: 107 | G110: Cazaquistão | H110: 686.1514 | I110: 6.11667867e-05 | K110: 107 | L110: Benim | M110: 4156.163 | N110: 0.0002191541582 | O110: 353.6882
A111: 108 | B111: Indonésia | C111: 1228.4746 | D111: 0.0001585772713 | F111: 108 | G111: Omã | H111: 574.7992 | I111: 5.124032402e-05 | K111: 108 | L111: Burquina Faso | M111: 4122.5546 | N111: 0.0002173819899 | O111: 929.2118
A112: 109 | B112: Islândia | C112: 1198.9784 | D112: 0.0001547697633 | F112: 109 | G112: Geórgia | H112: 547.4606 | I112: 4.880323169e-05 | K112: 109 | L112: Suriname | M112: 4115.4388 | N112: 0.0002170067743 | O112: -3639.4368
A113: 110 | B113: Panamá | C113: 1014.5438 | D113: 0.0001309620789 | F113: 110 | G113: Emirados Árabes Unidos | H113: 528.4142 | I113: 4.710534535e-05 | K113: 110 | L113: Guatemala | M113: 3875.6304 | N113: 0.0002043616956 | O113: -2796.4996
A114: 111 | B114: Tunísia | C114: 915.2748 | D114: 0.0001181479701 | F114: 111 | G114: Malta | H114: 522.0444 | I114: 4.65375112e-05 | K114: 111 | L114: Malavi | M114: 3763.5146 | N114: 0.000198449838 | O114: -3750.2458
A115: 112 | B115: Equador | C115: 828.7258 | D115: 0.0001069758187 | F115: 112 | G115: Senegal | H115: 499.98 | I115: 4.457058605e-05 | K115: 112 | L115: Síria, República Árabe da | M115: 3703.4868 | N115: 0.0001952845767 | O115: 3410.6652
A116: 113 | B116: Bermudas | C116: 818.2718 | D116: 0.0001056263673 | F116: 113 | G116: Usbequistão | H116: 380.3558 | I116: 3.390671809e-05 | K116: 113 | L116: Sri Lanca | M116: 3487.0654 | N116: 0.0001838726928 | O116: -2676.523
A117: 114 | B117: Kosovo | C117: 799.843 | D117: 0.0001032474912 | F117: 114 | G117: Líbano | H117: 342.8862 | I117: 3.056650042e-05 | K117: 114 | L117: Nicarágua | M117: 3449.8386 | N117: 0.0001819097265 | O117: -2652.1142
A118: 115 | B118: Paraguai | C118: 707.77 | D118: 9.13622759e-05 | F118: 115 | G118: Chade | H118: 303.1764 | I118: 2.702658071e-05 | K118: 115 | L118: Congo, República Democrática do | M118: 3425.1854 | N118: 0.0001806097651 | O118: -450.0078
A119: 116 | B119: Honduras | C119: 679.8392 | D119: 8.775683705e-05 | F119: 116 | G119: Bangladesh | H119: 298.8156 | I119: 2.663783834e-05 | K119: 116 | L119: Timor-Leste | M119: 3198.5588 | N119: 0.0001686597618 | O119: 1652.444
A120: 117 | B120: Aruba | C120: 651.3298 | D120: 8.407670979e-05 | F120: 117 | G120: Bolívia | H120: 296.509 | I120: 2.643221709e-05 | K120: 117 | L120: Guiné | M120: 3020.6542 | N120: 0.0001592788658 | O120: 2470.0602
A121: 118 | B121: Mauritânia | C121: 615.705 | D121: 7.947809328e-05 | F121: 118 | G121: Venezuela | H121: 285.0498 | I121: 2.541068971e-05 | K121: 118 | L121: Venezuela | M121: 2771.9666 | N121: 0.0001461655876 | O121: 2201.867
A122: 119 | B122: Uganda | C122: 610.399 | D122: 7.879316988e-05 | F122: 119 | G122: Guiné | H122: 275.297 | I122: 2.454127891e-05 | K122: 119 | L122: Congo | M122: 2655.1662 | N122: 0.0001400067114 | O122: 2147.0166
A123: 120 | B123: Namíbia | C123: 600.2532 | D123: 7.748350236e-05 | F123: 120 | G123: Guiné-Bissau | H123: 270.838 | I123: 2.414378252e-05 | K123: 120 | L123: Líbano | M123: 2564.0414 | N123: 0.0001352017076 | O123: 1878.269
A124: 121 | B124: Cazaquistão | C124: 584.6762 | D124: 7.547275004e-05 | F124: 121 | G124: Congo | H124: 254.0748 | I124: 2.264943145e-05 | K124: 121 | L124: Panamá | M124: 2520.0384 | N124: 0.0001328814328 | O124: -490.9508
A125: 122 | B125: Albânia | C125: 582.0574 | D125: 7.513470304e-05 | F125: 122 | G125: Belarus | H125: 241.8304 | I125: 2.155790762e-05 | K125: 122 | L125: Belarus | M125: 2506.8638 | N125: 0.0001321867371 | O125: 2023.203
A126: 123 | B126: Ruanda | C126: 580.43 | D126: 7.49246306e-05 | F126: 123 | G126: Togo | H126: 238.6312 | I126: 2.127271578e-05 | K126: 123 | L126: Geórgia | M126: 2463.843 | N126: 0.0001299182536 | O126: 1368.9218
A127: 124 | B127: Azerbaijão | C127: 564.159 | D127: 7.28242935e-05 | F127: 124 | G127: Irão, República Islâmica do | H127: 186.7426 | I127: 1.664712013e-05 | K127: 124 | L127: Serra Leoa | M127: 2326.8524 | N127: 0.0001226947497 | O127: -1474.1664
A128: 125 | B128: São Bartolomeu | C128: 548.5216 | D128: 7.080574446e-05 | F128: 125 | G128: Zâmbia | H128: 183.9494 | I128: 1.639812105e-05 | K128: 125 | L128: Seychelles | M128: 2267.3882 | N128: 0.000119559207 | O128: 2265.1014
A129: 126 | B129: Guatemala | C129: 539.5654 | D129: 6.96496361e-05 | F129: 126 | G129: Islândia | H129: 183.9414 | I129: 1.639740789e-05 | K129: 126 | L129: Guiné Equatorial | M129: 2237.2378 | N129: 0.0001179693787 | O129: 2237.2378
A130: 127 | B130: Arménia | C130: 525.5354 | D130: 6.78385778e-05 | F130: 127 | G130: Síria, República Árabe da | H130: 146.4108 | I130: 1.305175239e-05 | K130: 127 | L130: Gabão | M130: 2210.0274 | N130: 0.0001165345764 | O130: 2209.3534
A131: 128 | B131: Barém | C131: 502.4658 | D131: 6.486064548e-05 | F131: 128 | G131: Cabo Verde | H131: 145.1786 | I131: 1.294190824e-05 | K131: 128 | L131: Irão, República Islâmica do | M131: 2107.2716 | N131: 0.0001111162709 | O131: 1733.7864
A132: 129 | B132: Bolívia | C132: 494.4554 | D132: 6.382662542e-05 | F132: 129 | G132: Azerbaijão | H132: 124.8964 | I132: 1.113385684e-05 | K132: 129 | L132: Catar | M132: 1939.3412 | N132: 0.0001022613137 | O132: 1906.8404
A133: 130 | B133: Burundi | C133: 484.978 | D133: 6.260323811e-05 | F133: 130 | G133: Jordânia | H133: 120.6272 | I133: 1.075328013e-05 | K133: 130 | L133: Bangladesh | M133: 1890.9238 | N133: 9.970826787e-05 | O133: 1293.2926
A134: 131 | B134: Quénia | C134: 449.6842 | D134: 5.804734864e-05 | F134: 131 | G134: Albânia | H134: 120.2784 | I134: 1.072218644e-05 | K134: 131 | L134: Laos, República Democrática Popular do | M134: 1777.8864 | N134: 9.374781438e-05 | O134: -1751.648
A135: 132 | B135: Gâmbia | C135: 434.028 | D135: 5.602637281e-05 | F135: 132 | G135: Iémen | H135: 84.6154 | I135: 7.543017654e-06 | K135: 132 | L135: Madagáscar | M135: 1602.4536 | N135: 8.44972562e-05 | O135: -1341.1344
A136: 133 | B136: Serra Leoa | C136: 426.343 | D136: 5.503435691e-05 | F136: 133 | G136: Kosovo | H136: 79.8322 | I136: 7.116620544e-06 | K136: 133 | L136: Togo | M136: 1487.5448 | N136: 7.843812394e-05 | O136: 1010.2824
A137: 134 | B137: Camboja | C137: 410.517 | D137: 5.29914625e-05 | F137: 134 | G137: Tajiquistão | H137: 74.7168 | I137: 6.660609552e-06 | K137: 134 | L137: Islândia | M137: 1382.9198 | N137: 7.292125566e-05 | O137: 1015.037
A138: 135 | B138: Etiópia | C138: 409.5404 | D138: 5.286539839e-05 | F138: 135 | G138: Namíbia | H138: 64.9894 | I138: 5.793463028e-06 | K138: 135 | L138: Sudão | M138: 1318.1622 | N138: 6.950659235e-05 | O138: 1295.8858
A139: 136 | B139: Sri Lanca | C139: 405.2712 | D139: 5.231431e-05 | F139: 136 | G139: Libéria | H139: 54.4472 | I139: 4.853681373e-06 | K139: 136 | L139: Cazaquistão | M139: 1270.8276 | N139: 6.70106425e-05 | O139: -101.4752
A140: 137 | B140: Antígua e Barbuda | C140: 403.3246 | D140: 5.206303373e-05 | F140: 137 | G140: Nigéria | H140: 49.9946 | I140: 4.456755513e-06 | K140: 137 | L140: El Salvador | M140: 1081.0474 | N140: 5.700354701e-05 | O140: -318.6278
A141: 138 | B141: Nicarágua | C141: 398.8622 | D141: 5.148700618e-05 | F141: 138 | G141: Aruba | H141: 45.6144 | I141: 4.066283732e-06 | K141: 138 | L141: Kosovo | M141: 879.6752 | N141: 4.638520626e-05 | O141: 720.0108
A142: 139 | B142: El Salvador | C142: 381.2098 | D142: 4.920835147e-05 | F142: 139 | G142: Bósnia-Herzegovina | H142: 42.5574 | I142: 3.793768268e-06 | K142: 139 | L142: Bermudas | M142: 818.9736 | N142: 4.318441551e-05 | O142: 817.57
A143: 140 | B143: São Martinho (parte holandesa) | C143: 373.2376 | D143: 4.817926245e-05 | F143: 140 | G143: Curaçau | H143: 39.2148 | I143: 3.495793067e-06 | K143: 140 | L143: Bolívia | M143: 790.9644 | N143: 4.170749253e-05 | O143: 197.9464
A144: 141 | B144: Iémen | C144: 360.3172 | D144: 4.651143654e-05 | F144: 141 | G144: Arménia | H144: 37.5752 | I144: 3.349631355e-06 | K144: 141 | L144: Albânia | M144: 702.3358 | N144: 3.703411321e-05 | O144: 461.779
A145: 142 | B145: Tanzânia, República Unida da | C145: 340.531 | D145: 4.395734091e-05 | F145: 142 | G145: Arábia Saudita | H145: 37.0542 | I145: 3.303186947e-06 | K145: 142 | L145: Turquemenistão | M145: 700.9924 | N145: 3.696327583e-05 | O145: -686.4172
A146: 143 | B146: Myanmar | C146: 334.6834 | D146: 4.320250523e-05 | F146: 143 | G146: Botswana | H146: 30.037 | I146: 2.677640492e-06 | K146: 143 | L146: Aruba | M146: 696.9442 | N146: 3.674981455e-05 | O146: 605.7154
A147: 144 | B147: Comores | C147: 333.8038 | D147: 4.308896233e-05 | F147: 144 | G147: Ruanda | H147: 26.8278 | I147: 2.391557199e-06 | K147: 144 | L147: Azerbaijão | M147: 689.0554 | N147: 3.633383873e-05 | O147: 439.2626
A148: 145 | B148: Argentina | C148: 316.4082 | D148: 4.084345658e-05 | F148: 145 | G148: São Marino | H148: 25.2246 | I148: 2.248640355e-06 | K148: 145 | L148: Namíbia | M148: 665.2426 | N148: 3.50781916e-05 | O148: 535.2638
A149: 146 | B149: Jamaica | C149: 302.5728 | D149: 3.905751817e-05 | F149: 146 | G149: Macau | H149: 18.2246 | I149: 1.62462719e-06 | K149: 146 | L149: Mauritânia | M149: 617.715 | N149: 3.257206487e-05 | O149: 613.695
A150: 147 | B150: Libéria | C150: 301.9358 | D150: 3.897529121e-05 | F150: 147 | G150: Quirguizistão | H150: 17.5046 | I150: 1.560442979e-06 | K150: 147 | L150: Ruanda | M150: 607.2578 | N150: 3.202065751e-05 | O150: 553.6022
A151: 148 | B151: Macedónia, Antiga República jugoslava da | C151: 299.87 | D151: 3.870862805e-05 | F151: 148 | G151: Andorra | H151: 16.7404 | I151: 1.49231857e-06 | K151: 148 | L151: Arménia | M151: 563.1106 | N151: 2.969277902e-05 | O151: 487.9602
A152: 149 | B152: Somália | C152: 292.8384 | D152: 3.780095609e-05 | F152: 149 | G152: Líbia, Jamahira Árabe da | H152: 16.2514 | I152: 1.448726793e-06 | K152: 149 | L152: São Bartolomeu | M152: 548.8046 | N152: 2.893842473e-05 | O152: 548.2386
A153: 150 | B153: Moldava, República de | C153: 265.8198 | D153: 3.43132683e-05 | F153: 150 | G153: Catar | H153: 16.2504 | I153: 1.448637649e-06 | K153: 150 | L153: Barém | M153: 506.7884 | N153: 2.672291371e-05 | O153: 498.1432
A154: 151 | B154: Paquistão | C154: 260.8208 | D154: 3.36679739e-05 | F154: 151 | G154: Jamaica | H154: 14.6512 | I154: 1.306077384e-06 | K154: 151 | L154: Burundi | M154: 485.092 | N154: 2.557886419e-05 | O154: 484.864
A155: 152 | B155: Curaçau | C155: 251.4226 | D155: 3.245481011e-05 | F155: 152 | G155: São Cristovão e Nevis | H155: 12.4064 | I155: 1.105965276e-06 | K155: 152 | L155: Iémen | M155: 444.9326 | N155: 2.346126209e-05 | O155: 275.7018
A156: 153 | B156: Suriname | C156: 238.001 | D156: 3.072228694e-05 | F156: 153 | G156: Iraque | H156: 12.264 | I156: 1.093271065e-06 | K156: 153 | L156: Gâmbia | M156: 434.067 | N156: 2.288831983e-05 | O156: 433.989
A157: 154 | B157: Nova Caledónia | C157: 206.2626 | D157: 2.662534519e-05 | F157: 154 | G157: Território Palestiniano Ocupado | H157: 11.6698 | I157: 1.040301262e-06 | K157: 154 | L157: Usbequistão | M157: 421.6984 | N157: 2.223612449e-05 | O157: -339.0132
A158: 155 | B158: Trindade e Tobago | C158: 189.8074 | D158: 2.450123069e-05 | F158: 155 | G158: Sudão | H158: 11.1382 | I158: 9.929119195e-07 | K158: 155 | L158: Antígua e Barbuda | M158: 403.7924 | N158: 2.129194248e-05 | O158: 402.8568
A159: 156 | B159: Haiti | C159: 187.225 | D159: 2.416788237e-05 | F159: 156 | G159: Barém | H159: 4.3226 | I159: 3.85337044e-07 | K159: 156 | L159: São Martinho (parte holandesa) | M159: 373.2376 | N159: 1.96807902e-05 | O159: 373.2376
A160: 157 | B160: Zâmbia | C160: 152.2624 | D160: 1.965474575e-05 | F160: 157 | G160: Nepal | H160: 2.6584 | I160: 2.369823712e-07 | K160: 157 | L160: Libéria | M160: 356.383 | N160: 1.879204843e-05 | O160: 247.4886
A161: 158 | B161: Maldivas | C161: 137.7162 | D161: 1.777705393e-05 | F161: 158 | G161: Fiji, Ilhas | H161: 2.251 | I161: 2.00664805e-07 | K161: 158 | L161: Zâmbia | M161: 336.2118 | N161: 1.772842259e-05 | O161: -31.687
A162: 159 | B162: Liechtenstein | C162: 135.8048 | D162: 1.753032144e-05 | F162: 159 | G162: Mauritânia | H162: 2.01 | I162: 1.791809232e-07 | K162: 159 | L162: Comores | M162: 333.8038 | N162: 1.760144893e-05 | O162: 333.8038
A163: 160 | B163: Polinésia Francesa | C163: 133.9344 | D163: 1.728888142e-05 | F163: 160 | G163: Liechtenstein | H163: 1.7982 | I163: 1.603000677e-07 | K163: 160 | L163: Jamaica | M163: 317.224 | N163: 1.672719734e-05 | O163: 287.9216
A164: 161 | B164: Madagáscar | C164: 130.6596 | D164: 1.686615486e-05 | F164: 161 | G164: Lesoto | H164: 1.7136 | I164: 1.527584228e-07 | K164: 161 | L164: Chade | M164: 303.1804 | N164: 1.598667939e-05 | O164: -303.1724
A165: 162 | B165: Niger | C165: 126.732 | D165: 1.63591618e-05 | F165: 162 | G165: Seychelles | H165: 1.1434 | I165: 1.019280933e-07 | K165: 162 | L165: Somália | M165: 292.8384 | N165: 1.544134651e-05 | O165: 292.8384
A166: 163 | B166: Bósnia-Herzegovina | C166: 90.5322 | D166: 1.168632159e-05 | F166: 163 | G166: Bermudas | H166: 0.7018 | I166: 6.256177705e-08 | K166: 163 | L166: Curaçau | M166: 290.6374 | N166: 1.532528795e-05 | O166: 212.2078
A167: 164 | B167: Centro-Africana, República | C167: 89.9082 | D167: 1.160577274e-05 | F167: 164 | G167: Afeganistão | H167: 0.5848 | I167: 5.213184272e-08 | K167: 164 | L167: Nova Caledónia | M167: 206.2906 | N167: 1.087768762e-05 | O167: 206.2346
A168: 165 | B168: Nepal | C168: 87.8934 | D168: 1.13456929e-05 | F168: 165 | G168: Antígua e Barbuda | H168: 0.4678 | I168: 4.170190838e-08 | K168: 165 | L168: Trindade e Tobago | M168: 189.8764 | N168: 1.00121681e-05 | O168: 189.7384
A169: 166 | B169: Jibuti | C169: 70.7204 | D169: 9.128921396e-06 | F169: 166 | G169: Gabão | H169: 0.337 | I169: 3.004177667e-08 | K169: 166 | L169: Haiti | M169: 187.2274 | N169: 9.872486533e-06 | O169: 187.2226
A170: 167 | B170: Zimbabwe | C170: 65.33 | D170: 8.433103246e-06 | F170: 167 | G170: São Bartolomeu | H170: 0.283 | I170: 2.522796082e-08 | K170: 167 | L170: Maldivas | M170: 137.7198 | N170: 7.261954558e-06 | O170: 137.7126
A171: 168 | B171: Montenegro | C171: 54.6326 | D171: 7.05223261e-06 | F171: 168 | G171: Barbados | H171: 0.1636 | I171: 1.458407912e-08 | K171: 168 | L171: Liechtenstein | M171: 137.603 | N171: 7.255795703e-06 | O171: 134.0066
A172: 169 | B172: Caimão, Ilhas | C172: 53.1296 | D172: 6.85821831e-06 | F172: 169 | G172: Oceano Indico, Território Britânico do | H172: 0.1384 | I172: 1.233763172e-08 | K172: 169 | L172: Polinésia Francesa | M172: 133.9626 | N172: 7.063837689e-06 | O172: 133.9062
A173: 170 | B173: Ceuta e Melilha | C173: 51.6648 | D173: 6.669135046e-06 | F173: 170 | G173: Niger | H173: 0.1252 | I173: 1.116092118e-08 | K173: 170 | L173: Bósnia-Herzegovina | M173: 133.0896 | N173: 7.017804465e-06 | O173: 47.9748
A174: 171 | B174: Bahamas | C174: 43.9552 | D174: 5.673943668e-06 | F174: 171 | G174: Burundi | H174: 0.114 | I174: 1.016250012e-08 | K174: 171 | L174: Niger | M174: 126.8572 | N174: 6.689170488e-06 | O174: 126.6068
A175: 172 | B175: Usbequistão | C175: 41.3426 | D175: 5.336696988e-06 | F175: 172 | G175: Trindade e Tobago | H175: 0.069 | I175: 6.150986914e-09 | K175: 172 | L175: Nepal | M175: 90.5518 | N175: 4.774789513e-06 | O175: 85.235
A176: 173 | B176: Virgens dos Estados Unidos, Ilhas | C176: 26.0742 | D176: 3.365780203e-06 | F176: 173 | G176: Gâmbia | H176: 0.039 | I176: 3.476644778e-09 | K176: 173 | L176: Centro-Africana, República | M176: 89.9082 | N176: 4.740852534e-06 | O176: 89.9082
A177: 174 | B177: Turcas e Caicos, Ilhas | C177: 25.0024 | D177: 3.227427225e-06 | F177: 174 | G177: Polinésia Francesa | H177: 0.0282 | I177: 2.513881608e-09 | K177: 174 | L177: Tajiquistão | M177: 74.7168 | N177: 3.93981117e-06 | O177: -74.7168
A178: 175 | B178: Quirguizistão | C178: 23.7908 | D178: 3.071028206e-06 | F178: 175 | G178: Nova Caledónia | H178: 0.028 | I178: 2.496052661e-09 | K178: 175 | L178: Jibuti | M178: 70.7204 | N178: 3.729081302e-06 | O178: 70.7204
A179: 176 | B179: Guiana | C179: 20.1352 | D179: 2.599146188e-06 | F179: 176 | G179: Papuásia-Nova Guiné | H179: 0.0222 | I179: 1.979013181e-09 | K179: 176 | L179: Montenegro | M179: 54.634 | N179: 2.880846656e-06 | O179: 54.6312
A180: 177 | B180: Belize | C180: 19.5092 | D180: 2.518339168e-06 | F180: 177 | G180: Gibraltar | H180: 0.0216 | I180: 1.925526338e-09 | K180: 177 | L180: Caimão, Ilhas | M180: 53.1304 | N180: 2.801561943e-06 | O180: 53.1288
A181: 178 | B181: Mongólia | C181: 19.1206 | D181: 2.468176855e-06 | F181: 178 | G181: São Vicente e Granadinas | H181: 0.0144 | I181: 1.283684226e-09 | K181: 178 | L181: Ceuta e Melilha | M181: 51.6648 | N181: 2.724280967e-06 | O181: 51.6648
A182: 179 | B182: Afeganistão | C182: 18.9718 | D182: 2.448969052e-06 | F182: 179 | G182: Mongólia | H182: 0.0112 | I182: 9.984210643e-10 | K182: 179 | L182: Bahamas | M182: 43.9552 | N182: 2.317754346e-06 | O182: 43.9552
A183: 180 | B183: Barbados | C183: 15.4724 | D183: 1.997250064e-06 | F183: 180 | G183: Santa Lúcia | H183: 0.009 | I183: 8.02302641e-10 | K183: 180 | L183: Quirguizistão | M183: 41.2954 | N183: 2.177503295e-06 | O183: 6.2862
A184: 181 | B184: Virgens Britânicas, Ilhas | C184: 13.47 | D184: 1.738770867e-06 | F184: 181 | G184: Virgens Britânicas, Ilhas | H184: 0.007 | I184: 6.240131652e-10 | K184: 181 | L184: Botswana | M184: 30.0886 | N184: 1.586569585e-06 | O184: -29.9854
A185: 182 | B185: Laos, República Democrática Popular do | C185: 13.1192 | D185: 1.693487955e-06 | F185: 182 | G185: Maldivas | H185: 0.0036 | I185: 3.209210564e-10 | K185: 182 | L185: Virgens dos Estados Unidos, Ilhas | M185: 26.0742 | N185: 1.374890579e-06 | O185: 26.0742
A186: 183 | B186: Brunei Darussalam | C186: 12.819 | D186: 1.654736729e-06 | F186: 183 | G186: Faroé, Ilhas | H186: 0.0026 | I186: 2.317763185e-10 | K186: 183 | L186: São Marino | M186: 25.2486 | N186: 1.331356754e-06 | O186: -25.2006
A187: 184 | B187: Fiji, Ilhas | C187: 11.4226 | D187: 1.474482858e-06 | F187: 184 | G187: Haiti | H187: 0.0024 | I187: 2.139473709e-10 | K187: 184 | L187: Turcas e Caicos, Ilhas | M187: 25.0024 | N187: 1.318374647e-06 | O187: 25.0024
A188: 185 | B188: Turquemenistão | C188: 7.2876 | D188: 9.407176369e-07 | F188: 185 | G188: Montenegro | H188: 0.0014 | I188: 1.24802633e-10 | K188: 185 | L188: Afeganistão | M188: 19.5566 | N188: 1.031218028e-06 | O188: 18.387
A189: 186 | B189: Santa Lúcia | C189: 7.138 | D189: 9.214065662e-07 | F189: 186 | G189: Caimão, Ilhas | H189: 0.0008 | I189: 7.131579031e-11 | K189: 186 | L189: Mongólia | M189: 19.1318 | N189: 1.008818356e-06 | O189: 19.1094
A190: 187 | B190: Malavi | C190: 6.6344 | D190: 8.563995129e-07 | F190: 187 | G190: Anguila | H190: 0 | I190: 0 | K190: 187 | L190: Barbados | M190: 15.636 | N190: 8.244850884e-07 | O190: 15.3088
A191: 188 | B191: Bonaire, Santo Eustáquio e Saba | C191: 6.6316 | D191: 8.560380757e-07 | F191: 188 | G191: Antárctica | H191: 0 | I191: 0 | K191: 188 | L191: Fiji, Ilhas | M191: 13.6736 | N191: 7.210078859e-07 | O191: 9.1716
A192: 189 | B192: Guam | C192: 6.3336 | D192: 8.17570836e-07 | F192: 189 | G192: Antilhas Holandesas | H192: 0 | I192: 0 | K192: 189 | L192: Virgens Britânicas, Ilhas | M192: 13.477 | N192: 7.106411829e-07 | O192: 13.463
A193: 190 | B193: São Vicente e Granadinas | C193: 4.3128 | D193: 5.567164806e-07 | F193: 190 | G193: Bahamas | H193: 0 | I193: 0 | K193: 190 | L193: São Cristovão e Nevis | M193: 13.1558 | N193: 6.937043314e-07 | O193: -11.657
A194: 191 | B194: Sudão do Sul | C194: 3.771 | D194: 4.867783919e-07 | F194: 191 | G194: Bonaire, Santo Eustáquio e Saba | H194: 0 | I194: 0 | K194: 191 | L194: Brunei Darussalam | M194: 12.819 | N194: 6.759448931e-07 | O194: 12.819
A195: 192 | B195: Marianas do Norte, Ilhas | C195: 2.9244 | D195: 3.774952875e-07 | F195: 192 | G195: Bouvet, Ilha | H195: 0 | I195: 0 | K195: 192 | L195: Santa Lúcia | M195: 7.147 | N195: 3.768607653e-07 | O195: 7.129
A196: 193 | B196: Papuásia-Nova Guiné | C196: 2.8856 | D196: 3.724868013e-07 | F196: 193 | G196: Brunei Darussalam | H196: 0 | I196: 0 | K196: 193 | L196: Bonaire, Santo Eustáquio e Saba | M196: 6.6316 | N196: 3.496837626e-07 | O196: 6.6316
A197: 194 | B197: Anguila | C197: 2.7816 | D197: 3.590619928e-07 | F197: 194 | G197: Butão | H197: 0 | I197: 0 | K197: 194 | L197: Guam | M197: 6.3336 | N197: 3.339702453e-07 | O197: 6.3336
A198: 195 | B198: Domínica | C198: 1.4248 | D198: 1.839198761e-07 | F198: 195 | G198: Centro-Africana, República | H198: 0 | I198: 0 | K198: 195 | L198: São Vicente e Granadinas | M198: 4.3272 | N198: 2.281729262e-07 | O198: 4.2984
A199: 196 | B199: São Cristovão e Nevis | C199: 0.7494 | D199: 9.673607183e-08 | F199: 196 | G199: Ceuta | H199: 0 | I199: 0 | K199: 196 | L199: Sudão do Sul | M199: 3.771 | N199: 1.988445426e-07 | O199: 3.771
A200: 197 | B200: Granada | C200: 0.6942 | D200: 8.961059656e-08 | F200: 197 | G200: Ceuta e Melilha | H200: 0 | I200: 0 | K200: 197 | L200: Marianas do Norte, Ilhas | M200: 2.9244 | N200: 1.542033891e-07 | O200: 2.9244
... 58 more rows

Sheet 2A
A1: Parceiros comerciais de Portugal - União Europeia vs. Países Terceiros (média 2019-2023 em milhões de euros) produtos agrícolas e agroalimentares, do mar e da floresta
A2: Exportações | F2: Importações | K2: Trocas comerciais (total e saldo)
A3: P | B3: Grupo de Países | C3: média quinquénio | D3: % do Total | F3: P | G3: Grupo de Países | H3: média quinquénio | I3: % do Total | K3: P | L3: Grupo de Países | M3: média quinquénio | N3: % do Total | O3: Saldo (exp-imp)
A4: 1 | B4: União Europeia | C4: 9407.139979 | D4: 0.6779438817 | F4: 1 | G4: União Europeia | H4: 12705.30685 | I4: 0.7854366173 | K4: 1 | L4: União Europeia | M4: 22112.44683 | N4: 0.7358038778 | O4: -3298.166875
A5: 2 | B5: Países Terceiros | C5: 4469.1217 | D5: 0.3220759678 | F5: 2 | G5: Países Terceiros | H5: 3470.800262 | I5: 0.2145633827 | K5: 2 | L5: Países Terceiros | M5: 7939.921962 | N5: 0.2642052873 | O5: 998.3214384
B6: Outros | C6: -0.2754318 | D6: -1.984952962e-05 | G6: Outros | H6: 0 | I6: 0 | L6: Outros | M6: -0.2754318 | N6: -9.165145225e-06 | O6: -0.2754318
B7: Total | C7: 13875.98625 | D7: 1 | G7: Total | H7: 16176.10712 | I7: 1 | L7: Total | M7: 30052.09336 | N7: 1 | O7: -2300.120868
F27: valores em milhões de euros
A28: Nota: Outros = Países não determinados, abastecimentos de bordo, etc.
A29: Fonte: GPP a partir de dados INE/Comércio Internacional (2022 provisórios) | M29: 2024-03-04

Sheet 3
A1: Principais produtos agrícolas e agroalimentares, do mar e da floresta transacionados entre Portugal e Espanha em 2019-2023 (NC a 2 e 4 dígitos) em milhões de euros
AC4: P | AE4: Cód.NC | AF4: Descritivo | AG4: Média export quinquénio | AH4: % do total | AI4: % acumulada | AN4: P | AO4: NC | AP4: Exportações | AQ4: 2019 | AR4: 2020 | AS4: 2021 | AT4: 2022 | AU4: 2023 | AV4: média quinquénio
AC5: 1 | AD5: º | AE5: 48 | AF5: Papel e cartão | AG5: 561.0893988 | AH5: 0.122255612 | AN5: 1º | AO5: 48 | AP5: Papel e cartão | AQ5: 484.128927 | AR5: 446.064082 | AS5: 527.432986 | AT5: 702.371299 | AU5: 645.4497 | AV5: 561.0893988
AC6: 2 | AD6: º | AE6: 03 | AF6: Peixes e crustáceos | AG6: 505.2101496 | AH6: 0.110080098 | AN6: 2º | AO6: 03 | AP6: Peixes e crustáceos | AQ6: 512.776817 | AR6: 377.42161 | AS6: 500.08574 | AT6: 564.605154 | AU6: 571.161427 | AV6: 505.2101496
AC7: 3 | AD7: º | AE7: 15 | AF7: Gorduras e óleos animais ou vegetais | AG7: 495.9971414 | AH7: 0.1080726782 | AI7: 0.3404083882 | AN7: 3º | AO7: 15 | AP7: Gorduras e óleos animais ou vegetais | AQ7: 240.090797 | AR7: 284.799966 | AS7: 459.856761 | AT7: 730.822817 | AU7: 764.415366 | AV7: 495.9971414
AC8: 4 | AD8: º | AE8: 08 | AF8: Frutas | AG8: 373.884873 | AH8: 0.08146567027 | AO8: - | AP8: Outros | AQ8: 2382.484314 | AR8: 2462.89151 | AS8: 2862.221101 | AT8: 3583.384667 | AU8: 3844.923211 | AV8: 3027.180961
AC9: 5 | AD9: º | AE9: 44 | AF9: Madeira e suas obras | AG9: 342.8758484 | AH9: 0.07470912259 | AP9: Total | AQ9: 3619.480855 | AR9: 3571.177168 | AS9: 4349.596588 | AT9: 5581.183937 | AU9: 5825.949704 | AV9: 4589.47765
AC10: 6 | AD10: º | AE10: 24 | AF10: Tabaco | AG10: 275.547601 | AH10: 0.06003898962
AC11: 7 | AD11: º | AE11: 04 | AF11: Leite e laticínios; ovos; mel, etc. | AG11: 186.3804542 | AH11: 0.04061038497
AC12: 8 | AD12: º | AE12: 22 | AF12: Bebidas, líquidos alcoólicos e vinagres | AG12: 180.7248696 | AH12: 0.03937809123
AC13: 9 | AD13: º | AE13: 45 | AF13: Cortiça e suas obras | AG13: 172.360792 | AH13: 0.0375556447
AC14: 10 | AD14: º | AE14: 47 | AF14: Pastas de madeira | AG14: 163.829917 | AH14: 0.03569685474 | AI14: 0.7098631463
AE15: - | AF15: Outros | AG15: 1331.576605 | AH15: 0.2901368537
AE16: Total | AG16: 4589.47765 | AH16: 1
AC38: P | AE38: Cód.NC | AF38: Descritivo | AG38: Média import quinquénio | AH38: % do total | AI38: % acumulada | AN38: P | AO38: NC | AP38: Importações | AQ38: 2019 | AR38: 2020 | AS38: 2021 | AT38: 2022 | AU38: 2023 | AV38: média quinquénio
AC39: 1 | AD39: º | AE39: 02 | AF39: Carnes e miudezas | AG39: 855.5447542 | AH39: 0.1135472781 | AN39: 1º | AO39: 02 | AP39: Carnes e miudezas | AQ39: 796.742517 | AR39: 689.780047 | AS39: 744.773988 | AT39: 983.345327 | AU39: 1063.081892 | AV39: 855.5447542
AC40: 2 | AD40: º | AE40: 03 | AF40: Peixes e crustáceos | AG40: 776.5970102 | AH40: 0.1030693909 | AN40: 2º | AO40: 03 | AP40: Peixes e crustáceos | AQ40: 713.496617 | AR40: 637.213952 | AS40: 761.470764 | AT40: 893.255849 | AU40: 877.547869 | AV40: 776.5970102
AC41: 3 | AD41: º | AE41: 48 | AF41: Papel e cartão | AG41: 739.459119 | AH41: 0.09814047695 | AI41: 0.3147571459 | AN41: 3º | AO41: 48 | AP41: Papel e cartão | AQ41: 638.451426 | AR41: 569.692829 | AS41: 737.541004 | AT41: 948.573742 | AU41: 803.036594 | AV41: 739.459119
AC42: 4 | AD42: º | AE42: 15 | AF42: Gorduras e óleos animais ou vegetais | AG42: 687.621819 | AH42: 0.09126066816 | AO42: - | AP42: Outros | AQ42: 4219.686335 | AR42: 4208.243748 | AS42: 4735.06945 | AT42: 5973.108213 | AU42: 6679.391267 | AV42: 5163.099803
AC43: 5 | AD43: º | AE43: 44 | AF43: Madeira e suas obras | AG43: 449.7967268 | AH43: 0.05969669474 | AP43: Total | AQ43: 6368.376895 | AR43: 6104.930576 | AS43: 6978.855206 | AT43: 8798.283131 | AU43: 9423.057622 | AV43: 7534.700686
AC44: 6 | AD44: º | AE44: 08 | AF44: Frutas | AG44: 449.7014948 | AH44: 0.05968405562
AC45: 7 | AD45: º | AE45: 19a | AF45: Preparações à base de cereais (exc. NC 19022010) (a) | AG45: 415.4988464 | AH45: 0.05514470497
AC46: 8 | AD46: º | AE46: 04 | AF46: Leite e laticínios; ovos; mel, etc. | AG46: 365.7855582 | AH46: 0.04854679349
AC47: 9 | AD47: º | AE47: 22 | AF47: Bebidas, líquidos alcoólicos e vinagres | AG47: 348.7265948 | AH47: 0.04628274026
AC48: 10 | AD48: º | AE48: 07 | AF48: Produtos hortícolas | AG48: 322.7274764 | AH48: 0.04283215616 | AI48: 0.7182049593
AE49: - | AF49: Outros | AG49: 2123.241286 | AH49: 0.2817950407
AE50: Total | AG50: 7534.700686 | AH50: 1
AC62: DESAGREGAÇÃO A 4 DÍGITOS | AN62: DESAGREGAÇÃO A 4 DÍGITOS
AC64: P | AE64: Cód.NC | AF64: Descritivo | AG64: Média export quinquénio | AH64: % do total | AI64: % acumulada | AN64: P | AO64: NC | AP64: Exportações | AQ64: 2019 | AR64: 2020 | AS64: 2021 | AT64: 2022 | AU64: 2023 | AV64: média quinquénio
AC65: 1 | AD65: º | AE65: 1509 | AF65: Azeite (processos mecânicos ou físicos) | AG65: 304.871185 | AH65: 0.06642829712 | AN65: 1º | AO65: 1509 | AP65: Azeite (processos mecânicos ou físicos) | AQ65: 163.007234 | AR65: 170.890027 | AS65: 268.279089 | AT65: 404.788576 | AU65: 517.390999 | AV65: 304.871185
AC66: 2 | AD66: º | AE66: 2402 | AF66: Charutos, cigarrilhas e cigarros | AG66: 265.4483426 | AH66: 0.05783846503 | AN66: 2º | AO66: 2402 | AP66: Charutos, cigarrilhas e cigarros | AQ66: 269.479649 | AR66: 265.046721 | AS66: 262.484784 | AT66: 262.706001 | AU66: 267.524558 | AV66: 265.4483426
AC67: 3 | AD67: º | AE67: 4818 | AF67: Papel para toucador, etc., pasta de celulose, etc. | AG67: 139.7160436 | AH67: 0.03044268961 | AI67: 0.1547094518 | AN67: 3º | AO67: 4818 | AP67: Papel para toucador, etc., pasta de celulose, etc. | AQ67: 115.730755 | AR67: 118.486919 | AS67: 119.232141 | AT67: 155.581012 | AU67: 189.549391 | AV67: 139.7160436
AC68: 4 | AD68: º | AE68: 0303 | AF68: Peixes congelados | AG68: 131.8250362 | AH68: 0.02872332022 | AN68: - | AO68: - | AP68: Outros | AQ68: 3071.263217 | AR68: 3016.753501 | AS68: 3699.600574 | AT68: 4758.108348 | AU68: 4851.484756 | AV68: 3879.442079
AC69: 5 | AD69: º | AE69: 4703 | AF69: Pastas químicas de madeira, à soda ou ao sulfato | AG69: 129.9414356 | AH69: 0.02831290301 | AP69: Total | AQ69: 3619.480855 | AR69: 3571.177168 | AS69: 4349.596588 | AT69: 5581.183937 | AU69: 5825.949704 | AV69: 4589.47765
AC70: 6 | AD70: º | AE70: 0302 | AF70: Peixes frescos ou refrigerados | AG70: 125.8345966 | AH70: 0.02741806501
AC71: 7 | AD71: º | AE71: 4802 | AF71: Papel e cartão p/ escrita, etc. | AG71: 119.2940574 | AH71: 0.02599294876
AC72: 8 | AD72: º | AE72: 0307 | AF72: Moluscos | AG72: 119.2909324 | AH72: 0.02599226785
AC73: 9 | AD73: º | AE73: 0805 | AF73: Citrinos, frescos ou secos | AG73: 112.5914084 | AH73: 0.02453251045
AC74: 10 | AD74: º | AE74: 1701 | AF74: Açúcares (cana/beterraba); sacarose pura | AG74: 105.4626402 | AH74: 0.02297922514 | AI74: 0.3386606922
AE75: - | AF75: Outros | AG75: 3035.201972 | AH75: 0.6613393078
AE76: Total | AG76: 4589.47765 | AH76: 1
AC89: DESAGREGAÇÃO A 4 DÍGITOS | AN89: DESAGREGAÇÃO A 4 DÍGITOS
G91: média 2019-2023 em milhões de euros | I91: Cód. NC | J91: Descritivo | K91: Export | L91: Import | M91: Saldo | AC91: P | AE91: Cód.NC | AF91: Descritivo | AG91: Média import quinquénio | AH91: % do total | AI91: % acumulada | AN91: P | AO91: NC | AP91: Importações | AQ91: 2019 | AR91: 2020 | AS91: 2021 | AT91: 2022 | AU91: 2023 | AV91: média quinquénio
I92: 2402 | J92: Charutos, cigarrilhas e cigarros | K92: 265.4483426 | L92: 6.2633968 | M92: 259.1849458 | AC92: 1 | AD92: º | AE92: 1509 | AF92: Azeite (processos mecânicos ou físicos) | AG92: 364.4493322 | AH92: 0.04836945054 | AN92: 1º | AO92: 1509 | AP92: Azeite (processos mecânicos ou físicos) | AQ92: 286.911488 | AR92: 292.560149 | AS92: 364.194282 | AT92: 410.581985 | AU92: 467.998757 | AV92: 364.4493322
I93: 4703 | J93: Pastas químicas de madeira, à soda ou ao sulfato | K93: 129.9414356 | L93: 13.766201 | M93: 116.1752346 | AC93: 2 | AD93: º | AE93: 0201 | AF93: Carnes de bovino, frescas ou refrigeradas | AG93: 305.78521 | AH93: 0.04058359087 | AN93: 2º | AO93: 0201 | AP93: Carnes de bovino, frescas ou refrigeradas | AQ93: 280.283335 | AR93: 239.468109 | AS93: 260.599842 | AT93: 358.662888 | AU93: 389.911876 | AV93: 305.78521
I94: 4802 | J94: Papel e cartão p/ escrita, etc. | K94: 119.2940574 | L94: 31.4563244 | M94: 87.837733 | AC94: 3 | AD94: º | AE94: 1905 | AF94: Produtos de padaria, pastelaria, etc. | AG94: 298.7975234 | AH94: 0.03965619019 | AI94: 0.1286092316 | AN94: 3º | AO94: 1905 | AP94: Produtos de padaria, pastelaria, etc. | AQ94: 238.92525 | AR94: 237.315297 | AS94: 258.49414 | AT94: 329.382123 | AU94: 429.870807 | AV94: 298.7975234
I95: 1701 | J95: Açúcares (cana/beterraba); sacarose pura | K95: 105.4626402 | L95: 32.5436516 | M95: 72.9189886 | AC95: 4 | AD95: º | AE95: 0203 | AF95: Carnes de suíno | AG95: 284.9660102 | AH95: 0.0378204818 | AN95: - | AO95: - | AP95: Outros | AQ95: 5562.256822 | AR95: 5335.587021 | AS95: 6095.566942 | AT95: 7699.656135 | AU95: 8135.276182 | AV95: 6565.66862
I96: 4818 | J96: Papel para toucador, etc., pasta de celulose, etc. | K96: 139.7160436 | L96: 72.1401594 | M96: 67.5758842 | AC96: 5 | AD96: º | AE96: 2309 | AF96: Preparações p/ alimentação animal | AG96: 215.6930486 | AH96: 0.02862662468 | AP96: Total | AQ96: 6368.376895 | AR96: 6104.930576 | AS96: 6978.855206 | AT96: 8798.283131 | AU96: 9423.057622 | AV96: 7534.700686
I97: 0805 | J97: Citrinos, frescos ou secos | K97: 112.5914084 | L97: 53.575945 | M97: 59.0154634 | AC97: 6 | AD97: º | AE97: 4805 | AF97: Papéis e cartões, não revestidos | AG97: 206.2103416 | AH97: 0.0273680867
I98: 4503 | J98: Obras de cortiça natural | K98: 54.1650554 | L98: 5.1514514 | M98: 49.013604 | AC98: 7 | AD98: º | AE98: 0302 | AF98: Peixes frescos ou refrigerados | AG98: 192.5453402 | AH98: 0.02555447764
I99: 4504 | J99: Cortiça aglomerada e suas obras | K99: 60.6288784 | L99: 18.3891742 | M99: 42.2397042 | AC99: 8 | AD99: º | AE99: 0307 | AF99: Moluscos | AG99: 185.4123174 | AH99: 0.02460778804
I100: 1212 | J100: Alfarroba, algas, beterraba sacarina, etc. | K100: 44.754816 | L100: 2.7506646 | M100: 42.0041514 | AC100: 9 | AD100: º | AE100: 0303 | AF100: Peixes congelados | AG100: 179.475951 | AH100: 0.0238199178
I101: 1507 | J101: Óleo de soja e suas frações | K101: 34.5232004 | L101: 3.922869 | M101: 30.6003314 | AC101: 10 | AD101: º | AE101: 0103 | AF101: Suínos vivos | AG101: 141.8848034 | AH101: 0.01883084801 | AI101: 0.3152374563
I102: - | J102: Outros | K102: 3154.014431 | L102: 5371.381149 | M102: -2217.366718 | AE102: - | AF102: Outros | AG102: 5159.480808 | AH102: 0.6847625437
I103: 1518 | J103: Gorduras e óleos, animais ou vegetais, processados de outras formas | K103: 19.3102018 | L103: 113.6641264 | M103: -94.3539246 | AE103: Total | AG103: 7534.700686 | AH103: 1
I104: 0207 | J104: Carnes e miudezas de aves de capoeira | K104: 21.0304118 | L104: 116.6328806 | M104: -95.6024688
I105: 4403 | J105: Madeira em bruto | K105: 27.222537 | L105: 130.3594866 | M105: -103.1369496
I106: 4811 | J106: Papel, cartão, pasta de celulose, etc. | K106: 6.0562282 | L106: 118.3161844 | M106: -112.2599562
I107: 2204 | J107: Vinhos de uvas frescas | K107: 19.0825426 | L107: 132.9348876 | M107: -113.852345
I108: 2309 | J108: Preparações p/ alimentação animal | K108: 66.9067278 | L108: 215.6930486 | M108: -148.7863208
I109: 4805 | J109: Papéis e cartões, não revestidos | K109: 45.3410322 | L109: 206.2103416 | M109: -160.8693094
I110: 1905 | J110: Produtos de padaria, pastelaria, etc. | K110: 104.726415 | L110: 298.7975234 | M110: -194.0711084
I111: 0203 | J111: Carnes de suíno | K111: 29.2273798 | L111: 284.9660102 | M111: -255.7386304
I112: 0201 | J112: Carnes de bovino, frescas ou refrigeradas | K112: 30.0338652 | L112: 305.78521 | M112: -275.7513448
I113: Total | K113: 4589.47765 | L113: 7534.700686 | M113: -2945.223036
A116: Fonte: GPP a partir de dados INE/Comércio Internacional (2022 definitivos) | Y116: 2024-05-08T11:46:17.880

Sheet 3A
A1: Principais produtos agrícolas e agroalimentares transacionados entre Portugal e Espanha em 2019-2023 (NC a 2 e 4 dígitos) em milhões de euros
AC4: P | AE4: Cód.NC | AF4: Descritivo | AG4: Média export quinquénio | AH4: % do total | AI4: % acumulada | AN4: P | AO4: NC | AP4: Exportações | AQ4: 2019 | AR4: 2020 | AS4: 2021 | AT4: 2022 | AU4: 2023 | AV4: média quinquénio
AC5: 1 | AD5: º | AE5: 15 | AF5: Gorduras e óleos animais ou vegetais | AG5: 495.9971414 | AH5: 0.1799638394 | AN5: 1º | AO5: 15 | AP5: Gorduras e óleos animais ou vegetais | AQ5: 240.090797 | AR5: 284.799966 | AS5: 459.856761 | AT5: 730.822817 | AU5: 764.415366 | AV5: 495.9971414
AC6: 2 | AD6: º | AE6: 08 | AF6: Frutas | AG6: 373.884873 | AH6: 0.1356575504 | AN6: 2º | AO6: 08 | AP6: Frutas | AQ6: 267.848484 | AR6: 337.095346 | AS6: 359.761809 | AT6: 440.382514 | AU6: 464.336212 | AV6: 373.884873
AC7: 3 | AD7: º | AE7: 24 | AF7: Tabaco | AG7: 275.547601 | AH7: 0.0999776008 | AI7: 0.4155989906 | AN7: 3º | AO7: 24 | AP7: Tabaco | AQ7: 280.476981 | AR7: 275.90606 | AS7: 271.664861 | AT7: 273.113766 | AU7: 276.576337 | AV7: 275.547601
AC8: 4 | AD8: º | AE8: 04 | AF8: Leite e laticínios; ovos; mel, etc. | AG8: 186.3804542 | AH8: 0.06762486982 | AO8: - | AP8: Outros | AQ8: 1217.413006 | AR8: 1277.001059 | AS8: 1466.153457 | AT8: 1874.872964 | AU8: 2217.878201 | AV8: 1610.663737
AC9: 5 | AD9: º | AE9: 22 | AF9: Bebidas, líquidos alcoólicos e vinagres | AG9: 180.7248696 | AH9: 0.06557284042 | AP9: Total | AQ9: 2005.829268 | AR9: 2174.802431 | AS9: 2557.436888 | AT9: 3319.192061 | AU9: 3723.206116 | AV9: 2756.093353
AC10: 6 | AD10: º | AE10: 07 | AF10: Produtos hortícolas | AG10: 158.7239168 | AH10: 0.05759018164
AC11: 7 | AD11: º | AE11: 19a | AF11: Preparações à base de cereais (exc. NC 19022010) (a) | AG11: 147.744926 | AH11: 0.05360664792
AC12: 8 | AD12: º | AE12: 23a | AF12: Resíduos indústrias alimentares; alimentos p/ animais (exc. NC 230120) (a) | AG12: 129.619595 | AH12: 0.04703019035
AC13: 9 | AD13: º | AE13: 01 | AF13: Animais vivos | AG13: 112.2166908 | AH13: 0.04071585263
AC14: 10 | AD14: º | AE14: 17 | AF14: Açúcares e produtos de confeitaria | AG14: 112.146503 | AH14: 0.04069038623 | AI14: 0.7884299596
AE15: - | AF15: Outros | AG15: 583.106782 | AH15: 0.2115700404
AE16: Total | AG16: 2756.093353 | AH16: 1
AC38: P | AE38: Cód.NC | AF38: Descritivo | AG38: Média import quinquénio | AH38: % do total | AI38: % acumulada | AN38: P | AO38: NC | AP38: Importações | AQ38: 2019 | AR38: 2020 | AS38: 2021 | AT38: 2022 | AU38: 2023 | AV38: média quinquénio
AC39: 1 | AD39: º | AE39: 02 | AF39: Carnes e miudezas | AG39: 855.5447542 | AH39: 0.1639589403 | AN39: 1º | AO39: 02 | AP39: Carnes e miudezas | AQ39: 796.742517 | AR39: 689.780047 | AS39: 744.773988 | AT39: 983.345327 | AU39: 1063.081892 | AV39: 855.5447542
AC40: 2 | AD40: º | AE40: 15 | AF40: Gorduras e óleos animais ou vegetais | AG40: 687.621819 | AH40: 0.131777729 | AN40: 2º | AO40: 15 | AP40: Gorduras e óleos animais ou vegetais | AQ40: 524.424095 | AR40: 476.950971 | AS40: 655.803241 | AT40: 888.659357 | AU40: 892.271431 | AV40: 687.621819
AC41: 3 | AD41: º | AE41: 08 | AF41: Frutas | AG41: 449.7014948 | AH41: 0.08618202632 | AI41: 0.3819186956 | AN41: 3º | AO41: 08 | AP41: Frutas | AQ41: 397.487768 | AR41: 435.114764 | AS41: 440.386199 | AT41: 459.789407 | AU41: 515.729336 | AV41: 449.7014948
AC42: 4 | AD42: º | AE42: 19a | AF42: Preparações à base de cereais (exc. NC 19022010) (a) | AG42: 415.4988464 | AH42: 0.07962733709 | AO42: - | AP42: Outros | AQ42: 2617.582793 | AR42: 2623.411174 | AS42: 2894.026701 | AT42: 3685.417017 | AU42: 4305.43556 | AV42: 3225.174649
AC43: 5 | AD43: º | AE43: 04 | AF43: Leite e laticínios; ovos; mel, etc. | AG43: 365.7855582 | AH43: 0.07010014636 | AP43: Total | AQ43: 4336.237173 | AR43: 4225.256956 | AS43: 4734.990129 | AT43: 6017.211108 | AU43: 6776.518219 | AV43: 5218.042717
AC44: 6 | AD44: º | AE44: 22 | AF44: Bebidas, líquidos alcoólicos e vinagres | AG44: 348.7265948 | AH44: 0.06683091989
AC45: 7 | AD45: º | AE45: 07 | AF45: Produtos hortícolas | AG45: 322.7274764 | AH45: 0.06184837762
AC46: 8 | AD46: º | AE46: 23a | AF46: Resíduos indústrias alimentares; alimentos p/ animais (exc. NC 230120) (a) | AG46: 253.2699426 | AH46: 0.04853734558
AC47: 9 | AD47: º | AE47: 20 | AF47: Preparações de produtos vegetais | AG47: 246.74222 | AH47: 0.04728635494
AC48: 10 | AD48: º | AE48: 21 | AF48: Preparações alimentícias diversas | AG48: 240.5388504 | AH48: 0.0460975242 | AI48: 0.8022467013
AE49: - | AF49: Outros | AG49: 1031.88516 | AH49: 0.1977532987
AE50: Total | AG50: 5218.042717 | AH50: 1
AC62: DESAGREGAÇÃO A 4 DÍGITOS | AN62: DESAGREGAÇÃO A 4 DÍGITOS
AC64: P | AE64: Cód.NC | AF64: Descritivo | AG64: Média export quinquénio | AH64: % do total | AI64: % acumulada | AN64: P | AO64: NC | AP64: Exportações | AQ64: 2019 | AR64: 2020 | AS64: 2021 | AT64: 2022 | AU64: 2023 | AV64: média quinquénio
AC65: 1 | AD65: º | AE65: 1509 | AF65: Azeite (processos mecânicos ou físicos) | AG65: 304.871185 | AH65: 0.1106171475 | AN65: 1º | AO65: 1509 | AP65: Azeite (processos mecânicos ou físicos) | AQ65: 163.007234 | AR65: 170.890027 | AS65: 268.279089 | AT65: 404.788576 | AU65: 517.390999 | AV65: 304.871185
AC66: 2 | AD66: º | AE66: 2402 | AF66: Charutos, cigarrilhas e cigarros | AG66: 265.4483426 | AH66: 0.09631326251 | AN66: 2º | AO66: 2402 | AP66: Charutos, cigarrilhas e cigarros | AQ66: 269.479649 | AR66: 265.046721 | AS66: 262.484784 | AT66: 262.706001 | AU66: 267.524558 | AV66: 265.4483426
AC67: 3 | AD67: º | AE67: 0805 | AF67: Citrinos, frescos ou secos | AG67: 112.5914084 | AH67: 0.04085181233 | AI67: 0.2477822224 | AN67: 3º | AO67: 0805 | AP67: Citrinos, frescos ou secos | AQ67: 74.605993 | AR67: 126.726086 | AS67: 95.150267 | AT67: 136.298439 | AU67: 130.176257 | AV67: 112.5914084
AC68: 4 | AD68: º | AE68: 1701 | AF68: Açúcares (cana/beterraba); sacarose pura | AG68: 105.4626402 | AH68: 0.03826526416 | AN68: - | AO68: - | AP68: Outros | AQ68: 1498.736392 | AR68: 1612.139597 | AS68: 1931.522748 | AT68: 2515.399045 | AU68: 2808.114302 | AV68: 2073.182417
AC69: 5 | AD69: º | AE69: 1905 | AF69: Produtos de padaria, pastelaria, etc. | AG69: 104.726415 | AH69: 0.0379981378 | AP69: Total | AQ69: 2005.829268 | AR69: 2174.802431 | AS69: 2557.436888 | AT69: 3319.192061 | AU69: 3723.206116 | AV69: 2756.093353
AC70: 6 | AD70: º | AE70: 0810 | AF70: Outras frutas frescas | AG70: 85.9832916 | AH70: 0.03119752512
AC71: 7 | AD71: º | AE71: 2202 | AF71: Águas com açúcar ou outros produtos; outras bebidas | AG71: 73.2036798 | AH71: 0.02656066774
AC72: 8 | AD72: º | AE72: 2309 | AF72: Preparações p/ alimentação animal | AG72: 66.9067278 | AH72: 0.02427592945
AC73: 9 | AD73: º | AE73: 0702 | AF73: Tomates, frescos ou refrigerados | AG73: 63.6484026 | AH73: 0.02309370346
AC74: 10 | AD74: º | AE74: 0103 | AF74: Suínos vivos | AG74: 63.4374032 | AH74: 0.02301714604 | AI74: 0.4521905961
AE75: - | AF75: Outros | AG75: 1509.813857 | AH75: 0.5478094039
AE76: Total | AG76: 2756.093353 | AH76: 1
AC89: DESAGREGAÇÃO A 4 DÍGITOS | AN89: DESAGREGAÇÃO A 4 DÍGITOS
G91: média 2019-2023 em milhões de euros | I91: Cód. NC | J91: Descritivo | K91: Export | L91: Import | M91: Saldo | AC91: P | AE91: Cód.NC | AF91: Descritivo | AG91: Média import quinquénio | AH91: % do total | AI91: % acumulada | AN91: P | AO91: NC | AP91: Importações | AQ91: 2019 | AR91: 2020 | AS91: 2021 | AT91: 2022 | AU91: 2023 | AV91: média quinquénio
I92: 2402 | J92: Charutos, cigarrilhas e cigarros | K92: 265.4483426 | L92: 6.2633968 | M92: 259.1849458 | AC92: 1 | AD92: º | AE92: 1509 | AF92: Azeite (processos mecânicos ou físicos) | AG92: 364.4493322 | AH92: 0.06984406835 | AN92: 1º | AO92: 1509 | AP92: Azeite (processos mecânicos ou físicos) | AQ92: 286.911488 | AR92: 292.560149 | AS92: 364.194282 | AT92: 410.581985 | AU92: 467.998757 | AV92: 364.4493322
I93: 1701 | J93: Açúcares (cana/beterraba); sacarose pura | K93: 105.4626402 | L93: 32.5436516 | M93: 72.9189886 | AC93: 2 | AD93: º | AE93: 0201 | AF93: Carnes de bovino, frescas ou refrigeradas | AG93: 305.78521 | AH93: 0.05860151528 | AN93: 2º | AO93: 0201 | AP93: Carnes de bovino, frescas ou refrigeradas | AQ93: 280.283335 | AR93: 239.468109 | AS93: 260.599842 | AT93: 358.662888 | AU93: 389.911876 | AV93: 305.78521
I94: 0805 | J94: Citrinos, frescos ou secos | K94: 112.5914084 | L94: 53.575945 | M94: 59.0154634 | AC94: 3 | AD94: º | AE94: 1905 | AF94: Produtos de padaria, pastelaria, etc. | AG94: 298.7975234 | AH94: 0.05726237588 | AI94: 0.1857079595 | AN94: 3º | AO94: 1905 | AP94: Produtos de padaria, pastelaria, etc. | AQ94: 238.92525 | AR94: 237.315297 | AS94: 258.49414 | AT94: 329.382123 | AU94: 429.870807 | AV94: 298.7975234
I95: 1212 | J95: Alfarroba, algas, beterraba sacarina, etc. | K95: 44.754816 | L95: 2.7506646 | M95: 42.0041514 | AC95: 4 | AD95: º | AE95: 0203 | AF95: Carnes de suíno | AG95: 284.9660102 | AH95: 0.0546116668 | AN95: - | AO95: - | AP95: Outros | AQ95: 3530.1171 | AR95: 3455.913401 | AS95: 3851.701865 | AT95: 4918.584112 | AU95: 5488.736779 | AV95: 4249.010651
I96: 1507 | J96: Óleo de soja e suas frações | K96: 34.5232004 | L96: 3.922869 | M96: 30.6003314 | AC96: 5 | AD96: º | AE96: 2309 | AF96: Preparações p/ alimentação animal | AG96: 215.6930486 | AH96: 0.04133600668 | AP96: Total | AQ96: 4336.237173 | AR96: 4225.256956 | AS96: 4734.990129 | AT96: 6017.211108 | AU96: 6776.518219 | AV96: 5218.042717
I97: 0802 | J97: Frutas de casca rija | K97: 59.3384326 | L97: 32.44757 | M97: 26.8908626 | AC97: 6 | AD97: º | AE97: 0103 | AF97: Suínos vivos | AG97: 141.8848034 | AH97: 0.02719119239
I98: 0702 | J98: Tomates, frescos ou refrigerados | K98: 63.6484026 | L98: 36.8152944 | M98: 26.8331082 | AC98: 7 | AD98: º | AE98: 2204 | AF98: Vinhos de uvas frescas | AG98: 132.9348876 | AH98: 0.02547600601
I99: 0810 | J99: Outras frutas frescas | K99: 85.9832916 | L99: 63.3935634 | M99: 22.5897282 | AC99: 8 | AD99: º | AE99: 0403 | AF99: Leitelho, leite coalhado, iogurte, etc. | AG99: 125.568384 | AH99: 0.02406426908
I100: 1005 | J100: Milho | K100: 40.749336 | L100: 21.7939264 | M100: 18.9554096 | AC100: 9 | AD100: º | AE100: 2202 | AF100: Águas com açúcar ou outros produtos; outras bebidas | AG100: 117.6705488 | AH100: 0.02255070631
I101: 2304 | J101: Bagaços e outros resíduos sólidos de soja | K101: 25.0710662 | L101: 10.2649458 | M101: 14.8061204 | AC101: 10 | AD101: º | AE101: 0207 | AF101: Carnes e miudezas de aves de capoeira | AG101: 116.6328806 | AH101: 0.02235184473 | AI101: 0.4032896515
I102: - | J102: Outros | K102: 1573.020617 | L102: 3161.330602 | M102: -1588.309985 | AE102: - | AF102: Outros | AG102: 3113.660088 | AH102: 0.5967103485
I103: 1602 | J103: Outras preparações e conservas de carnes, miudezas ou sangue | K103: 7.1939508 | L103: 89.5659602 | M103: -82.3720094 | AE103: Total | AG103: 5218.042717 | AH103: 1
I104: 0403 | J104: Leitelho, leite coalhado, iogurte, etc. | K104: 32.7028632 | L104: 125.568384 | M104: -92.8655208
I105: 0406 | J105: Queijos e requeijão | K105: 15.287441 | L105: 109.3322572 | M105: -94.0448162
I106: 1518 | J106: Gorduras e óleos, animais ou vegetais, processados de outras formas | K106: 19.3102018 | L106: 113.6641264 | M106: -94.3539246
I107: 0207 | J107: Carnes e miudezas de aves de capoeira | K107: 21.0304118 | L107: 116.6328806 | M107: -95.6024688
I108: 2204 | J108: Vinhos de uvas frescas | K108: 19.0825426 | L108: 132.9348876 | M108: -113.852345
I109: 2309 | J109: Preparações p/ alimentação animal | K109: 66.9067278 | L109: 215.6930486 | M109: -148.7863208
I110: 1905 | J110: Produtos de padaria, pastelaria, etc. | K110: 104.726415 | L110: 298.7975234 | M110: -194.0711084
I111: 0203 | J111: Carnes de suíno | K111: 29.2273798 | L111: 284.9660102 | M111: -255.7386304
I112: 0201 | J112: Carnes de bovino, frescas ou refrigeradas | K112: 30.0338652 | L112: 305.78521 | M112: -275.7513448
I113: Total | K113: 2756.093353 | L113: 5218.042717 | M113: -2461.949364
A116: Fonte: GPP a partir de dados INE/Comércio Internacional (2022 definitivos) | Y116: 2024-05-08T11:46:17.880

Sheet 4A
A1: Evolução da balança comercial Portugal-Espanha 2019-2023 por produto em euros (NC 2 dígitos)
A3: =+aux!A31 -> Evolução da balança comercial Portugal-Espanha para Gorduras e óleos animais ou vegetais
A5: Selecione o produto:
Q7: Para obter uma maior desagregação deste produto, clique no botão respetivo:
A20: =+aux!A43 -> Evolução da balança comercial Portugal-Espanha para Carnes e miudezas
A22: Selecione o produto:
A38: Fonte: GPP a partir de dados INE/Comércio Internacional (2022 definitivos) | N38: 2024-05-08T11:46:17.880

Sheet 5.2
A1: Trocas comerciais Portugal-Espanha 2019-2023 em milhares de euros (NC 2 dígitos) | C1: Produtos agrícolas e agroalimentares, do mar e da floresta
A2: Cód. NC | B2: Descritivo | C2: Importações | K2: Exportações | S2: Saldo quinquénio (exp-imp) | T2: Evolução das importações | U2: =+"Variação das Importações " & INDEX(K3:N3,1,aux!AL1) & "-"& '5.2'!O3 &"" -> Variação das Importações 2019-2023 | Z2: Evolução das exportações | AA2: ="Variação das Exportações " & INDEX(K3:N3,1,aux!AL1) & "-"& '5.2'!O3 &"" -> Variação das Exportações 2019-2023
C3: 2019 | D3: 2020 | E3: 2021 | F3: 2022 | G3: 2023 | H3: média quinquénio | I3: % Subtot | J3: % Total | K3: 2019 | L3: 2020 | M3: 2021 | N3: 2022 | O3: 2023 | P3: média quinquénio | Q3: % Subtot | R3: % Total | U3: variação total em valor | V3: % no subtotal de variação | W3: % no total de variação | X3: taxa de variação média anual | Y3: taxa de variação total | AA3: variação total em valor | AB3: % no subtotal de variação | AC3: % no total de variação | AD3: taxa de variação média anual | AE3: taxa de variação total
A4: 01 | B4: Animais vivos | C4: 180765.239 | D4: 174172.861 | E4: 153158.297 | F4: 201792.647 | G4: 232366.684 | H4: 188451.1456 | I4: 0.03611529376 | J4: 0.02501109911 | K4: 84006.341 | L4: 107532.487 | M4: 92764.442 | N4: 112679.817 | O4: 164100.367 | P4: 112216.6908 | Q4: 0.04071585263 | R4: 0.02445086333 | S4: -76234.4548 | U4: =G4-INDEX($C4:$G4,1,aux!$AL$1) -> 51601.445 | V4: =IF($U$37<>0,U4/$U$37, "n.d.") -> 0.02114569758 | W4: =IF($U$53<>0,U4/$U$53, "n.d.") -> 0.01689258211 | X4: =+IF(INDEX($C4:$G4,1,aux!$AL$1)>0,(G4/INDEX($C4:$G4,1,aux!$AL$1))^(1/($G$3-INDEX($C$3:$G$3,1,aux!$AL$1)))-1,"n.d.") -> 0.06479189124 | Y4: =IF(INDEX($C4:$G4,1,aux!$AL$1)>0,(G4-INDEX($C4:$G4,1,aux!$AL$1))/INDEX($C4:$G4,1,aux!$AL$1),"n.d.") -> 0.2854611057 | AA4: =O4-INDEX($K4:$O4,1,aux!$AL$1) -> 80094.026 | AB4: =IF($AA$37<>0,AA4/$AA$37, "n.d.") -> 0.04663742037 | AC4: =IF($AA$53<>0,AA4/$AA$53, "n.d.") -> 0.0362996405 | AD4: =+IF(INDEX($K4:$O4,1,aux!$AL$1)>0,(O4/INDEX($K4:$O4,1,aux!$AL$1))^(1/($O$3-INDEX($K$3:$O$3,1,aux!$AL$1)))-1,"n.d.") -> 0.1822229091 | AE4: =IF(INDEX($K4:$O4,1,aux!$AL$1)>0,(O4-INDEX($K4:$O4,1,aux!$AL$1))/INDEX($K4:$O4,1,aux!$AL$1),"n.d.") -> 0.953428337
A5: 02 | B5: Carnes e miudezas | C5: 796742.517 | D5: 689780.047 | E5: 744773.988 | F5: 983345.327 | G5: 1063081.892 | H5: 855544.7542 | I5: 0.1639589403 | J5: 0.1135472781 | K5: 77694.977 | L5: 73766.867 | M5: 91625.958 | N5: 115057.352 | O5: 131213.633 | P5: 97871.7574 | Q5: 0.03551104584 | R5: 0.02132524981 | S5: -757672.9968 | U5: =G5-INDEX($C5:$G5,1,aux!$AL$1) -> 266339.375 | V5: 0.1091429102 | W5: 0.08719057695 | X5: =+IF(INDEX($C5:$G5,1,aux!$AL$1)>0,(G5/INDEX($C5:$G5,1,aux!$AL$1))^(1/($G$3-INDEX($C$3:$G$3,1,aux!$AL$1)))-1,"n.d.") -> 0.0747617006 | Y5: =IF(INDEX($C5:$G5,1,aux!$AL$1)>0,(G5-INDEX($C5:$G5,1,aux!$AL$1))/INDEX($C5:$G5,1,aux!$AL$1),"n.d.") -> 0.3342853799 | AA5: =O5-INDEX($K5:$O5,1,aux!$AL$1) -> 53518.656 | AB5: 0.03116302404 | AC5: 0.02425534175 | AD5: =+IF(INDEX($K5:$O5,1,aux!$AL$1)>0,(O5/INDEX($K5:$O5,1,aux!$AL$1))^(1/($O$3-INDEX($K$3:$O$3,1,aux!$AL$1)))-1,"n.d.") -> 0.1399780901 | AE5: =IF(INDEX($K5:$O5,1,aux!$AL$1)>0,(O5-INDEX($K5:$O5,1,aux!$AL$1))/INDEX($K5:$O5,1,aux!$AL$1),"n.d.") -> 0.6888303217
A6: 04 | B6: Leite e laticínios; ovos; mel, etc. | C6: 312685.359 | D6: 293976.848 | E6: 316904.886 | F6: 410067.781 | G6: 495292.917 | H6: 365785.5582 | I6: 0.07010014636 | J6: 0.04854679349 | K6: 138614.767 | L6: 139318.912 | M6: 171433.715 | N6: 232820.695 | O6: 249714.182 | P6: 186380.4542 | Q6: 0.06762486982 | R6: 0.04061038497 | S6: -179405.104 | U6: =G6-INDEX($C6:$G6,1,aux!$AL$1) -> 182607.558 | V6: 0.07483054392 | W6: 0.05977958887 | X6: =+IF(INDEX($C6:$G6,1,aux!$AL$1)>0,(G6/INDEX($C6:$G6,1,aux!$AL$1))^(1/($G$3-INDEX($C$3:$G$3,1,aux!$AL$1)))-1,"n.d.") -> 0.1218599463 | Y6: =IF(INDEX($C6:$G6,1,aux!$AL$1)>0,(G6-INDEX($C6:$G6,1,aux!$AL$1))/INDEX($C6:$G6,1,aux!$AL$1),"n.d.") -> 0.583997788 | AA6: =O6-INDEX($K6:$O6,1,aux!$AL$1) -> 111099.415 | AB6: 0.06469134315 | AC6: 0.05035168072 | AD6: =+IF(INDEX($K6:$O6,1,aux!$AL$1)>0,(O6/INDEX($K6:$O6,1,aux!$AL$1))^(1/($O$3-INDEX($K$3:$O$3,1,aux!$AL$1)))-1,"n.d.") -> 0.1585330488 | AE6: =IF(INDEX($K6:$O6,1,aux!$AL$1)>0,(O6-INDEX($K6:$O6,1,aux!$AL$1))/INDEX($K6:$O6,1,aux!$AL$1),"n.d.") -> 0.801497686
A7: 05a | B7: Outros produtos de origem animal (exc. NC 0508, 051191) (a) | C7: 11853.207 | D7: 13497.047 | E7: 14141.794 | F7: 20174.252 | G7: 21170.323 | H7: 16167.3246 | I7: 0.003098350373 | J7: 0.002145715573 | K7: 9192.931 | L7: 10103.105 | M7: 11220.497 | N7: 14319.025 | O7: 11366.023 | P7: 11240.3162 | Q7: 0.004078351043 | R7: 0.002449149349 | S7: -4927.0084 | U7: =G7-INDEX($C7:$G7,1,aux!$AL$1) -> 9317.116 | V7: 0.00381805039 | W7: 0.003050111233 | X7: =+IF(INDEX($C7:$G7,1,aux!$AL$1)>0,(G7/INDEX($C7:$G7,1,aux!$AL$1))^(1/($G$3-INDEX($C$3:$G$3,1,aux!$AL$1)))-1,"n.d.") -> 0.1560401132 | Y7: =IF(INDEX($C7:$G7,1,aux!$AL$1)>0,(G7-INDEX($C7:$G7,1,aux!$AL$1))/INDEX($C7:$G7,1,aux!$AL$1),"n.d.") -> 0.786041786 | AA7: =O7-INDEX($K7:$O7,1,aux!$AL$1) -> 2173.092 | AB7: 0.00126535536 | AC7: 0.0009848731837 | AD7: =+IF(INDEX($K7:$O7,1,aux!$AL$1)>0,(O7/INDEX($K7:$O7,1,aux!$AL$1))^(1/($O$3-INDEX($K$3:$O$3,1,aux!$AL$1)))-1,"n.d.") -> 0.05448069322 | AE7: =IF(INDEX($K7:$O7,1,aux!$AL$1)>0,(O7-INDEX($K7:$O7,1,aux!$AL$1))/INDEX($K7:$O7,1,aux!$AL$1),"n.d.") -> 0.236387285
A8: 06 | B8: Plantas vivas e produtos de floricultura | C8: 49866.133 | D8: 56072.84 | E8: 63808.402 | F8: 88086.476 | G8: 70788.775 | H8: 65724.5252 | I8: 0.01259562805 | J8: 0.008722911226 | K8: 16676.29 | L8: 26816.717 | M8: 25587.467 | N8: 24629.919 | O8: 21762.433 | P8: 23094.5652 | Q8: 0.008379456805 | R8: 0.005032068344 | S8: -42629.96 | U8: =G8-INDEX($C8:$G8,1,aux!$AL$1) -> 20922.642 | V8: 0.008573865717 | W8: 0.006849371136 | X8: =+IF(INDEX($C8:$G8,1,aux!$AL$1)>0,(G8/INDEX($C8:$G8,1,aux!$AL$1))^(1/($G$3-INDEX($C$3:$G$3,1,aux!$AL$1)))-1,"n.d.") -> 0.09154005332 | Y8: =IF(INDEX($C8:$G8,1,aux!$AL$1)>0,(G8-INDEX($C8:$G8,1,aux!$AL$1))/INDEX($C8:$G8,1,aux!$AL$1),"n.d.") -> 0.4195761881 | AA8: =O8-INDEX($K8:$O8,1,aux!$AL$1) -> 5086.143 | AB8: 0.00296157655 | AC8: 0.002305105283 | AD8: =+IF(INDEX($K8:$O8,1,aux!$AL$1)>0,(O8/INDEX($K8:$O8,1,aux!$AL$1))^(1/($O$3-INDEX($K$3:$O$3,1,aux!$AL$1)))-1,"n.d.") -> 0.06881367567 | AE8: =IF(INDEX($K8:$O8,1,aux!$AL$1)>0,(O8-INDEX($K8:$O8,1,aux!$AL$1))/INDEX($K8:$O8,1,aux!$AL$1),"n.d.") -> 0.3049924773
A9: 07 | B9: Produtos hortícolas | C9: 256812.47 | D9: 265514.48 | E9: 277516.48 | F9: 342343.233 | G9: 471450.719 | H9: 322727.4764 | I9: 0.06184837762 | J9: 0.04283215616 | K9: 123245.702 | L9: 111505.193 | M9: 134149.038 | N9: 171885.647 | O9: 252834.004 | P9: 158723.9168 | Q9: 0.05759018164 | R9: 0.03458430978 | S9: -164003.5596 | U9: =G9-INDEX($C9:$G9,1,aux!$AL$1) -> 214638.249 | V9: 0.08795636443 | W9: 0.07026536263 | X9: =+IF(INDEX($C9:$G9,1,aux!$AL$1)>0,(G9/INDEX($C9:$G9,1,aux!$AL$1))^(1/($G$3-INDEX($C$3:$G$3,1,aux!$AL$1)))-1,"n.d.") -> 0.1640055435 | Y9: =IF(INDEX($C9:$G9,1,aux!$AL$1)>0,(G9-INDEX($C9:$G9,1,aux!$AL$1))/INDEX($C9:$G9,1,aux!$AL$1),"n.d.") -> 0.8357781419 | AA9: =O9-INDEX($K9:$O9,1,aux!$AL$1) -> 129588.302 | AB9: 0.07545711481 | AC9: 0.05873108159 | AD9: =+IF(INDEX($K9:$O9,1,aux!$AL$1)>0,(O9/INDEX($K9:$O9,1,aux!$AL$1))^(1/($O$3-INDEX($K$3:$O$3,1,aux!$AL$1)))-1,"n.d.") -> 0.1967844147 | AE9: =IF(INDEX($K9:$O9,1,aux!$AL$1)>0,(O9-INDEX($K9:$O9,1,aux!$AL$1))/INDEX($K9:$O9,1,aux!$AL$1),"n.d.") -> 1.051463052
A10: 08 | B10: Frutas | C10: 397487.768 | D10: 435114.764 | E10: 440386.199 | F10: 459789.407 | G10: 515729.336 | H10: 449701.4948 | I10: 0.08618202632 | J10: 0.05968405562 | K10: 267848.484 | L10: 337095.346 | M10: 359761.809 | N10: 440382.514 | O10: 464336.212 | P10: 373884.873 | Q10: 0.1356575504 | R10: 0.08146567027 | S10: -75816.6218 | U10: =G10-INDEX($C10:$G10,1,aux!$AL$1) -> 118241.568 | V10: 0.04845407794 | W10: 0.03870832292 | X10: =+IF(INDEX($C10:$G10,1,aux!$AL$1)>0,(G10/INDEX($C10:$G10,1,aux!$AL$1))^(1/($G$3-INDEX($C$3:$G$3,1,aux!$AL$1)))-1,"n.d.") -> 0.06727052803 | Y10: =IF(INDEX($C10:$G10,1,aux!$AL$1)>0,(G10-INDEX($C10:$G10,1,aux!$AL$1))/INDEX($C10:$G10,1,aux!$AL$1),"n.d.") -> 0.2974722181 | AA10: =O10-INDEX($K10:$O10,1,aux!$AL$1) -> 196487.728 | AB10: 0.1144115389 | AC10: 0.08905076004 | AD10: =+IF(INDEX($K10:$O10,1,aux!$AL$1)>0,(O10/INDEX($K10:$O10,1,aux!$AL$1))^(1/($O$3-INDEX($K$3:$O$3,1,aux!$AL$1)))-1,"n.d.") -> 0.1474554694 | AE10: =IF(INDEX($K10:$O10,1,aux!$AL$1)>0,(O10-INDEX($K10:$O10,1,aux!$AL$1))/INDEX($K10:$O10,1,aux!$AL$1),"n.d.") -> 0.7335778985
A11: 09 | B11: Café, chá, mate e especiarias | C11: 63010.02 | D11: 74716.097 | E11: 98414.902 | F11: 110337.295 | G11: 118764.15 | H11: 93048.4928 | I11: 0.01783206805 | J11: 0.01234932835 | K11: 30814.158 | L11: 27584.698 | M11: 36023.861 | N11: 37528.669 | O11: 41293.942 | P11: 34649.0656 | Q11: 0.01257180406 | R11: 0.0075496752 | S11: -58399.4272 | U11: =G11-INDEX($C11:$G11,1,aux!$AL$1) -> 55754.13 | V11: 0.02284742165 | W11: 0.01825203188 | X11: =+IF(INDEX($C11:$G11,1,aux!$AL$1)>0,(G11/INDEX($C11:$G11,1,aux!$AL$1))^(1/($G$3-INDEX($C$3:$G$3,1,aux!$AL$1)))-1,"n.d.") -> 0.1717067635 | Y11: =IF(INDEX($C11:$G11,1,aux!$AL$1)>0,(G11-INDEX($C11:$G11,1,aux!$AL$1))/INDEX($C11:$G11,1,aux!$AL$1),"n.d.") -> 0.8848454579 | AA11: =O11-INDEX($K11:$O11,1,aux!$AL$1) -> 10479.784 | AB11: 0.006102204075 | AC11: 0.004749572605 | AD11: =+IF(INDEX($K11:$O11,1,aux!$AL$1)>0,(O11/INDEX($K11:$O11,1,aux!$AL$1))^(1/($O$3-INDEX($K$3:$O$3,1,aux!$AL$1)))-1,"n.d.") -> 0.07592998151 | AE11: =IF(INDEX($K11:$O11,1,aux!$AL$1)>0,(O11-INDEX($K11:$O11,1,aux!$AL$1))/INDEX($K11:$O11,1,aux!$AL$1),"n.d.") -> 0.3400963934
A12: 10 | B12: Cereais | C12: 95859.352 | D12: 86111.456 | E12: 118503.287 | F12: 148291.572 | G12: 109166.035 | H12: 111586.3404 | I12: 0.02138471194 | J12: 0.01480965801 | K12: 51031.089 | L12: 39595.512 | M12: 33283.514 | N12: 98121.125 | O12: 118875.75 | P12: 68181.398 | Q12: 0.02473842112 | R12: 0.01485602572 | S12: -43404.9424 | U12: =G12-INDEX($C12:$G12,1,aux!$AL$1) -> 13306.683 | V12: 0.005452930523 | W12: 0.004356161638 | X12: =+IF(INDEX($C12:$G12,1,aux!$AL$1)>0,(G12/INDEX($C12:$G12,1,aux!$AL$1))^(1/($G$3-INDEX($C$3:$G$3,1,aux!$AL$1)))-1,"n.d.") -> 0.03303078017 | Y12: =IF(INDEX($C12:$G12,1,aux!$AL$1)>0,(G12-INDEX($C12:$G12,1,aux!$AL$1))/INDEX($C12:$G12,1,aux!$AL$1),"n.d.") -> 0.1388146563 | AA12: =O12-INDEX($K12:$O12,1,aux!$AL$1) -> 67844.661 | AB12: 0.03950481869 | AC12: 0.03074807108 | AD12: =+IF(INDEX($K12:$O12,1,aux!$AL$1)>0,(O12/INDEX($K12:$O12,1,aux!$AL$1))^(1/($O$3-INDEX($K$3:$O$3,1,aux!$AL$1)))-1,"n.d.") -> 0.235419945 | AE12: =IF(INDEX($K12:$O12,1,aux!$AL$1)>0,(O12-INDEX($K12:$O12,1,aux!$AL$1))/INDEX($K12:$O12,1,aux!$AL$1),"n.d.") -> 1.329477037
A13: 11 | B13: Produtos da indústria de moagem e outros | C13: 73263.634 | D13: 72590.448 | E13: 81592.839 | F13: 129270.017 | G13: 113197.318 | H13: 93982.8512 | I13: 0.01801113105 | J13: 0.01247333572 | K13: 25348.252 | L13: 25349.815 | M13: 25658.765 | N13: 53206.571 | O13: 58663.425 | P13: 37645.3656 | Q13: 0.01365895882 | R13: 0.008202538168 | S13: -56337.4856 | U13: =G13-INDEX($C13:$G13,1,aux!$AL$1) -> 39933.684 | V13: 0.01636437904 | W13: 0.01307294856 | X13: =+IF(INDEX($C13:$G13,1,aux!$AL$1)>0,(G13/INDEX($C13:$G13,1,aux!$AL$1))^(1/($G$3-INDEX($C$3:$G$3,1,aux!$AL$1)))-1,"n.d.") -> 0.1149025792 | Y13: =IF(INDEX($C13:$G13,1,aux!$AL$1)>0,(G13-INDEX($C13:$G13,1,aux!$AL$1))/INDEX($C13:$G13,1,aux!$AL$1),"n.d.") -> 0.545068294 | AA13: =O13-INDEX($K13:$O13,1,aux!$AL$1) -> 33315.173 | AB13: 0.01939887162 | AC13: 0.01509886397 | AD13: =+IF(INDEX($K13:$O13,1,aux!$AL$1)>0,(O13/INDEX($K13:$O13,1,aux!$AL$1))^(1/($O$3-INDEX($K$3:$O$3,1,aux!$AL$1)))-1,"n.d.") -> 0.2334025722 | AE13: =IF(INDEX($K13:$O13,1,aux!$AL$1)>0,(O13-INDEX($K13:$O13,1,aux!$AL$1))/INDEX($K13:$O13,1,aux!$AL$1),"n.d.") -> 1.314298635
A14: 12 | B14: Sementes e frutos oleaginosos | C14: 78337.978 | D14: 84776.999 | E14: 98676.673 | F14: 103512.008 | G14: 136872.506 | H14: 100435.2328 | I14: 0.01924768313 | J14: 0.01332969112 | K14: 51254.218 | L14: 63423.357 | M14: 77201.857 | N14: 113584.019 | O14: 65185.333 | P14: 74129.7568 | Q14: 0.02689667849 | R14: 0.01615211195 | S14: -26305.476 | U14: =G14-INDEX($C14:$G14,1,aux!$AL$1) -> 58534.528 | V14: 0.02398679779 | W14: 0.01916224091 | X14: =+IF(INDEX($C14:$G14,1,aux!$AL$1)>0,(G14/INDEX($C14:$G14,1,aux!$AL$1))^(1/($G$3-INDEX($C$3:$G$3,1,aux!$AL$1)))-1,"n.d.") -> 0.149703796 | Y14: =IF(INDEX($C14:$G14,1,aux!$AL$1)>0,(G14-INDEX($C14:$G14,1,aux!$AL$1))/INDEX($C14:$G14,1,aux!$AL$1),"n.d.") -> 0.7472049891 | AA14: =O14-INDEX($K14:$O14,1,aux!$AL$1) -> 13931.115 | AB14: 0.008111856764 | AC14: 0.006313760109 | AD14: =+IF(INDEX($K14:$O14,1,aux!$AL$1)>0,(O14/INDEX($K14:$O14,1,aux!$AL$1))^(1/($O$3-INDEX($K$3:$O$3,1,aux!$AL$1)))-1,"n.d.") -> 0.06195244505 | AE14: =IF(INDEX($K14:$O14,1,aux!$AL$1)>0,(O14-INDEX($K14:$O14,1,aux!$AL$1))/INDEX($K14:$O14,1,aux!$AL$1),"n.d.") -> 0.271804264
A15: 13a | B15: Sucos e extratos vegetais (exc. NC 1301) (a) | C15: 5384.595 | D15: 5035.69 | E15: 6512.085 | F15: 7351.05 | G15: 7236.997 | H15: 6304.0834 | I15: 0.001208131811 | J15: 0.000836673368 | K15: 2530.35 | L15: 3642.898 | M15: 867.929 | N15: 2265.177 | O15: 1110.131 | P15: 2083.297 | Q15: 0.0007558876763 | R15: 0.0004539289999 | S15: -4220.7864 | U15: =G15-INDEX($C15:$G15,1,aux!$AL$1) -> 1852.402 | V15: 0.000759093713 | W15: 0.0006064142755 | X15: =+IF(INDEX($C15:$G15,1,aux!$AL$1)>0,(G15/INDEX($C15:$G15,1,aux!$AL$1))^(1/($G$3-INDEX($C$3:$G$3,1,aux!$AL$1)))-1,"n.d.") -> 0.07671642279 | Y15: =IF(INDEX($C15:$G15,1,aux!$AL$1)>0,(G15-INDEX($C15:$G15,1,aux!$AL$1))/INDEX($C15:$G15,1,aux!$AL$1),"n.d.") -> 0.3440188166 | AA15: =O15-INDEX($K15:$O15,1,aux!$AL$1) -> -1420.219 | AB15: -0.0008269699231 | AC15: -0.0006436614778 | AD15: =+IF(INDEX($K15:$O15,1,aux!$AL$1)>0,(O15/INDEX($K15:$O15,1,aux!$AL$1))^(1/($O$3-INDEX($K$3:$O$3,1,aux!$AL$1)))-1,"n.d.") -> -0.1861424283 | AE15: =IF(INDEX($K15:$O15,1,aux!$AL$1)>0,(O15-INDEX($K15:$O15,1,aux!$AL$1))/INDEX($K15:$O15,1,aux!$AL$1),"n.d.") -> -0.5612737368
A16: 14 | B16: Matérias para entrançar e outros | C16: 2538.981 | D16: 2969.989 | E16: 4277.126 | F16: 5643.071 | G16: 3452.382 | H16: 3776.3098 | I16: 0.0007237023545 | J16: 0.0005011890926 | K16: 735.76 | L16: 643.969 | M16: 683.534 | N16: 601.407 | O16: 1109.732 | P16: 754.8804 | Q16: 0.0002738950766 | R16: 0.000164480679 | S16: -3021.4294 | U16: =G16-INDEX($C16:$G16,1,aux!$AL$1) -> 913.401 | V16: 0.000374301559 | W16: 0.0002990168471 | X16: =+IF(INDEX($C16:$G16,1,aux!$AL$1)>0,(G16/INDEX($C16:$G16,1,aux!$AL$1))^(1/($G$3-INDEX($C$3:$G$3,1,aux!$AL$1)))-1,"n.d.") -> 0.07985351971 | Y16: =IF(INDEX($C16:$G16,1,aux!$AL$1)>0,(G16-INDEX($C16:$G16,1,aux!$AL$1))/INDEX($C16:$G16,1,aux!$AL$1),"n.d.") -> 0.3597510182 | AA16: =O16-INDEX($K16:$O16,1,aux!$AL$1) -> 373.972 | AB16: 0.0002177576811 | AC16: 0.0001694889099 | AD16: =+IF(INDEX($K16:$O16,1,aux!$AL$1)>0,(O16/INDEX($K16:$O16,1,aux!$AL$1))^(1/($O$3-INDEX($K$3:$O$3,1,aux!$AL$1)))-1,"n.d.") -> 0.1082059664 | AE16: =IF(INDEX($K16:$O16,1,aux!$AL$1)>0,(O16-INDEX($K16:$O16,1,aux!$AL$1))/INDEX($K16:$O16,1,aux!$AL$1),"n.d.") -> 0.5082798739
A17: 15 | B17: Gorduras e óleos animais ou vegetais | C17: 524424.095 | D17: 476950.971 | E17: 655803.241 | F17: 888659.357 | G17: 892271.431 | H17: 687621.819 | I17: 0.131777729 | J17: 0.09126066816 | K17: 240090.797 | L17: 284799.966 | M17: 459856.761 | N17: 730822.817 | O17: 764415.366 | P17: 495997.1414 | Q17: 0.1799638394 | R17: 0.1080726782 | S17: -191624.6776 | U17: =G17-INDEX($C17:$G17,1,aux!$AL$1) -> 367847.336 | V17: 0.1507397423 | W17: 0.1204208783 | X17: =+IF(INDEX($C17:$G17,1,aux!$AL$1)>0,(G17/INDEX($C17:$G17,1,aux!$AL$1))^(1/($G$3-INDEX($C$3:$G$3,1,aux!$AL$1)))-1,"n.d.") -> 0.1420985696 | Y17: =IF(INDEX($C17:$G17,1,aux!$AL$1)>0,(G17-INDEX($C17:$G17,1,aux!$AL$1))/INDEX($C17:$G17,1,aux!$AL$1),"n.d.") -> 0.7014310355 | AA17: =O17-INDEX($K17:$O17,1,aux!$AL$1) -> 524324.569 | AB17: 0.3053054835 | AC17: 0.2376306238 | AD17: =+IF(INDEX($K17:$O17,1,aux!$AL$1)>0,(O17/INDEX($K17:$O17,1,aux!$AL$1))^(1/($O$3-INDEX($K$3:$O$3,1,aux!$AL$1)))-1,"n.d.") -> 0.3357908793 | AE17: =IF(INDEX($K17:$O17,1,aux!$AL$1)>0,(O17-INDEX($K17:$O17,1,aux!$AL$1))/INDEX($K17:$O17,1,aux!$AL$1),"n.d.") -> 2.183859505
A18: 16a | B18: Preparações de carnes (exc. NC 1604-05) (a) | C18: 87161.941 | D18: 95670.956 | E18: 108318.74 | F18: 145227.265 | G18: 161779.633 | H18: 119631.707 | I18: 0.02292654804 | J18: 0.01587743322 | K18: 7182.815 | L18: 5755.256 | M18: 8798.277 | N18: 12081.643 | O18: 10925.369 | P18: 8948.672 | Q18: 0.00324686825 | R18: 0.001949823636 | S18: -110683.035 | U18: =G18-INDEX($C18:$G18,1,aux!$AL$1) -> 74617.692 | V18: 0.03057749931 | W18: 0.02442732929 | X18: =+IF(INDEX($C18:$G18,1,aux!$AL$1)>0,(G18/INDEX($C18:$G18,1,aux!$AL$1))^(1/($G$3-INDEX($C$3:$G$3,1,aux!$AL$1)))-1,"n.d.") -> 0.1672106411 | Y18: =IF(INDEX($C18:$G18,1,aux!$AL$1)>0,(G18-INDEX($C18:$G18,1,aux!$AL$1))/INDEX($C18:$G18,1,aux!$AL$1),"n.d.") -> 0.8560811192 | AA18: =O18-INDEX($K18:$O18,1,aux!$AL$1) -> 3742.554 | AB18: 0.002179227002 | AC18: 0.001696173504 | AD18: =+IF(INDEX($K18:$O18,1,aux!$AL$1)>0,(O18/INDEX($K18:$O18,1,aux!$AL$1))^(1/($O$3-INDEX($K$3:$O$3,1,aux!$AL$1)))-1,"n.d.") -> 0.110542947 | AE18: =IF(INDEX($K18:$O18,1,aux!$AL$1)>0,(O18-INDEX($K18:$O18,1,aux!$AL$1))/INDEX($K18:$O18,1,aux!$AL$1),"n.d.") -> 0.5210427945
A19: 17 | B19: Açúcares e produtos de confeitaria | C19: 63055.202 | D19: 53475.3 | E19: 60871.84 | F19: 83322.731 | G19: 112299.713 | H19: 74604.9572 | I19: 0.01429749836 | J19: 0.009901515708 | K19: 65163.637 | L19: 70556.11 | M19: 85348.472 | N19: 133714.533 | O19: 205949.763 | P19: 112146.503 | Q19: 0.04069038623 | R19: 0.02443557013 | S19: 37541.5458 | U19: =G19-INDEX($C19:$G19,1,aux!$AL$1) -> 49244.511 | V19: 0.02017985227 | W19: 0.01612100098 | X19: =+IF(INDEX($C19:$G19,1,aux!$AL$1)>0,(G19/INDEX($C19:$G19,1,aux!$AL$1))^(1/($G$3-INDEX($C$3:$G$3,1,aux!$AL$1)))-1,"n.d.") -> 0.1552192875 | Y19: =IF(INDEX($C19:$G19,1,aux!$AL$1)>0,(G19-INDEX($C19:$G19,1,aux!$AL$1))/INDEX($C19:$G19,1,aux!$AL$1),"n.d.") -> 0.7809745975 | AA19: =O19-INDEX($K19:$O19,1,aux!$AL$1) -> 140786.126 | AB19: 0.08197742165 | AC19: 0.06380607914 | AD19: =+IF(INDEX($K19:$O19,1,aux!$AL$1)>0,(O19/INDEX($K19:$O19,1,aux!$AL$1))^(1/($O$3-INDEX($K$3:$O$3,1,aux!$AL$1)))-1,"n.d.") -> 0.3333341272 | AE19: =IF(INDEX($K19:$O19,1,aux!$AL$1)>0,(O19-INDEX($K19:$O19,1,aux!$AL$1))/INDEX($K19:$O19,1,aux!$AL$1),"n.d.") -> 2.160501354
A20: 18 | B20: Cacau e suas preparações | C20: 60776.324 | D20: 66728.965 | E20: 69096.022 | F20: 89860.817 | G20: 108524.891 | H20: 78997.4038 | I20: 0.01513927886 | J20: 0.01048447803 | K20: 12492.071 | L20: 11599.317 | M20: 15952.634 | N20: 24950.316 | O20: 42274.82 | P20: 21453.8316 | Q20: 0.007784145475 | R20: 0.004674569359 | S20: -57543.5722 | U20: =G20-INDEX($C20:$G20,1,aux!$AL$1) -> 47748.567 | V20: 0.01956683107 | W20: 0.0156312791 | X20: =+IF(INDEX($C20:$G20,1,aux!$AL$1)>0,(G20/INDEX($C20:$G20,1,aux!$AL$1))^(1/($G$3-INDEX($C$3:$G$3,1,aux!$AL$1)))-1,"n.d.") -> 0.1559757735 | Y20: =IF(INDEX($C20:$G20,1,aux!$AL$1)>0,(G20-INDEX($C20:$G20,1,aux!$AL$1))/INDEX($C20:$G20,1,aux!$AL$1),"n.d.") -> 0.7856442091 | AA20: =O20-INDEX($K20:$O20,1,aux!$AL$1) -> 29782.749 | AB20: 0.01734199983 | AC20: 0.01349792408 | AD20: =+IF(INDEX($K20:$O20,1,aux!$AL$1)>0,(O20/INDEX($K20:$O20,1,aux!$AL$1))^(1/($O$3-INDEX($K$3:$O$3,1,aux!$AL$1)))-1,"n.d.") -> 0.3563189537 | AE20: =IF(INDEX($K20:$O20,1,aux!$AL$1)>0,(O20-INDEX($K20:$O20,1,aux!$AL$1))/INDEX($K20:$O20,1,aux!$AL$1),"n.d.") -> 2.384132223
A21: 19a | B21: Preparações à base de cereais (exc. NC 19022010) (a) | C21: 330351.508 | D21: 336220.855 | E21: 364496.177 | F21: 463679.85 | G21: 582745.842 | H21: 415498.8464 | I21: 0.07962733709 | J21: 0.05514470497 | K21: 131830.11 | L21: 126015.563 | M21: 132190.195 | N21: 157457.543 | O21: 191231.219 | P21: 147744.926 | Q21: 0.05360664792 | R21: 0.03219210055 | S21: -267753.9204 | U21: =G21-INDEX($C21:$G21,1,aux!$AL$1) -> 252394.334 | V21: 0.1034283876 | W21: 0.08262543832 | X21: =+IF(INDEX($C21:$G21,1,aux!$AL$1)>0,(G21/INDEX($C21:$G21,1,aux!$AL$1))^(1/($G$3-INDEX($C$3:$G$3,1,aux!$AL$1)))-1,"n.d.") -> 0.1524596332 | Y21: =IF(INDEX($C21:$G21,1,aux!$AL$1)>0,(G21-INDEX($C21:$G21,1,aux!$AL$1))/INDEX($C21:$G21,1,aux!$AL$1),"n.d.") -> 0.7640175022 | AA21: =O21-INDEX($K21:$O21,1,aux!$AL$1) -> 59401.109 | AB21: 0.03458827867 | AC21: 0.02692134495 | AD21: =+IF(INDEX($K21:$O21,1,aux!$AL$1)>0,(O21/INDEX($K21:$O21,1,aux!$AL$1))^(1/($O$3-INDEX($K$3:$O$3,1,aux!$AL$1)))-1,"n.d.") -> 0.09745328989 | AE21: =IF(INDEX($K21:$O21,1,aux!$AL$1)>0,(O21-INDEX($K21:$O21,1,aux!$AL$1))/INDEX($K21:$O21,1,aux!$AL$1),"n.d.") -> 0.4505883292
A22: 20 | B22: Preparações de produtos vegetais | C22: 198334.701 | D22: 197534.409 | E22: 221727.852 | F22: 283523.957 | G22: 332590.181 | H22: 246742.22 | I22: 0.04728635494 | J22: 0.03274744814 | K22: 86543.882 | L22: 87890.583 | M22: 91726.892 | N22: 112913.931 | O22: 125709.934 | P22: 100957.0444 | Q22: 0.03663048797 | R22: 0.02199750213 | S22: -145785.1756 | U22: =G22-INDEX($C22:$G22,1,aux!$AL$1) -> 134255.48 | V22: 0.05501640076 | W22: 0.04395074052 | X22: =+IF(INDEX($C22:$G22,1,aux!$AL$1)>0,(G22/INDEX($C22:$G22,1,aux!$AL$1))^(1/($G$3-INDEX($C$3:$G$3,1,aux!$AL$1)))-1,"n.d.") -> 0.1379617891 | Y22: =IF(INDEX($C22:$G22,1,aux!$AL$1)>0,(G22-INDEX($C22:$G22,1,aux!$AL$1))/INDEX($C22:$G22,1,aux!$AL$1),"n.d.") -> 0.6769137187 | AA22: =O22-INDEX($K22:$O22,1,aux!$AL$1) -> 39166.052 | AB22: 0.02280574124 | AC22: 0.01775055742 | AD22: =+IF(INDEX($K22:$O22,1,aux!$AL$1)>0,(O22/INDEX($K22:$O22,1,aux!$AL$1))^(1/($O$3-INDEX($K$3:$O$3,1,aux!$AL$1)))-1,"n.d.") -> 0.0978254807 | AE22: =IF(INDEX($K22:$O22,1,aux!$AL$1)>0,(O22-INDEX($K22:$O22,1,aux!$AL$1))/INDEX($K22:$O22,1,aux!$AL$1),"n.d.") -> 0.4525571432
A23: 21 | B23: Preparações alimentícias diversas | C23: 179076.318 | D23: 183619.279 | E23: 210591.126 | F23: 270740.535 | G23: 358666.994 | H23: 240538.8504 | I23: 0.0460975242 | J23: 0.03192414144 | K23: 60135.471 | L23: 56950.495 | M23: 72383.55 | N23: 84012.503 | O23: 109481.789 | P23: 76592.7616 | Q23: 0.02779033646 | R23: 0.01668877538 | S23: -163946.0888 | U23: =G23-INDEX($C23:$G23,1,aux!$AL$1) -> 179590.676 | V23: 0.07359425927 | W23: 0.05879196291 | X23: =+IF(INDEX($C23:$G23,1,aux!$AL$1)>0,(G23/INDEX($C23:$G23,1,aux!$AL$1))^(1/($G$3-INDEX($C$3:$G$3,1,aux!$AL$1)))-1,"n.d.") -> 0.1896338528 | Y23: =IF(INDEX($C23:$G23,1,aux!$AL$1)>0,(G23-INDEX($C23:$G23,1,aux!$AL$1))/INDEX($C23:$G23,1,aux!$AL$1),"n.d.") -> 1.002872284 | AA23: =O23-INDEX($K23:$O23,1,aux!$AL$1) -> 49346.318 | AB23: 0.02873354096 | AC23: 0.02236438462 | AD23: =+IF(INDEX($K23:$O23,1,aux!$AL$1)>0,(O23/INDEX($K23:$O23,1,aux!$AL$1))^(1/($O$3-INDEX($K$3:$O$3,1,aux!$AL$1)))-1,"n.d.") -> 0.1615898063 | AE23: =IF(INDEX($K23:$O23,1,aux!$AL$1)>0,(O23-INDEX($K23:$O23,1,aux!$AL$1))/INDEX($K23:$O23,1,aux!$AL$1),"n.d.") -> 0.8205858735
A24: 22 | B24: Bebidas, líquidos alcoólicos e vinagres | C24: 309703.91 | D24: 306236.156 | E24: 306568.504 | F24: 380348.991 | G24: 440775.413 | H24: 348726.5948 | I24: 0.06683091989 | J24: 0.04628274026 | K24: 136618.365 | L24: 166367.851 | M24: 194762.879 | N24: 187838.502 | O24: 218036.751 | P24: 180724.8696 | Q24: 0.06557284042 | R24: 0.03937809123 | S24: -168001.7252 | U24: =G24-INDEX($C24:$G24,1,aux!$AL$1) -> 131071.503 | V24: 0.05371164244 | W24: 0.04290841326 | X24: =+IF(INDEX($C24:$G24,1,aux!$AL$1)>0,(G24/INDEX($C24:$G24,1,aux!$AL$1))^(1/($G$3-INDEX($C$3:$G$3,1,aux!$AL$1)))-1,"n.d.") -> 0.09223897126 | Y24: =IF(INDEX($C24:$G24,1,aux!$AL$1)>0,(G24-INDEX($C24:$G24,1,aux!$AL$1))/INDEX($C24:$G24,1,aux!$AL$1),"n.d.") -> 0.4232155254 | AA24: =O24-INDEX($K24:$O24,1,aux!$AL$1) -> 81418.386 | AB24: 0.04740857319 | AC24: 0.03689985745 | AD24: =+IF(INDEX($K24:$O24,1,aux!$AL$1)>0,(O24/INDEX($K24:$O24,1,aux!$AL$1))^(1/($O$3-INDEX($K$3:$O$3,1,aux!$AL$1)))-1,"n.d.") -> 0.1239711258 | AE24: =IF(INDEX($K24:$O24,1,aux!$AL$1)>0,(O24-INDEX($K24:$O24,1,aux!$AL$1))/INDEX($K24:$O24,1,aux!$AL$1),"n.d.") -> 0.5959549143
A25: 23a | B25: Resíduos indústrias alimentares; alimentos p/ animais (exc. NC 230120) (a) | C25: 197211.08 | D25: 206091.317 | E25: 244807.607 | F25: 300942.091 | G25: 317297.618 | H25: 253269.9426 | I25: 0.04853734558 | J25: 0.03361380274 | K25: 85845.271 | L25: 103548.661 | M25: 138250.073 | N25: 155999.114 | O25: 164454.856 | P25: 129619.595 | Q25: 0.04703019035 | R25: 0.02824277726 | S25: -123650.3476 | U25: =G25-INDEX($C25:$G25,1,aux!$AL$1) -> 120086.538 | V25: 0.0492101261 | W25: 0.03931230421 | X25: =+IF(INDEX($C25:$G25,1,aux!$AL$1)>0,(G25/INDEX($C25:$G25,1,aux!$AL$1))^(1/($G$3-INDEX($C$3:$G$3,1,aux!$AL$1)))-1,"n.d.") -> 0.1262475911 | Y25: =IF(INDEX($C25:$G25,1,aux!$AL$1)>0,(G25-INDEX($C25:$G25,1,aux!$AL$1))/INDEX($C25:$G25,1,aux!$AL$1),"n.d.") -> 0.6089238901 | AA25: =O25-INDEX($K25:$O25,1,aux!$AL$1) -> 78609.585 | AB25: 0.04577305505 | AC25: 0.03562687279 | AD25: =+IF(INDEX($K25:$O25,1,aux!$AL$1)>0,(O25/INDEX($K25:$O25,1,aux!$AL$1))^(1/($O$3-INDEX($K$3:$O$3,1,aux!$AL$1)))-1,"n.d.") -> 0.1764746711 | AE25: =IF(INDEX($K25:$O25,1,aux!$AL$1)>0,(O25-INDEX($K25:$O25,1,aux!$AL$1))/INDEX($K25:$O25,1,aux!$AL$1),"n.d.") -> 0.9157124683
A26: 24 | B26: Tabaco | C26: 7416.861 | D26: 1665.727 | E26: 4640.563 | F26: 11797.834 | G26: 22584.053 | H26: 9621.0076 | I26: 0.001843796251 | J26: 0.001276893138 | K26: 280476.981 | L26: 275906.06 | M26: 271664.861 | N26: 273113.766 | O26: 276576.337 | P26: 275547.601 | Q26: 0.0999776008 | R26: 0.06003898962 | S26: 265926.5934 | U26: =G26-INDEX($C26:$G26,1,aux!$AL$1) -> 15167.192 | V26: 0.006215346394 | W26: 0.004965229874 | X26: =+IF(INDEX($C26:$G26,1,aux!$AL$1)>0,(G26/INDEX($C26:$G26,1,aux!$AL$1))^(1/($G$3-INDEX($C$3:$G$3,1,aux!$AL$1)))-1,"n.d.") -> 0.3209775477 | Y26: =IF(INDEX($C26:$G26,1,aux!$AL$1)>0,(G26-INDEX($C26:$G26,1,aux!$AL$1))/INDEX($C26:$G26,1,aux!$AL$1),"n.d.") -> 2.044961069 | AA26: =O26-INDEX($K26:$O26,1,aux!$AL$1) -> -3900.644 | AB26: -0.002271280182 | AC26: -0.001767821921 | AD26: =+IF(INDEX($K26:$O26,1,aux!$AL$1)>0,(O26/INDEX($K26:$O26,1,aux!$AL$1))^(1/($O$3-INDEX($K$3:$O$3,1,aux!$AL$1)))-1,"n.d.") -> -0.0034950758 | AE26: =IF(INDEX($K26:$O26,1,aux!$AL$1)>0,(O26-INDEX($K26:$O26,1,aux!$AL$1))/INDEX($K26:$O26,1,aux!$AL$1),"n.d.") -> -0.0139071805
A27: 29 | B27: Manitol e sorbitol (NC 290543; 290544) | C27: 1264.376 | D27: 1362.644 | E27: 1951.756 | F27: 3329.339 | G27: 3076.404 | H27: 2196.9038 | I27: 0.0004210206622 | J27: 0.000291571476 | K27: 58.02 | L27: 70.697 | M27: 229.211 | N27: 129.55 | O27: 389.947 | P27: 175.485 | Q27: 6.367164589e-05 | R27: 3.823637751e-05 | S27: -2021.4188 | U27: =G27-INDEX($C27:$G27,1,aux!$AL$1) -> 1812.028 | V27: 0.0007425488974 | W27: 0.0005931971823 | X27: =+IF(INDEX($C27:$G27,1,aux!$AL$1)>0,(G27/INDEX($C27:$G27,1,aux!$AL$1))^(1/($G$3-INDEX($C$3:$G$3,1,aux!$AL$1)))-1,"n.d.") -> 0.2489405921 | Y27: =IF(INDEX($C27:$G27,1,aux!$AL$1)>0,(G27-INDEX($C27:$G27,1,aux!$AL$1))/INDEX($C27:$G27,1,aux!$AL$1),"n.d.") -> 1.433140142 | AA27: =O27-INDEX($K27:$O27,1,aux!$AL$1) -> 331.927 | AB27: 0.0001932755763 | AC27: 0.0001504335763 | AD27: =+IF(INDEX($K27:$O27,1,aux!$AL$1)>0,(O27/INDEX($K27:$O27,1,aux!$AL$1))^(1/($O$3-INDEX($K$3:$O$3,1,aux!$AL$1)))-1,"n.d.") -> 0.6101152551 | AE27: =IF(INDEX($K27:$O27,1,aux!$AL$1)>0,(O27-INDEX($K27:$O27,1,aux!$AL$1))/INDEX($K27:$O27,1,aux!$AL$1),"n.d.") -> 5.720906584
A28: 33 | B28: Óleos essenciais e resinóides (NC 3301) | C28: 13080.29 | D28: 13464.287 | E28: 15528.437 | F28: 19181.632 | G28: 26197.686 | H28: 17490.4664 | I28: 0.003351920892 | J28: 0.002321321991 | K28: 548.088 | L28: 747.912 | M28: 588.994 | N28: 946.899 | O28: 4697.668 | P28: 1505.9122 | Q28: 0.0005463937564 | R28: 0.0003281227875 | S28: -15984.5542 | U28: =G28-INDEX($C28:$G28,1,aux!$AL$1) -> 13117.396 | V28: 0.005375362818 | W28: 0.004294195424 | X28: =+IF(INDEX($C28:$G28,1,aux!$AL$1)>0,(G28/INDEX($C28:$G28,1,aux!$AL$1))^(1/($G$3-INDEX($C$3:$G$3,1,aux!$AL$1)))-1,"n.d.") -> 0.1896285818 | Y28: =IF(INDEX($C28:$G28,1,aux!$AL$1)>0,(G28-INDEX($C28:$G28,1,aux!$AL$1))/INDEX($C28:$G28,1,aux!$AL$1),"n.d.") -> 1.002836787 | AA28: =O28-INDEX($K28:$O28,1,aux!$AL$1) -> 4149.58 | AB28: 0.002416231478 | AC28: 0.001880642911 | AD28: =+IF(INDEX($K28:$O28,1,aux!$AL$1)>0,(O28/INDEX($K28:$O28,1,aux!$AL$1))^(1/($O$3-INDEX($K$3:$O$3,1,aux!$AL$1)))-1,"n.d.") -> 0.7110315069 | AE28: =IF(INDEX($K28:$O28,1,aux!$AL$1)>0,(O28-INDEX($K28:$O28,1,aux!$AL$1))/INDEX($K28:$O28,1,aux!$AL$1),"n.d.") -> 7.571010495
A29: 35 | B29: Caseínas, albuminas, gelatinas, peptonas, dextrinas (NC 3501 a 3505) | C29: 10384.542 | D29: 9762.857 | E29: 11092.528 | F29: 20507.988 | G29: 18630.208 | H29: 14075.6246 | I29: 0.002697491256 | J29: 0.001868106669 | K29: 2490.883 | L29: 3593.87 | M29: 4788.396 | N29: 6111.711 | O29: 6211.168 | P29: 4639.2056 | Q29: 0.001683254159 | R29: 0.001010835209 | S29: -9436.419 | U29: =G29-INDEX($C29:$G29,1,aux!$AL$1) -> 8245.666 | V29: 0.003378982111 | W29: 0.002699354445 | X29: =+IF(INDEX($C29:$G29,1,aux!$AL$1)>0,(G29/INDEX($C29:$G29,1,aux!$AL$1))^(1/($G$3-INDEX($C$3:$G$3,1,aux!$AL$1)))-1,"n.d.") -> 0.1573310078 | Y29: =IF(INDEX($C29:$G29,1,aux!$AL$1)>0,(G29-INDEX($C29:$G29,1,aux!$AL$1))/INDEX($C29:$G29,1,aux!$AL$1),"n.d.") -> 0.7940327075 | AA29: =O29-INDEX($K29:$O29,1,aux!$AL$1) -> 3720.285 | AB29: 0.002166260133 | AC29: 0.001686080908 | AD29: =+IF(INDEX($K29:$O29,1,aux!$AL$1)>0,(O29/INDEX($K29:$O29,1,aux!$AL$1))^(1/($O$3-INDEX($K$3:$O$3,1,aux!$AL$1)))-1,"n.d.") -> 0.2566229495 | AE29: =IF(INDEX($K29:$O29,1,aux!$AL$1)>0,(O29-INDEX($K29:$O29,1,aux!$AL$1))/INDEX($K29:$O29,1,aux!$AL$1),"n.d.") -> 1.493560717
A30: 38a | B30: Agentes de acabamento, ácidos gordos, sorbitol (NC 380910, 382311-12-13-19-70, 382460) (a) | C30: 8331.624 | D30: 8324.482 | E30: 14457.574 | F30: 20143.578 | G30: 16175.887 | H30: 13486.629 | I30: 0.002584614525 | J30: 0.001789935601 | K30: 1200.61 | L30: 406.796 | M30: 722.965 | N30: 1086.607 | O30: 355.763 | P30: 754.5482 | Q30: 0.0002737745437 | R30: 0.000164408296 | S30: -12732.0808 | U30: =G30-INDEX($C30:$G30,1,aux!$AL$1) -> 7844.263 | V30: 0.003214491631 | W30: 0.002567948568 | X30: =+IF(INDEX($C30:$G30,1,aux!$AL$1)>0,(G30/INDEX($C30:$G30,1,aux!$AL$1))^(1/($G$3-INDEX($C$3:$G$3,1,aux!$AL$1)))-1,"n.d.") -> 0.1804147035 | Y30: =IF(INDEX($C30:$G30,1,aux!$AL$1)>0,(G30-INDEX($C30:$G30,1,aux!$AL$1))/INDEX($C30:$G30,1,aux!$AL$1),"n.d.") -> 0.9415046814 | AA30: =O30-INDEX($K30:$O30,1,aux!$AL$1) -> -844.847 | AB30: -0.0004919403688 | AC30: -0.0003828955031 | AD30: =+IF(INDEX($K30:$O30,1,aux!$AL$1)>0,(O30/INDEX($K30:$O30,1,aux!$AL$1))^(1/($O$3-INDEX($K$3:$O$3,1,aux!$AL$1)))-1,"n.d.") -> -0.2621982082 | AE30: =IF(INDEX($K30:$O30,1,aux!$AL$1)>0,(O30-INDEX($K30:$O30,1,aux!$AL$1))/INDEX($K30:$O30,1,aux!$AL$1),"n.d.") -> -0.7036814619
A31: 41 | B31: Couro e peles em bruto (NC 4101 a 4103) | C31: 12615.068 | D31: 8376.842 | E31: 14954.905 | F31: 11762.562 | G31: 14412.202 | H31: 12424.3158 | I31: 0.002381029914 | J31: 0.001648946165 | K31: 8878.896 | L31: 6001.646 | M31: 10966.947 | N31: 11248.93 | O31: 13745.219 | P31: 10168.3276 | Q31: 0.003689398833 | R31: 0.002215574053 | S31: -2255.9882 | U31: =G31-INDEX($C31:$G31,1,aux!$AL$1) -> 1797.134 | V31: 0.000736445502 | W31: 0.0005883213863 | X31: =+IF(INDEX($C31:$G31,1,aux!$AL$1)>0,(G31/INDEX($C31:$G31,1,aux!$AL$1))^(1/($G$3-INDEX($C$3:$G$3,1,aux!$AL$1)))-1,"n.d.") -> 0.03385631812 | Y31: =IF(INDEX($C31:$G31,1,aux!$AL$1)>0,(G31-INDEX($C31:$G31,1,aux!$AL$1))/INDEX($C31:$G31,1,aux!$AL$1),"n.d.") -> 0.1424593193 | AA31: =O31-INDEX($K31:$O31,1,aux!$AL$1) -> 4866.323 | AB31: 0.002833579017 | AC31: 0.002205480038 | AD31: =+IF(INDEX($K31:$O31,1,aux!$AL$1)>0,(O31/INDEX($K31:$O31,1,aux!$AL$1))^(1/($O$3-INDEX($K$3:$O$3,1,aux!$AL$1)))-1,"n.d.") -> 0.1154450323 | AE31: =IF(INDEX($K31:$O31,1,aux!$AL$1)>0,(O31-INDEX($K31:$O31,1,aux!$AL$1))/INDEX($K31:$O31,1,aux!$AL$1),"n.d.") -> 0.5480774862
A32: 43 | B32: Peles com pelo em bruto (NC 4301) | C32: 39.916 | D32: 116.635 | E32: 175.537 | F32: 1169.358 | G32: 1015.54 | H32: 503.3972 | I32: 9.647241836e-05 | J32: 6.681051059e-05 | K32: 0 | L32: 0 | M32: 0 | N32: 0 | O32: 0 | P32: 0 | Q32: 0 | R32: 0 | S32: -503.3972 | U32: =G32-INDEX($C32:$G32,1,aux!$AL$1) -> 975.624 | V32: 0.0003997998516 | W32: 0.0003193865701 | X32: =+IF(INDEX($C32:$G32,1,aux!$AL$1)>0,(G32/INDEX($C32:$G32,1,aux!$AL$1))^(1/($G$3-INDEX($C$3:$G$3,1,aux!$AL$1)))-1,"n.d.") -> 1.245884951 | Y32: =IF(INDEX($C32:$G32,1,aux!$AL$1)>0,(G32-INDEX($C32:$G32,1,aux!$AL$1))/INDEX($C32:$G32,1,aux!$AL$1),"n.d.") -> 24.44192805 | AA32: =O32-INDEX($K32:$O32,1,aux!$AL$1) -> 0 | AB32: 0 | AC32: 0 | AD32: =+IF(INDEX($K32:$O32,1,aux!$AL$1)>0,(O32/INDEX($K32:$O32,1,aux!$AL$1))^(1/($O$3-INDEX($K$3:$O$3,1,aux!$AL$1)))-1,"n.d.") -> n.d. | AE32: =IF(INDEX($K32:$O32,1,aux!$AL$1)>0,(O32-INDEX($K32:$O32,1,aux!$AL$1))/INDEX($K32:$O32,1,aux!$AL$1),"n.d.") -> n.d.
A33: 50 | B33: Seda crua (NC 5001-5003) | C33: 0 | D33: 0.132 | E33: 0.031 | F33: 0.785 | G33: 0 | H33: 0.1896 | I33: 3.633546337e-08 | J33: 2.516357423e-08 | K33: 0 | L33: 0 | M33: 0 | N33: 0 | O33: 0 | P33: 0 | Q33: 0 | R33: 0 | S33: -0.1896 | U33: =G33-INDEX($C33:$G33,1,aux!$AL$1) -> 0 | V33: 0 | W33: 0 | X33: =+IF(INDEX($C33:$G33,1,aux!$AL$1)>0,(G33/INDEX($C33:$G33,1,aux!$AL$1))^(1/($G$3-INDEX($C$3:$G$3,1,aux!$AL$1)))-1,"n.d.") -> n.d. | Y33: =IF(INDEX($C33:$G33,1,aux!$AL$1)>0,(G33-INDEX($C33:$G33,1,aux!$AL$1))/INDEX($C33:$G33,1,aux!$AL$1),"n.d.") -> n.d. | AA33: =O33-INDEX($K33:$O33,1,aux!$AL$1) -> 0 | AB33: 0 | AC33: 0 | AD33: =+IF(INDEX($K33:$O33,1,aux!$AL$1)>0,(O33/INDEX($K33:$O33,1,aux!$AL$1))^(1/($O$3-INDEX($K$3:$O$3,1,aux!$AL$1)))-1,"n.d.") -> n.d. | AE33: =IF(INDEX($K33:$O33,1,aux!$AL$1)>0,(O33-INDEX($K33:$O33,1,aux!$AL$1))/INDEX($K33:$O33,1,aux!$AL$1),"n.d.") -> n.d.
A34: 51 | B34: Lã não cardada (NC 5101-5103) | C34: 2213.86 | D34: 1502.589 | E34: 1991.213 | F34: 2633.096 | G34: 2019.18 | H34: 2071.9876 | I34: 0.0003970813794 | J34: 0.0002749926887 | K34: 2308.039 | L34: 2051.998 | M34: 2975.623 | N34: 2793.213 | O34: 1656.878 | P34: 2357.1502 | Q34: 0.0008552504935 | R34: 0.000513598797 | S34: 285.1626 | U34: =G34-INDEX($C34:$G34,1,aux!$AL$1) -> -194.68 | V34: -7.977769623e-05 | W34: -6.373170141e-05 | X34: =+IF(INDEX($C34:$G34,1,aux!$AL$1)>0,(G34/INDEX($C34:$G34,1,aux!$AL$1))^(1/($G$3-INDEX($C$3:$G$3,1,aux!$AL$1)))-1,"n.d.") -> -0.02274878154 | Y34: =IF(INDEX($C34:$G34,1,aux!$AL$1)>0,(G34-INDEX($C34:$G34,1,aux!$AL$1))/INDEX($C34:$G34,1,aux!$AL$1),"n.d.") -> -0.08793690658 | AA34: =O34-INDEX($K34:$O34,1,aux!$AL$1) -> -651.161 | AB34: -0.0003791602296 | AC34: -0.0002951145221 | AD34: =+IF(INDEX($K34:$O34,1,aux!$AL$1)>0,(O34/INDEX($K34:$O34,1,aux!$AL$1))^(1/($O$3-INDEX($K$3:$O$3,1,aux!$AL$1)))-1,"n.d.") -> -0.079525319 | AE34: =IF(INDEX($K34:$O34,1,aux!$AL$1)>0,(O34-INDEX($K34:$O34,1,aux!$AL$1))/INDEX($K34:$O34,1,aux!$AL$1),"n.d.") -> -0.2821273817
A35: 52 | B35: Algodão (NC 5201-5203) | C35: 6176.682 | D35: 3822.112 | E35: 9245.452 | F35: 10257.638 | G35: 6874.724 | H35: 7275.3216 | I35: 0.001394262561 | J35: 0.0009655753962 | K35: 4971.262 | L35: 6160.774 | M35: 5961.561 | N35: 6888.546 | O35: 5519.997 | P35: 5900.428 | Q35: 0.002140866525 | R35: 0.001285642605 | S35: -1374.8936 | U35: =G35-INDEX($C35:$G35,1,aux!$AL$1) -> 698.042 | V35: 0.0002860498389 | W35: 0.0002285155348 | X35: =+IF(INDEX($C35:$G35,1,aux!$AL$1)>0,(G35/INDEX($C35:$G35,1,aux!$AL$1))^(1/($G$3-INDEX($C$3:$G$3,1,aux!$AL$1)))-1,"n.d.") -> 0.0271290351 | Y35: =IF(INDEX($C35:$G35,1,aux!$AL$1)>0,(G35-INDEX($C35:$G35,1,aux!$AL$1))/INDEX($C35:$G35,1,aux!$AL$1),"n.d.") -> 0.1130124556 | AA35: =O35-INDEX($K35:$O35,1,aux!$AL$1) -> 548.735 | AB35: 0.0003195192719 | AC35: 0.0002486937444 | AD35: =+IF(INDEX($K35:$O35,1,aux!$AL$1)>0,(O35/INDEX($K35:$O35,1,aux!$AL$1))^(1/($O$3-INDEX($K$3:$O$3,1,aux!$AL$1)))-1,"n.d.") -> 0.02652149398 | AE35: =IF(INDEX($K35:$O35,1,aux!$AL$1)>0,(O35-INDEX($K35:$O35,1,aux!$AL$1))/INDEX($K35:$O35,1,aux!$AL$1),"n.d.") -> 0.1103814283
A36: 53 | B36: Linho e cânhamo em bruto (NC 5301-5302) | C36: 11.622 | D36: 0.875 | E36: 4.066 | F36: 117.568 | G36: 10.585 | H36: 28.9432 | I36: 5.546754132e-06 | J36: 3.841320473e-06 | K36: 0.751 | L36: 0 | M36: 6.211 | N36: 0 | O36: 8.105 | P36: 3.0134 | Q36: 1.093359192e-06 | R36: 6.565888821e-07 | S36: -25.9298 | U36: =G36-INDEX($C36:$G36,1,aux!$AL$1) -> -1.037 | V36: -4.24951053e-07 | W36: =IF($U$53<>0,U36/$U$53, "n.d.") -> -3.394790136e-07 | X36: =+IF(INDEX($C36:$G36,1,aux!$AL$1)>0,(G36/INDEX($C36:$G36,1,aux!$AL$1))^(1/($G$3-INDEX($C$3:$G$3,1,aux!$AL$1)))-1,"n.d.") -> -0.02309462796 | Y36: =IF(INDEX($C36:$G36,1,aux!$AL$1)>0,(G36-INDEX($C36:$G36,1,aux!$AL$1))/INDEX($C36:$G36,1,aux!$AL$1),"n.d.") -> -0.08922732748 | AA36: =O36-INDEX($K36:$O36,1,aux!$AL$1) -> 7.354 | AB36: 4.282111995e-06 | AC36: =IF($AA$53<>0,AA36/$AA$53, "n.d.") -> 3.332927181e-06 | AD36: =+IF(INDEX($K36:$O36,1,aux!$AL$1)>0,(O36/INDEX($K36:$O36,1,aux!$AL$1))^(1/($O$3-INDEX($K$3:$O$3,1,aux!$AL$1)))-1,"n.d.") -> 0.8125010655 | AE36: =IF(INDEX($K36:$O36,1,aux!$AL$1)>0,(O36-INDEX($K36:$O36,1,aux!$AL$1))/INDEX($K36:$O36,1,aux!$AL$1),"n.d.") -> 9.792276964
A37: Subtotal Agrícola e Agroalimentar | C37: 4336237.173 | D37: 4225256.956 | E37: 4734990.129 | F37: 6017211.108 | G37: 6776518.219 | H37: 5218042.717 | I37: 1 | J37: 0.6925348377 | K37: 2005829.268 | L37: 2174802.431 | M37: 2557436.888 | N37: 3319192.061 | O37: 3723206.116 | P37: 2756093.353 | Q37: 1 | R37: 0.6005244088 | S37: -2461949.364 | U37: =G37-INDEX($C37:$G37,1,aux!$AL$1) -> 2440281.046 | V37: 1 | W37: 0.7988661546 | X37: =+IF(INDEX($C37:$G37,1,aux!$AL$1)>0,(G37/INDEX($C37:$G37,1,aux!$AL$1))^(1/($G$3-INDEX($C$3:$G$3,1,aux!$AL$1)))-1,"n.d.") -> 0.1180813299 | Y37: =IF(INDEX($C37:$G37,1,aux!$AL$1)>0,(G37-INDEX($C37:$G37,1,aux!$AL$1))/INDEX($C37:$G37,1,aux!$AL$1),"n.d.") -> 0.5627646618 | AA37: =O37-INDEX($K37:$O37,1,aux!$AL$1) -> 1717376.848 | AB37: 1 | AC37: 0.7783372282 | AD37: =+IF(INDEX($K37:$O37,1,aux!$AL$1)>0,(O37/INDEX($K37:$O37,1,aux!$AL$1))^(1/($O$3-INDEX($K$3:$O$3,1,aux!$AL$1)))-1,"n.d.") -> 0.1672282198 | AE37: =IF(INDEX($K37:$O37,1,aux!$AL$1)>0,(O37-INDEX($K37:$O37,1,aux!$AL$1))/INDEX($K37:$O37,1,aux!$AL$1),"n.d.") -> 0.856192935
A38: 03 | B38: Peixes e crustáceos | C38: 713496.617 | D38: 637213.952 | E38: 761470.764 | F38: 893255.849 | G38: 877547.869 | H38: 776597.0102 | I38: 0.8310758572 | J38: 0.1030693909 | K38: 512776.817 | L38: 377421.61 | M38: 500085.74 | N38: 564605.154 | O38: 571161.427 | P38: 505210.1496 | Q38: 0.8830629886 | R38: 0.110080098 | S38: -271386.8606 | U38: =G38-INDEX($C38:$G38,1,aux!$AL$1) -> 164051.252 | V38: =IF($U$44<>0,U38/$U$44, "n.d.") -> 0.720805978 | W38: 0.05370487677 | X38: =+IF(INDEX($C38:$G38,1,aux!$AL$1)>0,(G38/INDEX($C38:$G38,1,aux!$AL$1))^(1/($G$3-INDEX($C$3:$G$3,1,aux!$AL$1)))-1,"n.d.") -> 0.05310027073 | Y38: =IF(INDEX($C38:$G38,1,aux!$AL$1)>0,(G38-INDEX($C38:$G38,1,aux!$AL$1))/INDEX($C38:$G38,1,aux!$AL$1),"n.d.") -> 0.2299257601 | AA38: =O38-INDEX($K38:$O38,1,aux!$AL$1) -> 58384.61 | AB38: =IF($AA$44<>0,AA38/$AA$44, "n.d.") -> 0.4935267931 | AC38: 0.02646065456 | AD38: =+IF(INDEX($K38:$O38,1,aux!$AL$1)>0,(O38/INDEX($K38:$O38,1,aux!$AL$1))^(1/($O$3-INDEX($K$3:$O$3,1,aux!$AL$1)))-1,"n.d.") -> 0.02732444441 | AE38: =IF(INDEX($K38:$O38,1,aux!$AL$1)>0,(O38-INDEX($K38:$O38,1,aux!$AL$1))/INDEX($K38:$O38,1,aux!$AL$1),"n.d.") -> 0.1138596911
A39: 05p | B39: Outros produtos de pescado (NC 0508, 051191) (p) | C39: 1714.026 | D39: 3108.91 | E39: 3135.077 | F39: 2402.214 | G39: 1340.65 | H39: 2340.1754 | I39: 0.002504340412 | J39: 0.0003105863786 | K39: 1071.021 | L39: 2139.343 | M39: 2437.901 | N39: 3107.249 | O39: 2196.241 | P39: 2190.351 | Q39: 0.003828541255 | R39: 0.000477254966 | S39: -149.8244 | U39: =G39-INDEX($C39:$G39,1,aux!$AL$1) -> -373.376 | V39: -0.001640533977 | W39: -0.0001222307774 | X39: =+IF(INDEX($C39:$G39,1,aux!$AL$1)>0,(G39/INDEX($C39:$G39,1,aux!$AL$1))^(1/($G$3-INDEX($C$3:$G$3,1,aux!$AL$1)))-1,"n.d.") -> -0.05957427242 | Y39: =IF(INDEX($C39:$G39,1,aux!$AL$1)>0,(G39-INDEX($C39:$G39,1,aux!$AL$1))/INDEX($C39:$G39,1,aux!$AL$1),"n.d.") -> -0.2178356688 | AA39: =O39-INDEX($K39:$O39,1,aux!$AL$1) -> 1125.22 | AB39: 0.009511517129 | AC39: 0.000509964145 | AD39: =+IF(INDEX($K39:$O39,1,aux!$AL$1)>0,(O39/INDEX($K39:$O39,1,aux!$AL$1))^(1/($O$3-INDEX($K$3:$O$3,1,aux!$AL$1)))-1,"n.d.") -> 0.1966592498 | AE39: =IF(INDEX($K39:$O39,1,aux!$AL$1)>0,(O39-INDEX($K39:$O39,1,aux!$AL$1))/INDEX($K39:$O39,1,aux!$AL$1),"n.d.") -> 1.050604983
A40: 16p | B40: Preparações e conservas de peixes ou crustáceos (NC 1604-05) (p) | C40: 109837.287 | D40: 119776.3 | E40: 117548.85 | F40: 148544.211 | G40: 170376.119 | H40: 133216.5534 | I40: 0.1425617918 | J40: 0.01768040417 | K40: 36359.821 | L40: 41225.248 | M40: 46653.975 | N40: 82090.376 | O40: 95560.694 | P40: 60378.0228 | Q40: 0.1055354832 | R40: 0.01315575048 | S40: -72838.5306 | U40: =G40-INDEX($C40:$G40,1,aux!$AL$1) -> 60538.832 | V40: 0.2659946296 | W40: 0.01981838281 | X40: =+IF(INDEX($C40:$G40,1,aux!$AL$1)>0,(G40/INDEX($C40:$G40,1,aux!$AL$1))^(1/($G$3-INDEX($C$3:$G$3,1,aux!$AL$1)))-1,"n.d.") -> 0.1160013784 | Y40: =IF(INDEX($C40:$G40,1,aux!$AL$1)>0,(G40-INDEX($C40:$G40,1,aux!$AL$1))/INDEX($C40:$G40,1,aux!$AL$1),"n.d.") -> 0.5511683114 | AA40: =O40-INDEX($K40:$O40,1,aux!$AL$1) -> 59200.873 | AB40: 0.5004266878 | AC40: 0.02683059542 | AD40: =+IF(INDEX($K40:$O40,1,aux!$AL$1)>0,(O40/INDEX($K40:$O40,1,aux!$AL$1))^(1/($O$3-INDEX($K$3:$O$3,1,aux!$AL$1)))-1,"n.d.") -> 0.2732520663 | AE40: =IF(INDEX($K40:$O40,1,aux!$AL$1)>0,(O40-INDEX($K40:$O40,1,aux!$AL$1))/INDEX($K40:$O40,1,aux!$AL$1),"n.d.") -> 1.628194842
A41: 19p | B41: Massas recheadas com pescado (NC 19022010) (p) | C41: 6600.502 | D41: 7865.79 | E41: 5328.287 | F41: 5350.981 | G41: 3480.009 | H41: 5725.1138 | I41: 0.006126734711 | J41: 0.0007598329434 | K41: 505.931 | L41: 341.635 | M41: 411.991 | N41: 1647.868 | O41: 941.35 | P41: 769.755 | Q41: 0.001345464162 | R41: 0.0001677217014 | S41: -4955.3588 | U41: =G41-INDEX($C41:$G41,1,aux!$AL$1) -> -3120.493 | V41: -0.01371077624 | W41: -0.00102154473 | X41: =+IF(INDEX($C41:$G41,1,aux!$AL$1)>0,(G41/INDEX($C41:$G41,1,aux!$AL$1))^(1/($G$3-INDEX($C$3:$G$3,1,aux!$AL$1)))-1,"n.d.") -> -0.1478798208 | Y41: =IF(INDEX($C41:$G41,1,aux!$AL$1)>0,(G41-INDEX($C41:$G41,1,aux!$AL$1))/INDEX($C41:$G41,1,aux!$AL$1),"n.d.") -> -0.4727660108 | AA41: =O41-INDEX($K41:$O41,1,aux!$AL$1) -> 435.419 | AB41: 0.003680609371 | AC41: 0.0001973374789 | AD41: =+IF(INDEX($K41:$O41,1,aux!$AL$1)>0,(O41/INDEX($K41:$O41,1,aux!$AL$1))^(1/($O$3-INDEX($K$3:$O$3,1,aux!$AL$1)))-1,"n.d.") -> 0.1679250113 | AE41: =IF(INDEX($K41:$O41,1,aux!$AL$1)>0,(O41-INDEX($K41:$O41,1,aux!$AL$1))/INDEX($K41:$O41,1,aux!$AL$1),"n.d.") -> 0.8606292162
A42: 23p | B42: Farinhas de pescado (NC 230120) (p) | C42: 8049.321 | D42: 4299.901 | E42: 2988.708 | F42: 6543.272 | G42: 8198.844 | H42: 6016.0092 | I42: 0.006438036636 | J42: 0.0007984403695 | K42: 3246.579 | L42: 2839.278 | M42: 2369.108 | N42: 2351.863 | O42: 1647.893 | P42: 2490.9442 | Q42: 0.004353951779 | R42: 0.0005427511342 | S42: -3525.065 | U42: =G42-INDEX($C42:$G42,1,aux!$AL$1) -> 149.523 | V42: 0.0006569719581 | W42: 4.894881441e-05 | X42: =+IF(INDEX($C42:$G42,1,aux!$AL$1)>0,(G42/INDEX($C42:$G42,1,aux!$AL$1))^(1/($G$3-INDEX($C$3:$G$3,1,aux!$AL$1)))-1,"n.d.") -> 0.004611959669 | Y42: =IF(INDEX($C42:$G42,1,aux!$AL$1)>0,(G42-INDEX($C42:$G42,1,aux!$AL$1))/INDEX($C42:$G42,1,aux!$AL$1),"n.d.") -> 0.01857585255 | AA42: =O42-INDEX($K42:$O42,1,aux!$AL$1) -> -1598.686 | AB42: -0.01351373889 | AC42: -0.0007245450126 | AD42: =+IF(INDEX($K42:$O42,1,aux!$AL$1)>0,(O42/INDEX($K42:$O42,1,aux!$AL$1))^(1/($O$3-INDEX($K$3:$O$3,1,aux!$AL$1)))-1,"n.d.") -> -0.1559352599 | AE42: =IF(INDEX($K42:$O42,1,aux!$AL$1)>0,(O42-INDEX($K42:$O42,1,aux!$AL$1))/INDEX($K42:$O42,1,aux!$AL$1),"n.d.") -> -0.4924217153
A43: 25 | B43: Sal e cloreto de sódio puro; água do mar (NC 2501) | C43: 7728.352 | D43: 6970.593 | E43: 8665.219 | F43: 15323.746 | G43: 14076.803 | H43: 10552.9426 | I43: 0.01129323922 | J43: 0.001400578874 | K43: 402.165 | L43: 968.227 | M43: 1133.649 | N43: 1699.893 | O43: 1155.52 | P43: 1071.8908 | Q43: 0.001873571016 | R43: 0.0002335539862 | S43: -9481.0518 | U43: =G43-INDEX($C43:$G43,1,aux!$AL$1) -> 6348.451 | V43: 0.02789373063 | W43: 0.002078269897 | X43: =+IF(INDEX($C43:$G43,1,aux!$AL$1)>0,(G43/INDEX($C43:$G43,1,aux!$AL$1))^(1/($G$3-INDEX($C$3:$G$3,1,aux!$AL$1)))-1,"n.d.") -> 0.1617275392 | Y43: =IF(INDEX($C43:$G43,1,aux!$AL$1)>0,(G43-INDEX($C43:$G43,1,aux!$AL$1))/INDEX($C43:$G43,1,aux!$AL$1),"n.d.") -> 0.8214495147 | AA43: =O43-INDEX($K43:$O43,1,aux!$AL$1) -> 753.355 | AB43: 0.006368131554 | AC43: 0.0003414301545 | AD43: =+IF(INDEX($K43:$O43,1,aux!$AL$1)>0,(O43/INDEX($K43:$O43,1,aux!$AL$1))^(1/($O$3-INDEX($K$3:$O$3,1,aux!$AL$1)))-1,"n.d.") -> 0.3019469806 | AE43: =IF(INDEX($K43:$O43,1,aux!$AL$1)>0,(O43-INDEX($K43:$O43,1,aux!$AL$1))/INDEX($K43:$O43,1,aux!$AL$1),"n.d.") -> 1.873248542
A44: Subtotal Mar | C44: 847426.105 | D44: 779235.446 | E44: 899136.905 | F44: 1071420.273 | G44: 1075020.294 | H44: 934447.8046 | I44: 1 | J44: 0.1240192336 | K44: 554362.334 | L44: 424935.341 | M44: 553092.364 | N44: 655502.403 | O44: 672663.125 | P44: 572111.1134 | Q44: 1 | R44: 0.1246571303 | S44: -362336.6912 | U44: =G44-INDEX($C44:$G44,1,aux!$AL$1) -> 227594.189 | V44: 1 | W44: 0.07450670278 | X44: =+IF(INDEX($C44:$G44,1,aux!$AL$1)>0,(G44/INDEX($C44:$G44,1,aux!$AL$1))^(1/($G$3-INDEX($C$3:$G$3,1,aux!$AL$1)))-1,"n.d.") -> 0.06127688717 | Y44: =IF(INDEX($C44:$G44,1,aux!$AL$1)>0,(G44-INDEX($C44:$G44,1,aux!$AL$1))/INDEX($C44:$G44,1,aux!$AL$1),"n.d.") -> 0.2685711328 | AA44: =O44-INDEX($K44:$O44,1,aux!$AL$1) -> 118300.791 | AB44: 1 | AC44: 0.05361543674 | AD44: =+IF(INDEX($K44:$O44,1,aux!$AL$1)>0,(O44/INDEX($K44:$O44,1,aux!$AL$1))^(1/($O$3-INDEX($K$3:$O$3,1,aux!$AL$1)))-1,"n.d.") -> 0.04954478851 | AE44: =IF(INDEX($K44:$O44,1,aux!$AL$1)>0,(O44-INDEX($K44:$O44,1,aux!$AL$1))/INDEX($K44:$O44,1,aux!$AL$1),"n.d.") -> 0.2133997636
A45: 13f | B45: Gomas e resinas (NC 1301) (f) | C45: 931.186 | D45: 862.786 | E45: 663.938 | F45: 458.892 | G45: 1095.108 | H45: 802.382 | I45: 0.000580506511 | J45: 0.000106491556 | K45: 61.847 | L45: 75.03 | M45: 165.759 | N45: 766.284 | O45: 1009.817 | P45: 415.7474 | Q45: 0.0003296251797 | R45: 9.058708456e-05 | S45: -386.6346 | U45: =G45-INDEX($C45:$G45,1,aux!$AL$1) -> 163.922 | V45: =IF($U$52<>0,U45/$U$52, "n.d.") -> 0.0004237840553 | W45: 5.3662564e-05 | X45: =+IF(INDEX($C45:$G45,1,aux!$AL$1)>0,(G45/INDEX($C45:$G45,1,aux!$AL$1))^(1/($G$3-INDEX($C$3:$G$3,1,aux!$AL$1)))-1,"n.d.") -> 0.0413701586 | Y45: =IF(INDEX($C45:$G45,1,aux!$AL$1)>0,(G45-INDEX($C45:$G45,1,aux!$AL$1))/INDEX($C45:$G45,1,aux!$AL$1),"n.d.") -> 0.1760357222 | AA45: =O45-INDEX($K45:$O45,1,aux!$AL$1) -> 947.97 | AB45: =IF($AA$52<>0,AA45/$AA$52, "n.d.") -> 0.002556614004 | AC45: 0.0004296321702 | AD45: =+IF(INDEX($K45:$O45,1,aux!$AL$1)>0,(O45/INDEX($K45:$O45,1,aux!$AL$1))^(1/($O$3-INDEX($K$3:$O$3,1,aux!$AL$1)))-1,"n.d.") -> 1.010161773 | AE45: =IF(INDEX($K45:$O45,1,aux!$AL$1)>0,(O45-INDEX($K45:$O45,1,aux!$AL$1))/INDEX($K45:$O45,1,aux!$AL$1),"n.d.") -> 15.32766343
A46: 38f | B46: Tall oil, essências e colofónias (NC 3803,3805,3806) (f) | C46: 6319.548 | D46: 3260.775 | E46: 3314.861 | F46: 3355.055 | G46: 3233.988 | H46: 3896.8454 | I46: 0.002819285736 | J46: 0.0005171864899 | K46: 10818.327 | L46: 13850.65 | M46: 24640.516 | N46: 28499.553 | O46: 23826.599 | P46: 20327.129 | Q46: 0.01611635707 | R46: 0.004429072445 | S46: 16430.2836 | U46: =G46-INDEX($C46:$G46,1,aux!$AL$1) -> -3085.56 | V46: -0.007977032549 | W46: -0.001010108838 | X46: =+IF(INDEX($C46:$G46,1,aux!$AL$1)>0,(G46/INDEX($C46:$G46,1,aux!$AL$1))^(1/($G$3-INDEX($C$3:$G$3,1,aux!$AL$1)))-1,"n.d.") -> -0.1542089274 | Y46: =IF(INDEX($C46:$G46,1,aux!$AL$1)>0,(G46-INDEX($C46:$G46,1,aux!$AL$1))/INDEX($C46:$G46,1,aux!$AL$1),"n.d.") -> -0.4882564386 | AA46: =O46-INDEX($K46:$O46,1,aux!$AL$1) -> 13008.272 | AB46: 0.03508247135 | AC46: 0.005895515817 | AD46: =+IF(INDEX($K46:$O46,1,aux!$AL$1)>0,(O46/INDEX($K46:$O46,1,aux!$AL$1))^(1/($O$3-INDEX($K$3:$O$3,1,aux!$AL$1)))-1,"n.d.") -> 0.2182193341 | AE46: =IF(INDEX($K46:$O46,1,aux!$AL$1)>0,(O46-INDEX($K46:$O46,1,aux!$AL$1))/INDEX($K46:$O46,1,aux!$AL$1),"n.d.") -> 1.202429174
A47: 44 | B47: Madeira e suas obras | C47: 373913.453 | D47: 384396.683 | E47: 434466.014 | F47: 537662.872 | G47: 518544.612 | H47: 449796.7268 | I47: 0.3254184771 | J47: 0.05969669474 | K47: 278366.83 | L47: 253767.078 | M47: 339251.823 | N47: 438112.354 | O47: 404881.157 | P47: 342875.8484 | Q47: 0.2718489957 | R47: 0.07470912259 | S47: -106920.8784 | U47: =G47-INDEX($C47:$G47,1,aux!$AL$1) -> 144631.159 | V47: 0.3739118549 | W47: 0.04734738977 | X47: =+IF(INDEX($C47:$G47,1,aux!$AL$1)>0,(G47/INDEX($C47:$G47,1,aux!$AL$1))^(1/($G$3-INDEX($C$3:$G$3,1,aux!$AL$1)))-1,"n.d.") -> 0.08518494179 | Y47: =IF(INDEX($C47:$G47,1,aux!$AL$1)>0,(G47-INDEX($C47:$G47,1,aux!$AL$1))/INDEX($C47:$G47,1,aux!$AL$1),"n.d.") -> 0.3868038388 | AA47: =O47-INDEX($K47:$O47,1,aux!$AL$1) -> 126514.327 | AB47: 0.3412009875 | AC47: 0.05733791667 | AD47: =+IF(INDEX($K47:$O47,1,aux!$AL$1)>0,(O47/INDEX($K47:$O47,1,aux!$AL$1))^(1/($O$3-INDEX($K$3:$O$3,1,aux!$AL$1)))-1,"n.d.") -> 0.09819009012 | AE47: =IF(INDEX($K47:$O47,1,aux!$AL$1)>0,(O47-INDEX($K47:$O47,1,aux!$AL$1))/INDEX($K47:$O47,1,aux!$AL$1),"n.d.") -> 0.4544877958
A48: 45 | B48: Cortiça e suas obras | C48: 137614.162 | D48: 122690.68 | E48: 148560.221 | F48: 195141.833 | G48: 219603.335 | H48: 164722.0462 | I48: 0.119172938 | J48: 0.02186179028 | K48: 160609.32 | L48: 139666.325 | M48: 164206.743 | N48: 191444.29 | O48: 205877.282 | P48: 172360.792 | Q48: 0.1366561932 | R48: 0.0375556447 | S48: 7638.7458 | U48: =G48-INDEX($C48:$G48,1,aux!$AL$1) -> 81989.173 | V48: 0.2119648627 | W48: 0.02684050489 | X48: =+IF(INDEX($C48:$G48,1,aux!$AL$1)>0,(G48/INDEX($C48:$G48,1,aux!$AL$1))^(1/($G$3-INDEX($C$3:$G$3,1,aux!$AL$1)))-1,"n.d.") -> 0.1239421292 | Y48: =IF(INDEX($C48:$G48,1,aux!$AL$1)>0,(G48-INDEX($C48:$G48,1,aux!$AL$1))/INDEX($C48:$G48,1,aux!$AL$1),"n.d.") -> 0.5957902283 | AA48: =O48-INDEX($K48:$O48,1,aux!$AL$1) -> 45267.962 | AB48: 0.1220847765 | AC48: 0.02051602134 | AD48: =+IF(INDEX($K48:$O48,1,aux!$AL$1)>0,(O48/INDEX($K48:$O48,1,aux!$AL$1))^(1/($O$3-INDEX($K$3:$O$3,1,aux!$AL$1)))-1,"n.d.") -> 0.06404359216 | AE48: =IF(INDEX($K48:$O48,1,aux!$AL$1)>0,(O48-INDEX($K48:$O48,1,aux!$AL$1))/INDEX($K48:$O48,1,aux!$AL$1),"n.d.") -> 0.2818514019
A49: 46 | B49: Obras de espartaria ou de cestaria | C49: 3654.062 | D49: 3996.113 | E49: 4246.06 | F49: 6354.241 | G49: 8946.526 | H49: 5439.4004 | I49: 0.003935291854 | J49: 0.0007219132686 | K49: 310.687 | L49: 284.225 | M49: 195.294 | N49: 336.091 | O49: 745.461 | P49: 374.3516 | Q49: 0.0002968045343 | R49: 8.156736529e-05 | S49: -5065.0488 | U49: =G49-INDEX($C49:$G49,1,aux!$AL$1) -> 5292.464 | V49: 0.01368249446 | W49: 0.001732575177 | X49: =+IF(INDEX($C49:$G49,1,aux!$AL$1)>0,(G49/INDEX($C49:$G49,1,aux!$AL$1))^(1/($G$3-INDEX($C$3:$G$3,1,aux!$AL$1)))-1,"n.d.") -> 0.2508914645 | Y49: =IF(INDEX($C49:$G49,1,aux!$AL$1)>0,(G49-INDEX($C49:$G49,1,aux!$AL$1))/INDEX($C49:$G49,1,aux!$AL$1),"n.d.") -> 1.448378271 | AA49: =O49-INDEX($K49:$O49,1,aux!$AL$1) -> 434.774 | AB49: 0.001172557462 | AC49: 0.0001970451567 | AD49: =+IF(INDEX($K49:$O49,1,aux!$AL$1)>0,(O49/INDEX($K49:$O49,1,aux!$AL$1))^(1/($O$3-INDEX($K$3:$O$3,1,aux!$AL$1)))-1,"n.d.") -> 0.2445875764 | AE49: =IF(INDEX($K49:$O49,1,aux!$AL$1)>0,(O49-INDEX($K49:$O49,1,aux!$AL$1))/INDEX($K49:$O49,1,aux!$AL$1),"n.d.") -> 1.399395533
A50: 47 | B50: Pastas de madeira | C50: 23829.78 | D50: 15538.308 | E50: 15936.074 | F50: 18105.115 | G50: 17058.946 | H50: 18093.6446 | I50: 0.01309037154 | J50: 0.002401375364 | K50: 124993.315 | L50: 117732.006 | M50: 183174.215 | N50: 244959.602 | O50: 148290.447 | P50: 163829.917 | Q50: 0.129892492 | R50: 0.03569685474 | S50: 145736.2724 | U50: =G50-INDEX($C50:$G50,1,aux!$AL$1) -> -6770.834 | V50: -0.01750449293 | W50: -0.002216543922 | X50: =+IF(INDEX($C50:$G50,1,aux!$AL$1)>0,(G50/INDEX($C50:$G50,1,aux!$AL$1))^(1/($G$3-INDEX($C$3:$G$3,1,aux!$AL$1)))-1,"n.d.") -> -0.08016900343 | Y50: =IF(INDEX($C50:$G50,1,aux!$AL$1)>0,(G50-INDEX($C50:$G50,1,aux!$AL$1))/INDEX($C50:$G50,1,aux!$AL$1),"n.d.") -> -0.2841332988 | AA50: =O50-INDEX($K50:$O50,1,aux!$AL$1) -> 23297.132 | AB50: 0.06283086376 | AC50: 0.01055855922 | AD50: =+IF(INDEX($K50:$O50,1,aux!$AL$1)>0,(O50/INDEX($K50:$O50,1,aux!$AL$1))^(1/($O$3-INDEX($K$3:$O$3,1,aux!$AL$1)))-1,"n.d.") -> 0.04365413225 | AE50: =IF(INDEX($K50:$O50,1,aux!$AL$1)>0,(O50-INDEX($K50:$O50,1,aux!$AL$1))/INDEX($K50:$O50,1,aux!$AL$1),"n.d.") -> 0.186387024
A51: 48 | B51: Papel e cartão | C51: 638451.426 | D51: 569692.829 | E51: 737541.004 | F51: 948573.742 | G51: 803036.594 | H51: 739459.119 | I51: 0.5349831292 | J51: 0.09814047695 | K51: 484128.927 | L51: 446064.082 | M51: 527432.986 | N51: 702371.299 | O51: 645449.7 | P51: 561089.3988 | Q51: 0.4448595323 | R51: 0.122255612 | S51: -178369.7202 | U51: =G51-INDEX($C51:$G51,1,aux!$AL$1) -> 164585.168 | V51: 0.4254985294 | W51: 0.05387966295 | X51: =+IF(INDEX($C51:$G51,1,aux!$AL$1)>0,(G51/INDEX($C51:$G51,1,aux!$AL$1))^(1/($G$3-INDEX($C$3:$G$3,1,aux!$AL$1)))-1,"n.d.") -> 0.05901440796 | Y51: =IF(INDEX($C51:$G51,1,aux!$AL$1)>0,(G51-INDEX($C51:$G51,1,aux!$AL$1))/INDEX($C51:$G51,1,aux!$AL$1),"n.d.") -> 0.2577880811 | AA51: =O51-INDEX($K51:$O51,1,aux!$AL$1) -> 161320.773 | AB51: 0.4350717295 | AC51: 0.0731126447 | AD51: =+IF(INDEX($K51:$O51,1,aux!$AL$1)>0,(O51/INDEX($K51:$O51,1,aux!$AL$1))^(1/($O$3-INDEX($K$3:$O$3,1,aux!$AL$1)))-1,"n.d.") -> 0.07454681844 | AE51: =IF(INDEX($K51:$O51,1,aux!$AL$1)>0,(O51-INDEX($K51:$O51,1,aux!$AL$1))/INDEX($K51:$O51,1,aux!$AL$1),"n.d.") -> 0.3332186201
A52: Subtotal Florestas | C52: 1184713.617 | D52: 1100438.174 | E52: 1344728.172 | F52: 1709651.75 | G52: 1571519.109 | H52: 1382210.164 | I52: 1 | J52: 0.1834459286 | K52: 1059289.253 | L52: 971439.396 | M52: 1239067.336 | N52: 1606489.473 | O52: 1430080.463 | P52: 1261273.184 | Q52: 1 | R52: 0.2748184609 | S52: -120936.9802 | U52: =G52-INDEX($C52:$G52,1,aux!$AL$1) -> 386805.492 | V52: 1 | W52: 0.1266271426 | X52: =+IF(INDEX($C52:$G52,1,aux!$AL$1)>0,(G52/INDEX($C52:$G52,1,aux!$AL$1))^(1/($G$3-INDEX($C$3:$G$3,1,aux!$AL$1)))-1,"n.d.") -> 0.07318988693 | Y52: =IF(INDEX($C52:$G52,1,aux!$AL$1)>0,(G52-INDEX($C52:$G52,1,aux!$AL$1))/INDEX($C52:$G52,1,aux!$AL$1),"n.d.") -> 0.3264970424 | AA52: =O52-INDEX($K52:$O52,1,aux!$AL$1) -> 370791.21 | AB52: 1 | AC52: 0.1680473351 | AD52: =+IF(INDEX($K52:$O52,1,aux!$AL$1)>0,(O52/INDEX($K52:$O52,1,aux!$AL$1))^(1/($O$3-INDEX($K$3:$O$3,1,aux!$AL$1)))-1,"n.d.") -> 0.07791986807 | AE52: =IF(INDEX($K52:$O52,1,aux!$AL$1)>0,(O52-INDEX($K52:$O52,1,aux!$AL$1))/INDEX($K52:$O52,1,aux!$AL$1),"n.d.") -> 0.3500377342
B53: TOTAL | C53: 6368376.895 | D53: 6104930.576 | E53: 6978855.206 | F53: 8798283.131 | G53: 9423057.622 | H53: 7534700.686 | J53: 1 | K53: 3619480.855 | L53: 3571177.168 | M53: 4349596.588 | N53: 5581183.937 | O53: 5825949.704 | P53: 4589477.65 | R53: 1 | S53: -2945223.036 | U53: =G53-INDEX($C53:$G53,1,aux!$AL$1) -> 3054680.727 | W53: 1 | X53: =+IF(INDEX($C53:$G53,1,aux!$AL$1)>0,(G53/INDEX($C53:$G53,1,aux!$AL$1))^(1/($G$3-INDEX($C$3:$G$3,1,aux!$AL$1)))-1,"n.d.") -> 0.102911772 | Y53: =IF(INDEX($C53:$G53,1,aux!$AL$1)>0,(G53-INDEX($C53:$G53,1,aux!$AL$1))/INDEX($C53:$G53,1,aux!$AL$1),"n.d.") -> 0.4796639359 | AA53: =O53-INDEX($K53:$O53,1,aux!$AL$1) -> 2206468.849 | AC53: 1 | AD53: =+IF(INDEX($K53:$O53,1,aux!$AL$1)>0,(O53/INDEX($K53:$O53,1,aux!$AL$1))^(1/($O$3-INDEX($K$3:$O$3,1,aux!$AL$1)))-1,"n.d.") -> 0.1263675023 | AE53: =IF(INDEX($K53:$O53,1,aux!$AL$1)>0,(O53-INDEX($K53:$O53,1,aux!$AL$1))/INDEX($K53:$O53,1,aux!$AL$1),"n.d.") -> 0.6096092057
B54: a - agrícola e agroalimentar; p - pescas; f - florestas
A55: Fonte: GPP a partir de dados INE/Comércio Internacional (2022 definitivos) | S55: 2024-05-08T11:46:17.880

Sheet 5.2_var
A1: ="Principais contributos por produto para a variação das trocas comerciais PT-Espanha_x000D_ no período " & INDEX('5.2'!K3:N3,1,aux!AL1) & "-2023 (NC 2 dígitos - milhares de euros) Produtos agrícolas e agroalimentares, do mar e da floresta" -> Principais contributos por produto para a variação das trocas comerciais PT-Espanha no período 2019-2023 (NC 2 dígitos - milhares de euros) Produtos agrícolas e agroalimentares, do mar e da floresta
E5: aumento das importações | J5: aumento das exportações
E17: redução das importações | J17: redução das exportações
A28: Fonte: GPP a partir de dados INE/Comércio Internacional (2022 definitivos) | F28: a - agrícola e agroalimentar; p - mar; f - florestas | H28: ='3'!Y116 -> 2024-05-08T11:46:17.880
A29: Cód. NC | B29: Descritivo | C29: ="Variação das Importações " & INDEX('5.2'!K3:N3,1,aux!AL1) & "-"& '5.2'!O3 &"" -> Variação das Importações 2019-2023 | F29: Cód. NC | G29: Descritivo | H29: ="Variação das Exportações " & INDEX('5.2'!K3:N3,1,aux!AL1) & "-"& '5.2'!O3 &"" -> Variação das Exportações 2019-2023
C30: variação total em valor | D30: % do aumento/ redução total | H30: variação total em valor | I30: % do aumento/ redução total
A31: =IF(C31>0,aux!AU6,"") -> 15 | B31: =IF(C31>0,aux!AV6,"") -> Gorduras e óleos animais ou vegetais | C31: =IF(aux!AW6>0,aux!AW6,0) -> 367847.336 | D31: =IF(SUM($C$31:$C$41)<>0,C31/SUM($C$31:$C$41),0) -> 0.1198892296 | F31: =IF(H31>0,aux!AZ6,"") -> 15 | G31: =IF(H31>0,aux!BA6,"") -> Gorduras e óleos animais ou vegetais | H31: =IF(aux!BB6>0,aux!BB6,0) -> 524324.569 | I31: =IF(SUM($H$31:$H$41)<>0,H31/SUM($H$31:$H$41),0) -> 0.2367277351
A32: =IF(C32>0,aux!AU7,"") -> 02 | B32: =IF(C32>0,aux!AV7,"") -> Carnes e miudezas | C32: =IF(aux!AW7>0,aux!AW7,0) -> 266339.375 | D32: =IF(SUM($C$31:$C$41)<>0,C32/SUM($C$31:$C$41),0) -> 0.0868056374 | F32: =IF(H32>0,aux!AZ7,"") -> 08 | G32: =IF(H32>0,aux!BA7,"") -> Frutas | H32: =IF(aux!BB7>0,aux!BB7,0) -> 196487.728 | I32: =IF(SUM($H$31:$H$41)<>0,H32/SUM($H$31:$H$41),0) -> 0.0887124075
A33: =IF(C33>0,aux!AU8,"") -> 19a | B33: =IF(C33>0,aux!AV8,"") -> Preparações à base de cereais (exc. NC 19022010) (a) | C33: =IF(aux!AW8>0,aux!AW8,0) -> 252394.334 | D33: 0.0822606535 | F33: =IF(H33>0,aux!AZ8,"") -> 48 | G33: =IF(H33>0,aux!BA8,"") -> Papel e cartão | H33: =IF(aux!BB8>0,aux!BB8,0) -> 161320.773 | I33: 0.07283484978
A34: =IF(C34>0,aux!AU9,"") -> 07 | B34: =IF(C34>0,aux!AV9,"") -> Produtos hortícolas | C34: =IF(aux!AW9>0,aux!AW9,0) -> 214638.249 | D34: 0.06995514657 | F34: =IF(H34>0,aux!AZ9,"") -> 17 | G34: =IF(H34>0,aux!BA9,"") -> Açúcares e produtos de confeitaria | H34: =IF(aux!BB9>0,aux!BB9,0) -> 140786.126 | I34: 0.06356364496
A35: =IF(C35>0,aux!AU10,"") -> 04 | B35: =IF(C35>0,aux!AV10,"") -> Leite e laticínios; ovos; mel, etc. | C35: =IF(aux!AW10>0,aux!AW10,0) -> 182607.558 | D35: 0.05951566668 | F35: =IF(H35>0,aux!AZ10,"") -> 07 | G35: =IF(H35>0,aux!BA10,"") -> Produtos hortícolas | H35: =IF(aux!BB10>0,aux!BB10,0) -> 129588.302 | I35: 0.0585079301
A36: =IF(C36>0,aux!AU11,"") -> 21 | B36: =IF(C36>0,aux!AV11,"") -> Preparações alimentícias diversas | C36: =IF(aux!AW11>0,aux!AW11,0) -> 179590.676 | D36: 0.05853240101 | F36: =IF(H36>0,aux!AZ11,"") -> 44 | G36: =IF(H36>0,aux!BA11,"") -> Madeira e suas obras | H36: =IF(aux!BB11>0,aux!BB11,0) -> 126514.327 | I36: 0.05712005857
A37: =IF(C37>0,aux!AU12,"") -> 48 | B37: =IF(C37>0,aux!AV12,"") -> Papel e cartão | C37: =IF(aux!AW12>0,aux!AW12,0) -> 164585.168 | D37: 0.05364178847 | F37: =IF(H37>0,aux!AZ12,"") -> 04 | G37: =IF(H37>0,aux!BA12,"") -> Leite e laticínios; ovos; mel, etc. | H37: =IF(aux!BB12>0,aux!BB12,0) -> 111099.415 | I37: 0.05016036715
A38: =IF(C38>0,aux!AU13,"") -> 03 | B38: =IF(C38>0,aux!AV13,"") -> Peixes e crustáceos | C38: =IF(aux!AW13>0,aux!AW13,0) -> 164051.252 | D38: 0.05346777395 | F38: =IF(H38>0,aux!AZ13,"") -> 22 | G38: =IF(H38>0,aux!BA13,"") -> Bebidas, líquidos alcoólicos e vinagres | H38: =IF(aux!BB13>0,aux!BB13,0) -> 81418.386 | I38: 0.03675965472
A39: =IF(C39>0,aux!AU14,"") -> 44 | B39: =IF(C39>0,aux!AV14,"") -> Madeira e suas obras | C39: =IF(aux!AW14>0,aux!AW14,0) -> 144631.159 | D39: 0.04713835476 | F39: =IF(H39>0,aux!AZ14,"") -> 01 | G39: =IF(H39>0,aux!BA14,"") -> Animais vivos | H39: =IF(aux!BB14>0,aux!BB14,0) -> 80094.026 | I39: 0.03616171832
A40: =IF(C40>0,aux!AU15,"") -> 20 | B40: =IF(C40>0,aux!AV15,"") -> Preparações de produtos vegetais | C40: =IF(aux!AW15>0,aux!AW15,0) -> 134255.48 | D40: 0.04375670145 | F40: =IF(H40>0,aux!AZ15,"") -> 23a | G40: =IF(H40>0,aux!BA15,"") -> Resíduos indústrias alimentares; alimentos p/ animais (exc. NC 230120) (a) | H40: =IF(aux!BB15>0,aux!BB15,0) -> 78609.585 | I40: 0.03549150682
B41: Outros contributos para o aumento das importações | C41: =SUMIF(aux!AW16:AW51,">0") -> 997286.12 | D41: 0.3250366466 | G41: Outros contributos para o aumento das exportações | H41: =SUMIF(aux!BB16:BB51,">0") -> 584641.169 | I41: 0.263960127
B42: Outros contributos para a redução das importações | C42: =SUMIF(aux!AW6:AW41,"<0") -> 0 | D42: =IF(SUM($C$42:$C$52)<>0,C42/SUM($C$42:$C$52),0) -> 0 | G42: Outros contributos para a redução das exportações | H42: =SUMIF(aux!BB6:BB41,"<0") -> 0 | I42: =IF(SUM($H$42:$H$52)<>0,H42/SUM($H$42:$H$52),0) -> 0
A43: =IF(C43<>0,aux!AU42,"") ->  | B43: =IF(C43<0,aux!AV42,"") ->  | C43: =IF(aux!AW42<0,aux!AW42,0) -> 0 | D43: =IF(SUM($C$42:$C$52)<>0,C43/SUM($C$42:$C$52),0) -> 0 | F43: =IF(H43<>0,aux!AZ42,"") ->  | G43: =IF(H43<>0,aux!BA42,"") ->  | H43: =IF(aux!BB42<0,aux!BB42,0) -> 0 | I43: =IF(SUM($H$42:$H$52)<>0,H43/SUM($H$42:$H$52),0) -> 0
A44: =IF(C44<>0,aux!AU43,"") ->  | B44: =IF(C44<0,aux!AV43,"") ->  | C44: =IF(aux!AW43<0,aux!AW43,0) -> 0 | D44: 0 | F44: =IF(H44<>0,aux!AZ43,"") ->  | G44: =IF(H44<>0,aux!BA43,"") ->  | H44: =IF(aux!BB43<0,aux!BB43,0) -> 0 | I44: 0
A45: =IF(C45<>0,aux!AU44,"") ->  | B45: =IF(C45<0,aux!AV44,"") ->  | C45: =IF(aux!AW44<0,aux!AW44,0) -> 0 | D45: 0 | F45: =IF(H45<>0,aux!AZ44,"") ->  | G45: =IF(H45<>0,aux!BA44,"") ->  | H45: =IF(aux!BB44<0,aux!BB44,0) -> 0 | I45: 0
A46: =IF(C46<>0,aux!AU45,"") ->  | B46: =IF(C46<0,aux!AV45,"") ->  | C46: =IF(aux!AW45<0,aux!AW45,0) -> 0 | D46: 0 | F46: =IF(H46<>0,aux!AZ45,"") ->  | G46: =IF(H46<>0,aux!BA45,"") ->  | H46: =IF(aux!BB45<0,aux!BB45,0) -> 0 | I46: 0
A47: =IF(C47<>0,aux!AU46,"") -> 53 | B47: =IF(C47<0,aux!AV46,"") -> Linho e cânhamo em bruto (NC 5301-5302) | C47: =IF(aux!AW46<0,aux!AW46,0) -> -1.037 | D47: 7.65540773e-05 | F47: =IF(H47<>0,aux!AZ46,"") ->  | G47: =IF(H47<>0,aux!BA46,"") ->  | H47: =IF(aux!BB46<0,aux!BB46,0) -> 0 | I47: 0
A48: =IF(C48<>0,aux!AU47,"") -> 51 | B48: =IF(C48<0,aux!AV47,"") -> Lã não cardada (NC 5101-5103) | C48: =IF(aux!AW47<0,aux!AW47,0) -> -194.68 | D48: 0.01437179148 | F48: =IF(H48<>0,aux!AZ47,"") -> 51 | G48: =IF(H48<>0,aux!BA47,"") -> Lã não cardada (NC 5101-5103) | H48: =IF(aux!BB47<0,aux!BB47,0) -> -651.161 | I48: 0.07737586472
A49: =IF(C49<>0,aux!AU48,"") -> 05p | B49: =IF(C49<0,aux!AV48,"") -> Outros produtos de pescado (NC 0508, 051191) (p) | C49: =IF(aux!AW48<0,aux!AW48,0) -> -373.376 | D49: 0.0275636019 | F49: =IF(H49<>0,aux!AZ48,"") -> 38a | G49: =IF(H49<>0,aux!BA48,"") -> Agentes de acabamento, ácidos gordos, sorbitol (NC 380910, 382311-12-13-19-70, 382460) (a) | H49: =IF(aux!BB48<0,aux!BB48,0) -> -844.847 | I49: 0.1003910971
A50: =IF(C50<>0,aux!AU49,"") -> 38f | B50: =IF(C50<0,aux!AV49,"") -> Tall oil, essências e colofónias (NC 3803,3805,3806) (f) | C50: =IF(aux!AW49<0,aux!AW49,0) -> -3085.56 | D50: 0.2277841839 | F50: =IF(H50<>0,aux!AZ49,"") -> 13a | G50: =IF(H50<>0,aux!BA49,"") -> Sucos e extratos vegetais (exc. NC 1301) (a) | H50: =IF(aux!BB49<0,aux!BB49,0) -> -1420.219 | I50: 0.1687611408
A51: =IF(C51<>0,aux!AU50,"") -> 19p | B51: =IF(C51<0,aux!AV50,"") -> Massas recheadas com pescado (NC 19022010) (p) | C51: =IF(aux!AW50<0,aux!AW50,0) -> -3120.493 | D51: 0.2303630302 | F51: =IF(H51<>0,aux!AZ50,"") -> 23p | G51: =IF(H51<>0,aux!BA50,"") -> Farinhas de pescado (NC 230120) (p) | H51: =IF(aux!BB50<0,aux!BB50,0) -> -1598.686 | I51: 0.1899679368
A52: =IF(C52<>0,aux!AU51,"") -> 47 | B52: =IF(C52<0,aux!AV51,"") -> Pastas de madeira | C52: =IF(aux!AW51<0,aux!AW51,0) -> -6770.834 | D52: 0.4998408384 | F52: =IF(H52<>0,aux!AZ51,"") -> 24 | G52: =IF(H52<>0,aux!BA51,"") -> Tabaco | H52: =IF(aux!BB51<0,aux!BB51,0) -> -3900.644 | I52: 0.4635039606
A53: TOTAL | C53: =SUM(C31:C52) -> 3054680.727 | F53: TOTAL | H53: =SUM(H31:H52) -> 2206468.849

Sheet 5.2A
A1: Trocas comerciais Portugal-Espanha 2019-2023 em milhares de euros (NC 4 dígitos) | G1: Produtos agrícolas e agroalimentares, do mar e da floresta
A2: Cód. NC | B2: Descritivo | C2: Importações | K2: Exportações | S2: Saldo quinquénio (exp-imp) | T2: Evolução das importações | U2: =+"Variação das Importações " & INDEX(K3:N3,1,aux!AL1) & "-"& '5.2'!O3 &"" -> Variação das Importações 2019-2023 | Z2: Evolução das exportações | AA2: ="Variação das Exportações " & INDEX(K3:N3,1,aux!AL1) & "-"& '5.2'!O3 &"" -> Variação das Exportações 2019-2023
C3: 2019 | D3: 2020 | E3: 2021 | F3: 2022 | G3: 2023 | H3: média quinquénio | I3: % Subtot | J3: % Total | K3: 2019 | L3: 2020 | M3: 2021 | N3: 2022 | O3: 2023 | P3: média quinquénio | Q3: % Subtot | R3: % Total | U3: variação total em valor | V3: % no subtotal de variação | W3: % no total de variação | X3: taxa de variação média anual | Y3: taxa de variação total | AA3: variação total em valor | AB3: % no subtotal de variação | AC3: % no total de variação | AD3: taxa de variação média anual | AE3: taxa de variação total | AX3: filtro
A4: 0101 | B4: Equídeos vivos | C4: 545.377 | D4: 0 | E4: 59.118 | F4: 0 | G4: 55.089 | H4: 131.9168 | I4: 2.528089691e-05 | J4: 1.750790184e-05 | K4: 224.129 | L4: 112.435 | M4: 9.95 | N4: 476.605 | O4: 107.29 | P4: 186.0818 | Q4: 6.75165084e-05 | R4: 4.054531129e-05 | S4: 54.165 | U4: =G4-INDEX($C4:$G4,1,aux!$AL$1) -> -490.288 | V4: =IF($U$237<>0,U4/$U$237, "n.d.") -> -0.000200914563 | W4: =IF($U$322<>0,U4/$U$322, "n.d.") -> -0.0001605038444 | X4: =+IF(INDEX($C4:$G4,1,aux!$AL$1)>0,(G4/INDEX($C4:$G4,1,aux!$AL$1))^(1/($G$3-INDEX($C$3:$G$3,1,aux!$AL$1)))-1,"n.d.") -> -0.4362429089 | Y4: =IF(INDEX($C4:$G4,1,aux!$AL$1)>0,(G4-INDEX($C4:$G4,1,aux!$AL$1))/INDEX($C4:$G4,1,aux!$AL$1),"n.d.") -> -0.8989891396 | AA4: =O4-INDEX($K4:$O4,1,aux!$AL$1) -> -116.839 | AB4: =IF($AA$237<>0,AA4/$AA$237, "n.d.") -> -6.803340812e-05 | AC4: =IF($AA$322<>0,AA4/$AA$322, "n.d.") -> -5.29529343e-05 | AD4: =+IF(INDEX($K4:$O4,1,aux!$AL$1)>0,(O4/INDEX($K4:$O4,1,aux!$AL$1))^(1/($O$3-INDEX($K$3:$O$3,1,aux!$AL$1)))-1,"n.d.") -> -0.1682069296 | AE4: =IF(INDEX($K4:$O4,1,aux!$AL$1)>0,(O4-INDEX($K4:$O4,1,aux!$AL$1))/INDEX($K4:$O4,1,aux!$AL$1),"n.d.") -> -0.5213024642 | AX4: =+LEFT(A4,2) -> 01
A5: 0102 | B5: Bovinos vivos | C5: 1293.169 | D5: 6353.44 | E5: 2995.011 | F5: 4606.035 | G5: 3237.459 | H5: 3697.0228 | I5: 0.0007085075766 | J5: 0.0004906661796 | K5: 16123.568 | L5: 15915.908 | M5: 12182.508 | N5: 17408.186 | O5: 23334.584 | P5: 16992.9508 | Q5: 0.006165593333 | R5: 0.003702589291 | S5: 13295.928 | U5: =G5-INDEX($C5:$G5,1,aux!$AL$1) -> 1944.29 | V5: 0.0007967483922 | W5: 0.0006364953243 | X5: =+IF(INDEX($C5:$G5,1,aux!$AL$1)>0,(G5/INDEX($C5:$G5,1,aux!$AL$1))^(1/($G$3-INDEX($C$3:$G$3,1,aux!$AL$1)))-1,"n.d.") -> 0.2578743115 | Y5: =IF(INDEX($C5:$G5,1,aux!$AL$1)>0,(G5-INDEX($C5:$G5,1,aux!$AL$1))/INDEX($C5:$G5,1,aux!$AL$1),"n.d.") -> 1.503508049 | AA5: =O5-INDEX($K5:$O5,1,aux!$AL$1) -> 7211.016 | AB5: 0.004198854787 | AC5: 0.003268124997 | AD5: =+IF(INDEX($K5:$O5,1,aux!$AL$1)>0,(O5/INDEX($K5:$O5,1,aux!$AL$1))^(1/($O$3-INDEX($K$3:$O$3,1,aux!$AL$1)))-1,"n.d.") -> 0.09681839962 | AE5: =IF(INDEX($K5:$O5,1,aux!$AL$1)>0,(O5-INDEX($K5:$O5,1,aux!$AL$1))/INDEX($K5:$O5,1,aux!$AL$1),"n.d.") -> 0.4472345079 | AX5: 01
A6: 0103 | B6: Suínos vivos | C6: 139572.496 | D6: 127465.33 | E6: 100726.843 | F6: 148515.595 | G6: 193143.753 | H6: 141884.8034 | I6: 0.02719119239 | J6: 0.01883084801 | K6: 41427.316 | L6: 63989.936 | M6: 55879.847 | N6: 60692.638 | O6: 95197.279 | P6: 63437.4032 | Q6: 0.02301714604 | R6: 0.01382235802 | S6: -78447.4002 | U6: =G6-INDEX($C6:$G6,1,aux!$AL$1) -> 53571.257 | V6: 0.0219529046 | W6: 0.01753743248 | X6: =+IF(INDEX($C6:$G6,1,aux!$AL$1)>0,(G6/INDEX($C6:$G6,1,aux!$AL$1))^(1/($G$3-INDEX($C$3:$G$3,1,aux!$AL$1)))-1,"n.d.") -> 0.0846015112 | Y6: =IF(INDEX($C6:$G6,1,aux!$AL$1)>0,(G6-INDEX($C6:$G6,1,aux!$AL$1))/INDEX($C6:$G6,1,aux!$AL$1),"n.d.") -> 0.3838238803 | AA6: =O6-INDEX($K6:$O6,1,aux!$AL$1) -> 53769.963 | AB6: 0.03130935593 | AC6: 0.02436923731 | AD6: =+IF(INDEX($K6:$O6,1,aux!$AL$1)>0,(O6/INDEX($K6:$O6,1,aux!$AL$1))^(1/($O$3-INDEX($K$3:$O$3,1,aux!$AL$1)))-1,"n.d.") -> 0.2312165214 | AE6: =IF(INDEX($K6:$O6,1,aux!$AL$1)>0,(O6-INDEX($K6:$O6,1,aux!$AL$1))/INDEX($K6:$O6,1,aux!$AL$1),"n.d.") -> 1.297934991 | AX6: 01
A7: 0104 | B7: Ovinos ou caprinos vivos | C7: 18183.748 | D7: 16960.901 | E7: 22131.906 | F7: 20893.57 | G7: 8769.684 | H7: 17387.9618 | I7: 0.00333227663 | J7: 0.002307717655 | K7: 4987.942 | L7: 7346.251 | M7: 1633.293 | N7: 1042.271 | O7: 5893.721 | P7: 4180.6956 | Q7: 0.00151689187 | R7: 0.0009109305935 | S7: -13207.2662 | U7: =G7-INDEX($C7:$G7,1,aux!$AL$1) -> -9414.064 | V7: -0.003857778601 | W7: -0.003081848756 | X7: =+IF(INDEX($C7:$G7,1,aux!$AL$1)>0,(G7/INDEX($C7:$G7,1,aux!$AL$1))^(1/($G$3-INDEX($C$3:$G$3,1,aux!$AL$1)))-1,"n.d.") -> -0.1666544222 | Y7: =IF(INDEX($C7:$G7,1,aux!$AL$1)>0,(G7-INDEX($C7:$G7,1,aux!$AL$1))/INDEX($C7:$G7,1,aux!$AL$1),"n.d.") -> -0.5177185694 | AA7: =O7-INDEX($K7:$O7,1,aux!$AL$1) -> 905.779 | AB7: 0.0005274200599 | AC7: 0.0004105106675 | AD7: =+IF(INDEX($K7:$O7,1,aux!$AL$1)>0,(O7/INDEX($K7:$O7,1,aux!$AL$1))^(1/($O$3-INDEX($K$3:$O$3,1,aux!$AL$1)))-1,"n.d.") -> 0.04259837711 | AE7: =IF(INDEX($K7:$O7,1,aux!$AL$1)>0,(O7-INDEX($K7:$O7,1,aux!$AL$1))/INDEX($K7:$O7,1,aux!$AL$1),"n.d.") -> 0.1815937314 | AX7: 01
A8: 0105 | B8: Aves de capoeira vivas | C8: 17425.743 | D8: 19169.617 | E8: 18400.373 | F8: 23428.005 | G8: 23166.419 | H8: 20318.0314 | I8: 0.003893803194 | J8: 0.002696594363 | K8: 15538.749 | L8: 11972.989 | M8: 14893.477 | N8: 21913.653 | O8: 26494.977 | P8: 18162.769 | Q8: 0.006590041292 | R8: 0.003957480651 | S8: -2155.2624 | U8: =G8-INDEX($C8:$G8,1,aux!$AL$1) -> 5740.676 | V8: 0.002352465102 | W8: 0.00187930475 | X8: =+IF(INDEX($C8:$G8,1,aux!$AL$1)>0,(G8/INDEX($C8:$G8,1,aux!$AL$1))^(1/($G$3-INDEX($C$3:$G$3,1,aux!$AL$1)))-1,"n.d.") -> 0.07378393112 | Y8: =IF(INDEX($C8:$G8,1,aux!$AL$1)>0,(G8-INDEX($C8:$G8,1,aux!$AL$1))/INDEX($C8:$G8,1,aux!$AL$1),"n.d.") -> 0.3294365124 | AA8: =O8-INDEX($K8:$O8,1,aux!$AL$1) -> 10956.228 | AB8: 0.006379629499 | AC8: 0.004965503141 | AD8: =+IF(INDEX($K8:$O8,1,aux!$AL$1)>0,(O8/INDEX($K8:$O8,1,aux!$AL$1))^(1/($O$3-INDEX($K$3:$O$3,1,aux!$AL$1)))-1,"n.d.") -> 0.1427122256 | AE8: =IF(INDEX($K8:$O8,1,aux!$AL$1)>0,(O8-INDEX($K8:$O8,1,aux!$AL$1))/INDEX($K8:$O8,1,aux!$AL$1),"n.d.") -> 0.705090738 | AX8: 01
A9: 0106 | B9: Outros animais vivos | C9: 3744.706 | D9: 4223.573 | E9: 8845.046 | F9: 4349.442 | G9: 3994.28 | H9: 5031.4094 | I9: 0.0009642330799 | J9: 0.0006677649995 | K9: 5704.637 | L9: 8194.968 | M9: 8165.367 | N9: 11146.464 | O9: 13072.516 | P9: 9256.7904 | Q9: 0.003358663592 | R9: 0.002016959468 | S9: 4225.381 | U9: =G9-INDEX($C9:$G9,1,aux!$AL$1) -> 249.574 | V9: 0.0001022726462 | W9: 8.170215558e-05 | X9: =+IF(INDEX($C9:$G9,1,aux!$AL$1)>0,(G9/INDEX($C9:$G9,1,aux!$AL$1))^(1/($G$3-INDEX($C$3:$G$3,1,aux!$AL$1)))-1,"n.d.") -> 0.01626084877 | Y9: =IF(INDEX($C9:$G9,1,aux!$AL$1)>0,(G9-INDEX($C9:$G9,1,aux!$AL$1))/INDEX($C9:$G9,1,aux!$AL$1),"n.d.") -> 0.06664715468 | AA9: =O9-INDEX($K9:$O9,1,aux!$AL$1) -> 7367.879 | AB9: 0.004290193506 | AC9: 0.003339217322 | AD9: =+IF(INDEX($K9:$O9,1,aux!$AL$1)>0,(O9/INDEX($K9:$O9,1,aux!$AL$1))^(1/($O$3-INDEX($K$3:$O$3,1,aux!$AL$1)))-1,"n.d.") -> 0.2303616672 | AE9: =IF(INDEX($K9:$O9,1,aux!$AL$1)>0,(O9-INDEX($K9:$O9,1,aux!$AL$1))/INDEX($K9:$O9,1,aux!$AL$1),"n.d.") -> 1.291559656 | AX9: 01
A10: 01SS | B10: Animais vivos | C10: 0 | D10: 0 | E10: 0 | F10: 0 | G10: 0 | H10: 0 | I10: 0 | J10: 0 | K10: 0 | L10: 0 | M10: 0 | N10: 0 | O10: 0 | P10: 0 | Q10: 0 | R10: 0 | S10: 0 | U10: =G10-INDEX($C10:$G10,1,aux!$AL$1) -> 0 | V10: 0 | W10: 0 | X10: =+IF(INDEX($C10:$G10,1,aux!$AL$1)>0,(G10/INDEX($C10:$G10,1,aux!$AL$1))^(1/($G$3-INDEX($C$3:$G$3,1,aux!$AL$1)))-1,"n.d.") -> n.d. | Y10: =IF(INDEX($C10:$G10,1,aux!$AL$1)>0,(G10-INDEX($C10:$G10,1,aux!$AL$1))/INDEX($C10:$G10,1,aux!$AL$1),"n.d.") -> n.d. | AA10: =O10-INDEX($K10:$O10,1,aux!$AL$1) -> 0 | AB10: 0 | AC10: 0 | AD10: =+IF(INDEX($K10:$O10,1,aux!$AL$1)>0,(O10/INDEX($K10:$O10,1,aux!$AL$1))^(1/($O$3-INDEX($K$3:$O$3,1,aux!$AL$1)))-1,"n.d.") -> n.d. | AE10: =IF(INDEX($K10:$O10,1,aux!$AL$1)>0,(O10-INDEX($K10:$O10,1,aux!$AL$1))/INDEX($K10:$O10,1,aux!$AL$1),"n.d.") -> n.d. | AX10: 01
A11: 0201 | B11: Carnes de bovino, frescas ou refrigeradas | C11: 280283.335 | D11: 239468.109 | E11: 260599.842 | F11: 358662.888 | G11: 389911.876 | H11: 305785.21 | I11: 0.05860151528 | J11: 0.04058359087 | K11: 19492.683 | L11: 23009.643 | M11: 27825.789 | N11: 40076.306 | O11: 39764.905 | P11: 30033.8652 | Q11: 0.01089725976 | R11: 0.006544070478 | S11: -275751.3448 | U11: =G11-INDEX($C11:$G11,1,aux!$AL$1) -> 109628.541 | V11: 0.04492455538 | W11: 0.03588870681 | X11: =+IF(INDEX($C11:$G11,1,aux!$AL$1)>0,(G11/INDEX($C11:$G11,1,aux!$AL$1))^(1/($G$3-INDEX($C$3:$G$3,1,aux!$AL$1)))-1,"n.d.") -> 0.08603118665 | Y11: =IF(INDEX($C11:$G11,1,aux!$AL$1)>0,(G11-INDEX($C11:$G11,1,aux!$AL$1))/INDEX($C11:$G11,1,aux!$AL$1),"n.d.") -> 0.3911347102 | AA11: =O11-INDEX($K11:$O11,1,aux!$AL$1) -> 20272.222 | AB11: 0.011804178 | AC11: 0.009187631182 | AD11: =+IF(INDEX($K11:$O11,1,aux!$AL$1)>0,(O11/INDEX($K11:$O11,1,aux!$AL$1))^(1/($O$3-INDEX($K$3:$O$3,1,aux!$AL$1)))-1,"n.d.") -> 0.1951078039 | AE11: =IF(INDEX($K11:$O11,1,aux!$AL$1)>0,(O11-INDEX($K11:$O11,1,aux!$AL$1))/INDEX($K11:$O11,1,aux!$AL$1),"n.d.") -> 1.039991365 | AX11: 02
A12: 0202 | B12: Carnes de bovino, congeladas | C12: 38854.2 | D12: 33607.61 | E12: 38434.151 | F12: 51930.917 | G12: 58261.381 | H12: 44217.6518 | I12: 0.008473991916 | J12: 0.005868534616 | K12: 5067.457 | L12: 1746.147 | M12: 1451.166 | N12: 2002.351 | O12: 2428.687 | P12: 2539.1616 | Q12: 0.0009212901288 | R12: 0.00055325721 | S12: -41678.4902 | U12: =G12-INDEX($C12:$G12,1,aux!$AL$1) -> 19407.181 | V12: 0.007952846674 | W12: 0.006353260041 | X12: =+IF(INDEX($C12:$G12,1,aux!$AL$1)>0,(G12/INDEX($C12:$G12,1,aux!$AL$1))^(1/($G$3-INDEX($C$3:$G$3,1,aux!$AL$1)))-1,"n.d.") -> 0.106587349 | Y12: =IF(INDEX($C12:$G12,1,aux!$AL$1)>0,(G12-INDEX($C12:$G12,1,aux!$AL$1))/INDEX($C12:$G12,1,aux!$AL$1),"n.d.") -> 0.4994873399 | AA12: =O12-INDEX($K12:$O12,1,aux!$AL$1) -> -2638.77 | AB12: -0.001536511921 | AC12: -0.00119592443 | AD12: =+IF(INDEX($K12:$O12,1,aux!$AL$1)>0,(O12/INDEX($K12:$O12,1,aux!$AL$1))^(1/($O$3-INDEX($K$3:$O$3,1,aux!$AL$1)))-1,"n.d.") -> -0.1679577706 | AE12: =IF(INDEX($K12:$O12,1,aux!$AL$1)>0,(O12-INDEX($K12:$O12,1,aux!$AL$1))/INDEX($K12:$O12,1,aux!$AL$1),"n.d.") -> -0.5207286416 | AX12: 02
A13: 0203 | B13: Carnes de suíno | C13: 275507.26 | D13: 247065.489 | E13: 263624.299 | F13: 311057.305 | G13: 327575.698 | H13: 284966.0102 | I13: 0.0546116668 | J13: 0.0378204818 | K13: 23225.136 | L13: 23966.401 | M13: 26280.429 | N13: 29415.339 | O13: 43249.594 | P13: 29227.3798 | Q13: 0.01060464072 | R13: 0.0063683456 | S13: -255738.6304 | U13: =G13-INDEX($C13:$G13,1,aux!$AL$1) -> 52068.438 | V13: 0.02133706611 | W13: 0.01704545995 | X13: =+IF(INDEX($C13:$G13,1,aux!$AL$1)>0,(G13/INDEX($C13:$G13,1,aux!$AL$1))^(1/($G$3-INDEX($C$3:$G$3,1,aux!$AL$1)))-1,"n.d.") -> 0.04422637134 | Y13: =IF(INDEX($C13:$G13,1,aux!$AL$1)>0,(G13-INDEX($C13:$G13,1,aux!$AL$1))/INDEX($C13:$G13,1,aux!$AL$1),"n.d.") -> 0.1889911649 | AA13: =O13-INDEX($K13:$O13,1,aux!$AL$1) -> 20024.458 | AB13: 0.01165990914 | AC13: 0.009075341358 | AD13: =+IF(INDEX($K13:$O13,1,aux!$AL$1)>0,(O13/INDEX($K13:$O13,1,aux!$AL$1))^(1/($O$3-INDEX($K$3:$O$3,1,aux!$AL$1)))-1,"n.d.") -> 0.1681697134 | AE13: =IF(INDEX($K13:$O13,1,aux!$AL$1)>0,(O13-INDEX($K13:$O13,1,aux!$AL$1))/INDEX($K13:$O13,1,aux!$AL$1),"n.d.") -> 0.8621890524 | AX13: 02
A14: 0204 | B14: Carnes de ovino ou caprino | C14: 14774.245 | D14: 14184.609 | E14: 17991.954 | F14: 25873.985 | G14: 23210.801 | H14: 19207.1188 | I14: 0.003680904861 | J14: 0.00254915485 | K14: 475.508 | L14: 1414.873 | M14: 398.846 | N14: 1721.203 | O14: 2239.755 | P14: 1250.037 | Q14: 0.0004535539403 | R14: 0.0002723702119 | S14: -17957.0818 | U14: =G14-INDEX($C14:$G14,1,aux!$AL$1) -> 8436.556 | V14: 0.003457206707 | W14: 0.002761845428 | X14: =+IF(INDEX($C14:$G14,1,aux!$AL$1)>0,(G14/INDEX($C14:$G14,1,aux!$AL$1))^(1/($G$3-INDEX($C$3:$G$3,1,aux!$AL$1)))-1,"n.d.") -> 0.1195569953 | Y14: =IF(INDEX($C14:$G14,1,aux!$AL$1)>0,(G14-INDEX($C14:$G14,1,aux!$AL$1))/INDEX($C14:$G14,1,aux!$AL$1),"n.d.") -> 0.5710312777 | AA14: =O14-INDEX($K14:$O14,1,aux!$AL$1) -> 1764.247 | AB14: 0.001027291711 | AC14: 0.0007995793826 | AD14: =+IF(INDEX($K14:$O14,1,aux!$AL$1)>0,(O14/INDEX($K14:$O14,1,aux!$AL$1))^(1/($O$3-INDEX($K$3:$O$3,1,aux!$AL$1)))-1,"n.d.") -> 0.4731964773 | AE14: =IF(INDEX($K14:$O14,1,aux!$AL$1)>0,(O14-INDEX($K14:$O14,1,aux!$AL$1))/INDEX($K14:$O14,1,aux!$AL$1),"n.d.") -> 3.710236211 | AX14: 02
A15: 0205 | B15: Carnes de equídeo | C15: 6.257 | D15: 3.96 | E15: 8.254 | F15: 18.019 | G15: 18.219 | H15: 10.9418 | I15: 2.096916525e-06 | J15: 1.452187745e-06 | K15: 0 | L15: 0 | M15: 0 | N15: 0 | O15: 0 | P15: 0 | Q15: 0 | R15: 0 | S15: -10.9418 | U15: =G15-INDEX($C15:$G15,1,aux!$AL$1) -> 11.962 | V15: 4.901894403e-06 | W15: 3.915957532e-06 | X15: =+IF(INDEX($C15:$G15,1,aux!$AL$1)>0,(G15/INDEX($C15:$G15,1,aux!$AL$1))^(1/($G$3-INDEX($C$3:$G$3,1,aux!$AL$1)))-1,"n.d.") -> 0.3062899789 | Y15: =IF(INDEX($C15:$G15,1,aux!$AL$1)>0,(G15-INDEX($C15:$G15,1,aux!$AL$1))/INDEX($C15:$G15,1,aux!$AL$1),"n.d.") -> 1.911778808 | AA15: =O15-INDEX($K15:$O15,1,aux!$AL$1) -> 0 | AB15: 0 | AC15: 0 | AD15: =+IF(INDEX($K15:$O15,1,aux!$AL$1)>0,(O15/INDEX($K15:$O15,1,aux!$AL$1))^(1/($O$3-INDEX($K$3:$O$3,1,aux!$AL$1)))-1,"n.d.") -> n.d. | AE15: =IF(INDEX($K15:$O15,1,aux!$AL$1)>0,(O15-INDEX($K15:$O15,1,aux!$AL$1))/INDEX($K15:$O15,1,aux!$AL$1),"n.d.") -> n.d. | AX15: 02
A16: 0206 | B16: Miudezas de bovino, suíno, ovino, caprino,equídeo | C16: 8359.867 | D16: 5490.805 | E16: 5455.633 | F16: 6920.22 | G16: 7833.165 | H16: 6811.938 | I16: 0.001305458458 | J16: 0.0009040754615 | K16: 4483.821 | L16: 4497.334 | M16: 5169.478 | N16: 6336.254 | O16: 7726.551 | P16: 5642.6876 | Q16: 0.002047349954 | R16: 0.001229483621 | S16: -1169.2504 | U16: =G16-INDEX($C16:$G16,1,aux!$AL$1) -> -526.702 | V16: -0.0002158366147 | W16: -0.0001724245665 | X16: =+IF(INDEX($C16:$G16,1,aux!$AL$1)>0,(G16/INDEX($C16:$G16,1,aux!$AL$1))^(1/($G$3-INDEX($C$3:$G$3,1,aux!$AL$1)))-1,"n.d.") -> -0.01613734384 | Y16: =IF(INDEX($C16:$G16,1,aux!$AL$1)>0,(G16-INDEX($C16:$G16,1,aux!$AL$1))/INDEX($C16:$G16,1,aux!$AL$1),"n.d.") -> -0.06300363391 | AA16: =O16-INDEX($K16:$O16,1,aux!$AL$1) -> 3242.73 | AB16: 0.001888187793 | AC16: 0.001469646853 | AD16: =+IF(INDEX($K16:$O16,1,aux!$AL$1)>0,(O16/INDEX($K16:$O16,1,aux!$AL$1))^(1/($O$3-INDEX($K$3:$O$3,1,aux!$AL$1)))-1,"n.d.") -> 0.1457354539 | AE16: =IF(INDEX($K16:$O16,1,aux!$AL$1)>0,(O16-INDEX($K16:$O16,1,aux!$AL$1))/INDEX($K16:$O16,1,aux!$AL$1),"n.d.") -> 0.7232068363 | AX16: 02
A17: 0207 | B17: Carnes e miudezas de aves de capoeira | C17: 112559.378 | D17: 83699.745 | E17: 86650.922 | F17: 138489.209 | G17: 161765.149 | H17: 116632.8806 | I17: 0.02235184473 | J17: 0.01547943116 | K17: 16011.463 | L17: 11851.181 | M17: 23455.977 | N17: 26679.584 | O17: 27153.854 | P17: 21030.4118 | Q17: 0.007630515047 | R17: 0.004582310538 | S17: -95602.4688 | U17: =G17-INDEX($C17:$G17,1,aux!$AL$1) -> 49205.771 | V17: 0.02016397705 | W17: 0.01610831881 | X17: =+IF(INDEX($C17:$G17,1,aux!$AL$1)>0,(G17/INDEX($C17:$G17,1,aux!$AL$1))^(1/($G$3-INDEX($C$3:$G$3,1,aux!$AL$1)))-1,"n.d.") -> 0.09490343784 | Y17: =IF(INDEX($C17:$G17,1,aux!$AL$1)>0,(G17-INDEX($C17:$G17,1,aux!$AL$1))/INDEX($C17:$G17,1,aux!$AL$1),"n.d.") -> 0.4371538993 | AA17: =O17-INDEX($K17:$O17,1,aux!$AL$1) -> 11142.391 | AB17: 0.00648802912 | AC17: 0.005049874602 | AD17: =+IF(INDEX($K17:$O17,1,aux!$AL$1)>0,(O17/INDEX($K17:$O17,1,aux!$AL$1))^(1/($O$3-INDEX($K$3:$O$3,1,aux!$AL$1)))-1,"n.d.") -> 0.1411693945 | AE17: =IF(INDEX($K17:$O17,1,aux!$AL$1)>0,(O17-INDEX($K17:$O17,1,aux!$AL$1))/INDEX($K17:$O17,1,aux!$AL$1),"n.d.") -> 0.695900868 | AX17: 02
A18: 0208 | B18: Outras carnes e miudezas | C18: 10946.528 | D18: 9295.945 | E18: 8859.858 | F18: 12006.628 | G18: 13025.91 | H18: 10826.9738 | I18: 0.002074910917 | J18: 0.001436948095 | K18: 2979.948 | L18: 1452.19 | M18: 419.67 | N18: 908.136 | O18: 1146.43 | P18: 1381.2748 | Q18: 0.0005011712679 | R18: 0.0003009655794 | S18: -9445.699 | U18: =G18-INDEX($C18:$G18,1,aux!$AL$1) -> 2079.382 | V18: 0.0008521075896 | W18: 0.0006807199134 | X18: =+IF(INDEX($C18:$G18,1,aux!$AL$1)>0,(G18/INDEX($C18:$G18,1,aux!$AL$1))^(1/($G$3-INDEX($C$3:$G$3,1,aux!$AL$1)))-1,"n.d.") -> 0.04443861508 | Y18: =IF(INDEX($C18:$G18,1,aux!$AL$1)>0,(G18-INDEX($C18:$G18,1,aux!$AL$1))/INDEX($C18:$G18,1,aux!$AL$1),"n.d.") -> 0.189958131 | AA18: =O18-INDEX($K18:$O18,1,aux!$AL$1) -> -1833.518 | AB18: -0.001067627063 | AC18: -0.0008309738888 | AD18: =+IF(INDEX($K18:$O18,1,aux!$AL$1)>0,(O18/INDEX($K18:$O18,1,aux!$AL$1))^(1/($O$3-INDEX($K$3:$O$3,1,aux!$AL$1)))-1,"n.d.") -> -0.2124380708 | AE18: =IF(INDEX($K18:$O18,1,aux!$AL$1)>0,(O18-INDEX($K18:$O18,1,aux!$AL$1))/INDEX($K18:$O18,1,aux!$AL$1),"n.d.") -> -0.6152852332 | AX18: 02
A19: 0209 | B19: Toucinho, gorduras de porco e de aves | C19: 8411.395 | D19: 12719.644 | E19: 16212.739 | F19: 18306.104 | G19: 10843.237 | H19: 13298.6238 | I19: 0.002548584694 | J19: 0.001764983687 | K19: 862.687 | L19: 1118.304 | M19: 758.118 | N19: 1650.5 | O19: 1883.213 | P19: 1254.5644 | Q19: 0.0004551966278 | R19: 0.0002733566858 | S19: -12044.0594 | U19: =G19-INDEX($C19:$G19,1,aux!$AL$1) -> 2431.842 | V19: 0.0009965417729 | W19: 0.0007961034941 | X19: =+IF(INDEX($C19:$G19,1,aux!$AL$1)>0,(G19/INDEX($C19:$G19,1,aux!$AL$1))^(1/($G$3-INDEX($C$3:$G$3,1,aux!$AL$1)))-1,"n.d.") -> 0.06554729413 | Y19: =IF(INDEX($C19:$G19,1,aux!$AL$1)>0,(G19-INDEX($C19:$G19,1,aux!$AL$1))/INDEX($C19:$G19,1,aux!$AL$1),"n.d.") -> 0.2891128047 | AA19: =O19-INDEX($K19:$O19,1,aux!$AL$1) -> 1020.526 | AB19: 0.0005942353312 | AC19: 0.0004625154805 | AD19: =+IF(INDEX($K19:$O19,1,aux!$AL$1)>0,(O19/INDEX($K19:$O19,1,aux!$AL$1))^(1/($O$3-INDEX($K$3:$O$3,1,aux!$AL$1)))-1,"n.d.") -> 0.2155184282 | AE19: =IF(INDEX($K19:$O19,1,aux!$AL$1)>0,(O19-INDEX($K19:$O19,1,aux!$AL$1))/INDEX($K19:$O19,1,aux!$AL$1),"n.d.") -> 1.182962071 | AX19: 02
A20: 0210 | B20: Carnes e miudezas processadas; farinhas de carnes | C20: 47040.052 | D20: 44244.131 | E20: 46936.336 | F20: 60080.052 | G20: 70636.456 | H20: 53787.4054 | I20: 0.01030796571 | J20: 0.00713862536 | K20: 5096.274 | L20: 4710.794 | M20: 5866.485 | N20: 6267.679 | O20: 5620.644 | P20: 5512.3752 | Q20: 0.002000068392 | R20: 0.001201089889 | S20: -48275.0302 | U20: =G20-INDEX($C20:$G20,1,aux!$AL$1) -> 23596.404 | V20: 0.009669543612 | W20: 0.007724671122 | X20: =+IF(INDEX($C20:$G20,1,aux!$AL$1)>0,(G20/INDEX($C20:$G20,1,aux!$AL$1))^(1/($G$3-INDEX($C$3:$G$3,1,aux!$AL$1)))-1,"n.d.") -> 0.1069812811 | Y20: =IF(INDEX($C20:$G20,1,aux!$AL$1)>0,(G20-INDEX($C20:$G20,1,aux!$AL$1))/INDEX($C20:$G20,1,aux!$AL$1),"n.d.") -> 0.5016236802 | AA20: =O20-INDEX($K20:$O20,1,aux!$AL$1) -> 524.37 | AB20: 0.0003053319373 | AC20: 0.0002376512137 | AD20: =+IF(INDEX($K20:$O20,1,aux!$AL$1)>0,(O20/INDEX($K20:$O20,1,aux!$AL$1))^(1/($O$3-INDEX($K$3:$O$3,1,aux!$AL$1)))-1,"n.d.") -> 0.02478633879 | AE20: =IF(INDEX($K20:$O20,1,aux!$AL$1)>0,(O20-INDEX($K20:$O20,1,aux!$AL$1))/INDEX($K20:$O20,1,aux!$AL$1),"n.d.") -> 0.1028928193 | AX20: 02
A21: 02SS | B21: Carnes e miudezas, comestíveis | C21: 0 | D21: 0 | E21: 0 | F21: 0 | G21: 0 | H21: 0 | I21: 0 | J21: 0 | K21: 0 | L21: 0 | M21: 0 | N21: 0 | O21: 0 | P21: 0 | Q21: 0 | R21: 0 | S21: 0 | U21: =G21-INDEX($C21:$G21,1,aux!$AL$1) -> 0 | V21: 0 | W21: 0 | X21: =+IF(INDEX($C21:$G21,1,aux!$AL$1)>0,(G21/INDEX($C21:$G21,1,aux!$AL$1))^(1/($G$3-INDEX($C$3:$G$3,1,aux!$AL$1)))-1,"n.d.") -> n.d. | Y21: =IF(INDEX($C21:$G21,1,aux!$AL$1)>0,(G21-INDEX($C21:$G21,1,aux!$AL$1))/INDEX($C21:$G21,1,aux!$AL$1),"n.d.") -> n.d. | AA21: =O21-INDEX($K21:$O21,1,aux!$AL$1) -> 0 | AB21: 0 | AC21: 0 | AD21: =+IF(INDEX($K21:$O21,1,aux!$AL$1)>0,(O21/INDEX($K21:$O21,1,aux!$AL$1))^(1/($O$3-INDEX($K$3:$O$3,1,aux!$AL$1)))-1,"n.d.") -> n.d. | AE21: =IF(INDEX($K21:$O21,1,aux!$AL$1)>0,(O21-INDEX($K21:$O21,1,aux!$AL$1))/INDEX($K21:$O21,1,aux!$AL$1),"n.d.") -> n.d. | AX21: 02
A22: 0401 | B22: Leite e nata, não concentrados | C22: 40096.014 | D22: 43199.209 | E22: 44989.222 | F22: 59780.816 | G22: 70954.671 | H22: 51803.9864 | I22: 0.00992785786 | J22: 0.006875387432 | K22: 30240.945 | L22: 32286.234 | M22: 41843.549 | N22: 58448.232 | O22: 65287.059 | P22: 45621.2038 | Q22: 0.01655285143 | R22: 0.00994039132 | S22: -6182.7826 | U22: =G22-INDEX($C22:$G22,1,aux!$AL$1) -> 30858.657 | V22: 0.01264553403 | W22: 0.01010208914 | X22: =+IF(INDEX($C22:$G22,1,aux!$AL$1)>0,(G22/INDEX($C22:$G22,1,aux!$AL$1))^(1/($G$3-INDEX($C$3:$G$3,1,aux!$AL$1)))-1,"n.d.") -> 0.1533734432 | Y22: =IF(INDEX($C22:$G22,1,aux!$AL$1)>0,(G22-INDEX($C22:$G22,1,aux!$AL$1))/INDEX($C22:$G22,1,aux!$AL$1),"n.d.") -> 0.7696190699 | AA22: =O22-INDEX($K22:$O22,1,aux!$AL$1) -> 35046.114 | AB22: 0.0204067698 | AC22: 0.01588334864 | AD22: =+IF(INDEX($K22:$O22,1,aux!$AL$1)>0,(O22/INDEX($K22:$O22,1,aux!$AL$1))^(1/($O$3-INDEX($K$3:$O$3,1,aux!$AL$1)))-1,"n.d.") -> 0.2121543846 | AE22: =IF(INDEX($K22:$O22,1,aux!$AL$1)>0,(O22-INDEX($K22:$O22,1,aux!$AL$1))/INDEX($K22:$O22,1,aux!$AL$1),"n.d.") -> 1.158896126 | AX22: 04
A23: 0402 | B23: Leite e nata, concentrados | C23: 20095.976 | D23: 18889.672 | E23: 23282.471 | F23: 31990.578 | G23: 31489.154 | H23: 25149.5702 | I23: 0.004819732525 | J23: 0.003337832682 | K23: 22731.896 | L23: 27881.251 | M23: 34653.137 | N23: 25478.964 | O23: 25958.742 | P23: 27340.798 | Q23: 0.009920127695 | R23: 0.00595727882 | S23: 2191.2278 | U23: =G23-INDEX($C23:$G23,1,aux!$AL$1) -> 11393.178 | V23: 0.004668797481 | W23: 0.00372974429 | X23: =+IF(INDEX($C23:$G23,1,aux!$AL$1)>0,(G23/INDEX($C23:$G23,1,aux!$AL$1))^(1/($G$3-INDEX($C$3:$G$3,1,aux!$AL$1)))-1,"n.d.") -> 0.1188270875 | Y23: =IF(INDEX($C23:$G23,1,aux!$AL$1)>0,(G23-INDEX($C23:$G23,1,aux!$AL$1))/INDEX($C23:$G23,1,aux!$AL$1),"n.d.") -> 0.5669382766 | AA23: =O23-INDEX($K23:$O23,1,aux!$AL$1) -> 3226.846 | AB23: 0.001878938804 | AC23: 0.00146244802 | AD23: =+IF(INDEX($K23:$O23,1,aux!$AL$1)>0,(O23/INDEX($K23:$O23,1,aux!$AL$1))^(1/($O$3-INDEX($K$3:$O$3,1,aux!$AL$1)))-1,"n.d.") -> 0.03374160435 | AE23: =IF(INDEX($K23:$O23,1,aux!$AL$1)>0,(O23-INDEX($K23:$O23,1,aux!$AL$1))/INDEX($K23:$O23,1,aux!$AL$1),"n.d.") -> 0.1419523475 | AX23: 04
A24: 0403 | B24: Leitelho, leite coalhado, iogurte, etc. | C24: 111700.891 | D24: 113738.304 | E24: 109678.087 | F24: 130367.516 | G24: 162357.122 | H24: 125568.384 | I24: 0.02406426908 | J24: 0.01666534468 | K24: 23961.018 | L24: 26746.742 | M24: 29144.073 | N24: 40563.462 | O24: 43099.021 | P24: 32702.8632 | Q24: 0.01186565875 | R24: 0.007125617704 | S24: -92865.5208 | U24: =G24-INDEX($C24:$G24,1,aux!$AL$1) -> 50656.231 | V24: 0.0207583594 | W24: 0.01658315075 | X24: =+IF(INDEX($C24:$G24,1,aux!$AL$1)>0,(G24/INDEX($C24:$G24,1,aux!$AL$1))^(1/($G$3-INDEX($C$3:$G$3,1,aux!$AL$1)))-1,"n.d.") -> 0.09800337928 | Y24: =IF(INDEX($C24:$G24,1,aux!$AL$1)>0,(G24-INDEX($C24:$G24,1,aux!$AL$1))/INDEX($C24:$G24,1,aux!$AL$1),"n.d.") -> 0.4534988982 | AA24: =O24-INDEX($K24:$O24,1,aux!$AL$1) -> 19138.003 | AB24: 0.01114374112 | AC24: 0.008673588575 | AD24: =+IF(INDEX($K24:$O24,1,aux!$AL$1)>0,(O24/INDEX($K24:$O24,1,aux!$AL$1))^(1/($O$3-INDEX($K$3:$O$3,1,aux!$AL$1)))-1,"n.d.") -> 0.1580852626 | AE24: =IF(INDEX($K24:$O24,1,aux!$AL$1)>0,(O24-INDEX($K24:$O24,1,aux!$AL$1))/INDEX($K24:$O24,1,aux!$AL$1),"n.d.") -> 0.798714103 | AX24: 04
A25: 0404 | B25: Soro de leite e outros produtos do leite | C25: 4905.079 | D25: 5169.45 | E25: 4143.619 | F25: 5658.386 | G25: 4403.153 | H25: 4855.9374 | I25: 0.0009306051451 | J25: 0.0006444764832 | K25: 8132.772 | L25: 7369.632 | M25: 8637.232 | N25: 11845.946 | O25: 13376.092 | P25: 9872.3348 | Q25: 0.003582003052 | R25: 0.002151080265 | S25: 5016.3974 | U25: =G25-INDEX($C25:$G25,1,aux!$AL$1) -> -501.926 | V25: -0.0002056836858 | W25: -0.0001643137352 | X25: =+IF(INDEX($C25:$G25,1,aux!$AL$1)>0,(G25/INDEX($C25:$G25,1,aux!$AL$1))^(1/($G$3-INDEX($C$3:$G$3,1,aux!$AL$1)))-1,"n.d.") -> -0.02662667015 | Y25: =IF(INDEX($C25:$G25,1,aux!$AL$1)>0,(G25-INDEX($C25:$G25,1,aux!$AL$1))/INDEX($C25:$G25,1,aux!$AL$1),"n.d.") -> -0.1023278116 | AA25: =O25-INDEX($K25:$O25,1,aux!$AL$1) -> 5243.32 | AB25: 0.003053098105 | AC25: 0.002376339916 | AD25: =+IF(INDEX($K25:$O25,1,aux!$AL$1)>0,(O25/INDEX($K25:$O25,1,aux!$AL$1))^(1/($O$3-INDEX($K$3:$O$3,1,aux!$AL$1)))-1,"n.d.") -> 0.1324594561 | AE25: =IF(INDEX($K25:$O25,1,aux!$AL$1)>0,(O25-INDEX($K25:$O25,1,aux!$AL$1))/INDEX($K25:$O25,1,aux!$AL$1),"n.d.") -> 0.6447149877 | AX25: 04
A26: 0405 | B26: Manteiga | C26: 6049.845 | D26: 5284.523 | E26: 8122.815 | F26: 11962.465 | G26: 13754.317 | H26: 9034.793 | I26: 0.001731452479 | J26: 0.001199091162 | K26: 10117.083 | L26: 5594.756 | M26: 9364.193 | N26: 8646.979 | O26: 13895.954 | P26: 9523.793 | Q26: 0.003455540789 | R26: 0.00207513659 | S26: 489 | U26: =G26-INDEX($C26:$G26,1,aux!$AL$1) -> 7704.472 | V26: 0.003157206836 | W26: 0.002522185684 | X26: =+IF(INDEX($C26:$G26,1,aux!$AL$1)>0,(G26/INDEX($C26:$G26,1,aux!$AL$1))^(1/($G$3-INDEX($C$3:$G$3,1,aux!$AL$1)))-1,"n.d.") -> 0.2279302417 | Y26: =IF(INDEX($C26:$G26,1,aux!$AL$1)>0,(G26-INDEX($C26:$G26,1,aux!$AL$1))/INDEX($C26:$G26,1,aux!$AL$1),"n.d.") -> 1.273499073 | AA26: =O26-INDEX($K26:$O26,1,aux!$AL$1) -> 3778.871 | AB26: 0.002200373788 | AC26: 0.001712632835 | AD26: =+IF(INDEX($K26:$O26,1,aux!$AL$1)>0,(O26/INDEX($K26:$O26,1,aux!$AL$1))^(1/($O$3-INDEX($K$3:$O$3,1,aux!$AL$1)))-1,"n.d.") -> 0.08257567314 | AE26: =IF(INDEX($K26:$O26,1,aux!$AL$1)>0,(O26-INDEX($K26:$O26,1,aux!$AL$1))/INDEX($K26:$O26,1,aux!$AL$1),"n.d.") -> 0.3735138874 | AX26: 04
A27: 0406 | B27: Queijos e requeijão | C27: 94406.922 | D27: 82615.949 | E27: 97822.84 | F27: 124476.568 | G27: 147339.007 | H27: 109332.2572 | I27: 0.02095273326 | J27: 0.01451049773 | K27: 6530.077 | L27: 7466.092 | M27: 7360.618 | N27: 23698.934 | O27: 31381.484 | P27: 15287.441 | Q27: 0.005546779097 | R27: 0.003330976238 | S27: -94044.8162 | U27: =G27-INDEX($C27:$G27,1,aux!$AL$1) -> 52932.085 | V27: 0.02169097903 | W27: 0.01732818901 | X27: =+IF(INDEX($C27:$G27,1,aux!$AL$1)>0,(G27/INDEX($C27:$G27,1,aux!$AL$1))^(1/($G$3-INDEX($C$3:$G$3,1,aux!$AL$1)))-1,"n.d.") -> 0.1177082977 | Y27: =IF(INDEX($C27:$G27,1,aux!$AL$1)>0,(G27-INDEX($C27:$G27,1,aux!$AL$1))/INDEX($C27:$G27,1,aux!$AL$1),"n.d.") -> 0.5606801268 | AA27: =O27-INDEX($K27:$O27,1,aux!$AL$1) -> 24851.407 | AB27: 0.01447056133 | AC27: 0.01126297659 | AD27: =+IF(INDEX($K27:$O27,1,aux!$AL$1)>0,(O27/INDEX($K27:$O27,1,aux!$AL$1))^(1/($O$3-INDEX($K$3:$O$3,1,aux!$AL$1)))-1,"n.d.") -> 0.4806035751 | AE27: =IF(INDEX($K27:$O27,1,aux!$AL$1)>0,(O27-INDEX($K27:$O27,1,aux!$AL$1))/INDEX($K27:$O27,1,aux!$AL$1),"n.d.") -> 3.805683608 | AX27: 04
A28: 0407 | B28: Ovos de aves, com cascas | C28: 13171.675 | D28: 9703.842 | E28: 9829.137 | F28: 14918.297 | G28: 22707.4 | H28: 14066.0702 | I28: 0.002695660224 | J28: 0.001866838616 | K28: 15474.338 | L28: 12859.983 | M28: 15375.386 | N28: 23197.207 | O28: 21898.588 | P28: 17761.1004 | Q28: 0.006444302905 | R28: 0.003869961192 | S28: 3695.0302 | U28: =G28-INDEX($C28:$G28,1,aux!$AL$1) -> 9535.725 | V28: 0.003907633924 | W28: 0.003121676487 | X28: =+IF(INDEX($C28:$G28,1,aux!$AL$1)>0,(G28/INDEX($C28:$G28,1,aux!$AL$1))^(1/($G$3-INDEX($C$3:$G$3,1,aux!$AL$1)))-1,"n.d.") -> 0.1458601102 | Y28: =IF(INDEX($C28:$G28,1,aux!$AL$1)>0,(G28-INDEX($C28:$G28,1,aux!$AL$1))/INDEX($C28:$G28,1,aux!$AL$1),"n.d.") -> 0.7239568999 | AA28: =O28-INDEX($K28:$O28,1,aux!$AL$1) -> 6424.25 | AB28: 0.00374073402 | AC28: 0.002911552548 | AD28: =+IF(INDEX($K28:$O28,1,aux!$AL$1)>0,(O28/INDEX($K28:$O28,1,aux!$AL$1))^(1/($O$3-INDEX($K$3:$O$3,1,aux!$AL$1)))-1,"n.d.") -> 0.09068918933 | AE28: =IF(INDEX($K28:$O28,1,aux!$AL$1)>0,(O28-INDEX($K28:$O28,1,aux!$AL$1))/INDEX($K28:$O28,1,aux!$AL$1),"n.d.") -> 0.415155078 | AX28: 04
A29: 0408 | B29: Ovos de aves, sem casca | C29: 16964.246 | D29: 10407.511 | E29: 13915.751 | F29: 22935.079 | G29: 33205.277 | H29: 19485.5728 | I29: 0.003734268548 | J29: 0.002586111063 | K29: 13916.598 | L29: 9630.408 | M29: 11657.807 | N29: 18275.325 | O29: 23017.873 | P29: 15299.6022 | Q29: 0.005551191575 | R29: 0.003333626039 | S29: -4185.9706 | U29: =G29-INDEX($C29:$G29,1,aux!$AL$1) -> 16241.031 | V29: 0.006655393659 | W29: 0.00531676874 | X29: =+IF(INDEX($C29:$G29,1,aux!$AL$1)>0,(G29/INDEX($C29:$G29,1,aux!$AL$1))^(1/($G$3-INDEX($C$3:$G$3,1,aux!$AL$1)))-1,"n.d.") -> 0.1828185761 | Y29: =IF(INDEX($C29:$G29,1,aux!$AL$1)>0,(G29-INDEX($C29:$G29,1,aux!$AL$1))/INDEX($C29:$G29,1,aux!$AL$1),"n.d.") -> 0.9573682791 | AA29: =O29-INDEX($K29:$O29,1,aux!$AL$1) -> 9101.275 | AB29: 0.005299521192 | AC29: 0.004124814635 | AD29: =+IF(INDEX($K29:$O29,1,aux!$AL$1)>0,(O29/INDEX($K29:$O29,1,aux!$AL$1))^(1/($O$3-INDEX($K$3:$O$3,1,aux!$AL$1)))-1,"n.d.") -> 0.1340521514 | AE29: =IF(INDEX($K29:$O29,1,aux!$AL$1)>0,(O29-INDEX($K29:$O29,1,aux!$AL$1))/INDEX($K29:$O29,1,aux!$AL$1),"n.d.") -> 0.6539870592 | AX29: 04
A30: 0409 | B30: Mel natural | C30: 4736.548 | D30: 4631.204 | E30: 4668.626 | F30: 7414.606 | G30: 8594.738 | H30: 6009.1444 | I30: 0.001151608894 | J30: 0.0007975292783 | K30: 7504.768 | L30: 9476.875 | M30: 13393.014 | N30: 22634.71 | O30: 11766.322 | P30: 12955.1378 | Q30: 0.004700543901 | R30: 0.002822791347 | S30: 6945.9934 | U30: =G30-INDEX($C30:$G30,1,aux!$AL$1) -> 3858.19 | V30: 0.001581043301 | W30: 0.001263041982 | X30: =+IF(INDEX($C30:$G30,1,aux!$AL$1)>0,(G30/INDEX($C30:$G30,1,aux!$AL$1))^(1/($G$3-INDEX($C$3:$G$3,1,aux!$AL$1)))-1,"n.d.") -> 0.1606270145 | Y30: =IF(INDEX($C30:$G30,1,aux!$AL$1)>0,(G30-INDEX($C30:$G30,1,aux!$AL$1))/INDEX($C30:$G30,1,aux!$AL$1),"n.d.") -> 0.8145573527 | AA30: =O30-INDEX($K30:$O30,1,aux!$AL$1) -> 4261.554 | AB30: 0.002481432078 | AC30: 0.001931390965 | AD30: =+IF(INDEX($K30:$O30,1,aux!$AL$1)>0,(O30/INDEX($K30:$O30,1,aux!$AL$1))^(1/($O$3-INDEX($K$3:$O$3,1,aux!$AL$1)))-1,"n.d.") -> 0.1189891217 | AE30: =IF(INDEX($K30:$O30,1,aux!$AL$1)>0,(O30-INDEX($K30:$O30,1,aux!$AL$1))/INDEX($K30:$O30,1,aux!$AL$1),"n.d.") -> 0.5678462012 | AX30: 04
A31: 0410 | B31: Outros produtos comestíveis de origem animal | C31: 558.163 | D31: 337.184 | E31: 452.318 | F31: 563.47 | G31: 488.078 | H31: 479.8426 | I31: 9.195835029e-05 | J31: 6.36843612e-05 | K31: 5.272 | L31: 6.939 | M31: 4.706 | N31: 30.936 | O31: 33.047 | P31: 16.18 | Q31: 5.870628433e-06 | R31: 3.525455669e-06 | S31: -463.6626 | U31: =G31-INDEX($C31:$G31,1,aux!$AL$1) -> -70.085 | V31: -2.87200526e-05 | W31: -2.294347798e-05 | X31: =+IF(INDEX($C31:$G31,1,aux!$AL$1)>0,(G31/INDEX($C31:$G31,1,aux!$AL$1))^(1/($G$3-INDEX($C$3:$G$3,1,aux!$AL$1)))-1,"n.d.") -> -0.03298759117 | Y31: =IF(INDEX($C31:$G31,1,aux!$AL$1)>0,(G31-INDEX($C31:$G31,1,aux!$AL$1))/INDEX($C31:$G31,1,aux!$AL$1),"n.d.") -> -0.1255636794 | AA31: =O31-INDEX($K31:$O31,1,aux!$AL$1) -> 27.775 | AB31: 1.617292095e-05 | AC31: 1.258798646e-05 | AD31: =+IF(INDEX($K31:$O31,1,aux!$AL$1)>0,(O31/INDEX($K31:$O31,1,aux!$AL$1))^(1/($O$3-INDEX($K$3:$O$3,1,aux!$AL$1)))-1,"n.d.") -> 0.5823012083 | AE31: =IF(INDEX($K31:$O31,1,aux!$AL$1)>0,(O31-INDEX($K31:$O31,1,aux!$AL$1))/INDEX($K31:$O31,1,aux!$AL$1),"n.d.") -> 5.26839909 | AX31: 04
A32: 04SS | B32: Leite e lacticínios; ovos de aves; mel natural; etc. | C32: 0 | D32: 0 | E32: 0 | F32: 0 | G32: 0 | H32: 0 | I32: 0 | J32: 0 | K32: 0 | L32: 0 | M32: 0 | N32: 0 | O32: 0 | P32: 0 | Q32: 0 | R32: 0 | S32: 0 | U32: =G32-INDEX($C32:$G32,1,aux!$AL$1) -> 0 | V32: 0 | W32: 0 | X32: =+IF(INDEX($C32:$G32,1,aux!$AL$1)>0,(G32/INDEX($C32:$G32,1,aux!$AL$1))^(1/($G$3-INDEX($C$3:$G$3,1,aux!$AL$1)))-1,"n.d.") -> n.d. | Y32: =IF(INDEX($C32:$G32,1,aux!$AL$1)>0,(G32-INDEX($C32:$G32,1,aux!$AL$1))/INDEX($C32:$G32,1,aux!$AL$1),"n.d.") -> n.d. | AA32: =O32-INDEX($K32:$O32,1,aux!$AL$1) -> 0 | AB32: 0 | AC32: 0 | AD32: =+IF(INDEX($K32:$O32,1,aux!$AL$1)>0,(O32/INDEX($K32:$O32,1,aux!$AL$1))^(1/($O$3-INDEX($K$3:$O$3,1,aux!$AL$1)))-1,"n.d.") -> n.d. | AE32: =IF(INDEX($K32:$O32,1,aux!$AL$1)>0,(O32-INDEX($K32:$O32,1,aux!$AL$1))/INDEX($K32:$O32,1,aux!$AL$1),"n.d.") -> n.d. | AX32: 04
A33: 0501 | B33: Cabelos em bruto | C33: 1.674 | D33: 0.529 | E33: 0 | F33: 0 | G33: 0 | H33: 0.4406 | I33: 8.443779093e-08 | J33: 5.847611184e-08 | K33: 0 | L33: 0 | M33: 0 | N33: 0 | O33: 0 | P33: 0 | Q33: 0 | R33: 0 | S33: -0.4406 | U33: =G33-INDEX($C33:$G33,1,aux!$AL$1) -> -1.674 | V33: -6.859865599e-07 | W33: -5.480114453e-07 | X33: =+IF(INDEX($C33:$G33,1,aux!$AL$1)>0,(G33/INDEX($C33:$G33,1,aux!$AL$1))^(1/($G$3-INDEX($C$3:$G$3,1,aux!$AL$1)))-1,"n.d.") -> -1 | Y33: =IF(INDEX($C33:$G33,1,aux!$AL$1)>0,(G33-INDEX($C33:$G33,1,aux!$AL$1))/INDEX($C33:$G33,1,aux!$AL$1),"n.d.") -> -1 | AA33: =O33-INDEX($K33:$O33,1,aux!$AL$1) -> 0 | AB33: 0 | AC33: 0 | AD33: =+IF(INDEX($K33:$O33,1,aux!$AL$1)>0,(O33/INDEX($K33:$O33,1,aux!$AL$1))^(1/($O$3-INDEX($K$3:$O$3,1,aux!$AL$1)))-1,"n.d.") -> n.d. | AE33: =IF(INDEX($K33:$O33,1,aux!$AL$1)>0,(O33-INDEX($K33:$O33,1,aux!$AL$1))/INDEX($K33:$O33,1,aux!$AL$1),"n.d.") -> n.d. | AX33: 05
A34: 0502 | B34: Cerdas de porco ou de javali, etc. | C34: 199.665 | D34: 526.103 | E34: 1400.931 | F34: 4338.119 | G34: 3410.236 | H34: 1975.0108 | I34: 0.0003784964798 | J34: 0.0002621219982 | K34: 0 | L34: 0 | M34: 0 | N34: 0 | O34: 0 | P34: 0 | Q34: 0 | R34: 0 | S34: -1975.0108 | U34: =G34-INDEX($C34:$G34,1,aux!$AL$1) -> 3210.571 | V34: 0.001315656246 | W34: 0.001051033246 | X34: =+IF(INDEX($C34:$G34,1,aux!$AL$1)>0,(G34/INDEX($C34:$G34,1,aux!$AL$1))^(1/($G$3-INDEX($C$3:$G$3,1,aux!$AL$1)))-1,"n.d.") -> 1.032921566 | Y34: =IF(INDEX($C34:$G34,1,aux!$AL$1)>0,(G34-INDEX($C34:$G34,1,aux!$AL$1))/INDEX($C34:$G34,1,aux!$AL$1),"n.d.") -> 16.07978865 | AA34: =O34-INDEX($K34:$O34,1,aux!$AL$1) -> 0 | AB34: 0 | AC34: 0 | AD34: =+IF(INDEX($K34:$O34,1,aux!$AL$1)>0,(O34/INDEX($K34:$O34,1,aux!$AL$1))^(1/($O$3-INDEX($K$3:$O$3,1,aux!$AL$1)))-1,"n.d.") -> n.d. | AE34: =IF(INDEX($K34:$O34,1,aux!$AL$1)>0,(O34-INDEX($K34:$O34,1,aux!$AL$1))/INDEX($K34:$O34,1,aux!$AL$1),"n.d.") -> n.d. | AX34: 05
A35: 0504 | B35: Tripas de animais (excepto peixes) | C35: 7007.934 | D35: 7454.637 | E35: 6135.816 | F35: 6788.287 | G35: 6798.177 | H35: 6836.9702 | I35: 0.001310255698 | J35: 0.0009073977169 | K35: 6974.623 | L35: 6676.846 | M35: 7076.16 | N35: 8183.862 | O35: 6680.713 | P35: 7118.4408 | Q35: 0.002582801048 | R35: 0.001551035072 | S35: 281.4706 | U35: =G35-INDEX($C35:$G35,1,aux!$AL$1) -> -209.757 | V35: -8.595608295e-05 | W35: -6.866740545e-05 | X35: =+IF(INDEX($C35:$G35,1,aux!$AL$1)>0,(G35/INDEX($C35:$G35,1,aux!$AL$1))^(1/($G$3-INDEX($C$3:$G$3,1,aux!$AL$1)))-1,"n.d.") -> -0.00756832683 | Y35: =IF(INDEX($C35:$G35,1,aux!$AL$1)>0,(G35-INDEX($C35:$G35,1,aux!$AL$1))/INDEX($C35:$G35,1,aux!$AL$1),"n.d.") -> -0.02993136065 | AA35: =O35-INDEX($K35:$O35,1,aux!$AL$1) -> -293.91 | AB35: -0.0001711389089 | AC35: -0.000133203784 | AD35: =+IF(INDEX($K35:$O35,1,aux!$AL$1)>0,(O35/INDEX($K35:$O35,1,aux!$AL$1))^(1/($O$3-INDEX($K$3:$O$3,1,aux!$AL$1)))-1,"n.d.") -> -0.01070567141 | AE35: =IF(INDEX($K35:$O35,1,aux!$AL$1)>0,(O35-INDEX($K35:$O35,1,aux!$AL$1))/INDEX($K35:$O35,1,aux!$AL$1),"n.d.") -> -0.04213991208 | AX35: 05
A36: 0505 | B36: Peles e outras partes de aves | C36: 0.001 | D36: 2.717 | E36: 3.594 | F36: 71.478 | G36: 121.746 | H36: 39.9072 | I36: 7.647925125e-06 | J36: 5.296454586e-06 | K36: 135.853 | L36: 114.445 | M36: 60.942 | N36: 46.476 | O36: 51.893 | P36: 81.9218 | Q36: 2.972388432e-05 | R36: 1.784991806e-05 | S36: 42.0146 | U36: =G36-INDEX($C36:$G36,1,aux!$AL$1) -> 121.745 | V36: 4.988974536e-05 | W36: 3.985522903e-05 | X36: =+IF(INDEX($C36:$G36,1,aux!$AL$1)>0,(G36/INDEX($C36:$G36,1,aux!$AL$1))^(1/($G$3-INDEX($C$3:$G$3,1,aux!$AL$1)))-1,"n.d.") -> 17.67943239 | Y36: =IF(INDEX($C36:$G36,1,aux!$AL$1)>0,(G36-INDEX($C36:$G36,1,aux!$AL$1))/INDEX($C36:$G36,1,aux!$AL$1),"n.d.") -> 121745 | AA36: =O36-INDEX($K36:$O36,1,aux!$AL$1) -> -83.96 | AB36: -4.888851279e-05 | AC36: -3.805174954e-05 | AD36: =+IF(INDEX($K36:$O36,1,aux!$AL$1)>0,(O36/INDEX($K36:$O36,1,aux!$AL$1))^(1/($O$3-INDEX($K$3:$O$3,1,aux!$AL$1)))-1,"n.d.") -> -0.2138419129 | AE36: =IF(INDEX($K36:$O36,1,aux!$AL$1)>0,(O36-INDEX($K36:$O36,1,aux!$AL$1))/INDEX($K36:$O36,1,aux!$AL$1),"n.d.") -> -0.6180209491 | AX36: 05
A37: 0506 | B37: Ossos e núcleos córneos, em bruto | C37: 314.113 | D37: 294.248 | E37: 221.309 | F37: 401.911 | G37: 246.148 | H37: 295.5458 | I37: 5.66392067e-05 | J37: 3.922462382e-05 | K37: 232.129 | L37: 235.314 | M37: 538.38 | N37: 794.436 | O37: 598.969 | P37: 479.8456 | Q37: 0.0001741035366 | R37: 0.0001045534234 | S37: 184.2998 | U37: =G37-INDEX($C37:$G37,1,aux!$AL$1) -> -67.965 | V37: -2.785130021e-05 | W37: -2.22494611e-05 | X37: =+IF(INDEX($C37:$G37,1,aux!$AL$1)>0,(G37/INDEX($C37:$G37,1,aux!$AL$1))^(1/($G$3-INDEX($C$3:$G$3,1,aux!$AL$1)))-1,"n.d.") -> -0.05913437818 | Y37: =IF(INDEX($C37:$G37,1,aux!$AL$1)>0,(G37-INDEX($C37:$G37,1,aux!$AL$1))/INDEX($C37:$G37,1,aux!$AL$1),"n.d.") -> -0.2163711785 | AA37: =O37-INDEX($K37:$O37,1,aux!$AL$1) -> 366.84 | AB37: 0.000213604836 | AC37: 0.000166256596 | AD37: =+IF(INDEX($K37:$O37,1,aux!$AL$1)>0,(O37/INDEX($K37:$O37,1,aux!$AL$1))^(1/($O$3-INDEX($K$3:$O$3,1,aux!$AL$1)))-1,"n.d.") -> 0.2674146894 | AE37: =IF(INDEX($K37:$O37,1,aux!$AL$1)>0,(O37-INDEX($K37:$O37,1,aux!$AL$1))/INDEX($K37:$O37,1,aux!$AL$1),"n.d.") -> 1.58032818 | AX37: 05
A38: 0507 | B38: Marfim, carapaças de tartaruga, etc. | C38: 0 | D38: 0 | E38: 1.579 | F38: 44.807 | G38: 10.983 | H38: 11.4738 | I38: 2.198870462e-06 | J38: 1.522794399e-06 | K38: 0 | L38: 0 | M38: 0 | N38: 0 | O38: 0 | P38: 0 | Q38: 0 | R38: 0 | S38: -11.4738 | U38: =G38-INDEX($C38:$G38,1,aux!$AL$1) -> 10.983 | V38: 4.500711104e-06 | W38: 3.595465773e-06 | X38: =+IF(INDEX($C38:$G38,1,aux!$AL$1)>0,(G38/INDEX($C38:$G38,1,aux!$AL$1))^(1/($G$3-INDEX($C$3:$G$3,1,aux!$AL$1)))-1,"n.d.") -> n.d. | Y38: =IF(INDEX($C38:$G38,1,aux!$AL$1)>0,(G38-INDEX($C38:$G38,1,aux!$AL$1))/INDEX($C38:$G38,1,aux!$AL$1),"n.d.") -> n.d. | AA38: =O38-INDEX($K38:$O38,1,aux!$AL$1) -> 0 | AB38: 0 | AC38: 0 | AD38: =+IF(INDEX($K38:$O38,1,aux!$AL$1)>0,(O38/INDEX($K38:$O38,1,aux!$AL$1))^(1/($O$3-INDEX($K$3:$O$3,1,aux!$AL$1)))-1,"n.d.") -> n.d. | AE38: =IF(INDEX($K38:$O38,1,aux!$AL$1)>0,(O38-INDEX($K38:$O38,1,aux!$AL$1))/INDEX($K38:$O38,1,aux!$AL$1),"n.d.") -> n.d. | AX38: 05
A39: 0510 | B39: Âmbar-cinzento, castóreo, algália e almíscar, etc. | C39: 0 | D39: 0 | E39: 0 | F39: 0 | G39: 0 | H39: 0 | I39: 0 | J39: 0 | K39: 14.289 | L39: 172.469 | M39: 3.481 | N39: 3.424 | O39: 2.801 | P39: 39.2928 | Q39: 1.425670141e-05 | R39: 8.561497188e-06 | S39: 39.2928 | U39: =G39-INDEX($C39:$G39,1,aux!$AL$1) -> 0 | V39: 0 | W39: 0 | X39: =+IF(INDEX($C39:$G39,1,aux!$AL$1)>0,(G39/INDEX($C39:$G39,1,aux!$AL$1))^(1/($G$3-INDEX($C$3:$G$3,1,aux!$AL$1)))-1,"n.d.") -> n.d. | Y39: =IF(INDEX($C39:$G39,1,aux!$AL$1)>0,(G39-INDEX($C39:$G39,1,aux!$AL$1))/INDEX($C39:$G39,1,aux!$AL$1),"n.d.") -> n.d. | AA39: =O39-INDEX($K39:$O39,1,aux!$AL$1) -> -11.488 | AB39: -6.689271498e-06 | AC39: -5.206509036e-06 | AD39: =+IF(INDEX($K39:$O39,1,aux!$AL$1)>0,(O39/INDEX($K39:$O39,1,aux!$AL$1))^(1/($O$3-INDEX($K$3:$O$3,1,aux!$AL$1)))-1,"n.d.") -> -0.3346076275 | AE39: =IF(INDEX($K39:$O39,1,aux!$AL$1)>0,(O39-INDEX($K39:$O39,1,aux!$AL$1))/INDEX($K39:$O39,1,aux!$AL$1),"n.d.") -> -0.8039750857 | AX39: 05
A40: 0511 | B40: Outros produtos de origem animal (exc. NC 0511 91) (a) | C40: 4329.82 | D40: 5218.813 | E40: 6378.565 | F40: 8529.65 | G40: 10583.033 | H40: 7007.9762 | I40: 0.001343027756 | J40: 0.000930093509 | K40: 1836.037 | L40: 2904.031 | M40: 3541.534 | N40: 5290.827 | O40: 4031.647 | P40: 3520.8152 | Q40: 0.001277465873 | R40: 0.000767149438 | S40: -3487.161 | U40: =G40-INDEX($C40:$G40,1,aux!$AL$1) -> 6253.213 | V40: 0.002562497058 | W40: 0.002047092171 | X40: =+IF(INDEX($C40:$G40,1,aux!$AL$1)>0,(G40/INDEX($C40:$G40,1,aux!$AL$1))^(1/($G$3-INDEX($C$3:$G$3,1,aux!$AL$1)))-1,"n.d.") -> 0.2503600151 | Y40: =IF(INDEX($C40:$G40,1,aux!$AL$1)>0,(G40-INDEX($C40:$G40,1,aux!$AL$1))/INDEX($C40:$G40,1,aux!$AL$1),"n.d.") -> 1.444220083 | AA40: =O40-INDEX($K40:$O40,1,aux!$AL$1) -> 2195.61 | AB40: 0.001278467217 | AC40: 0.0009950786303 | AD40: =+IF(INDEX($K40:$O40,1,aux!$AL$1)>0,(O40/INDEX($K40:$O40,1,aux!$AL$1))^(1/($O$3-INDEX($K$3:$O$3,1,aux!$AL$1)))-1,"n.d.") -> 0.2173074155 | AE40: =IF(INDEX($K40:$O40,1,aux!$AL$1)>0,(O40-INDEX($K40:$O40,1,aux!$AL$1))/INDEX($K40:$O40,1,aux!$AL$1),"n.d.") -> 1.195841914 | AX40: 05
A41: 05SS | B41: Outros produtos de origem animal | C41: 0 | D41: 0 | E41: 0 | F41: 0 | G41: 0 | H41: 0 | I41: 0 | J41: 0 | K41: 0 | L41: 0 | M41: 0 | N41: 0 | O41: 0 | P41: 0 | Q41: 0 | R41: 0 | S41: 0 | U41: =G41-INDEX($C41:$G41,1,aux!$AL$1) -> 0 | V41: 0 | W41: 0 | X41: =+IF(INDEX($C41:$G41,1,aux!$AL$1)>0,(G41/INDEX($C41:$G41,1,aux!$AL$1))^(1/($G$3-INDEX($C$3:$G$3,1,aux!$AL$1)))-1,"n.d.") -> n.d. | Y41: =IF(INDEX($C41:$G41,1,aux!$AL$1)>0,(G41-INDEX($C41:$G41,1,aux!$AL$1))/INDEX($C41:$G41,1,aux!$AL$1),"n.d.") -> n.d. | AA41: =O41-INDEX($K41:$O41,1,aux!$AL$1) -> 0 | AB41: 0 | AC41: 0 | AD41: =+IF(INDEX($K41:$O41,1,aux!$AL$1)>0,(O41/INDEX($K41:$O41,1,aux!$AL$1))^(1/($O$3-INDEX($K$3:$O$3,1,aux!$AL$1)))-1,"n.d.") -> n.d. | AE41: =IF(INDEX($K41:$O41,1,aux!$AL$1)>0,(O41-INDEX($K41:$O41,1,aux!$AL$1))/INDEX($K41:$O41,1,aux!$AL$1),"n.d.") -> n.d. | AX41: 05
A42: 0601 | B42: Bolbos, tubérculos, raízes, etc. | C42: 686.311 | D42: 1383.868 | E42: 1210.757 | F42: 1988.163 | G42: 3458.473 | H42: 1745.5144 | I42: 0.0003345151611 | J42: 0.0002316634028 | K42: 1099.776 | L42: 997.557 | M42: 2410.295 | N42: 2007.536 | O42: 2400.827 | P42: 1783.1982 | Q42: 0.0006470021047 | R42: 0.0003885405564 | S42: 37.6838 | U42: =G42-INDEX($C42:$G42,1,aux!$AL$1) -> 2772.162 | V42: 0.001136001119 | W42: 0.0009075128459 | X42: =+IF(INDEX($C42:$G42,1,aux!$AL$1)>0,(G42/INDEX($C42:$G42,1,aux!$AL$1))^(1/($G$3-INDEX($C$3:$G$3,1,aux!$AL$1)))-1,"n.d.") -> 0.4982726694 | Y42: =IF(INDEX($C42:$G42,1,aux!$AL$1)>0,(G42-INDEX($C42:$G42,1,aux!$AL$1))/INDEX($C42:$G42,1,aux!$AL$1),"n.d.") -> 4.039221286 | AA42: =O42-INDEX($K42:$O42,1,aux!$AL$1) -> 1301.051 | AB42: 0.000757580377 | AC42: 0.0005896530108 | AD42: =+IF(INDEX($K42:$O42,1,aux!$AL$1)>0,(O42/INDEX($K42:$O42,1,aux!$AL$1))^(1/($O$3-INDEX($K$3:$O$3,1,aux!$AL$1)))-1,"n.d.") -> 0.2155257323 | AE42: =IF(INDEX($K42:$O42,1,aux!$AL$1)>0,(O42-INDEX($K42:$O42,1,aux!$AL$1))/INDEX($K42:$O42,1,aux!$AL$1),"n.d.") -> 1.183014541 | AX42: 06
A43: 0602 | B43: Plantas vivas | C43: 40085.442 | D43: 46070.47 | E43: 50635.011 | F43: 67864.182 | G43: 51638.449 | H43: 51258.7108 | I43: 0.00982335975 | J43: 0.006803018851 | K43: 9387.353 | L43: 9635.375 | M43: 9772.39 | N43: 10485.712 | O43: 10716.631 | P43: 9999.4922 | Q43: 0.003628139878 | R43: 0.002178786555 | S43: -41259.2186 | U43: =G43-INDEX($C43:$G43,1,aux!$AL$1) -> 11553.007 | V43: 0.004734293625 | W43: 0.003782066943 | X43: =+IF(INDEX($C43:$G43,1,aux!$AL$1)>0,(G43/INDEX($C43:$G43,1,aux!$AL$1))^(1/($G$3-INDEX($C$3:$G$3,1,aux!$AL$1)))-1,"n.d.") -> 0.06536059229 | Y43: =IF(INDEX($C43:$G43,1,aux!$AL$1)>0,(G43-INDEX($C43:$G43,1,aux!$AL$1))/INDEX($C43:$G43,1,aux!$AL$1),"n.d.") -> 0.288209545 | AA43: =O43-INDEX($K43:$O43,1,aux!$AL$1) -> 1329.278 | AB43: 0.0007740164901 | AC43: 0.0006024458494 | AD43: =+IF(INDEX($K43:$O43,1,aux!$AL$1)>0,(O43/INDEX($K43:$O43,1,aux!$AL$1))^(1/($O$3-INDEX($K$3:$O$3,1,aux!$AL$1)))-1,"n.d.") -> 0.03366255015 | AE43: =IF(INDEX($K43:$O43,1,aux!$AL$1)>0,(O43-INDEX($K43:$O43,1,aux!$AL$1))/INDEX($K43:$O43,1,aux!$AL$1),"n.d.") -> 0.1416030696 | AX43: 06
A44: 0603 | B44: Flores e seus botões | C44: 7595.112 | D44: 6803.436 | E44: 10172.475 | F44: 13927.444 | G44: 13952.381 | H44: 10490.1696 | I44: 0.002010364838 | J44: 0.001392247687 | K44: 568.775 | L44: 868.238 | M44: 1457.738 | N44: 2246.49 | O44: 2365.364 | P44: 1501.321 | Q44: 0.0005447279202 | R44: 0.0003271224123 | S44: -8988.8486 | U44: =G44-INDEX($C44:$G44,1,aux!$AL$1) -> 6357.269 | V44: 0.002605138048 | W44: 0.002081156614 | X44: =+IF(INDEX($C44:$G44,1,aux!$AL$1)>0,(G44/INDEX($C44:$G44,1,aux!$AL$1))^(1/($G$3-INDEX($C$3:$G$3,1,aux!$AL$1)))-1,"n.d.") -> 0.1642025231 | Y44: =IF(INDEX($C44:$G44,1,aux!$AL$1)>0,(G44-INDEX($C44:$G44,1,aux!$AL$1))/INDEX($C44:$G44,1,aux!$AL$1),"n.d.") -> 0.8370210999 | AA44: =O44-INDEX($K44:$O44,1,aux!$AL$1) -> 1796.589 | AB44: 0.00104612392 | AC44: 0.0008142371921 | AD44: =+IF(INDEX($K44:$O44,1,aux!$AL$1)>0,(O44/INDEX($K44:$O44,1,aux!$AL$1))^(1/($O$3-INDEX($K$3:$O$3,1,aux!$AL$1)))-1,"n.d.") -> 0.428036707 | AE44: =IF(INDEX($K44:$O44,1,aux!$AL$1)>0,(O44-INDEX($K44:$O44,1,aux!$AL$1))/INDEX($K44:$O44,1,aux!$AL$1),"n.d.") -> 3.158698958 | AX44: 06
A45: 0604 | B45: Folhagem, folhas, ramos e outras partes de plantas | C45: 1499.268 | D45: 1815.066 | E45: 1790.159 | F45: 4306.687 | G45: 1739.472 | H45: 2230.1304 | I45: 0.0004273882988 | J45: 0.0002959812862 | K45: 5620.386 | L45: 15315.547 | M45: 11947.044 | N45: 9890.181 | O45: 6279.611 | P45: 9810.5538 | Q45: 0.003559586902 | R45: 0.00213761882 | S45: 7580.4234 | U45: =G45-INDEX($C45:$G45,1,aux!$AL$1) -> 240.204 | V45: 9.843292452e-05 | W45: 7.86347319e-05 | X45: =+IF(INDEX($C45:$G45,1,aux!$AL$1)>0,(G45/INDEX($C45:$G45,1,aux!$AL$1))^(1/($G$3-INDEX($C$3:$G$3,1,aux!$AL$1)))-1,"n.d.") -> 0.03784988775 | Y45: =IF(INDEX($C45:$G45,1,aux!$AL$1)>0,(G45-INDEX($C45:$G45,1,aux!$AL$1))/INDEX($C45:$G45,1,aux!$AL$1),"n.d.") -> 0.1602141845 | AA45: =O45-INDEX($K45:$O45,1,aux!$AL$1) -> 659.225 | AB45: 0.0003838557628 | AC45: 0.0002987692304 | AD45: =+IF(INDEX($K45:$O45,1,aux!$AL$1)>0,(O45/INDEX($K45:$O45,1,aux!$AL$1))^(1/($O$3-INDEX($K$3:$O$3,1,aux!$AL$1)))-1,"n.d.") -> 0.02811489131 | AE45: =IF(INDEX($K45:$O45,1,aux!$AL$1)>0,(O45-INDEX($K45:$O45,1,aux!$AL$1))/INDEX($K45:$O45,1,aux!$AL$1),"n.d.") -> 0.1172917661 | AX45: 06
A46: 06SS | B46: Plantas vivas e produtos de floricultura | C46: 0 | D46: 0 | E46: 0 | F46: 0 | G46: 0 | H46: 0 | I46: 0 | J46: 0 | K46: 0 | L46: 0 | M46: 0 | N46: 0 | O46: 0 | P46: 0 | Q46: 0 | R46: 0 | S46: 0 | U46: =G46-INDEX($C46:$G46,1,aux!$AL$1) -> 0 | V46: 0 | W46: 0 | X46: =+IF(INDEX($C46:$G46,1,aux!$AL$1)>0,(G46/INDEX($C46:$G46,1,aux!$AL$1))^(1/($G$3-INDEX($C$3:$G$3,1,aux!$AL$1)))-1,"n.d.") -> n.d. | Y46: =IF(INDEX($C46:$G46,1,aux!$AL$1)>0,(G46-INDEX($C46:$G46,1,aux!$AL$1))/INDEX($C46:$G46,1,aux!$AL$1),"n.d.") -> n.d. | AA46: =O46-INDEX($K46:$O46,1,aux!$AL$1) -> 0 | AB46: 0 | AC46: 0 | AD46: =+IF(INDEX($K46:$O46,1,aux!$AL$1)>0,(O46/INDEX($K46:$O46,1,aux!$AL$1))^(1/($O$3-INDEX($K$3:$O$3,1,aux!$AL$1)))-1,"n.d.") -> n.d. | AE46: =IF(INDEX($K46:$O46,1,aux!$AL$1)>0,(O46-INDEX($K46:$O46,1,aux!$AL$1))/INDEX($K46:$O46,1,aux!$AL$1),"n.d.") -> n.d. | AX46: 06
A47: 0701 | B47: Batatas, frescas ou refrigeradas | C47: 42633.161 | D47: 34056.462 | E47: 33569.246 | F47: 50864.402 | G47: 71589.293 | H47: 46542.5128 | I47: 0.008919534646 | J47: 0.006177088479 | K47: 13407.857 | L47: 8771.45 | M47: 9845.344 | N47: 14707.941 | O47: 24185.987 | P47: 14183.7158 | Q47: 0.005146311821 | R47: 0.003090485864 | S47: -32358.797 | U47: =G47-INDEX($C47:$G47,1,aux!$AL$1) -> 28956.132 | V47: 0.01186590047 | W47: 0.009479266276 | X47: =+IF(INDEX($C47:$G47,1,aux!$AL$1)>0,(G47/INDEX($C47:$G47,1,aux!$AL$1))^(1/($G$3-INDEX($C$3:$G$3,1,aux!$AL$1)))-1,"n.d.") -> 0.1383482253 | Y47: =IF(INDEX($C47:$G47,1,aux!$AL$1)>0,(G47-INDEX($C47:$G47,1,aux!$AL$1))/INDEX($C47:$G47,1,aux!$AL$1),"n.d.") -> 0.6791927064 | AA47: =O47-INDEX($K47:$O47,1,aux!$AL$1) -> 10778.13 | AB47: 0.006275925993 | AC47: 0.004884786842 | AD47: =+IF(INDEX($K47:$O47,1,aux!$AL$1)>0,(O47/INDEX($K47:$O47,1,aux!$AL$1))^(1/($O$3-INDEX($K$3:$O$3,1,aux!$AL$1)))-1,"n.d.") -> 0.1589137388 | AE47: =IF(INDEX($K47:$O47,1,aux!$AL$1)>0,(O47-INDEX($K47:$O47,1,aux!$AL$1))/INDEX($K47:$O47,1,aux!$AL$1),"n.d.") -> 0.8038667179 | AX47: 07
A48: 0702 | B48: Tomates, frescos ou refrigerados | C48: 31138.838 | D48: 27683.214 | E48: 31140.47 | F48: 40856.877 | G48: 53257.073 | H48: 36815.2944 | I48: 0.007055383866 | J48: 0.004886099121 | K48: 46682.727 | L48: 41485.27 | M48: 48059.454 | N48: 68799.115 | O48: 113215.447 | P48: 63648.4026 | Q48: 0.02309370346 | R48: 0.01386833262 | S48: 26833.1082 | U48: =G48-INDEX($C48:$G48,1,aux!$AL$1) -> 22118.235 | V48: 0.009063806415 | W48: 0.007240768177 | X48: =+IF(INDEX($C48:$G48,1,aux!$AL$1)>0,(G48/INDEX($C48:$G48,1,aux!$AL$1))^(1/($G$3-INDEX($C$3:$G$3,1,aux!$AL$1)))-1,"n.d.") -> 0.1435857182 | Y48: =IF(INDEX($C48:$G48,1,aux!$AL$1)>0,(G48-INDEX($C48:$G48,1,aux!$AL$1))/INDEX($C48:$G48,1,aux!$AL$1),"n.d.") -> 0.7103102242 | AA48: =O48-INDEX($K48:$O48,1,aux!$AL$1) -> 66532.72 | AB48: 0.03874089725 | AC48: 0.03015348258 | AD48: =+IF(INDEX($K48:$O48,1,aux!$AL$1)>0,(O48/INDEX($K48:$O48,1,aux!$AL$1))^(1/($O$3-INDEX($K$3:$O$3,1,aux!$AL$1)))-1,"n.d.") -> 0.247921787 | AE48: =IF(INDEX($K48:$O48,1,aux!$AL$1)>0,(O48-INDEX($K48:$O48,1,aux!$AL$1))/INDEX($K48:$O48,1,aux!$AL$1),"n.d.") -> 1.425210657 | AX48: 07
A49: 0703 | B49: Cebolas, alhos, etc., frescos ou refrigerados | C49: 37424.973 | D49: 40356.606 | E49: 41721.948 | F49: 44543.829 | G49: 66202.013 | H49: 46049.8738 | I49: 0.008825123959 | J49: 0.006111705789 | K49: 7049.358 | L49: 6439.209 | M49: 7358.258 | N49: 5356.801 | O49: 8527.874 | P49: 6946.3 | Q49: 0.002520342786 | R49: 0.001513527362 | S49: -39103.5738 | U49: =G49-INDEX($C49:$G49,1,aux!$AL$1) -> 28777.04 | V49: 0.01179251056 | W49: 0.009420637563 | X49: =+IF(INDEX($C49:$G49,1,aux!$AL$1)>0,(G49/INDEX($C49:$G49,1,aux!$AL$1))^(1/($G$3-INDEX($C$3:$G$3,1,aux!$AL$1)))-1,"n.d.") -> 0.1532605199 | Y49: =IF(INDEX($C49:$G49,1,aux!$AL$1)>0,(G49-INDEX($C49:$G49,1,aux!$AL$1))/INDEX($C49:$G49,1,aux!$AL$1),"n.d.") -> 0.7689261392 | AA49: =O49-INDEX($K49:$O49,1,aux!$AL$1) -> 1478.516 | AB49: 0.0008609152975 | AC49: 0.0006700824263 | AD49: =+IF(INDEX($K49:$O49,1,aux!$AL$1)>0,(O49/INDEX($K49:$O49,1,aux!$AL$1))^(1/($O$3-INDEX($K$3:$O$3,1,aux!$AL$1)))-1,"n.d.") -> 0.04875200008 | AE49: =IF(INDEX($K49:$O49,1,aux!$AL$1)>0,(O49-INDEX($K49:$O49,1,aux!$AL$1))/INDEX($K49:$O49,1,aux!$AL$1),"n.d.") -> 0.2097376811 | AX49: 07
A50: 0704 | B50: Couves, frescas ou refrigeradas | C50: 15651.252 | D50: 18148.188 | E50: 18575.11 | F50: 18681.217 | G50: 29619.096 | H50: 20134.9726 | I50: 0.003858721305 | J50: 0.002672298933 | K50: 3634.828 | L50: 3995.864 | M50: 3128.718 | N50: 4552.243 | O50: 6169.165 | P50: 4296.1636 | Q50: 0.001558787403 | R50: 0.0009360898837 | S50: -15838.809 | U50: =G50-INDEX($C50:$G50,1,aux!$AL$1) -> 13967.844 | V50: 0.005723866939 | W50: 0.004572603571 | X50: =+IF(INDEX($C50:$G50,1,aux!$AL$1)>0,(G50/INDEX($C50:$G50,1,aux!$AL$1))^(1/($G$3-INDEX($C$3:$G$3,1,aux!$AL$1)))-1,"n.d.") -> 0.1728856662 | Y50: =IF(INDEX($C50:$G50,1,aux!$AL$1)>0,(G50-INDEX($C50:$G50,1,aux!$AL$1))/INDEX($C50:$G50,1,aux!$AL$1),"n.d.") -> 0.8924425982 | AA50: =O50-INDEX($K50:$O50,1,aux!$AL$1) -> 2534.337 | AB50: 0.001475702321 | AC50: 0.001148594054 | AD50: =+IF(INDEX($K50:$O50,1,aux!$AL$1)>0,(O50/INDEX($K50:$O50,1,aux!$AL$1))^(1/($O$3-INDEX($K$3:$O$3,1,aux!$AL$1)))-1,"n.d.") -> 0.1413941184 | AE50: =IF(INDEX($K50:$O50,1,aux!$AL$1)>0,(O50-INDEX($K50:$O50,1,aux!$AL$1))/INDEX($K50:$O50,1,aux!$AL$1),"n.d.") -> 0.6972371182 | AX50: 07
A51: 0705 | B51: Alfaces, frescas ou refrigeradas | C51: 5559.692 | D51: 5060.887 | E51: 6488.808 | F51: 8430.994 | G51: 11243.27 | H51: 7356.7302 | I51: 0.001409863928 | J51: 0.0009763798864 | K51: 5636.049 | L51: 4786.302 | M51: 5175.691 | N51: 7362.273 | O51: 6979.017 | P51: 5987.8664 | Q51: 0.002172592011 | R51: 0.001304694533 | S51: -1368.8638 | U51: =G51-INDEX($C51:$G51,1,aux!$AL$1) -> 5683.578 | V51: 0.002329066977 | W51: 0.00186061278 | X51: =+IF(INDEX($C51:$G51,1,aux!$AL$1)>0,(G51/INDEX($C51:$G51,1,aux!$AL$1))^(1/($G$3-INDEX($C$3:$G$3,1,aux!$AL$1)))-1,"n.d.") -> 0.1925057363 | Y51: =IF(INDEX($C51:$G51,1,aux!$AL$1)>0,(G51-INDEX($C51:$G51,1,aux!$AL$1))/INDEX($C51:$G51,1,aux!$AL$1),"n.d.") -> 1.022282889 | AA51: =O51-INDEX($K51:$O51,1,aux!$AL$1) -> 1342.968 | AB51: 0.0007819879496 | AC51: 0.0006086503331 | AD51: =+IF(INDEX($K51:$O51,1,aux!$AL$1)>0,(O51/INDEX($K51:$O51,1,aux!$AL$1))^(1/($O$3-INDEX($K$3:$O$3,1,aux!$AL$1)))-1,"n.d.") -> 0.05488441001 | AE51: =IF(INDEX($K51:$O51,1,aux!$AL$1)>0,(O51-INDEX($K51:$O51,1,aux!$AL$1))/INDEX($K51:$O51,1,aux!$AL$1),"n.d.") -> 0.2382818176 | AX51: 07
A52: 0706 | B52: Cenouras, nabos, beterrabas, etc., frescos ou refrigerados | C52: 7774.53 | D52: 7387.05 | E52: 6677.168 | F52: 11438.037 | G52: 18766.19 | H52: 10408.595 | I52: 0.001994731658 | J52: 0.001381421165 | K52: 1391.549 | L52: 1076.282 | M52: 1700.409 | N52: 1254.571 | O52: 3388.954 | P52: 1762.353 | Q52: 0.0006394387905 | R52: 0.0003839986016 | S52: -8646.242 | U52: =G52-INDEX($C52:$G52,1,aux!$AL$1) -> 10991.66 | V52: 0.004504259875 | W52: 0.003598300766 | X52: =+IF(INDEX($C52:$G52,1,aux!$AL$1)>0,(G52/INDEX($C52:$G52,1,aux!$AL$1))^(1/($G$3-INDEX($C$3:$G$3,1,aux!$AL$1)))-1,"n.d.") -> 0.2464518064 | Y52: =IF(INDEX($C52:$G52,1,aux!$AL$1)>0,(G52-INDEX($C52:$G52,1,aux!$AL$1))/INDEX($C52:$G52,1,aux!$AL$1),"n.d.") -> 1.413803793 | AA52: =O52-INDEX($K52:$O52,1,aux!$AL$1) -> 1997.405 | AB52: 0.00116305574 | AC52: 0.0009052495805 | AD52: =+IF(INDEX($K52:$O52,1,aux!$AL$1)>0,(O52/INDEX($K52:$O52,1,aux!$AL$1))^(1/($O$3-INDEX($K$3:$O$3,1,aux!$AL$1)))-1,"n.d.") -> 0.249228238 | AE52: =IF(INDEX($K52:$O52,1,aux!$AL$1)>0,(O52-INDEX($K52:$O52,1,aux!$AL$1))/INDEX($K52:$O52,1,aux!$AL$1),"n.d.") -> 1.435382441 | AX52: 07
A53: 0707 | B53: Pepinos e pepininhos, frescos ou refrigerados | C53: 4044.578 | D53: 2736.32 | E53: 3693.201 | F53: 5865.029 | G53: 9259.197 | H53: 5119.665 | I53: 0.0009811466248 | J53: 0.0006794782186 | K53: 153.961 | L53: 357.271 | M53: 125.889 | N53: 468.213 | O53: 1767.602 | P53: 574.5872 | Q53: 0.0002084788599 | R53: 0.0001251966441 | S53: -4545.0778 | U53: =G53-INDEX($C53:$G53,1,aux!$AL$1) -> 5214.619 | V53: 0.002136892801 | W53: 0.001707091335 | X53: =+IF(INDEX($C53:$G53,1,aux!$AL$1)>0,(G53/INDEX($C53:$G53,1,aux!$AL$1))^(1/($G$3-INDEX($C$3:$G$3,1,aux!$AL$1)))-1,"n.d.") -> 0.2300564065 | Y53: =IF(INDEX($C53:$G53,1,aux!$AL$1)>0,(G53-INDEX($C53:$G53,1,aux!$AL$1))/INDEX($C53:$G53,1,aux!$AL$1),"n.d.") -> 1.289286299 | AA53: =O53-INDEX($K53:$O53,1,aux!$AL$1) -> 1613.641 | AB53: 0.0009395963395 | AC53: 0.0007313228105 | AD53: =+IF(INDEX($K53:$O53,1,aux!$AL$1)>0,(O53/INDEX($K53:$O53,1,aux!$AL$1))^(1/($O$3-INDEX($K$3:$O$3,1,aux!$AL$1)))-1,"n.d.") -> 0.840744198 | AE53: =IF(INDEX($K53:$O53,1,aux!$AL$1)>0,(O53-INDEX($K53:$O53,1,aux!$AL$1))/INDEX($K53:$O53,1,aux!$AL$1),"n.d.") -> 10.48084255 | AX53: 07
A54: 0708 | B54: Tomates preparados ou conservados | C54: 11845.768 | D54: 13591.173 | E54: 11083.216 | F54: 13377.219 | G54: 12365.906 | H54: 12452.6564 | I54: 0.002386461184 | J54: 0.001652707509 | K54: 662.226 | L54: 1134.269 | M54: 899.767 | N54: 1385.294 | O54: 1653.262 | P54: 1146.9636 | Q54: 0.0004161555699 | R54: 0.0002499115776 | S54: -11305.6928 | U54: =G54-INDEX($C54:$G54,1,aux!$AL$1) -> 520.138 | V54: 0.0002131467606 | W54: 0.000170275733 | X54: =+IF(INDEX($C54:$G54,1,aux!$AL$1)>0,(G54/INDEX($C54:$G54,1,aux!$AL$1))^(1/($G$3-INDEX($C$3:$G$3,1,aux!$AL$1)))-1,"n.d.") -> 0.01080103872 | Y54: =IF(INDEX($C54:$G54,1,aux!$AL$1)>0,(G54-INDEX($C54:$G54,1,aux!$AL$1))/INDEX($C54:$G54,1,aux!$AL$1),"n.d.") -> 0.04390918343 | AA54: =O54-INDEX($K54:$O54,1,aux!$AL$1) -> 991.036 | AB54: 0.0005770637942 | AC54: 0.0004491502341 | AD54: =+IF(INDEX($K54:$O54,1,aux!$AL$1)>0,(O54/INDEX($K54:$O54,1,aux!$AL$1))^(1/($O$3-INDEX($K$3:$O$3,1,aux!$AL$1)))-1,"n.d.") -> 0.2569959082 | AE54: =IF(INDEX($K54:$O54,1,aux!$AL$1)>0,(O54-INDEX($K54:$O54,1,aux!$AL$1))/INDEX($K54:$O54,1,aux!$AL$1),"n.d.") -> 1.496522335 | AX54: 07
A55: 0709 | B55: Outros produtos hortícolas, frescos ou refrigerados | C55: 58764.096 | D55: 67626.644 | E55: 78736.463 | F55: 89840.309 | G55: 121495.443 | H55: 83292.591 | I55: 0.0159624203 | J55: 0.01105453215 | K55: 31938.867 | L55: 28992.427 | M55: 42149.378 | N55: 51206.723 | O55: 68812.853 | P55: 44620.0496 | Q55: 0.01618960024 | R55: 0.009722250112 | S55: -38672.5414 | U55: =G55-INDEX($C55:$G55,1,aux!$AL$1) -> 62731.347 | V55: 0.02570660748 | W55: 0.02053613867 | X55: =+IF(INDEX($C55:$G55,1,aux!$AL$1)>0,(G55/INDEX($C55:$G55,1,aux!$AL$1))^(1/($G$3-INDEX($C$3:$G$3,1,aux!$AL$1)))-1,"n.d.") -> 0.1991181659 | Y55: =IF(INDEX($C55:$G55,1,aux!$AL$1)>0,(G55-INDEX($C55:$G55,1,aux!$AL$1))/INDEX($C55:$G55,1,aux!$AL$1),"n.d.") -> 1.067511478 | AA55: =O55-INDEX($K55:$O55,1,aux!$AL$1) -> 36873.986 | AB55: 0.02147110929 | AC55: 0.01671176369 | AD55: =+IF(INDEX($K55:$O55,1,aux!$AL$1)>0,(O55/INDEX($K55:$O55,1,aux!$AL$1))^(1/($O$3-INDEX($K$3:$O$3,1,aux!$AL$1)))-1,"n.d.") -> 0.2115393229 | AE55: =IF(INDEX($K55:$O55,1,aux!$AL$1)>0,(O55-INDEX($K55:$O55,1,aux!$AL$1))/INDEX($K55:$O55,1,aux!$AL$1),"n.d.") -> 1.15451766 | AX55: 07
A56: 0710 | B56: Produtos hortícolas congelados | C56: 30568.185 | D56: 33224.497 | E56: 33009.559 | F56: 41888.705 | G56: 59002.5 | H56: 39538.6892 | I56: 0.007577302706 | J56: 0.0052475461 | K56: 3358.32 | L56: 2652.801 | M56: 3985.588 | N56: 5227.452 | O56: 5407.659 | P56: 4126.364 | Q56: 0.001497178605 | R56: 0.0008990922964 | S56: -35412.3252 | U56: =G56-INDEX($C56:$G56,1,aux!$AL$1) -> 28434.315 | V56: 0.01165206567 | W56: 0.009308440895 | X56: =+IF(INDEX($C56:$G56,1,aux!$AL$1)>0,(G56/INDEX($C56:$G56,1,aux!$AL$1))^(1/($G$3-INDEX($C$3:$G$3,1,aux!$AL$1)))-1,"n.d.") -> 0.1786916044 | Y56: =IF(INDEX($C56:$G56,1,aux!$AL$1)>0,(G56-INDEX($C56:$G56,1,aux!$AL$1))/INDEX($C56:$G56,1,aux!$AL$1),"n.d.") -> 0.9301931076 | AA56: =O56-INDEX($K56:$O56,1,aux!$AL$1) -> 2049.339 | AB56: 0.001193296045 | AC56: 0.0009287867358 | AD56: =+IF(INDEX($K56:$O56,1,aux!$AL$1)>0,(O56/INDEX($K56:$O56,1,aux!$AL$1))^(1/($O$3-INDEX($K$3:$O$3,1,aux!$AL$1)))-1,"n.d.") -> 0.1264756424 | AE56: =IF(INDEX($K56:$O56,1,aux!$AL$1)>0,(O56-INDEX($K56:$O56,1,aux!$AL$1))/INDEX($K56:$O56,1,aux!$AL$1),"n.d.") -> 0.6102274351 | AX56: 07
A57: 0711 | B57: Produtos hortícolas conservados transitoriamente | C57: 2487.369 | D57: 5858.005 | E57: 2353.148 | F57: 4491.849 | G57: 2942.528 | H57: 3626.5798 | I57: 0.0006950076871 | J57: 0.0004813170358 | K57: 38.691 | L57: 20.284 | M57: 22.977 | N57: 1321.013 | O57: 1140.3 | P57: 508.653 | Q57: 0.0001845557951 | R57: 0.0001108302597 | S57: -3117.9268 | U57: =G57-INDEX($C57:$G57,1,aux!$AL$1) -> 455.159 | V57: 0.00018651909 | W57: 0.0001490037882 | X57: =+IF(INDEX($C57:$G57,1,aux!$AL$1)>0,(G57/INDEX($C57:$G57,1,aux!$AL$1))^(1/($G$3-INDEX($C$3:$G$3,1,aux!$AL$1)))-1,"n.d.") -> 0.04290583345 | Y57: =IF(INDEX($C57:$G57,1,aux!$AL$1)>0,(G57-INDEX($C57:$G57,1,aux!$AL$1))/INDEX($C57:$G57,1,aux!$AL$1),"n.d.") -> 0.1829881292 | AA57: =O57-INDEX($K57:$O57,1,aux!$AL$1) -> 1101.609 | AB57: 0.0006414486147 | AC57: 0.0004992633368 | AD57: =+IF(INDEX($K57:$O57,1,aux!$AL$1)>0,(O57/INDEX($K57:$O57,1,aux!$AL$1))^(1/($O$3-INDEX($K$3:$O$3,1,aux!$AL$1)))-1,"n.d.") -> 1.329980533 | AE57: =IF(INDEX($K57:$O57,1,aux!$AL$1)>0,(O57-INDEX($K57:$O57,1,aux!$AL$1))/INDEX($K57:$O57,1,aux!$AL$1),"n.d.") -> 28.47197023 | AX57: 07
A58: 0712 | B58: Produtos hortícolas secos | C58: 2758.033 | D58: 2391.212 | E58: 2090.859 | F58: 3849.167 | G58: 6496.984 | H58: 3517.251 | I58: 0.0006740556164 | J58: 0.0004668069969 | K58: 1837.176 | L58: 2360.289 | M58: 1295.53 | N58: 1861.95 | O58: 3081.465 | P58: 2087.282 | Q58: 0.0007573335634 | R58: 0.0004547972905 | S58: -1429.969 | U58: =G58-INDEX($C58:$G58,1,aux!$AL$1) -> 3738.951 | V58: 0.001532180486 | W58: 0.001224007133 | X58: =+IF(INDEX($C58:$G58,1,aux!$AL$1)>0,(G58/INDEX($C58:$G58,1,aux!$AL$1))^(1/($G$3-INDEX($C$3:$G$3,1,aux!$AL$1)))-1,"n.d.") -> 0.238876699 | Y58: =IF(INDEX($C58:$G58,1,aux!$AL$1)>0,(G58-INDEX($C58:$G58,1,aux!$AL$1))/INDEX($C58:$G58,1,aux!$AL$1),"n.d.") -> 1.355658544 | AA58: =O58-INDEX($K58:$O58,1,aux!$AL$1) -> 1244.289 | AB58: 0.0007245288077 | AC58: 0.0005639277439 | AD58: =+IF(INDEX($K58:$O58,1,aux!$AL$1)>0,(O58/INDEX($K58:$O58,1,aux!$AL$1))^(1/($O$3-INDEX($K$3:$O$3,1,aux!$AL$1)))-1,"n.d.") -> 0.1380245186 | AE58: =IF(INDEX($K58:$O58,1,aux!$AL$1)>0,(O58-INDEX($K58:$O58,1,aux!$AL$1))/INDEX($K58:$O58,1,aux!$AL$1),"n.d.") -> 0.6772835047 | AX58: 07
A59: 0713 | B59: Legumes de vagem, secos, em grão | C59: 4759.385 | D59: 5468.505 | E59: 5719.979 | F59: 4812.714 | G59: 5775.564 | H59: 5307.2294 | I59: 0.00101709198 | J59: 0.0007043716295 | K59: 3128.795 | L59: 4181.071 | M59: 5086.205 | N59: 5278.938 | O59: 5149.764 | P59: 4564.9546 | Q59: 0.00165631349 | R59: 0.0009946566794 | S59: -742.2748 | U59: =G59-INDEX($C59:$G59,1,aux!$AL$1) -> 1016.179 | V59: 0.000416418839 | W59: 0.0003326629166 | X59: =+IF(INDEX($C59:$G59,1,aux!$AL$1)>0,(G59/INDEX($C59:$G59,1,aux!$AL$1))^(1/($G$3-INDEX($C$3:$G$3,1,aux!$AL$1)))-1,"n.d.") -> 0.04956874834 | Y59: =IF(INDEX($C59:$G59,1,aux!$AL$1)>0,(G59-INDEX($C59:$G59,1,aux!$AL$1))/INDEX($C59:$G59,1,aux!$AL$1),"n.d.") -> 0.2135105691 | AA59: =O59-INDEX($K59:$O59,1,aux!$AL$1) -> 2020.969 | AB59: 0.001176776665 | AC59: 0.0009159290877 | AD59: =+IF(INDEX($K59:$O59,1,aux!$AL$1)>0,(O59/INDEX($K59:$O59,1,aux!$AL$1))^(1/($O$3-INDEX($K$3:$O$3,1,aux!$AL$1)))-1,"n.d.") -> 0.1326678004 | AE59: =IF(INDEX($K59:$O59,1,aux!$AL$1)>0,(O59-INDEX($K59:$O59,1,aux!$AL$1))/INDEX($K59:$O59,1,aux!$AL$1),"n.d.") -> 0.6459256679 | AX59: 07
A60: 0714 | B60: Raízes de mandioca, de araruta, batata-doce, etc. | C60: 1402.61 | D60: 1925.717 | E60: 2657.305 | F60: 3402.885 | G60: 3435.662 | H60: 2564.8358 | I60: 0.0004915321585 | J60: 0.0003404031437 | K60: 4325.298 | L60: 5252.404 | M60: 5315.83 | N60: 3103.12 | O60: 3354.655 | P60: 4270.2614 | Q60: 0.001549389245 | R60: 0.0009304460606 | S60: 1705.4256 | U60: =G60-INDEX($C60:$G60,1,aux!$AL$1) -> 2033.052 | V60: 0.0008331220715 | W60: 0.0006655530256 | X60: =+IF(INDEX($C60:$G60,1,aux!$AL$1)>0,(G60/INDEX($C60:$G60,1,aux!$AL$1))^(1/($G$3-INDEX($C$3:$G$3,1,aux!$AL$1)))-1,"n.d.") -> 0.2510318748 | Y60: =IF(INDEX($C60:$G60,1,aux!$AL$1)>0,(G60-INDEX($C60:$G60,1,aux!$AL$1))/INDEX($C60:$G60,1,aux!$AL$1),"n.d.") -> 1.449477759 | AA60: =O60-INDEX($K60:$O60,1,aux!$AL$1) -> -970.643 | AB60: -0.0005651892892 | AC60: -0.0004399078647 | AD60: =+IF(INDEX($K60:$O60,1,aux!$AL$1)>0,(O60/INDEX($K60:$O60,1,aux!$AL$1))^(1/($O$3-INDEX($K$3:$O$3,1,aux!$AL$1)))-1,"n.d.") -> -0.06155687475 | AE60: =IF(INDEX($K60:$O60,1,aux!$AL$1)>0,(O60-INDEX($K60:$O60,1,aux!$AL$1))/INDEX($K60:$O60,1,aux!$AL$1),"n.d.") -> -0.2244106649 | AX60: 07
A61: 07SS | B61: Produtos hortícolas, plantas, raízes e tubérculos, comestíveis | C61: 0 | D61: 0 | E61: 0 | F61: 0 | G61: 0 | H61: 0 | I61: 0 | J61: 0 | K61: 0 | L61: 0 | M61: 0 | N61: 0 | O61: 0 | P61: 0 | Q61: 0 | R61: 0 | S61: 0 | U61: =G61-INDEX($C61:$G61,1,aux!$AL$1) -> 0 | V61: 0 | W61: 0 | X61: =+IF(INDEX($C61:$G61,1,aux!$AL$1)>0,(G61/INDEX($C61:$G61,1,aux!$AL$1))^(1/($G$3-INDEX($C$3:$G$3,1,aux!$AL$1)))-1,"n.d.") -> n.d. | Y61: =IF(INDEX($C61:$G61,1,aux!$AL$1)>0,(G61-INDEX($C61:$G61,1,aux!$AL$1))/INDEX($C61:$G61,1,aux!$AL$1),"n.d.") -> n.d. | AA61: =O61-INDEX($K61:$O61,1,aux!$AL$1) -> 0 | AB61: 0 | AC61: 0 | AD61: =+IF(INDEX($K61:$O61,1,aux!$AL$1)>0,(O61/INDEX($K61:$O61,1,aux!$AL$1))^(1/($O$3-INDEX($K$3:$O$3,1,aux!$AL$1)))-1,"n.d.") -> n.d. | AE61: =IF(INDEX($K61:$O61,1,aux!$AL$1)>0,(O61-INDEX($K61:$O61,1,aux!$AL$1))/INDEX($K61:$O61,1,aux!$AL$1),"n.d.") -> n.d. | AX61: 07
A62: 0801 | B62: Cocos, castanhas do brasil e castanha de cajú | C62: 2767.509 | D62: 2678.086 | E62: 4173.952 | F62: 4798.79 | G62: 4994.179 | H62: 3882.5032 | I62: 0.0007440535485 | J62: 0.0005152830035 | K62: 377.35 | L62: 237.53 | M62: 685.709 | N62: 320.169 | O62: 319.21 | P62: 387.9936 | Q62: 0.0001407766539 | R62: 8.453981685e-05 | S62: -3494.5096 | U62: =G62-INDEX($C62:$G62,1,aux!$AL$1) -> 2226.67 | V62: 0.0009124645719 | W62: 0.0007289370638 | X62: =+IF(INDEX($C62:$G62,1,aux!$AL$1)>0,(G62/INDEX($C62:$G62,1,aux!$AL$1))^(1/($G$3-INDEX($C$3:$G$3,1,aux!$AL$1)))-1,"n.d.") -> 0.1590275669 | Y62: =IF(INDEX($C62:$G62,1,aux!$AL$1)>0,(G62-INDEX($C62:$G62,1,aux!$AL$1))/INDEX($C62:$G62,1,aux!$AL$1),"n.d.") -> 0.8045755226 | AA62: =O62-INDEX($K62:$O62,1,aux!$AL$1) -> -58.14 | AB62: -3.385395586e-05 | AC62: -2.634979416e-05 | AD62: =+IF(INDEX($K62:$O62,1,aux!$AL$1)>0,(O62/INDEX($K62:$O62,1,aux!$AL$1))^(1/($O$3-INDEX($K$3:$O$3,1,aux!$AL$1)))-1,"n.d.") -> -0.04096814363 | AE62: =IF(INDEX($K62:$O62,1,aux!$AL$1)>0,(O62-INDEX($K62:$O62,1,aux!$AL$1))/INDEX($K62:$O62,1,aux!$AL$1),"n.d.") -> -0.1540744667 | AX62: 08
A63: 0802 | B63: Frutas de casca rija | C63: 36153.781 | D63: 29193.28 | E63: 30225.814 | F63: 32197.616 | G63: 34467.359 | H63: 32447.57 | I63: 0.006218341198 | J63: 0.004306417913 | K63: 46380.202 | L63: 41563.685 | M63: 71027.89 | N63: 65289.152 | O63: 72431.234 | P63: 59338.4326 | Q63: 0.02152990665 | R63: 0.01292923446 | S63: 26890.8626 | U63: =G63-INDEX($C63:$G63,1,aux!$AL$1) -> -1686.422 | V63: -0.0006910769572 | W63: -0.0005520779914 | X63: =+IF(INDEX($C63:$G63,1,aux!$AL$1)>0,(G63/INDEX($C63:$G63,1,aux!$AL$1))^(1/($G$3-INDEX($C$3:$G$3,1,aux!$AL$1)))-1,"n.d.") -> -0.01187116873 | Y63: =IF(INDEX($C63:$G63,1,aux!$AL$1)>0,(G63-INDEX($C63:$G63,1,aux!$AL$1))/INDEX($C63:$G63,1,aux!$AL$1),"n.d.") -> -0.04664579896 | AA63: =O63-INDEX($K63:$O63,1,aux!$AL$1) -> 26051.032 | AB63: 0.01516908303 | AC63: 0.01180666204 | AD63: =+IF(INDEX($K63:$O63,1,aux!$AL$1)>0,(O63/INDEX($K63:$O63,1,aux!$AL$1))^(1/($O$3-INDEX($K$3:$O$3,1,aux!$AL$1)))-1,"n.d.") -> 0.117888046 | AE63: =IF(INDEX($K63:$O63,1,aux!$AL$1)>0,(O63-INDEX($K63:$O63,1,aux!$AL$1))/INDEX($K63:$O63,1,aux!$AL$1),"n.d.") -> 0.5616843152 | AX63: 08
A64: 0803 | B64: Bananas, frescas ou secas | C64: 61957.935 | D64: 71342.549 | E64: 70325.595 | F64: 66367.442 | G64: 91740.318 | H64: 72346.7678 | I64: 0.01386473276 | J64: 0.009601810452 | K64: 16797.442 | L64: 22552.44 | M64: 23208.254 | N64: 33010.712 | O64: 25100.379 | P64: 24133.8454 | Q64: 0.008756541347 | R64: 0.005258516816 | S64: -48212.9224 | U64: =G64-INDEX($C64:$G64,1,aux!$AL$1) -> 29782.383 | V64: 0.01220448893 | W64: 0.009749753137 | X64: =+IF(INDEX($C64:$G64,1,aux!$AL$1)>0,(G64/INDEX($C64:$G64,1,aux!$AL$1))^(1/($G$3-INDEX($C$3:$G$3,1,aux!$AL$1)))-1,"n.d.") -> 0.1031023928 | Y64: =IF(INDEX($C64:$G64,1,aux!$AL$1)>0,(G64-INDEX($C64:$G64,1,aux!$AL$1))/INDEX($C64:$G64,1,aux!$AL$1),"n.d.") -> 0.4806871469 | AA64: =O64-INDEX($K64:$O64,1,aux!$AL$1) -> 8302.937 | AB64: 0.004834662241 | AC64: 0.003762997608 | AD64: =+IF(INDEX($K64:$O64,1,aux!$AL$1)>0,(O64/INDEX($K64:$O64,1,aux!$AL$1))^(1/($O$3-INDEX($K$3:$O$3,1,aux!$AL$1)))-1,"n.d.") -> 0.1056286455 | AE64: =IF(INDEX($K64:$O64,1,aux!$AL$1)>0,(O64-INDEX($K64:$O64,1,aux!$AL$1))/INDEX($K64:$O64,1,aux!$AL$1),"n.d.") -> 0.4942977032 | AX64: 08
A65: 0804 | B65: Tâmaras, figos, ananases, abacates, goiabas, mangas | C65: 50580.796 | D65: 54998.477 | E65: 57662.986 | F65: 53014.696 | G65: 69005.153 | H65: 57052.4216 | I65: 0.01093368236 | J65: 0.007571955938 | K65: 38820.477 | L65: 36210.058 | M65: 43361.888 | N65: 48190.071 | O65: 56953.863 | P65: 44707.2714 | Q65: 0.01622124713 | R65: 0.009741254845 | S65: -12345.1502 | U65: =G65-INDEX($C65:$G65,1,aux!$AL$1) -> 18424.357 | V65: 0.007550096342 | W65: 0.006031516432 | X65: =+IF(INDEX($C65:$G65,1,aux!$AL$1)>0,(G65/INDEX($C65:$G65,1,aux!$AL$1))^(1/($G$3-INDEX($C$3:$G$3,1,aux!$AL$1)))-1,"n.d.") -> 0.08074681886 | Y65: =IF(INDEX($C65:$G65,1,aux!$AL$1)>0,(G65-INDEX($C65:$G65,1,aux!$AL$1))/INDEX($C65:$G65,1,aux!$AL$1),"n.d.") -> 0.3642559718 | AA65: =O65-INDEX($K65:$O65,1,aux!$AL$1) -> 18133.386 | AB65: 0.01055876934 | AC65: 0.008218283258 | AD65: =+IF(INDEX($K65:$O65,1,aux!$AL$1)>0,(O65/INDEX($K65:$O65,1,aux!$AL$1))^(1/($O$3-INDEX($K$3:$O$3,1,aux!$AL$1)))-1,"n.d.") -> 0.1005647019 | AE65: =IF(INDEX($K65:$O65,1,aux!$AL$1)>0,(O65-INDEX($K65:$O65,1,aux!$AL$1))/INDEX($K65:$O65,1,aux!$AL$1),"n.d.") -> 0.467108789 | AX65: 08
A66: 0805 | B66: Citrinos, frescos ou secos | C66: 40578.705 | D66: 46935.185 | E66: 55947.534 | F66: 49023.723 | G66: 75394.578 | H66: 53575.945 | I66: 0.01026744086 | J66: 0.00711056049 | K66: 74605.993 | L66: 126726.086 | M66: 95150.267 | N66: 136298.439 | O66: 130176.257 | P66: 112591.4084 | Q66: 0.04085181233 | R66: 0.02453251045 | S66: 59015.4634 | U66: =G66-INDEX($C66:$G66,1,aux!$AL$1) -> 34815.873 | V66: 0.01426715708 | W66: 0.01139754891 | X66: =+IF(INDEX($C66:$G66,1,aux!$AL$1)>0,(G66/INDEX($C66:$G66,1,aux!$AL$1))^(1/($G$3-INDEX($C$3:$G$3,1,aux!$AL$1)))-1,"n.d.") -> 0.1675096607 | Y66: =IF(INDEX($C66:$G66,1,aux!$AL$1)>0,(G66-INDEX($C66:$G66,1,aux!$AL$1))/INDEX($C66:$G66,1,aux!$AL$1),"n.d.") -> 0.8579838366 | AA66: =O66-INDEX($K66:$O66,1,aux!$AL$1) -> 55570.264 | AB66: 0.03235764129 | AC66: 0.02518515683 | AD66: =+IF(INDEX($K66:$O66,1,aux!$AL$1)>0,(O66/INDEX($K66:$O66,1,aux!$AL$1))^(1/($O$3-INDEX($K$3:$O$3,1,aux!$AL$1)))-1,"n.d.") -> 0.1493161681 | AE66: =IF(INDEX($K66:$O66,1,aux!$AL$1)>0,(O66-INDEX($K66:$O66,1,aux!$AL$1))/INDEX($K66:$O66,1,aux!$AL$1),"n.d.") -> 0.7448498675 | AX66: 08
A67: 0806 | B67: Uvas, frescas ou secas | C67: 26928.628 | D67: 31606.741 | E67: 38173.409 | F67: 42719.847 | G67: 47313.369 | H67: 37348.3988 | I67: 0.007157549454 | J67: 0.00495685235 | K67: 2687.362 | L67: 3708.155 | M67: 2694.632 | N67: 3321.601 | O67: 5265.959 | P67: 3535.5418 | Q67: 0.00128280916 | R67: 0.0007703582127 | S67: -33812.857 | U67: =G67-INDEX($C67:$G67,1,aux!$AL$1) -> 20384.741 | V67: 0.008353439877 | W67: 0.006673280392 | X67: =+IF(INDEX($C67:$G67,1,aux!$AL$1)>0,(G67/INDEX($C67:$G67,1,aux!$AL$1))^(1/($G$3-INDEX($C$3:$G$3,1,aux!$AL$1)))-1,"n.d.") -> 0.1513103574 | Y67: =IF(INDEX($C67:$G67,1,aux!$AL$1)>0,(G67-INDEX($C67:$G67,1,aux!$AL$1))/INDEX($C67:$G67,1,aux!$AL$1),"n.d.") -> 0.7569914442 | AA67: =O67-INDEX($K67:$O67,1,aux!$AL$1) -> 2578.597 | AB67: 0.001501474183 | AC67: 0.001168653254 | AD67: =+IF(INDEX($K67:$O67,1,aux!$AL$1)>0,(O67/INDEX($K67:$O67,1,aux!$AL$1))^(1/($O$3-INDEX($K$3:$O$3,1,aux!$AL$1)))-1,"n.d.") -> 0.1831445986 | AE67: =IF(INDEX($K67:$O67,1,aux!$AL$1)>0,(O67-INDEX($K67:$O67,1,aux!$AL$1))/INDEX($K67:$O67,1,aux!$AL$1),"n.d.") -> 0.9595272241 | AX67: 08
A68: 0807 | B68: Melões, melancias e papaia, frescos | C68: 46373.028 | D68: 48152.633 | E68: 38096.968 | F68: 53699.192 | G68: 53664.129 | H68: 47997.19 | I68: 0.00919831297 | J68: 0.00637015218 | K68: 4068.617 | L68: 5228.177 | M68: 4312.688 | N68: 8147.721 | O68: 8359.358 | P68: 6023.3122 | Q68: 0.002185452896 | R68: 0.001312417808 | S68: -41973.8778 | U68: =G68-INDEX($C68:$G68,1,aux!$AL$1) -> 7291.101 | V68: =IF($U$237<>0,U68/$U$237, "n.d.") -> 0.002987812003 | W68: =IF($U$322<>0,U68/$U$322, "n.d.") -> 0.002386861886 | X68: =+IF(INDEX($C68:$G68,1,aux!$AL$1)>0,(G68/INDEX($C68:$G68,1,aux!$AL$1))^(1/($G$3-INDEX($C$3:$G$3,1,aux!$AL$1)))-1,"n.d.") -> 0.03718125113 | Y68: =IF(INDEX($C68:$G68,1,aux!$AL$1)>0,(G68-INDEX($C68:$G68,1,aux!$AL$1))/INDEX($C68:$G68,1,aux!$AL$1),"n.d.") -> 0.1572271925 | AA68: =O68-INDEX($K68:$O68,1,aux!$AL$1) -> 4290.741 | AB68: =IF($AA$237<>0,AA68/$AA$237, "n.d.") -> 0.002498427183 | AC68: =IF($AA$322<>0,AA68/$AA$322, "n.d.") -> 0.001944618888 | AD68: =+IF(INDEX($K68:$O68,1,aux!$AL$1)>0,(O68/INDEX($K68:$O68,1,aux!$AL$1))^(1/($O$3-INDEX($K$3:$O$3,1,aux!$AL$1)))-1,"n.d.") -> 0.1972408562 | AE68: =IF(INDEX($K68:$O68,1,aux!$AL$1)>0,(O68-INDEX($K68:$O68,1,aux!$AL$1))/INDEX($K68:$O68,1,aux!$AL$1),"n.d.") -> 1.054594473 | AX68: 08
A69: 0808 | B69: Maçãs, peras e marmelos, frescos | C69: 15903.215 | D69: 18933.914 | E69: 19771.467 | F69: 18623.902 | G69: 25141.484 | H69: 19674.7964 | I69: 0.003770531877 | J69: 0.002611224682 | K69: 22260.257 | L69: 30341.492 | M69: 20227.118 | N69: 31933.079 | O69: 26072.73 | P69: 26166.9352 | Q69: 0.009494212224 | R69: 0.005701506183 | S69: 6492.1388 | U69: =G69-INDEX($C69:$G69,1,aux!$AL$1) -> 9238.269 | V69: 0.003785739768 | W69: 0.003024299371 | X69: =+IF(INDEX($C69:$G69,1,aux!$AL$1)>0,(G69/INDEX($C69:$G69,1,aux!$AL$1))^(1/($G$3-INDEX($C$3:$G$3,1,aux!$AL$1)))-1,"n.d.") -> 0.1213120638 | Y69: =IF(INDEX($C69:$G69,1,aux!$AL$1)>0,(G69-INDEX($C69:$G69,1,aux!$AL$1))/INDEX($C69:$G69,1,aux!$AL$1),"n.d.") -> 0.5809057477 | AA69: =O69-INDEX($K69:$O69,1,aux!$AL$1) -> 3812.473 | AB69: 0.002219939674 | AC69: 0.001727861693 | AD69: =+IF(INDEX($K69:$O69,1,aux!$AL$1)>0,(O69/INDEX($K69:$O69,1,aux!$AL$1))^(1/($O$3-INDEX($K$3:$O$3,1,aux!$AL$1)))-1,"n.d.") -> 0.04031313829 | AE69: =IF(INDEX($K69:$O69,1,aux!$AL$1)>0,(O69-INDEX($K69:$O69,1,aux!$AL$1))/INDEX($K69:$O69,1,aux!$AL$1),"n.d.") -> 0.1712681484 | AX69: 08
A70: 0809 | B70: Damascos, cerejas, pêssegos, etc., frescos | C70: 47950.166 | D70: 65422.721 | E70: 55968.881 | F70: 65413.152 | G70: 25067.979 | H70: 51964.5798 | I70: 0.009958634419 | J70: 0.006896701271 | K70: 1690.586 | L70: 3806.952 | M70: 6253.167 | N70: 7475.922 | O70: 2888.343 | P70: 4422.994 | Q70: 0.001604805583 | R70: 0.000963724924 | S70: -47541.5858 | U70: =G70-INDEX($C70:$G70,1,aux!$AL$1) -> -22882.187 | V70: -0.009376865438 | W70: -0.007490860435 | X70: =+IF(INDEX($C70:$G70,1,aux!$AL$1)>0,(G70/INDEX($C70:$G70,1,aux!$AL$1))^(1/($G$3-INDEX($C$3:$G$3,1,aux!$AL$1)))-1,"n.d.") -> -0.1496801806 | Y70: =IF(INDEX($C70:$G70,1,aux!$AL$1)>0,(G70-INDEX($C70:$G70,1,aux!$AL$1))/INDEX($C70:$G70,1,aux!$AL$1),"n.d.") -> -0.4772076701 | AA70: =O70-INDEX($K70:$O70,1,aux!$AL$1) -> 1197.757 | AB70: 0.0006974339973 | AC70: 0.0005428388443 | AD70: =+IF(INDEX($K70:$O70,1,aux!$AL$1)>0,(O70/INDEX($K70:$O70,1,aux!$AL$1))^(1/($O$3-INDEX($K$3:$O$3,1,aux!$AL$1)))-1,"n.d.") -> 0.143280706 | AE70: =IF(INDEX($K70:$O70,1,aux!$AL$1)>0,(O70-INDEX($K70:$O70,1,aux!$AL$1))/INDEX($K70:$O70,1,aux!$AL$1),"n.d.") -> 0.7084862882 | AX70: 08
A71: 0810 | B71: Outras frutas frescas | C71: 59620.64 | D71: 57465.694 | E71: 60105.165 | F71: 63403.027 | G71: 76373.291 | H71: 63393.5634 | I71: 0.01214891614 | J71: 0.00841354767 | K71: 53030.054 | L71: 60858.51 | M71: 87243.223 | N71: 98208.472 | O71: 130576.199 | P71: 85983.2916 | Q71: 0.03119752512 | R71: 0.01873487533 | S71: 22589.7282 | U71: =G71-INDEX($C71:$G71,1,aux!$AL$1) -> 16752.651 | V71: 0.006865049838 | W71: 0.005484255966 | X71: =+IF(INDEX($C71:$G71,1,aux!$AL$1)>0,(G71/INDEX($C71:$G71,1,aux!$AL$1))^(1/($G$3-INDEX($C$3:$G$3,1,aux!$AL$1)))-1,"n.d.") -> 0.0638642567 | Y71: =IF(INDEX($C71:$G71,1,aux!$AL$1)>0,(G71-INDEX($C71:$G71,1,aux!$AL$1))/INDEX($C71:$G71,1,aux!$AL$1),"n.d.") -> 0.2809874399 | AA71: =O71-INDEX($K71:$O71,1,aux!$AL$1) -> 77546.145 | AB71: 0.04515383161 | AC71: 0.03514490813 | AD71: =+IF(INDEX($K71:$O71,1,aux!$AL$1)>0,(O71/INDEX($K71:$O71,1,aux!$AL$1))^(1/($O$3-INDEX($K$3:$O$3,1,aux!$AL$1)))-1,"n.d.") -> 0.2526665721 | AE71: =IF(INDEX($K71:$O71,1,aux!$AL$1)>0,(O71-INDEX($K71:$O71,1,aux!$AL$1))/INDEX($K71:$O71,1,aux!$AL$1),"n.d.") -> 1.462305601 | AX71: 08
A72: 0811 | B72: Frutas não cozidas ou cozidas em água ou vapor, congeladas | C72: 3505.257 | D72: 3980.95 | E72: 5614.008 | F72: 5635.553 | G72: 5172.209 | H72: 4781.5954 | I72: 0.0009163580406 | J72: 0.000634609867 | K72: 6291.887 | L72: 5151.19 | M72: 4795.437 | N72: 7355.315 | O72: 5275.929 | P72: 5773.9516 | Q72: 0.002094976788 | R72: 0.001258084697 | S72: 992.3562 | U72: =G72-INDEX($C72:$G72,1,aux!$AL$1) -> 1666.952 | V72: 0.000683098368 | W72: 0.0005457041665 | X72: =+IF(INDEX($C72:$G72,1,aux!$AL$1)>0,(G72/INDEX($C72:$G72,1,aux!$AL$1))^(1/($G$3-INDEX($C$3:$G$3,1,aux!$AL$1)))-1,"n.d.") -> 0.1021458002 | Y72: =IF(INDEX($C72:$G72,1,aux!$AL$1)>0,(G72-INDEX($C72:$G72,1,aux!$AL$1))/INDEX($C72:$G72,1,aux!$AL$1),"n.d.") -> 0.4755577123 | AA72: =O72-INDEX($K72:$O72,1,aux!$AL$1) -> -1015.958 | AB72: -0.0005915754607 | AC72: -0.0004604452043 | AD72: =+IF(INDEX($K72:$O72,1,aux!$AL$1)>0,(O72/INDEX($K72:$O72,1,aux!$AL$1))^(1/($O$3-INDEX($K$3:$O$3,1,aux!$AL$1)))-1,"n.d.") -> -0.04307146083 | AE72: =IF(INDEX($K72:$O72,1,aux!$AL$1)>0,(O72-INDEX($K72:$O72,1,aux!$AL$1))/INDEX($K72:$O72,1,aux!$AL$1),"n.d.") -> -0.1614711135 | AX72: 08
A73: 0812 | B73: Frutas conservadas transitoriamente | C73: 204.707 | D73: 72.856 | E73: 176.807 | F73: 66.195 | G73: 138.932 | H73: 131.8994 | I73: 2.527756233e-05 | J73: 1.750559252e-05 | K73: 0 | L73: 0 | M73: 22.8 | N73: 0 | O73: 1.923 | P73: 4.9446 | Q73: 1.794061146e-06 | R73: 1.077377509e-06 | S73: -126.9548 | U73: =G73-INDEX($C73:$G73,1,aux!$AL$1) -> -65.775 | V73: -2.695386259e-05 | W73: -2.153252856e-05 | X73: =+IF(INDEX($C73:$G73,1,aux!$AL$1)>0,(G73/INDEX($C73:$G73,1,aux!$AL$1))^(1/($G$3-INDEX($C$3:$G$3,1,aux!$AL$1)))-1,"n.d.") -> -0.09235211816 | Y73: =IF(INDEX($C73:$G73,1,aux!$AL$1)>0,(G73-INDEX($C73:$G73,1,aux!$AL$1))/INDEX($C73:$G73,1,aux!$AL$1),"n.d.") -> -0.3213129009 | AA73: =O73-INDEX($K73:$O73,1,aux!$AL$1) -> 1.923 | AB73: 1.119730944e-06 | AC73: 8.715282796e-07 | AD73: =+IF(INDEX($K73:$O73,1,aux!$AL$1)>0,(O73/INDEX($K73:$O73,1,aux!$AL$1))^(1/($O$3-INDEX($K$3:$O$3,1,aux!$AL$1)))-1,"n.d.") -> n.d. | AE73: =IF(INDEX($K73:$O73,1,aux!$AL$1)>0,(O73-INDEX($K73:$O73,1,aux!$AL$1))/INDEX($K73:$O73,1,aux!$AL$1),"n.d.") -> n.d. | AX73: 08
A74: 0813 | B74: Outras frutas secas | C74: 4962.731 | D74: 4331.35 | E74: 4139.468 | F74: 4804.891 | G74: 7228.839 | H74: 5093.4558 | I74: 0.0009761238219 | J74: 0.0006759997526 | K74: 831.215 | L74: 615.711 | M74: 778.735 | N74: 831.824 | O74: 914.828 | P74: 794.4626 | Q74: 0.0002882567817 | R74: 0.0001731052334 | S74: -4298.9932 | U74: =G74-INDEX($C74:$G74,1,aux!$AL$1) -> 2266.108 | V74: 0.0009286258252 | W74: 0.000741847742 | X74: =+IF(INDEX($C74:$G74,1,aux!$AL$1)>0,(G74/INDEX($C74:$G74,1,aux!$AL$1))^(1/($G$3-INDEX($C$3:$G$3,1,aux!$AL$1)))-1,"n.d.") -> 0.0985933207 | Y74: =IF(INDEX($C74:$G74,1,aux!$AL$1)>0,(G74-INDEX($C74:$G74,1,aux!$AL$1))/INDEX($C74:$G74,1,aux!$AL$1),"n.d.") -> 0.4566251929 | AA74: =O74-INDEX($K74:$O74,1,aux!$AL$1) -> 83.613 | AB74: 4.868646046e-05 | AC74: 3.789448468e-05 | AD74: =+IF(INDEX($K74:$O74,1,aux!$AL$1)>0,(O74/INDEX($K74:$O74,1,aux!$AL$1))^(1/($O$3-INDEX($K$3:$O$3,1,aux!$AL$1)))-1,"n.d.") -> 0.02425128898 | AE74: =IF(INDEX($K74:$O74,1,aux!$AL$1)>0,(O74-INDEX($K74:$O74,1,aux!$AL$1))/INDEX($K74:$O74,1,aux!$AL$1),"n.d.") -> 0.1005913031 | AX74: 08
A75: 0814 | B75: Cascas de citrinos, melões ou melancias | C75: 0.67 | D75: 0.328 | E75: 4.145 | F75: 21.381 | G75: 27.517 | H75: 10.8082 | I75: 2.071313055e-06 | J75: 1.43445645e-06 | K75: 7.042 | L75: 95.36 | M75: 0.001 | N75: 0.037 | O75: 0 | P75: 20.488 | Q75: 7.433710465e-06 | R75: 4.464124583e-06 | S75: 9.6798 | U75: =G75-INDEX($C75:$G75,1,aux!$AL$1) -> 26.847 | V75: 1.100160166e-05 | W75: 8.788807211e-06 | X75: =+IF(INDEX($C75:$G75,1,aux!$AL$1)>0,(G75/INDEX($C75:$G75,1,aux!$AL$1))^(1/($G$3-INDEX($C$3:$G$3,1,aux!$AL$1)))-1,"n.d.") -> 1.531521209 | Y75: =IF(INDEX($C75:$G75,1,aux!$AL$1)>0,(G75-INDEX($C75:$G75,1,aux!$AL$1))/INDEX($C75:$G75,1,aux!$AL$1),"n.d.") -> 40.07014925 | AA75: =O75-INDEX($K75:$O75,1,aux!$AL$1) -> -7.042 | AB75: -4.100439579e-06 | AC75: -3.191524776e-06 | AD75: =+IF(INDEX($K75:$O75,1,aux!$AL$1)>0,(O75/INDEX($K75:$O75,1,aux!$AL$1))^(1/($O$3-INDEX($K$3:$O$3,1,aux!$AL$1)))-1,"n.d.") -> -1 | AE75: =IF(INDEX($K75:$O75,1,aux!$AL$1)>0,(O75-INDEX($K75:$O75,1,aux!$AL$1))/INDEX($K75:$O75,1,aux!$AL$1),"n.d.") -> -1 | AX75: =+LEFT(A75,2) -> 08
A76: 08SS | B76: Frutas; cascas de citrinos e de melões | C76: 0 | D76: 0 | E76: 0 | F76: 0 | G76: 0 | H76: 0 | I76: 0 | J76: 0 | K76: 0 | L76: 0 | M76: 0 | N76: 0 | O76: 0 | P76: 0 | Q76: 0 | R76: 0 | S76: 0 | U76: =G76-INDEX($C76:$G76,1,aux!$AL$1) -> 0 | V76: 0 | W76: 0 | X76: =+IF(INDEX($C76:$G76,1,aux!$AL$1)>0,(G76/INDEX($C76:$G76,1,aux!$AL$1))^(1/($G$3-INDEX($C$3:$G$3,1,aux!$AL$1)))-1,"n.d.") -> n.d. | Y76: =IF(INDEX($C76:$G76,1,aux!$AL$1)>0,(G76-INDEX($C76:$G76,1,aux!$AL$1))/INDEX($C76:$G76,1,aux!$AL$1),"n.d.") -> n.d. | AA76: =O76-INDEX($K76:$O76,1,aux!$AL$1) -> 0 | AB76: 0 | AC76: 0 | AD76: =+IF(INDEX($K76:$O76,1,aux!$AL$1)>0,(O76/INDEX($K76:$O76,1,aux!$AL$1))^(1/($O$3-INDEX($K$3:$O$3,1,aux!$AL$1)))-1,"n.d.") -> n.d. | AE76: =IF(INDEX($K76:$O76,1,aux!$AL$1)>0,(O76-INDEX($K76:$O76,1,aux!$AL$1))/INDEX($K76:$O76,1,aux!$AL$1),"n.d.") -> n.d. | AX76: 08
A77: 0901 | B77: Café | C77: 45093.486 | D77: 53381.923 | E77: 76328.097 | F77: 84034.053 | G77: 89692.41 | H77: 69705.9938 | I77: 0.0133586476 | J77: 0.009251328846 | K77: 26524.953 | L77: 21505.404 | M77: 31109.453 | N77: 32787.552 | O77: 35489.72 | P77: 29483.4164 | Q77: 0.0106975391 | R77: 0.006424133343 | S77: -40222.5774 | U77: =G77-INDEX($C77:$G77,1,aux!$AL$1) -> 44598.924 | V77: 0.01827614244 | W77: 0.01460019164 | X77: =+IF(INDEX($C77:$G77,1,aux!$AL$1)>0,(G77/INDEX($C77:$G77,1,aux!$AL$1))^(1/($G$3-INDEX($C$3:$G$3,1,aux!$AL$1)))-1,"n.d.") -> 0.1875734257 | Y77: =IF(INDEX($C77:$G77,1,aux!$AL$1)>0,(G77-INDEX($C77:$G77,1,aux!$AL$1))/INDEX($C77:$G77,1,aux!$AL$1),"n.d.") -> 0.9890325179 | AA77: =O77-INDEX($K77:$O77,1,aux!$AL$1) -> 8964.767 | AB77: 0.005220034852 | AC77: 0.004062947457 | AD77: =+IF(INDEX($K77:$O77,1,aux!$AL$1)>0,(O77/INDEX($K77:$O77,1,aux!$AL$1))^(1/($O$3-INDEX($K$3:$O$3,1,aux!$AL$1)))-1,"n.d.") -> 0.07550389482 | AE77: =IF(INDEX($K77:$O77,1,aux!$AL$1)>0,(O77-INDEX($K77:$O77,1,aux!$AL$1))/INDEX($K77:$O77,1,aux!$AL$1),"n.d.") -> 0.3379748496 | AX77: 09
A78: 0902 | B78: Chá | C78: 2500.88 | D78: 2438.41 | E78: 2739.252 | F78: 3621.113 | G78: 4067.769 | H78: 3073.4848 | I78: 0.0005890110462 | J78: 0.0004079106693 | K78: 91.522 | L78: 257.413 | M78: 314.442 | N78: 212.624 | O78: 312.962 | P78: 237.7926 | Q78: 8.627886271e-05 | R78: 5.181256302e-05 | S78: -2835.6922 | U78: =G78-INDEX($C78:$G78,1,aux!$AL$1) -> 1566.889 | V78: 0.0006420936648 | W78: 0.0005129468969 | X78: =+IF(INDEX($C78:$G78,1,aux!$AL$1)>0,(G78/INDEX($C78:$G78,1,aux!$AL$1))^(1/($G$3-INDEX($C$3:$G$3,1,aux!$AL$1)))-1,"n.d.") -> 0.1293169777 | Y78: =IF(INDEX($C78:$G78,1,aux!$AL$1)>0,(G78-INDEX($C78:$G78,1,aux!$AL$1))/INDEX($C78:$G78,1,aux!$AL$1),"n.d.") -> 0.6265350597 | AA78: =O78-INDEX($K78:$O78,1,aux!$AL$1) -> 221.44 | AB78: 0.0001289408322 | AC78: 0.0001003594499 | AD78: =+IF(INDEX($K78:$O78,1,aux!$AL$1)>0,(O78/INDEX($K78:$O78,1,aux!$AL$1))^(1/($O$3-INDEX($K$3:$O$3,1,aux!$AL$1)))-1,"n.d.") -> 0.3598516314 | AE78: =IF(INDEX($K78:$O78,1,aux!$AL$1)>0,(O78-INDEX($K78:$O78,1,aux!$AL$1))/INDEX($K78:$O78,1,aux!$AL$1),"n.d.") -> 2.419527545 | AX78: 09
A79: 0903 | B79: Mate | C79: 22.662 | D79: 23.037 | E79: 13.227 | F79: 29.093 | G79: 17.318 | H79: 21.0674 | I79: 4.037414246e-06 | J79: 2.796050019e-06 | K79: 154.017 | L79: 170.301 | M79: 157.827 | N79: 80.826 | O79: 34.669 | P79: 119.528 | Q79: 4.336863259e-05 | R79: 2.604392245e-05 | S79: 98.4606 | U79: =G79-INDEX($C79:$G79,1,aux!$AL$1) -> -5.344 | V79: -2.189911694e-06 | W79: -1.749446334e-06 | X79: =+IF(INDEX($C79:$G79,1,aux!$AL$1)>0,(G79/INDEX($C79:$G79,1,aux!$AL$1))^(1/($G$3-INDEX($C$3:$G$3,1,aux!$AL$1)))-1,"n.d.") -> -0.06502526597 | Y79: =IF(INDEX($C79:$G79,1,aux!$AL$1)>0,(G79-INDEX($C79:$G79,1,aux!$AL$1))/INDEX($C79:$G79,1,aux!$AL$1),"n.d.") -> -0.2358132557 | AA79: =O79-INDEX($K79:$O79,1,aux!$AL$1) -> -119.348 | AB79: -6.949435713e-05 | AC79: -5.40900453e-05 | AD79: =+IF(INDEX($K79:$O79,1,aux!$AL$1)>0,(O79/INDEX($K79:$O79,1,aux!$AL$1))^(1/($O$3-INDEX($K$3:$O$3,1,aux!$AL$1)))-1,"n.d.") -> -0.3111999598 | AE79: =IF(INDEX($K79:$O79,1,aux!$AL$1)>0,(O79-INDEX($K79:$O79,1,aux!$AL$1))/INDEX($K79:$O79,1,aux!$AL$1),"n.d.") -> -0.7749014719 | AX79: 09
A80: 0904 | B80: Pimenta | C80: 2341.582 | D80: 2539.687 | E80: 2903.756 | F80: 3530.545 | G80: 5505.24 | H80: 3364.162 | I80: 0.0006447172211 | J80: 0.0004464891361 | K80: 1358.055 | L80: 1872.832 | M80: 1652.268 | N80: 1691.176 | O80: 2178.897 | P80: 1750.6456 | Q80: 0.0006351909663 | R80: 0.0003814476795 | S80: -1613.5164 | U80: =G80-INDEX($C80:$G80,1,aux!$AL$1) -> 3163.658 | V80: 0.001296431821 | W80: 0.001035675504 | X80: =+IF(INDEX($C80:$G80,1,aux!$AL$1)>0,(G80/INDEX($C80:$G80,1,aux!$AL$1))^(1/($G$3-INDEX($C$3:$G$3,1,aux!$AL$1)))-1,"n.d.") -> 0.2382739067 | Y80: =IF(INDEX($C80:$G80,1,aux!$AL$1)>0,(G80-INDEX($C80:$G80,1,aux!$AL$1))/INDEX($C80:$G80,1,aux!$AL$1),"n.d.") -> 1.351077178 | AA80: =O80-INDEX($K80:$O80,1,aux!$AL$1) -> 820.842 | AB80: 0.0004779626562 | AC80: 0.000372016129 | AD80: =+IF(INDEX($K80:$O80,1,aux!$AL$1)>0,(O80/INDEX($K80:$O80,1,aux!$AL$1))^(1/($O$3-INDEX($K$3:$O$3,1,aux!$AL$1)))-1,"n.d.") -> 0.125459407 | AE80: =IF(INDEX($K80:$O80,1,aux!$AL$1)>0,(O80-INDEX($K80:$O80,1,aux!$AL$1))/INDEX($K80:$O80,1,aux!$AL$1),"n.d.") -> 0.6044247103 | AX80: 09
A81: 0905 | B81: Baunilha | C81: 53.653 | D81: 31.855 | E81: 53.941 | F81: 116.445 | G81: 85.268 | H81: 68.2324 | I81: 1.307624404e-05 | J81: 9.055754547e-06 | K81: 153.411 | L81: 212.784 | M81: 79.088 | N81: 54.301 | O81: 63.893 | P81: 112.6954 | Q81: 4.088954385e-05 | R81: 2.455516915e-05 | S81: 44.463 | U81: =G81-INDEX($C81:$G81,1,aux!$AL$1) -> 31.615 | V81: 1.295547497e-05 | W81: 1.034969047e-05 | X81: =+IF(INDEX($C81:$G81,1,aux!$AL$1)>0,(G81/INDEX($C81:$G81,1,aux!$AL$1))^(1/($G$3-INDEX($C$3:$G$3,1,aux!$AL$1)))-1,"n.d.") -> 0.122788657 | Y81: =IF(INDEX($C81:$G81,1,aux!$AL$1)>0,(G81-INDEX($C81:$G81,1,aux!$AL$1))/INDEX($C81:$G81,1,aux!$AL$1),"n.d.") -> 0.5892494362 | AA81: =O81-INDEX($K81:$O81,1,aux!$AL$1) -> -89.518 | AB81: -5.212484383e-05 | AC81: -4.057070647e-05 | AD81: =+IF(INDEX($K81:$O81,1,aux!$AL$1)>0,(O81/INDEX($K81:$O81,1,aux!$AL$1))^(1/($O$3-INDEX($K$3:$O$3,1,aux!$AL$1)))-1,"n.d.") -> -0.1966603646 | AE81: =IF(INDEX($K81:$O81,1,aux!$AL$1)>0,(O81-INDEX($K81:$O81,1,aux!$AL$1))/INDEX($K81:$O81,1,aux!$AL$1),"n.d.") -> -0.5835174792 | AX81: 09
A82: 0906 | B82: Canela | C82: 389.973 | D82: 334.416 | E82: 446.93 | F82: 546.201 | G82: 1547.81 | H82: 653.066 | I82: 0.0001251553572 | J82: 8.667444497e-05 | K82: 812.302 | L82: 1256.084 | M82: 928.619 | N82: 877.23 | O82: 1104.119 | P82: 995.6708 | Q82: 0.0003612616383 | R82: 0.0002169464318 | S82: 342.6048 | U82: =G82-INDEX($C82:$G82,1,aux!$AL$1) -> 1157.837 | V82: 0.00047446871 | W82: 0.0003790369939 | X82: =+IF(INDEX($C82:$G82,1,aux!$AL$1)>0,(G82/INDEX($C82:$G82,1,aux!$AL$1))^(1/($G$3-INDEX($C$3:$G$3,1,aux!$AL$1)))-1,"n.d.") -> 0.4114671572 | Y82: =IF(INDEX($C82:$G82,1,aux!$AL$1)>0,(G82-INDEX($C82:$G82,1,aux!$AL$1))/INDEX($C82:$G82,1,aux!$AL$1),"n.d.") -> 2.969018368 | AA82: =O82-INDEX($K82:$O82,1,aux!$AL$1) -> 291.817 | AB82: 0.0001699201898 | AC82: 0.0001322552096 | AD82: =+IF(INDEX($K82:$O82,1,aux!$AL$1)>0,(O82/INDEX($K82:$O82,1,aux!$AL$1))^(1/($O$3-INDEX($K$3:$O$3,1,aux!$AL$1)))-1,"n.d.") -> 0.07975342477 | AE82: =IF(INDEX($K82:$O82,1,aux!$AL$1)>0,(O82-INDEX($K82:$O82,1,aux!$AL$1))/INDEX($K82:$O82,1,aux!$AL$1),"n.d.") -> 0.3592469303 | AX82: 09
A83: 0907 | B83: Cravo-da-índia | C83: 29.882 | D83: 41.774 | E83: 52.45 | F83: 50.86 | G83: 118.417 | H83: 58.6766 | I83: 1.124494436e-05 | J83: 7.787515715e-06 | K83: 40.237 | L83: 58.484 | M83: 45.981 | N83: 46.085 | O83: 67.559 | P83: 51.6692 | Q83: 1.874726048e-05 | R83: 1.125818752e-05 | S83: -7.0074 | U83: =G83-INDEX($C83:$G83,1,aux!$AL$1) -> 88.535 | V83: 3.628065716e-05 | W83: 2.898338907e-05 | X83: =+IF(INDEX($C83:$G83,1,aux!$AL$1)>0,(G83/INDEX($C83:$G83,1,aux!$AL$1))^(1/($G$3-INDEX($C$3:$G$3,1,aux!$AL$1)))-1,"n.d.") -> 0.4109158044 | Y83: =IF(INDEX($C83:$G83,1,aux!$AL$1)>0,(G83-INDEX($C83:$G83,1,aux!$AL$1))/INDEX($C83:$G83,1,aux!$AL$1),"n.d.") -> 2.962820427 | AA83: =O83-INDEX($K83:$O83,1,aux!$AL$1) -> 27.322 | AB83: 1.590914658e-05 | AC83: 1.238268105e-05 | AD83: =+IF(INDEX($K83:$O83,1,aux!$AL$1)>0,(O83/INDEX($K83:$O83,1,aux!$AL$1))^(1/($O$3-INDEX($K$3:$O$3,1,aux!$AL$1)))-1,"n.d.") -> 0.138320101 | AE83: =IF(INDEX($K83:$O83,1,aux!$AL$1)>0,(O83-INDEX($K83:$O83,1,aux!$AL$1))/INDEX($K83:$O83,1,aux!$AL$1),"n.d.") -> 0.6790267664 | AX83: 09
A84: 0908 | B84: Noz-moscada, etc. | C84: 192.33 | D84: 191.013 | E84: 317.973 | F84: 253.377 | G84: 396.23 | H84: 270.1846 | I84: 5.177891686e-05 | J84: 3.585870378e-05 | K84: 130.071 | L84: 181.299 | M84: 123.063 | N84: 128.326 | O84: 166.579 | P84: 145.8676 | Q84: 5.29254932e-05 | R84: 3.178305051e-05 | S84: -124.317 | U84: =G84-INDEX($C84:$G84,1,aux!$AL$1) -> 203.9 | V84: 8.355594956e-05 | W84: 6.675002012e-05 | X84: =+IF(INDEX($C84:$G84,1,aux!$AL$1)>0,(G84/INDEX($C84:$G84,1,aux!$AL$1))^(1/($G$3-INDEX($C$3:$G$3,1,aux!$AL$1)))-1,"n.d.") -> 0.1980503785 | Y84: =IF(INDEX($C84:$G84,1,aux!$AL$1)>0,(G84-INDEX($C84:$G84,1,aux!$AL$1))/INDEX($C84:$G84,1,aux!$AL$1),"n.d.") -> 1.060157022 | AA84: =O84-INDEX($K84:$O84,1,aux!$AL$1) -> 36.508 | AB84: 2.125800173e-05 | AC84: 1.654589414e-05 | AD84: =+IF(INDEX($K84:$O84,1,aux!$AL$1)>0,(O84/INDEX($K84:$O84,1,aux!$AL$1))^(1/($O$3-INDEX($K$3:$O$3,1,aux!$AL$1)))-1,"n.d.") -> 0.06379989438 | AE84: =IF(INDEX($K84:$O84,1,aux!$AL$1)>0,(O84-INDEX($K84:$O84,1,aux!$AL$1))/INDEX($K84:$O84,1,aux!$AL$1),"n.d.") -> 0.2806774761 | AX84: 09
A85: 0909 | B85: Sementes de anis, funcho, etc. | C85: 346.395 | D85: 365.272 | E85: 434.353 | F85: 657.968 | G85: 1039.3 | H85: 568.6576 | I85: 0.0001089791002 | J85: 7.547182346e-05 | K85: 198.776 | L85: 295.02 | M85: 275.671 | N85: 206.674 | O85: 316.018 | P85: 258.4318 | Q85: 9.376743344e-05 | R85: 5.630963253e-05 | S85: -310.2258 | U85: =G85-INDEX($C85:$G85,1,aux!$AL$1) -> 692.905 | V85: 0.0002839447535 | W85: 0.0002268338533 | X85: =+IF(INDEX($C85:$G85,1,aux!$AL$1)>0,(G85/INDEX($C85:$G85,1,aux!$AL$1))^(1/($G$3-INDEX($C$3:$G$3,1,aux!$AL$1)))-1,"n.d.") -> 0.3161104218 | Y85: =IF(INDEX($C85:$G85,1,aux!$AL$1)>0,(G85-INDEX($C85:$G85,1,aux!$AL$1))/INDEX($C85:$G85,1,aux!$AL$1),"n.d.") -> 2.000331991 | AA85: =O85-INDEX($K85:$O85,1,aux!$AL$1) -> 117.242 | AB85: 6.826806833e-05 | AC85: 5.313557907e-05 | AD85: =+IF(INDEX($K85:$O85,1,aux!$AL$1)>0,(O85/INDEX($K85:$O85,1,aux!$AL$1))^(1/($O$3-INDEX($K$3:$O$3,1,aux!$AL$1)))-1,"n.d.") -> 0.1228893642 | AE85: =IF(INDEX($K85:$O85,1,aux!$AL$1)>0,(O85-INDEX($K85:$O85,1,aux!$AL$1))/INDEX($K85:$O85,1,aux!$AL$1),"n.d.") -> 0.5898196965 | AX85: 09
A86: 0910 | B86: Gengibre, açafrão, tomilho, louro, etc. | C86: 12039.177 | D86: 15368.71 | E86: 15124.923 | F86: 17497.64 | G86: 16294.388 | H86: 15264.9676 | I86: 0.002925420206 | J86: 0.002025955408 | K86: 1350.814 | L86: 1775.077 | M86: 1337.449 | N86: 1443.875 | O86: 1559.526 | P86: 1493.3482 | Q86: 0.00054183513 | R86: 0.0003253852211 | S86: -13771.6194 | U86: =G86-INDEX($C86:$G86,1,aux!$AL$1) -> 4255.211 | V86: 0.001743738086 | W86: 0.001393013339 | X86: =+IF(INDEX($C86:$G86,1,aux!$AL$1)>0,(G86/INDEX($C86:$G86,1,aux!$AL$1))^(1/($G$3-INDEX($C$3:$G$3,1,aux!$AL$1)))-1,"n.d.") -> 0.07859974553 | Y86: =IF(INDEX($C86:$G86,1,aux!$AL$1)>0,(G86-INDEX($C86:$G86,1,aux!$AL$1))/INDEX($C86:$G86,1,aux!$AL$1),"n.d.") -> 0.3534470006 | AA86: =O86-INDEX($K86:$O86,1,aux!$AL$1) -> 208.712 | AB86: 0.0001215295293 | AC86: 9.459095699e-05 | AD86: =+IF(INDEX($K86:$O86,1,aux!$AL$1)>0,(O86/INDEX($K86:$O86,1,aux!$AL$1))^(1/($O$3-INDEX($K$3:$O$3,1,aux!$AL$1)))-1,"n.d.") -> 0.03657150637 | AE86: =IF(INDEX($K86:$O86,1,aux!$AL$1)>0,(O86-INDEX($K86:$O86,1,aux!$AL$1))/INDEX($K86:$O86,1,aux!$AL$1),"n.d.") -> 0.1545083187 | AX86: 09
A87: 09SS | B87: Café, chá, mate e especiarias | C87: 0 | D87: 0 | E87: 0 | F87: 0 | G87: 0 | H87: 0 | I87: 0 | J87: 0 | K87: 0 | L87: 0 | M87: 0 | N87: 0 | O87: 0 | P87: 0 | Q87: 0 | R87: 0 | S87: 0 | U87: =G87-INDEX($C87:$G87,1,aux!$AL$1) -> 0 | V87: 0 | W87: 0 | X87: =+IF(INDEX($C87:$G87,1,aux!$AL$1)>0,(G87/INDEX($C87:$G87,1,aux!$AL$1))^(1/($G$3-INDEX($C$3:$G$3,1,aux!$AL$1)))-1,"n.d.") -> n.d. | Y87: =IF(INDEX($C87:$G87,1,aux!$AL$1)>0,(G87-INDEX($C87:$G87,1,aux!$AL$1))/INDEX($C87:$G87,1,aux!$AL$1),"n.d.") -> n.d. | AA87: =O87-INDEX($K87:$O87,1,aux!$AL$1) -> 0 | AB87: 0 | AC87: 0 | AD87: =+IF(INDEX($K87:$O87,1,aux!$AL$1)>0,(O87/INDEX($K87:$O87,1,aux!$AL$1))^(1/($O$3-INDEX($K$3:$O$3,1,aux!$AL$1)))-1,"n.d.") -> n.d. | AE87: =IF(INDEX($K87:$O87,1,aux!$AL$1)>0,(O87-INDEX($K87:$O87,1,aux!$AL$1))/INDEX($K87:$O87,1,aux!$AL$1),"n.d.") -> n.d. | AX87: 09
A88: 1001 | B88: Trigo e mistura trigo/centeio | C88: 33863.864 | D88: 28676.348 | E88: 46233.984 | F88: 60506.588 | G88: 21830.1 | H88: 38222.1768 | I88: 0.007325002663 | J88: 0.005072819531 | K88: 5665.305 | L88: 2670.144 | M88: 1322.973 | N88: 5619.894 | O88: 10693.354 | P88: 5194.334 | Q88: 0.001884672736 | R88: 0.001131791981 | S88: -33027.8428 | U88: =G88-INDEX($C88:$G88,1,aux!$AL$1) -> -12033.764 | V88: -0.004931302491 | W88: -0.003939450658 | X88: =+IF(INDEX($C88:$G88,1,aux!$AL$1)>0,(G88/INDEX($C88:$G88,1,aux!$AL$1))^(1/($G$3-INDEX($C$3:$G$3,1,aux!$AL$1)))-1,"n.d.") -> -0.1039550357 | Y88: =IF(INDEX($C88:$G88,1,aux!$AL$1)>0,(G88-INDEX($C88:$G88,1,aux!$AL$1))/INDEX($C88:$G88,1,aux!$AL$1),"n.d.") -> -0.3553570851 | AA88: =O88-INDEX($K88:$O88,1,aux!$AL$1) -> 5028.049 | AB88: 0.002927749379 | AC88: 0.002278776336 | AD88: =+IF(INDEX($K88:$O88,1,aux!$AL$1)>0,(O88/INDEX($K88:$O88,1,aux!$AL$1))^(1/($O$3-INDEX($K$3:$O$3,1,aux!$AL$1)))-1,"n.d.") -> 0.1721215808 | AE88: =IF(INDEX($K88:$O88,1,aux!$AL$1)>0,(O88-INDEX($K88:$O88,1,aux!$AL$1))/INDEX($K88:$O88,1,aux!$AL$1),"n.d.") -> 0.8875160296 | AX88: 10
A89: 1002 | B89: Centeio | C89: 3050.405 | D89: 2517.52 | E89: 4372.112 | F89: 6124.541 | G89: 2717.023 | H89: 3756.3202 | I89: 0.0007198714928 | J89: 0.0004985360874 | K89: 0 | L89: 28.463 | M89: 0.435 | N89: 0 | O89: 0 | P89: 5.7796 | Q89: 2.097026211e-06 | R89: 1.259315425e-06 | S89: -3750.5406 | U89: =G89-INDEX($C89:$G89,1,aux!$AL$1) -> -333.382 | V89: -0.0001366162314 | W89: -0.0001091380834 | X89: =+IF(INDEX($C89:$G89,1,aux!$AL$1)>0,(G89/INDEX($C89:$G89,1,aux!$AL$1))^(1/($G$3-INDEX($C$3:$G$3,1,aux!$AL$1)))-1,"n.d.") -> -0.02851980198 | Y89: =IF(INDEX($C89:$G89,1,aux!$AL$1)>0,(G89-INDEX($C89:$G89,1,aux!$AL$1))/INDEX($C89:$G89,1,aux!$AL$1),"n.d.") -> -0.1092910614 | AA89: =O89-INDEX($K89:$O89,1,aux!$AL$1) -> 0 | AB89: 0 | AC89: 0 | AD89: =+IF(INDEX($K89:$O89,1,aux!$AL$1)>0,(O89/INDEX($K89:$O89,1,aux!$AL$1))^(1/($O$3-INDEX($K$3:$O$3,1,aux!$AL$1)))-1,"n.d.") -> n.d. | AE89: =IF(INDEX($K89:$O89,1,aux!$AL$1)>0,(O89-INDEX($K89:$O89,1,aux!$AL$1))/INDEX($K89:$O89,1,aux!$AL$1),"n.d.") -> n.d. | AX89: 10
A90: 1003 | B90: Cevada | C90: 19446.861 | D90: 14482.177 | E90: 32029.025 | F90: 18001.518 | G90: 9971.236 | H90: 18786.1634 | I90: 0.003600231815 | J90: 0.002493285956 | K90: 6048.863 | L90: 1526.877 | M90: 714.174 | N90: 7329.033 | O90: 30753.133 | P90: 9274.416 | Q90: 0.003365058731 | R90: 0.002020799905 | S90: -9511.7474 | U90: =G90-INDEX($C90:$G90,1,aux!$AL$1) -> -9475.625 | V90: -0.003883005613 | W90: -0.003102001763 | X90: =+IF(INDEX($C90:$G90,1,aux!$AL$1)>0,(G90/INDEX($C90:$G90,1,aux!$AL$1))^(1/($G$3-INDEX($C$3:$G$3,1,aux!$AL$1)))-1,"n.d.") -> -0.1537963947 | Y90: =IF(INDEX($C90:$G90,1,aux!$AL$1)>0,(G90-INDEX($C90:$G90,1,aux!$AL$1))/INDEX($C90:$G90,1,aux!$AL$1),"n.d.") -> -0.4872573008 | AA90: =O90-INDEX($K90:$O90,1,aux!$AL$1) -> 24704.27 | AB90: 0.0143848859 | AC90: 0.01119629222 | AD90: =+IF(INDEX($K90:$O90,1,aux!$AL$1)>0,(O90/INDEX($K90:$O90,1,aux!$AL$1))^(1/($O$3-INDEX($K$3:$O$3,1,aux!$AL$1)))-1,"n.d.") -> 0.5015987723 | AE90: =IF(INDEX($K90:$O90,1,aux!$AL$1)>0,(O90-INDEX($K90:$O90,1,aux!$AL$1))/INDEX($K90:$O90,1,aux!$AL$1),"n.d.") -> 4.084117957 | AX90: 10
A91: 1004 | B91: Aveia | C91: 2140.003 | D91: 3824.129 | E91: 4249.316 | F91: 5108.182 | G91: 5770.26 | H91: 4218.378 | I91: 0.0008084215153 | J91: 0.0005598600629 | K91: 1623.692 | L91: 529.858 | M91: 546.086 | N91: 234.022 | O91: 217.049 | P91: 630.1414 | Q91: 0.0002286357243 | R91: 0.0001373013332 | S91: -3588.2366 | U91: =G91-INDEX($C91:$G91,1,aux!$AL$1) -> 3630.257 | V91: 0.001487638896 | W91: 0.001188424364 | X91: =+IF(INDEX($C91:$G91,1,aux!$AL$1)>0,(G91/INDEX($C91:$G91,1,aux!$AL$1))^(1/($G$3-INDEX($C$3:$G$3,1,aux!$AL$1)))-1,"n.d.") -> 0.2814310706 | Y91: =IF(INDEX($C91:$G91,1,aux!$AL$1)>0,(G91-INDEX($C91:$G91,1,aux!$AL$1))/INDEX($C91:$G91,1,aux!$AL$1),"n.d.") -> 1.696379398 | AA91: =O91-INDEX($K91:$O91,1,aux!$AL$1) -> -1406.643 | AB91: -0.0008190648439 | AC91: -0.0006375086603 | AD91: =+IF(INDEX($K91:$O91,1,aux!$AL$1)>0,(O91/INDEX($K91:$O91,1,aux!$AL$1))^(1/($O$3-INDEX($K$3:$O$3,1,aux!$AL$1)))-1,"n.d.") -> -0.3953368049 | AE91: =IF(INDEX($K91:$O91,1,aux!$AL$1)>0,(O91-INDEX($K91:$O91,1,aux!$AL$1))/INDEX($K91:$O91,1,aux!$AL$1),"n.d.") -> -0.8663237855 | AX91: 10
A92: 1005 | B92: Milho | C92: 23103.55 | D92: 16255.936 | E92: 12301.12 | F92: 24183.915 | G92: 33125.111 | H92: 21793.9264 | I92: 0.004176647755 | J92: 0.002892474075 | K92: 28841.591 | L92: 26131.424 | M92: 19207.658 | N92: 70455.265 | O92: 59110.742 | P92: 40749.336 | Q92: 0.01478517988 | R92: 0.00887886141 | S92: 18955.4096 | U92: =G92-INDEX($C92:$G92,1,aux!$AL$1) -> 10021.561 | V92: 0.004106724107 | W92: 0.003280722896 | X92: =+IF(INDEX($C92:$G92,1,aux!$AL$1)>0,(G92/INDEX($C92:$G92,1,aux!$AL$1))^(1/($G$3-INDEX($C$3:$G$3,1,aux!$AL$1)))-1,"n.d.") -> 0.09425781339 | Y92: =IF(INDEX($C92:$G92,1,aux!$AL$1)>0,(G92-INDEX($C92:$G92,1,aux!$AL$1))/INDEX($C92:$G92,1,aux!$AL$1),"n.d.") -> 0.4337671483 | AA92: =O92-INDEX($K92:$O92,1,aux!$AL$1) -> 30269.151 | AB92: 0.01762522363 | AC92: 0.0137183677 | AD92: =+IF(INDEX($K92:$O92,1,aux!$AL$1)>0,(O92/INDEX($K92:$O92,1,aux!$AL$1))^(1/($O$3-INDEX($K$3:$O$3,1,aux!$AL$1)))-1,"n.d.") -> 0.1964975103 | AE92: =IF(INDEX($K92:$O92,1,aux!$AL$1)>0,(O92-INDEX($K92:$O92,1,aux!$AL$1))/INDEX($K92:$O92,1,aux!$AL$1),"n.d.") -> 1.049496576 | AX92: 10
A93: 1006 | B93: Arroz | C93: 12123.661 | D93: 17761.847 | E93: 16428.353 | F93: 31274.258 | G93: 32772.472 | H93: 22072.1182 | I93: 0.004229961194 | J93: 0.002929395489 | K93: 8705.177 | L93: 8484.698 | M93: 11171.455 | N93: 14159.226 | O93: 17212.188 | P93: 11946.5488 | Q93: 0.004334595121 | R93: 0.002603030172 | S93: -10125.5694 | U93: =G93-INDEX($C93:$G93,1,aux!$AL$1) -> 20648.811 | V93: 0.008461652822 | W93: 0.006759728052 | X93: =+IF(INDEX($C93:$G93,1,aux!$AL$1)>0,(G93/INDEX($C93:$G93,1,aux!$AL$1))^(1/($G$3-INDEX($C$3:$G$3,1,aux!$AL$1)))-1,"n.d.") -> 0.2822386226 | Y93: =IF(INDEX($C93:$G93,1,aux!$AL$1)>0,(G93-INDEX($C93:$G93,1,aux!$AL$1))/INDEX($C93:$G93,1,aux!$AL$1),"n.d.") -> 1.703182809 | AA93: =O93-INDEX($K93:$O93,1,aux!$AL$1) -> 8507.011 | AB93: 0.00495349114 | AC93: 0.003855486563 | AD93: =+IF(INDEX($K93:$O93,1,aux!$AL$1)>0,(O93/INDEX($K93:$O93,1,aux!$AL$1))^(1/($O$3-INDEX($K$3:$O$3,1,aux!$AL$1)))-1,"n.d.") -> 0.185808663 | AE93: =IF(INDEX($K93:$O93,1,aux!$AL$1)>0,(O93-INDEX($K93:$O93,1,aux!$AL$1))/INDEX($K93:$O93,1,aux!$AL$1),"n.d.") -> 0.9772358448 | AX93: 10
